Workbook

Sheet ORÇAMENTO
A5: INSTITUTO FEDERAL DE EDUCAÇÃO, CIÊNCIA E TECNOLOGIA DE MATO GROSSO
A6: CAMPUS PRIMAVERA DO LESTE
A8: PLANILHA DE ESTIMATIVA DE CUSTO
A9: LOCAL: | B9: PRIMAVERA DO LESTE | I9: BDI: | J9: =BDI!C27 -> 0.2044456238
A10: OBRA: | B10: REFORMA HANGAR | I10: BDI Equipamentos: | J10: =BDI!C58 -> 0.1337413601
D11: TABELA SINAPI - DATA DE EMISSÃO: 16/10/2020
D12: SINAPI DATA REFERÊNCIA TÉCNICA: 16/10/2020 - NÃO DESONERADO
A13: ITEM | B13: REFERÊNCIA | C13: CÓDIGO | D13: DESCRIÇÃO DETALHADA | F13: UND | G13: QTD | H13: VALOR UNIT (R$) | I13: VALOR UNIT c/ BDI (R$) | J13: VALOR TOTAL
A14: 1.0 | D14: ADMINISTRAÇÃO DA OBRA | J14: =SUM(J15:J16) -> 30255.22 | K14: =J14/J302 -> 0.04523616418
A15: 1.1 | B15: SINAPI | C15: 93565 | D15: =IF(B15="SINAPI",IFERROR(INDEX(SINAPI!$B:$B,MATCH($C15,SINAPI!$A:$A,0)),""),IF(B15="COMPOSIÇÃO",IFERROR(INDEX(COMPOSIÇÃO!$C:$C,MATCH($C15,COMPOSIÇÃO!$A:$A,0)),""),"")) -> ENGENHEIRO CIVIL DE OBRA JUNIOR COM ENCARGOS COMPLEMENTARES | F15: =IF(B15="SINAPI",IFERROR(INDEX(SINAPI!$C:$C,MATCH($C15,SINAPI!$A:$A,0)),""),IF(B15="COMPOSIÇÃO",IFERROR(INDEX(COMPOSIÇÃO!$D:$D,MATCH($C15,COMPOSIÇÃO!$A:$A,0)),""),"")) -> MES | G15: 0.5 | H15: =IF(B15="SINAPI",IFERROR(INDEX(SINAPI!$D:$D,MATCH($C15,SINAPI!$A:$A,0)),0),IF(B15="COMPOSIÇÃO",IFERROR(INDEX(COMPOSIÇÃO!$G:$G,MATCH($C15,COMPOSIÇÃO!$A:$A,0)),0),0)) -> 16204.01 | I15: =H15*(1+$J$9) -> 19516.84893 | J15: =ROUND(G15*I15,2) -> 9758.42 | K15: =J15/$J$302 -> 0.01459032488
A16: 1.2 | B16: SINAPI | C16: 94295 | D16: =IF(B16="SINAPI",IFERROR(INDEX(SINAPI!$B:$B,MATCH($C16,SINAPI!$A:$A,0)),""),IF(B16="COMPOSIÇÃO",IFERROR(INDEX(COMPOSIÇÃO!$C:$C,MATCH($C16,COMPOSIÇÃO!$A:$A,0)),""),"")) -> MESTRE DE OBRAS COM ENCARGOS COMPLEMENTARES | F16: =IF(B16="SINAPI",IFERROR(INDEX(SINAPI!$C:$C,MATCH($C16,SINAPI!$A:$A,0)),""),IF(B16="COMPOSIÇÃO",IFERROR(INDEX(COMPOSIÇÃO!$D:$D,MATCH($C16,COMPOSIÇÃO!$A:$A,0)),""),"")) -> MES | G16: 3 | H16: =IF(B16="SINAPI",IFERROR(INDEX(SINAPI!$D:$D,MATCH($C16,SINAPI!$A:$A,0)),0),IF(B16="COMPOSIÇÃO",IFERROR(INDEX(COMPOSIÇÃO!$G:$G,MATCH($C16,COMPOSIÇÃO!$A:$A,0)),0),0)) -> 5672.54 | I16: 6832.265979 | J16: 20496.8 | K16: =J16/$J$302 -> 0.03064583929
A17: 2.0 | D17: SERVIÇOS PRELIMINARES | J17: =SUM(J18:J21) -> 4842.65 | K17: =J17/$J$302 -> 0.007240499671
A18: 2.1 | B18: COMPOSIÇÃO | C18: IFMT 211.06.2020 | D18: =IF(B18="SINAPI",IFERROR(INDEX(SINAPI!$B:$B,MATCH($C18,SINAPI!$A:$A,0)),""),IF(B18="COMPOSIÇÃO",IFERROR(INDEX(COMPOSIÇÃO!$C:$C,MATCH($C18,COMPOSIÇÃO!$A:$A,0)),""),"")) -> PLACA DE OBRA EM CHAPA DE ACO GALVANIZADO | F18: =IF(B18="SINAPI",IFERROR(INDEX(SINAPI!$C:$C,MATCH($C18,SINAPI!$A:$A,0)),""),IF(B18="COMPOSIÇÃO",IFERROR(INDEX(COMPOSIÇÃO!$D:$D,MATCH($C18,COMPOSIÇÃO!$A:$A,0)),""),"")) -> M2 | G18: 6 | H18: =IF(B18="SINAPI",IFERROR(INDEX(SINAPI!$D:$D,MATCH($C18,SINAPI!$A:$A,0)),0),IF(B18="COMPOSIÇÃO",IFERROR(INDEX(COMPOSIÇÃO!$G:$G,MATCH($C18,COMPOSIÇÃO!$A:$A,0)),0),0)) -> 381.4525 | I18: 459.4387943 | J18: 2756.63 | K18: =J18/$J$302 -> 0.004121581904
A19: 2.2 | B19: SINAPI | C19: 99814 | D19: =IF(B19="SINAPI",IFERROR(INDEX(SINAPI!$B:$B,MATCH($C19,SINAPI!$A:$A,0)),""),IF(B19="COMPOSIÇÃO",IFERROR(INDEX(COMPOSIÇÃO!$C:$C,MATCH($C19,COMPOSIÇÃO!$A:$A,0)),""),"")) -> LIMPEZA DE SUPERFÍCIE COM JATO DE ALTA PRESSÃO. AF_04/2019 | F19: =IF(B19="SINAPI",IFERROR(INDEX(SINAPI!$C:$C,MATCH($C19,SINAPI!$A:$A,0)),""),IF(B19="COMPOSIÇÃO",IFERROR(INDEX(COMPOSIÇÃO!$D:$D,MATCH($C19,COMPOSIÇÃO!$A:$A,0)),""),"")) -> M2 | G19: 1083.76 | H19: =IF(B19="SINAPI",IFERROR(INDEX(SINAPI!$D:$D,MATCH($C19,SINAPI!$A:$A,0)),0),IF(B19="COMPOSIÇÃO",IFERROR(INDEX(COMPOSIÇÃO!$G:$G,MATCH($C19,COMPOSIÇÃO!$A:$A,0)),0),0)) -> 1.43 | I19: 1.722357242 | J19: 1866.62 | K19: =J19/$J$302 -> 0.002790881335
A20: 2.3 | B20: SINAPI | C20: 100981 | D20: =IF(B20="SINAPI",IFERROR(INDEX(SINAPI!$B:$B,MATCH($C20,SINAPI!$A:$A,0)),""),IF(B20="COMPOSIÇÃO",IFERROR(INDEX(COMPOSIÇÃO!$C:$C,MATCH($C20,COMPOSIÇÃO!$A:$A,0)),""),"")) -> CARGA, MANOBRA E DESCARGA DE ENTULHO EM CAMINHÃO BASCULANTE 6 M³ - CARGA COM ESCAVADEIRA HIDRÁULICA (CAÇAMBA DE 0,80 M³ / 111 HP) E DESCARGA LIVRE (UNIDADE: M3). AF_07/2020 | F20: =IF(B20="SINAPI",IFERROR(INDEX(SINAPI!$C:$C,MATCH($C20,SINAPI!$A:$A,0)),""),IF(B20="COMPOSIÇÃO",IFERROR(INDEX(COMPOSIÇÃO!$D:$D,MATCH($C20,COMPOSIÇÃO!$A:$A,0)),""),"")) -> M3 | G20: 24 | H20: =IF(B20="SINAPI",IFERROR(INDEX(SINAPI!$D:$D,MATCH($C20,SINAPI!$A:$A,0)),0),IF(B20="COMPOSIÇÃO",IFERROR(INDEX(COMPOSIÇÃO!$G:$G,MATCH($C20,COMPOSIÇÃO!$A:$A,0)),0),0)) -> 4.99 | I20: 6.010183663 | J20: 144.24 | K20: =J20/$J$302 -> 0.0002156607792
A21: 2.5 | B21: SINAPI | C21: 97918 | D21: =IF(B21="SINAPI",IFERROR(INDEX(SINAPI!$B:$B,MATCH($C21,SINAPI!$A:$A,0)),""),IF(B21="COMPOSIÇÃO",IFERROR(INDEX(COMPOSIÇÃO!$C:$C,MATCH($C21,COMPOSIÇÃO!$A:$A,0)),""),"")) -> TRANSPORTE COM CAMINHÃO BASCULANTE DE 6 M³, EM VIA URBANA PAVIMENTADA, DMT ATÉ 30 KM (UNIDADE: TXKM). AF_07/2020 | F21: =IF(B21="SINAPI",IFERROR(INDEX(SINAPI!$C:$C,MATCH($C21,SINAPI!$A:$A,0)),""),IF(B21="COMPOSIÇÃO",IFERROR(INDEX(COMPOSIÇÃO!$D:$D,MATCH($C21,COMPOSIÇÃO!$A:$A,0)),""),"")) -> TXKM | G21: 60 | H21: =IF(B21="SINAPI",IFERROR(INDEX(SINAPI!$D:$D,MATCH($C21,SINAPI!$A:$A,0)),0),IF(B21="COMPOSIÇÃO",IFERROR(INDEX(COMPOSIÇÃO!$G:$G,MATCH($C21,COMPOSIÇÃO!$A:$A,0)),0),0)) -> 1.04 | I21: 1.252623449 | J21: 75.16 | K21: =J21/$J$302 -> 0.0001123756528
A22: 3.0 | D22: FUNDAÇÃO/ESTRUTURA | J22: =SUM(J23:J55) -> 33801.26 | K22: =J22/$J$302 -> 0.05053803432
A23: 3.1 | D23: PLATAFORMA ELEVATÓRIA 2,00M X 1,80M PREVISÃO-(ESTACAS, BLOCOS, VIGA BALDRAME, VIGA SUPERIOR E VIGA DE COBERTURA, LAJE) | F23: =IF(B23="SINAPI",IFERROR(INDEX(SINAPI!$C:$C,MATCH($C23,SINAPI!$A:$A,0)),""),IF(B23="COMPOSIÇÃO",IFERROR(INDEX(COMPOSIÇÃO!$D:$D,MATCH($C23,COMPOSIÇÃO!$A:$A,0)),""),"")) -> 
A24: 3.2 | B24: SINAPI | C24: 93358 | D24: =IF(B24="SINAPI",IFERROR(INDEX(SINAPI!$B:$B,MATCH($C24,SINAPI!$A:$A,0)),""),IF(B24="COMPOSIÇÃO",IFERROR(INDEX(COMPOSIÇÃO!$C:$C,MATCH($C24,COMPOSIÇÃO!$A:$A,0)),""),"")) -> ESCAVAÇÃO MANUAL DE VALA COM PROFUNDIDADE MENOR OU IGUAL A 1,30 M. AF_03/2016 | F24: =IF(B24="SINAPI",IFERROR(INDEX(SINAPI!$C:$C,MATCH($C24,SINAPI!$A:$A,0)),""),IF(B24="COMPOSIÇÃO",IFERROR(INDEX(COMPOSIÇÃO!$D:$D,MATCH($C24,COMPOSIÇÃO!$A:$A,0)),""),"")) -> M3 | G24: 4.75 | H24: =IF(B24="SINAPI",IFERROR(INDEX(SINAPI!$D:$D,MATCH($C24,SINAPI!$A:$A,0)),0),IF(B24="COMPOSIÇÃO",IFERROR(INDEX(COMPOSIÇÃO!$G:$G,MATCH($C24,COMPOSIÇÃO!$A:$A,0)),0),0)) -> 62.93 | I24: 75.79576311 | J24: 360.03 | K24: =J24/$J$302 -> 0.0005382997112
A25: 3.3 | B25: SINAPI | C25: 93382 | D25: =IF(B25="SINAPI",IFERROR(INDEX(SINAPI!$B:$B,MATCH($C25,SINAPI!$A:$A,0)),""),IF(B25="COMPOSIÇÃO",IFERROR(INDEX(COMPOSIÇÃO!$C:$C,MATCH($C25,COMPOSIÇÃO!$A:$A,0)),""),"")) -> REATERRO MANUAL DE VALAS COM COMPACTAÇÃO MECANIZADA. AF_04/2016 | F25: =IF(B25="SINAPI",IFERROR(INDEX(SINAPI!$C:$C,MATCH($C25,SINAPI!$A:$A,0)),""),IF(B25="COMPOSIÇÃO",IFERROR(INDEX(COMPOSIÇÃO!$D:$D,MATCH($C25,COMPOSIÇÃO!$A:$A,0)),""),"")) -> M3 | G25: 1.5 | H25: =IF(B25="SINAPI",IFERROR(INDEX(SINAPI!$D:$D,MATCH($C25,SINAPI!$A:$A,0)),0),IF(B25="COMPOSIÇÃO",IFERROR(INDEX(COMPOSIÇÃO!$G:$G,MATCH($C25,COMPOSIÇÃO!$A:$A,0)),0),0)) -> 21.25 | I25: 25.59446951 | J25: 38.39 | K25: =J25/$J$302 -> 5.739889985e-05
A26: 3.4 | B26: SINAPI | C26: 96619 | D26: =IF(B26="SINAPI",IFERROR(INDEX(SINAPI!$B:$B,MATCH($C26,SINAPI!$A:$A,0)),""),IF(B26="COMPOSIÇÃO",IFERROR(INDEX(COMPOSIÇÃO!$C:$C,MATCH($C26,COMPOSIÇÃO!$A:$A,0)),""),"")) -> LASTRO DE CONCRETO MAGRO, APLICADO EM BLOCOS DE COROAMENTO OU SAPATAS, ESPESSURA DE 5 CM. AF_08/2017 | F26: =IF(B26="SINAPI",IFERROR(INDEX(SINAPI!$C:$C,MATCH($C26,SINAPI!$A:$A,0)),""),IF(B26="COMPOSIÇÃO",IFERROR(INDEX(COMPOSIÇÃO!$D:$D,MATCH($C26,COMPOSIÇÃO!$A:$A,0)),""),"")) -> M2 | G26: 1 | H26: =IF(B26="SINAPI",IFERROR(INDEX(SINAPI!$D:$D,MATCH($C26,SINAPI!$A:$A,0)),0),IF(B26="COMPOSIÇÃO",IFERROR(INDEX(COMPOSIÇÃO!$G:$G,MATCH($C26,COMPOSIÇÃO!$A:$A,0)),0),0)) -> 22.5 | I26: 27.10002654 | J26: 27.1 | K26: =J26/$J$302 -> 4.051862949e-05
A27: 3.5 | B27: SINAPI | C27: 94965 | D27: =IF(B27="SINAPI",IFERROR(INDEX(SINAPI!$B:$B,MATCH($C27,SINAPI!$A:$A,0)),""),IF(B27="COMPOSIÇÃO",IFERROR(INDEX(COMPOSIÇÃO!$C:$C,MATCH($C27,COMPOSIÇÃO!$A:$A,0)),""),"")) -> CONCRETO FCK = 25MPA, TRAÇO 1:2,3:2,7 (CIMENTO/ AREIA MÉDIA/ BRITA 1) - PREPARO MECÂNICO COM BETONEIRA 400 L. AF_07/2016 | F27: =IF(B27="SINAPI",IFERROR(INDEX(SINAPI!$C:$C,MATCH($C27,SINAPI!$A:$A,0)),""),IF(B27="COMPOSIÇÃO",IFERROR(INDEX(COMPOSIÇÃO!$D:$D,MATCH($C27,COMPOSIÇÃO!$A:$A,0)),""),"")) -> M3 | G27: 7.15 | H27: =IF(B27="SINAPI",IFERROR(INDEX(SINAPI!$D:$D,MATCH($C27,SINAPI!$A:$A,0)),0),IF(B27="COMPOSIÇÃO",IFERROR(INDEX(COMPOSIÇÃO!$G:$G,MATCH($C27,COMPOSIÇÃO!$A:$A,0)),0),0)) -> 340.12 | I27: 409.6560456 | J27: 2929.04 | K27: =J27/$J$302 -> 0.004379361126
A28: 3.6 | B28: SINAPI | C28: 92409 | D28: =IF(B28="SINAPI",IFERROR(INDEX(SINAPI!$B:$B,MATCH($C28,SINAPI!$A:$A,0)),""),IF(B28="COMPOSIÇÃO",IFERROR(INDEX(COMPOSIÇÃO!$C:$C,MATCH($C28,COMPOSIÇÃO!$A:$A,0)),""),"")) -> MONTAGEM E DESMONTAGEM DE FÔRMA DE PILARES RETANGULARES E ESTRUTURAS SIMILARES, PÉ-DIREITO SIMPLES, EM MADEIRA SERRADA, 1 UTILIZAÇÃO. AF_09/2020 | F28: =IF(B28="SINAPI",IFERROR(INDEX(SINAPI!$C:$C,MATCH($C28,SINAPI!$A:$A,0)),""),IF(B28="COMPOSIÇÃO",IFERROR(INDEX(COMPOSIÇÃO!$D:$D,MATCH($C28,COMPOSIÇÃO!$A:$A,0)),""),"")) -> M2 | G28: 20.16 | H28: =IF(B28="SINAPI",IFERROR(INDEX(SINAPI!$D:$D,MATCH($C28,SINAPI!$A:$A,0)),0),IF(B28="COMPOSIÇÃO",IFERROR(INDEX(COMPOSIÇÃO!$G:$G,MATCH($C28,COMPOSIÇÃO!$A:$A,0)),0),0)) -> 156.79 | I28: 188.8450294 | J28: 3807.12 | K28: =J28/$J$302 -> 0.005692224527
A29: 3.7 | B29: SINAPI | C29: 92446 | D29: =IF(B29="SINAPI",IFERROR(INDEX(SINAPI!$B:$B,MATCH($C29,SINAPI!$A:$A,0)),""),IF(B29="COMPOSIÇÃO",IFERROR(INDEX(COMPOSIÇÃO!$C:$C,MATCH($C29,COMPOSIÇÃO!$A:$A,0)),""),"")) -> MONTAGEM E DESMONTAGEM DE FÔRMA DE VIGA, ESCORAMENTO COM PONTALETE DE MADEIRA, PÉ-DIREITO SIMPLES, EM MADEIRA SERRADA, 1 UTILIZAÇÃO. AF_09/2020 | F29: =IF(B29="SINAPI",IFERROR(INDEX(SINAPI!$C:$C,MATCH($C29,SINAPI!$A:$A,0)),""),IF(B29="COMPOSIÇÃO",IFERROR(INDEX(COMPOSIÇÃO!$D:$D,MATCH($C29,COMPOSIÇÃO!$A:$A,0)),""),"")) -> M2 | G29: 26.88 | H29: =IF(B29="SINAPI",IFERROR(INDEX(SINAPI!$D:$D,MATCH($C29,SINAPI!$A:$A,0)),0),IF(B29="COMPOSIÇÃO",IFERROR(INDEX(COMPOSIÇÃO!$G:$G,MATCH($C29,COMPOSIÇÃO!$A:$A,0)),0),0)) -> 154.42 | I29: 185.9904932 | J29: 4999.42 | K29: =J29/$J$302 -> 0.00747489471
A30: 3.8 | B30: ORSE | C30: 09949/ORSE | D30: 09949/ORSE Estaca escavada mecanicamente - Ø = 200 a 250mm, com concreto fck = 21 Mpa e armadura CA-50 e CA-60 | F30: m | G30: 80 | H30: 77.45 | I30: 93.28431356 | J30: 7462.75 | K30: =J30/$J$302 -> 0.01115794842
A31: 3.9 | B31: ORSE | C31: 00140/ORSE | D31: 00140/ORSE Aço CA - 50 Ø 6,3 a 12,5mm, inclusive corte, dobragem, montagem e colocacao de ferragens nas formas, para superestruturas e fundações | F31: KG | G31: 572 | H31: 8.14 | I31: 9.804187378 | J31: 5608 | K31: =J31/$J$302 -> 0.008384814545
A32: 3.10 | B32: SINAPI | C32: 92785 | D32: =IF(B32="SINAPI",IFERROR(INDEX(SINAPI!$B:$B,MATCH($C32,SINAPI!$A:$A,0)),""),IF(B32="COMPOSIÇÃO",IFERROR(INDEX(COMPOSIÇÃO!$C:$C,MATCH($C32,COMPOSIÇÃO!$A:$A,0)),""),"")) -> ARMAÇÃO DE LAJE DE UMA ESTRUTURA CONVENCIONAL DE CONCRETO ARMADO EM UMA EDIFICAÇÃO TÉRREA OU SOBRADO UTILIZANDO AÇO CA-50 DE 6,3 MM - MONTAGEM. AF_12/2015 | F32: =IF(B32="SINAPI",IFERROR(INDEX(SINAPI!$C:$C,MATCH($C32,SINAPI!$A:$A,0)),""),IF(B32="COMPOSIÇÃO",IFERROR(INDEX(COMPOSIÇÃO!$D:$D,MATCH($C32,COMPOSIÇÃO!$A:$A,0)),""),"")) -> KG | G32: 5 | H32: =IF(B32="SINAPI",IFERROR(INDEX(SINAPI!$D:$D,MATCH($C32,SINAPI!$A:$A,0)),0),IF(B32="COMPOSIÇÃO",IFERROR(INDEX(COMPOSIÇÃO!$G:$G,MATCH($C32,COMPOSIÇÃO!$A:$A,0)),0),0)) -> 11.12 | I32: 13.39343534 | J32: 66.97 | K32: =J32/$J$302 -> 0.0001001303549
A33: 3.11 | B33: SINAPI | C33: 92786 | D33: =IF(B33="SINAPI",IFERROR(INDEX(SINAPI!$B:$B,MATCH($C33,SINAPI!$A:$A,0)),""),IF(B33="COMPOSIÇÃO",IFERROR(INDEX(COMPOSIÇÃO!$C:$C,MATCH($C33,COMPOSIÇÃO!$A:$A,0)),""),"")) -> ARMAÇÃO DE LAJE DE UMA ESTRUTURA CONVENCIONAL DE CONCRETO ARMADO EM UMA EDIFICAÇÃO TÉRREA OU SOBRADO UTILIZANDO AÇO CA-50 DE 8,0 MM - MONTAGEM. AF_12/2015 | F33: =IF(B33="SINAPI",IFERROR(INDEX(SINAPI!$C:$C,MATCH($C33,SINAPI!$A:$A,0)),""),IF(B33="COMPOSIÇÃO",IFERROR(INDEX(COMPOSIÇÃO!$D:$D,MATCH($C33,COMPOSIÇÃO!$A:$A,0)),""),"")) -> KG | G33: 8 | H33: =IF(B33="SINAPI",IFERROR(INDEX(SINAPI!$D:$D,MATCH($C33,SINAPI!$A:$A,0)),0),IF(B33="COMPOSIÇÃO",IFERROR(INDEX(COMPOSIÇÃO!$G:$G,MATCH($C33,COMPOSIÇÃO!$A:$A,0)),0),0)) -> 10.35 | I33: 12.46601221 | J33: 99.73 | K33: =J33/$J$302 -> 0.0001491115468
A34: 3.12 | B34: SINAPI | C34: 92508 | D34: =IF(B34="SINAPI",IFERROR(INDEX(SINAPI!$B:$B,MATCH($C34,SINAPI!$A:$A,0)),""),IF(B34="COMPOSIÇÃO",IFERROR(INDEX(COMPOSIÇÃO!$C:$C,MATCH($C34,COMPOSIÇÃO!$A:$A,0)),""),"")) -> MONTAGEM E DESMONTAGEM DE FÔRMA DE LAJE MACIÇA, PÉ-DIREITO DUPLO, EM CHAPA DE MADEIRA COMPENSADA RESINADA, 2 UTILIZAÇÕES. AF_09/2020 | F34: =IF(B34="SINAPI",IFERROR(INDEX(SINAPI!$C:$C,MATCH($C34,SINAPI!$A:$A,0)),""),IF(B34="COMPOSIÇÃO",IFERROR(INDEX(COMPOSIÇÃO!$D:$D,MATCH($C34,COMPOSIÇÃO!$A:$A,0)),""),"")) -> M2 | G34: 4 | H34: =IF(B34="SINAPI",IFERROR(INDEX(SINAPI!$D:$D,MATCH($C34,SINAPI!$A:$A,0)),0),IF(B34="COMPOSIÇÃO",IFERROR(INDEX(COMPOSIÇÃO!$G:$G,MATCH($C34,COMPOSIÇÃO!$A:$A,0)),0),0)) -> 73.07 | I34: 88.00884173 | J34: 352.04 | K34: =J34/$J$302 -> 0.0005263534437
A35: 3.13 | B35: SINAPI | C35: 90856 | D35: =IF(B35="SINAPI",IFERROR(INDEX(SINAPI!$B:$B,MATCH($C35,SINAPI!$A:$A,0)),""),IF(B35="COMPOSIÇÃO",IFERROR(INDEX(COMPOSIÇÃO!$C:$C,MATCH($C35,COMPOSIÇÃO!$A:$A,0)),""),"")) -> CONCRETAGEM DE LAJES EM EDIFICAÇÕES MULTIFAMILIARES FEITAS COM SISTEMA DE FÔRMAS MANUSEÁVEIS, COM CONCRETO USINADO BOMBEÁVEL FCK 20 MPA - LANÇAMENTO, ADENSAMENTO E ACABAMENTO. AF_06/2015 | F35: =IF(B35="SINAPI",IFERROR(INDEX(SINAPI!$C:$C,MATCH($C35,SINAPI!$A:$A,0)),""),IF(B35="COMPOSIÇÃO",IFERROR(INDEX(COMPOSIÇÃO!$D:$D,MATCH($C35,COMPOSIÇÃO!$A:$A,0)),""),"")) -> M3 | G35: 0.54 | H35: =IF(B35="SINAPI",IFERROR(INDEX(SINAPI!$D:$D,MATCH($C35,SINAPI!$A:$A,0)),0),IF(B35="COMPOSIÇÃO",IFERROR(INDEX(COMPOSIÇÃO!$G:$G,MATCH($C35,COMPOSIÇÃO!$A:$A,0)),0),0)) -> 508.23 | I35: 612.1353994 | J35: 330.55 | K35: =J35/$J$302 -> 0.0004942226191
D36: ABRIGO DO COMPRESSOR ESTRUTURA VIGAS E PILAR 15X30CM | F36: =IF(B36="SINAPI",IFERROR(INDEX(SINAPI!$C:$C,MATCH($C36,SINAPI!$A:$A,0)),""),IF(B36="COMPOSIÇÃO",IFERROR(INDEX(COMPOSIÇÃO!$D:$D,MATCH($C36,COMPOSIÇÃO!$A:$A,0)),""),"")) -> 
A37: 3.16 | B37: SINAPI | C37: 93358 | D37: =IF(B37="SINAPI",IFERROR(INDEX(SINAPI!$B:$B,MATCH($C37,SINAPI!$A:$A,0)),""),IF(B37="COMPOSIÇÃO",IFERROR(INDEX(COMPOSIÇÃO!$C:$C,MATCH($C37,COMPOSIÇÃO!$A:$A,0)),""),"")) -> ESCAVAÇÃO MANUAL DE VALA COM PROFUNDIDADE MENOR OU IGUAL A 1,30 M. AF_03/2016 | F37: =IF(B37="SINAPI",IFERROR(INDEX(SINAPI!$C:$C,MATCH($C37,SINAPI!$A:$A,0)),""),IF(B37="COMPOSIÇÃO",IFERROR(INDEX(COMPOSIÇÃO!$D:$D,MATCH($C37,COMPOSIÇÃO!$A:$A,0)),""),"")) -> M3 | G37: 1 | H37: =IF(B37="SINAPI",IFERROR(INDEX(SINAPI!$D:$D,MATCH($C37,SINAPI!$A:$A,0)),0),IF(B37="COMPOSIÇÃO",IFERROR(INDEX(COMPOSIÇÃO!$G:$G,MATCH($C37,COMPOSIÇÃO!$A:$A,0)),0),0)) -> 62.93 | I37: 75.79576311 | J37: 75.8 | K37: =J37/$J$302 -> 0.0001133325504
A38: 3.17 | B38: SINAPI | C38: 93382 | D38: =IF(B38="SINAPI",IFERROR(INDEX(SINAPI!$B:$B,MATCH($C38,SINAPI!$A:$A,0)),""),IF(B38="COMPOSIÇÃO",IFERROR(INDEX(COMPOSIÇÃO!$C:$C,MATCH($C38,COMPOSIÇÃO!$A:$A,0)),""),"")) -> REATERRO MANUAL DE VALAS COM COMPACTAÇÃO MECANIZADA. AF_04/2016 | F38: =IF(B38="SINAPI",IFERROR(INDEX(SINAPI!$C:$C,MATCH($C38,SINAPI!$A:$A,0)),""),IF(B38="COMPOSIÇÃO",IFERROR(INDEX(COMPOSIÇÃO!$D:$D,MATCH($C38,COMPOSIÇÃO!$A:$A,0)),""),"")) -> M3 | G38: 0.65 | H38: =IF(B38="SINAPI",IFERROR(INDEX(SINAPI!$D:$D,MATCH($C38,SINAPI!$A:$A,0)),0),IF(B38="COMPOSIÇÃO",IFERROR(INDEX(COMPOSIÇÃO!$G:$G,MATCH($C38,COMPOSIÇÃO!$A:$A,0)),0),0)) -> 21.25 | I38: 25.59446951 | J38: 16.64 | K38: =J38/$J$302 -> 2.48793356e-05
A39: 3.18 | B39: SINAPI | C39: 96619 | D39: =IF(B39="SINAPI",IFERROR(INDEX(SINAPI!$B:$B,MATCH($C39,SINAPI!$A:$A,0)),""),IF(B39="COMPOSIÇÃO",IFERROR(INDEX(COMPOSIÇÃO!$C:$C,MATCH($C39,COMPOSIÇÃO!$A:$A,0)),""),"")) -> LASTRO DE CONCRETO MAGRO, APLICADO EM BLOCOS DE COROAMENTO OU SAPATAS, ESPESSURA DE 5 CM. AF_08/2017 | F39: =IF(B39="SINAPI",IFERROR(INDEX(SINAPI!$C:$C,MATCH($C39,SINAPI!$A:$A,0)),""),IF(B39="COMPOSIÇÃO",IFERROR(INDEX(COMPOSIÇÃO!$D:$D,MATCH($C39,COMPOSIÇÃO!$A:$A,0)),""),"")) -> M2 | G39: 1.74 | H39: =IF(B39="SINAPI",IFERROR(INDEX(SINAPI!$D:$D,MATCH($C39,SINAPI!$A:$A,0)),0),IF(B39="COMPOSIÇÃO",IFERROR(INDEX(COMPOSIÇÃO!$G:$G,MATCH($C39,COMPOSIÇÃO!$A:$A,0)),0),0)) -> 22.5 | I39: 27.10002654 | J39: 47.15 | K39: =J39/$J$302 -> 7.04964347e-05
A40: 3.20 | B40: SINAPI | C40: 92759 | D40: =IF(B40="SINAPI",IFERROR(INDEX(SINAPI!$B:$B,MATCH($C40,SINAPI!$A:$A,0)),""),IF(B40="COMPOSIÇÃO",IFERROR(INDEX(COMPOSIÇÃO!$C:$C,MATCH($C40,COMPOSIÇÃO!$A:$A,0)),""),"")) -> ARMAÇÃO DE PILAR OU VIGA DE UMA ESTRUTURA CONVENCIONAL DE CONCRETO ARMADO EM UM EDIFÍCIO DE MÚLTIPLOS PAVIMENTOS UTILIZANDO AÇO CA-60 DE 5,0 MM - MONTAGEM. AF_12/2015 | F40: =IF(B40="SINAPI",IFERROR(INDEX(SINAPI!$C:$C,MATCH($C40,SINAPI!$A:$A,0)),""),IF(B40="COMPOSIÇÃO",IFERROR(INDEX(COMPOSIÇÃO!$D:$D,MATCH($C40,COMPOSIÇÃO!$A:$A,0)),""),"")) -> KG | G40: 8.13 | H40: =IF(B40="SINAPI",IFERROR(INDEX(SINAPI!$D:$D,MATCH($C40,SINAPI!$A:$A,0)),0),IF(B40="COMPOSIÇÃO",IFERROR(INDEX(COMPOSIÇÃO!$G:$G,MATCH($C40,COMPOSIÇÃO!$A:$A,0)),0),0)) -> 11.5 | I40: 13.85112467 | J40: 112.61 | K40: =J40/$J$302 -> 0.0001683691095
A41: 3.21 | B41: SINAPI | C41: 92761 | D41: =IF(B41="SINAPI",IFERROR(INDEX(SINAPI!$B:$B,MATCH($C41,SINAPI!$A:$A,0)),""),IF(B41="COMPOSIÇÃO",IFERROR(INDEX(COMPOSIÇÃO!$C:$C,MATCH($C41,COMPOSIÇÃO!$A:$A,0)),""),"")) -> ARMAÇÃO DE PILAR OU VIGA DE UMA ESTRUTURA CONVENCIONAL DE CONCRETO ARMADO EM UM EDIFÍCIO DE MÚLTIPLOS PAVIMENTOS UTILIZANDO AÇO CA-50 DE 8,0 MM - MONTAGEM. AF_12/2015 | F41: =IF(B41="SINAPI",IFERROR(INDEX(SINAPI!$C:$C,MATCH($C41,SINAPI!$A:$A,0)),""),IF(B41="COMPOSIÇÃO",IFERROR(INDEX(COMPOSIÇÃO!$D:$D,MATCH($C41,COMPOSIÇÃO!$A:$A,0)),""),"")) -> KG | G41: 14.22 | H41: =IF(B41="SINAPI",IFERROR(INDEX(SINAPI!$D:$D,MATCH($C41,SINAPI!$A:$A,0)),0),IF(B41="COMPOSIÇÃO",IFERROR(INDEX(COMPOSIÇÃO!$G:$G,MATCH($C41,COMPOSIÇÃO!$A:$A,0)),0),0)) -> 10.15 | I41: 12.22512308 | J41: 173.84 | K41: =J41/$J$302 -> 0.0002599172897
A42: 3.22 | B42: SINAPI | C42: 92446 | D42: =IF(B42="SINAPI",IFERROR(INDEX(SINAPI!$B:$B,MATCH($C42,SINAPI!$A:$A,0)),""),IF(B42="COMPOSIÇÃO",IFERROR(INDEX(COMPOSIÇÃO!$C:$C,MATCH($C42,COMPOSIÇÃO!$A:$A,0)),""),"")) -> MONTAGEM E DESMONTAGEM DE FÔRMA DE VIGA, ESCORAMENTO COM PONTALETE DE MADEIRA, PÉ-DIREITO SIMPLES, EM MADEIRA SERRADA, 1 UTILIZAÇÃO. AF_09/2020 | F42: =IF(B42="SINAPI",IFERROR(INDEX(SINAPI!$C:$C,MATCH($C42,SINAPI!$A:$A,0)),""),IF(B42="COMPOSIÇÃO",IFERROR(INDEX(COMPOSIÇÃO!$D:$D,MATCH($C42,COMPOSIÇÃO!$A:$A,0)),""),"")) -> M2 | G42: 6.08 | H42: =IF(B42="SINAPI",IFERROR(INDEX(SINAPI!$D:$D,MATCH($C42,SINAPI!$A:$A,0)),0),IF(B42="COMPOSIÇÃO",IFERROR(INDEX(COMPOSIÇÃO!$G:$G,MATCH($C42,COMPOSIÇÃO!$A:$A,0)),0),0)) -> 154.42 | I42: 185.9904932 | J42: 1130.82 | K42: =J42/$J$302 -> 0.001690748214
A43: 3.23 | B43: SINAPI | C43: 94965 | D43: =IF(B43="SINAPI",IFERROR(INDEX(SINAPI!$B:$B,MATCH($C43,SINAPI!$A:$A,0)),""),IF(B43="COMPOSIÇÃO",IFERROR(INDEX(COMPOSIÇÃO!$C:$C,MATCH($C43,COMPOSIÇÃO!$A:$A,0)),""),"")) -> CONCRETO FCK = 25MPA, TRAÇO 1:2,3:2,7 (CIMENTO/ AREIA MÉDIA/ BRITA 1) - PREPARO MECÂNICO COM BETONEIRA 400 L. AF_07/2016 | F43: =IF(B43="SINAPI",IFERROR(INDEX(SINAPI!$C:$C,MATCH($C43,SINAPI!$A:$A,0)),""),IF(B43="COMPOSIÇÃO",IFERROR(INDEX(COMPOSIÇÃO!$D:$D,MATCH($C43,COMPOSIÇÃO!$A:$A,0)),""),"")) -> M3 | G43: 0.39 | H43: =IF(B43="SINAPI",IFERROR(INDEX(SINAPI!$D:$D,MATCH($C43,SINAPI!$A:$A,0)),0),IF(B43="COMPOSIÇÃO",IFERROR(INDEX(COMPOSIÇÃO!$G:$G,MATCH($C43,COMPOSIÇÃO!$A:$A,0)),0),0)) -> 340.12 | I43: 409.6560456 | J43: 159.77 | K43: =J43/$J$302 -> 0.0002388804957
A44: 3.24 | B44: COMPOSIÇÃO | C44: IFMT 219.07.2020 | D44: =IF(B44="SINAPI",IFERROR(INDEX(SINAPI!$B:$B,MATCH($C44,SINAPI!$A:$A,0)),""),IF(B44="COMPOSIÇÃO",IFERROR(INDEX(COMPOSIÇÃO!$C:$C,MATCH($C44,COMPOSIÇÃO!$A:$A,0)),""),"")) -> LANCAMENTO/APLICACAO MANUAL DE CONCRETO EM FUNDACOES | F44: =IF(B44="SINAPI",IFERROR(INDEX(SINAPI!$C:$C,MATCH($C44,SINAPI!$A:$A,0)),""),IF(B44="COMPOSIÇÃO",IFERROR(INDEX(COMPOSIÇÃO!$D:$D,MATCH($C44,COMPOSIÇÃO!$A:$A,0)),""),"")) -> M3 | G44: 0.39 | H44: =IF(B44="SINAPI",IFERROR(INDEX(SINAPI!$D:$D,MATCH($C44,SINAPI!$A:$A,0)),0),IF(B44="COMPOSIÇÃO",IFERROR(INDEX(COMPOSIÇÃO!$G:$G,MATCH($C44,COMPOSIÇÃO!$A:$A,0)),0),0)) -> 104.7405 | I44: 126.1542369 | J44: 49.2 | K44: =J44/$J$302 -> 7.356149708e-05
A45: 3.25 | B45: SINAPI | C45: 92759 | D45: =IF(B45="SINAPI",IFERROR(INDEX(SINAPI!$B:$B,MATCH($C45,SINAPI!$A:$A,0)),""),IF(B45="COMPOSIÇÃO",IFERROR(INDEX(COMPOSIÇÃO!$C:$C,MATCH($C45,COMPOSIÇÃO!$A:$A,0)),""),"")) -> ARMAÇÃO DE PILAR OU VIGA DE UMA ESTRUTURA CONVENCIONAL DE CONCRETO ARMADO EM UM EDIFÍCIO DE MÚLTIPLOS PAVIMENTOS UTILIZANDO AÇO CA-60 DE 5,0 MM - MONTAGEM. AF_12/2015 | F45: =IF(B45="SINAPI",IFERROR(INDEX(SINAPI!$C:$C,MATCH($C45,SINAPI!$A:$A,0)),""),IF(B45="COMPOSIÇÃO",IFERROR(INDEX(COMPOSIÇÃO!$D:$D,MATCH($C45,COMPOSIÇÃO!$A:$A,0)),""),"")) -> KG | G45: 11.11 | H45: =IF(B45="SINAPI",IFERROR(INDEX(SINAPI!$D:$D,MATCH($C45,SINAPI!$A:$A,0)),0),IF(B45="COMPOSIÇÃO",IFERROR(INDEX(COMPOSIÇÃO!$G:$G,MATCH($C45,COMPOSIÇÃO!$A:$A,0)),0),0)) -> 11.5 | I45: 13.85112467 | J45: 153.89 | K45: =J45/$J$302 -> 0.0002300889997
A46: 3.26 | B46: SINAPI | C46: 92762 | D46: =IF(B46="SINAPI",IFERROR(INDEX(SINAPI!$B:$B,MATCH($C46,SINAPI!$A:$A,0)),""),IF(B46="COMPOSIÇÃO",IFERROR(INDEX(COMPOSIÇÃO!$C:$C,MATCH($C46,COMPOSIÇÃO!$A:$A,0)),""),"")) -> ARMAÇÃO DE PILAR OU VIGA DE UMA ESTRUTURA CONVENCIONAL DE CONCRETO ARMADO EM UM EDIFÍCIO DE MÚLTIPLOS PAVIMENTOS UTILIZANDO AÇO CA-50 DE 10,0 MM - MONTAGEM. AF_12/2015 | F46: =IF(B46="SINAPI",IFERROR(INDEX(SINAPI!$C:$C,MATCH($C46,SINAPI!$A:$A,0)),""),IF(B46="COMPOSIÇÃO",IFERROR(INDEX(COMPOSIÇÃO!$D:$D,MATCH($C46,COMPOSIÇÃO!$A:$A,0)),""),"")) -> KG | G46: 29.62 | H46: =IF(B46="SINAPI",IFERROR(INDEX(SINAPI!$D:$D,MATCH($C46,SINAPI!$A:$A,0)),0),IF(B46="COMPOSIÇÃO",IFERROR(INDEX(COMPOSIÇÃO!$G:$G,MATCH($C46,COMPOSIÇÃO!$A:$A,0)),0),0)) -> 9.07 | I46: 10.92432181 | J46: 323.58 | K46: =J46/$J$302 -> 0.000483801407
A47: 3.27 | B47: SINAPI | C47: 92409 | D47: =IF(B47="SINAPI",IFERROR(INDEX(SINAPI!$B:$B,MATCH($C47,SINAPI!$A:$A,0)),""),IF(B47="COMPOSIÇÃO",IFERROR(INDEX(COMPOSIÇÃO!$C:$C,MATCH($C47,COMPOSIÇÃO!$A:$A,0)),""),"")) -> MONTAGEM E DESMONTAGEM DE FÔRMA DE PILARES RETANGULARES E ESTRUTURAS SIMILARES, PÉ-DIREITO SIMPLES, EM MADEIRA SERRADA, 1 UTILIZAÇÃO. AF_09/2020 | F47: =IF(B47="SINAPI",IFERROR(INDEX(SINAPI!$C:$C,MATCH($C47,SINAPI!$A:$A,0)),""),IF(B47="COMPOSIÇÃO",IFERROR(INDEX(COMPOSIÇÃO!$D:$D,MATCH($C47,COMPOSIÇÃO!$A:$A,0)),""),"")) -> M2 | G47: 12 | H47: =IF(B47="SINAPI",IFERROR(INDEX(SINAPI!$D:$D,MATCH($C47,SINAPI!$A:$A,0)),0),IF(B47="COMPOSIÇÃO",IFERROR(INDEX(COMPOSIÇÃO!$G:$G,MATCH($C47,COMPOSIÇÃO!$A:$A,0)),0),0)) -> 156.79 | I47: 188.8450294 | J47: 2266.14 | K47: =J47/$J$302 -> 0.003388224613
A48: 3.28 | B48: SINAPI | C48: 94965 | D48: =IF(B48="SINAPI",IFERROR(INDEX(SINAPI!$B:$B,MATCH($C48,SINAPI!$A:$A,0)),""),IF(B48="COMPOSIÇÃO",IFERROR(INDEX(COMPOSIÇÃO!$C:$C,MATCH($C48,COMPOSIÇÃO!$A:$A,0)),""),"")) -> CONCRETO FCK = 25MPA, TRAÇO 1:2,3:2,7 (CIMENTO/ AREIA MÉDIA/ BRITA 1) - PREPARO MECÂNICO COM BETONEIRA 400 L. AF_07/2016 | F48: =IF(B48="SINAPI",IFERROR(INDEX(SINAPI!$C:$C,MATCH($C48,SINAPI!$A:$A,0)),""),IF(B48="COMPOSIÇÃO",IFERROR(INDEX(COMPOSIÇÃO!$D:$D,MATCH($C48,COMPOSIÇÃO!$A:$A,0)),""),"")) -> M3 | G48: 0.54 | H48: =IF(B48="SINAPI",IFERROR(INDEX(SINAPI!$D:$D,MATCH($C48,SINAPI!$A:$A,0)),0),IF(B48="COMPOSIÇÃO",IFERROR(INDEX(COMPOSIÇÃO!$G:$G,MATCH($C48,COMPOSIÇÃO!$A:$A,0)),0),0)) -> 340.12 | I48: 409.6560456 | J48: 221.21 | K48: =J48/$J$302 -> 0.0003307426579
A49: 3.29 | B49: COMPOSIÇÃO | C49: IFMT 219.07.2020 | D49: =IF(B49="SINAPI",IFERROR(INDEX(SINAPI!$B:$B,MATCH($C49,SINAPI!$A:$A,0)),""),IF(B49="COMPOSIÇÃO",IFERROR(INDEX(COMPOSIÇÃO!$C:$C,MATCH($C49,COMPOSIÇÃO!$A:$A,0)),""),"")) -> LANCAMENTO/APLICACAO MANUAL DE CONCRETO EM FUNDACOES | F49: =IF(B49="SINAPI",IFERROR(INDEX(SINAPI!$C:$C,MATCH($C49,SINAPI!$A:$A,0)),""),IF(B49="COMPOSIÇÃO",IFERROR(INDEX(COMPOSIÇÃO!$D:$D,MATCH($C49,COMPOSIÇÃO!$A:$A,0)),""),"")) -> M3 | G49: =G48 -> 0.54 | H49: =IF(B49="SINAPI",IFERROR(INDEX(SINAPI!$D:$D,MATCH($C49,SINAPI!$A:$A,0)),0),IF(B49="COMPOSIÇÃO",IFERROR(INDEX(COMPOSIÇÃO!$G:$G,MATCH($C49,COMPOSIÇÃO!$A:$A,0)),0),0)) -> 104.7405 | I49: 126.1542369 | J49: 68.12 | K49: =J49/$J$302 -> 0.0001018497801
A50: 3.30 | B50: SINAPI | C50: 92759 | D50: =IF(B50="SINAPI",IFERROR(INDEX(SINAPI!$B:$B,MATCH($C50,SINAPI!$A:$A,0)),""),IF(B50="COMPOSIÇÃO",IFERROR(INDEX(COMPOSIÇÃO!$C:$C,MATCH($C50,COMPOSIÇÃO!$A:$A,0)),""),"")) -> ARMAÇÃO DE PILAR OU VIGA DE UMA ESTRUTURA CONVENCIONAL DE CONCRETO ARMADO EM UM EDIFÍCIO DE MÚLTIPLOS PAVIMENTOS UTILIZANDO AÇO CA-60 DE 5,0 MM - MONTAGEM. AF_12/2015 | F50: =IF(B50="SINAPI",IFERROR(INDEX(SINAPI!$C:$C,MATCH($C50,SINAPI!$A:$A,0)),""),IF(B50="COMPOSIÇÃO",IFERROR(INDEX(COMPOSIÇÃO!$D:$D,MATCH($C50,COMPOSIÇÃO!$A:$A,0)),""),"")) -> KG | G50: 8.13 | H50: =IF(B50="SINAPI",IFERROR(INDEX(SINAPI!$D:$D,MATCH($C50,SINAPI!$A:$A,0)),0),IF(B50="COMPOSIÇÃO",IFERROR(INDEX(COMPOSIÇÃO!$G:$G,MATCH($C50,COMPOSIÇÃO!$A:$A,0)),0),0)) -> 11.5 | I50: 13.85112467 | J50: 112.61 | K50: =J50/$J$302 -> 0.0001683691095
A51: 3.31 | B51: SINAPI | C51: 92761 | D51: =IF(B51="SINAPI",IFERROR(INDEX(SINAPI!$B:$B,MATCH($C51,SINAPI!$A:$A,0)),""),IF(B51="COMPOSIÇÃO",IFERROR(INDEX(COMPOSIÇÃO!$C:$C,MATCH($C51,COMPOSIÇÃO!$A:$A,0)),""),"")) -> ARMAÇÃO DE PILAR OU VIGA DE UMA ESTRUTURA CONVENCIONAL DE CONCRETO ARMADO EM UM EDIFÍCIO DE MÚLTIPLOS PAVIMENTOS UTILIZANDO AÇO CA-50 DE 8,0 MM - MONTAGEM. AF_12/2015 | F51: =IF(B51="SINAPI",IFERROR(INDEX(SINAPI!$C:$C,MATCH($C51,SINAPI!$A:$A,0)),""),IF(B51="COMPOSIÇÃO",IFERROR(INDEX(COMPOSIÇÃO!$D:$D,MATCH($C51,COMPOSIÇÃO!$A:$A,0)),""),"")) -> KG | G51: 14.22 | H51: =IF(B51="SINAPI",IFERROR(INDEX(SINAPI!$D:$D,MATCH($C51,SINAPI!$A:$A,0)),0),IF(B51="COMPOSIÇÃO",IFERROR(INDEX(COMPOSIÇÃO!$G:$G,MATCH($C51,COMPOSIÇÃO!$A:$A,0)),0),0)) -> 10.15 | I51: 12.22512308 | J51: 173.84 | K51: =J51/$J$302 -> 0.0002599172897
A52: 3.32 | B52: SINAPI | C52: 92446 | D52: =IF(B52="SINAPI",IFERROR(INDEX(SINAPI!$B:$B,MATCH($C52,SINAPI!$A:$A,0)),""),IF(B52="COMPOSIÇÃO",IFERROR(INDEX(COMPOSIÇÃO!$C:$C,MATCH($C52,COMPOSIÇÃO!$A:$A,0)),""),"")) -> MONTAGEM E DESMONTAGEM DE FÔRMA DE VIGA, ESCORAMENTO COM PONTALETE DE MADEIRA, PÉ-DIREITO SIMPLES, EM MADEIRA SERRADA, 1 UTILIZAÇÃO. AF_09/2020 | F52: =IF(B52="SINAPI",IFERROR(INDEX(SINAPI!$C:$C,MATCH($C52,SINAPI!$A:$A,0)),""),IF(B52="COMPOSIÇÃO",IFERROR(INDEX(COMPOSIÇÃO!$D:$D,MATCH($C52,COMPOSIÇÃO!$A:$A,0)),""),"")) -> M2 | G52: 6.08 | H52: =IF(B52="SINAPI",IFERROR(INDEX(SINAPI!$D:$D,MATCH($C52,SINAPI!$A:$A,0)),0),IF(B52="COMPOSIÇÃO",IFERROR(INDEX(COMPOSIÇÃO!$G:$G,MATCH($C52,COMPOSIÇÃO!$A:$A,0)),0),0)) -> 154.42 | I52: 185.9904932 | J52: 1130.82 | K52: =J52/$J$302 -> 0.001690748214
A53: 3.33 | B53: SINAPI | C53: 94965 | D53: =IF(B53="SINAPI",IFERROR(INDEX(SINAPI!$B:$B,MATCH($C53,SINAPI!$A:$A,0)),""),IF(B53="COMPOSIÇÃO",IFERROR(INDEX(COMPOSIÇÃO!$C:$C,MATCH($C53,COMPOSIÇÃO!$A:$A,0)),""),"")) -> CONCRETO FCK = 25MPA, TRAÇO 1:2,3:2,7 (CIMENTO/ AREIA MÉDIA/ BRITA 1) - PREPARO MECÂNICO COM BETONEIRA 400 L. AF_07/2016 | F53: =IF(B53="SINAPI",IFERROR(INDEX(SINAPI!$C:$C,MATCH($C53,SINAPI!$A:$A,0)),""),IF(B53="COMPOSIÇÃO",IFERROR(INDEX(COMPOSIÇÃO!$D:$D,MATCH($C53,COMPOSIÇÃO!$A:$A,0)),""),"")) -> M3 | G53: 0.39 | H53: =IF(B53="SINAPI",IFERROR(INDEX(SINAPI!$D:$D,MATCH($C53,SINAPI!$A:$A,0)),0),IF(B53="COMPOSIÇÃO",IFERROR(INDEX(COMPOSIÇÃO!$G:$G,MATCH($C53,COMPOSIÇÃO!$A:$A,0)),0),0)) -> 340.12 | I53: =H53*(1+$J$9) -> 409.6560456 | J53: =ROUND(G53*I53,2) -> 159.77 | K53: =J53/$J$302 -> 0.0002388804957
A54: 3.34 | B54: COMPOSIÇÃO | C54: IFMT 219.07.2020 | D54: =IF(B54="SINAPI",IFERROR(INDEX(SINAPI!$B:$B,MATCH($C54,SINAPI!$A:$A,0)),""),IF(B54="COMPOSIÇÃO",IFERROR(INDEX(COMPOSIÇÃO!$C:$C,MATCH($C54,COMPOSIÇÃO!$A:$A,0)),""),"")) -> LANCAMENTO/APLICACAO MANUAL DE CONCRETO EM FUNDACOES | F54: =IF(B54="SINAPI",IFERROR(INDEX(SINAPI!$C:$C,MATCH($C54,SINAPI!$A:$A,0)),""),IF(B54="COMPOSIÇÃO",IFERROR(INDEX(COMPOSIÇÃO!$D:$D,MATCH($C54,COMPOSIÇÃO!$A:$A,0)),""),"")) -> M3 | G54: 0.39 | H54: =IF(B54="SINAPI",IFERROR(INDEX(SINAPI!$D:$D,MATCH($C54,SINAPI!$A:$A,0)),0),IF(B54="COMPOSIÇÃO",IFERROR(INDEX(COMPOSIÇÃO!$G:$G,MATCH($C54,COMPOSIÇÃO!$A:$A,0)),0),0)) -> 104.7405 | I54: 126.1542369 | J54: 49.2 | K54: =J54/$J$302 -> 7.356149708e-05
A55: 3.35 | B55: SINAPI | C55: 74202/001 | D55: =IF(B55="SINAPI",IFERROR(INDEX(SINAPI!$B:$B,MATCH($C55,SINAPI!$A:$A,0)),""),IF(B55="COMPOSIÇÃO",IFERROR(INDEX(COMPOSIÇÃO!$C:$C,MATCH($C55,COMPOSIÇÃO!$A:$A,0)),""),"")) -> LAJE PRE-MOLDADA P/FORRO, SOBRECARGA 100KG/M2, VAOS ATE 3,50M/E=8CM, C/LAJOTAS E CAP.C/CONC FCK=20MPA, 3CM, INTER-EIXO 38CM, C/ESCORAMENTO (REAPR.3X) E FERRAGEM NEGATIVA | F55: =IF(B55="SINAPI",IFERROR(INDEX(SINAPI!$C:$C,MATCH($C55,SINAPI!$A:$A,0)),""),IF(B55="COMPOSIÇÃO",IFERROR(INDEX(COMPOSIÇÃO!$D:$D,MATCH($C55,COMPOSIÇÃO!$A:$A,0)),""),"")) -> M2 | G55: 14.21 | H55: =IF(B55="SINAPI",IFERROR(INDEX(SINAPI!$D:$D,MATCH($C55,SINAPI!$A:$A,0)),0),IF(B55="COMPOSIÇÃO",IFERROR(INDEX(COMPOSIÇÃO!$G:$G,MATCH($C55,COMPOSIÇÃO!$A:$A,0)),0),0)) -> 75.67 | I55: 91.14040035 | J55: 1295.11 | K55: =J55/$J$302 -> 0.001936386798
A56: 4.0 | D56: ALVENARIA E DIVISÓRIA | J56: =SUM(J57:J61) -> 5104.56 | K56: =J56/$J$302 -> 0.007632095031
A57: 4.1 | B57: SINAPI | C57: 87495 | D57: =IF(B57="SINAPI",IFERROR(INDEX(SINAPI!$B:$B,MATCH($C57,SINAPI!$A:$A,0)),""),IF(B57="COMPOSIÇÃO",IFERROR(INDEX(COMPOSIÇÃO!$C:$C,MATCH($C57,COMPOSIÇÃO!$A:$A,0)),""),"")) -> ALVENARIA DE VEDAÇÃO DE BLOCOS CERÂMICOS FURADOS NA HORIZONTAL DE 9X19X19CM (ESPESSURA 9CM) DE PAREDES COM ÁREA LÍQUIDA MENOR QUE 6M² SEM VÃOS E ARGAMASSA DE ASSENTAMENTO COM PREPARO EM BETONEIRA. AF_06/2014 | F57: =IF(B57="SINAPI",IFERROR(INDEX(SINAPI!$C:$C,MATCH($C57,SINAPI!$A:$A,0)),""),IF(B57="COMPOSIÇÃO",IFERROR(INDEX(COMPOSIÇÃO!$D:$D,MATCH($C57,COMPOSIÇÃO!$A:$A,0)),""),"")) -> M2 | G57: 3.36 | H57: =IF(B57="SINAPI",IFERROR(INDEX(SINAPI!$D:$D,MATCH($C57,SINAPI!$A:$A,0)),0),IF(B57="COMPOSIÇÃO",IFERROR(INDEX(COMPOSIÇÃO!$G:$G,MATCH($C57,COMPOSIÇÃO!$A:$A,0)),0),0)) -> 72.99 | I57: 87.91248608 | J57: 295.39 | K57: =J57/$J$302 -> 0.0004416530614
A58: 4.2 | B58: SINAPI | C58: 101162 | D58: =IF(B58="SINAPI",IFERROR(INDEX(SINAPI!$B:$B,MATCH($C58,SINAPI!$A:$A,0)),""),IF(B58="COMPOSIÇÃO",IFERROR(INDEX(COMPOSIÇÃO!$C:$C,MATCH($C58,COMPOSIÇÃO!$A:$A,0)),""),"")) -> ALVENARIA DE VEDAÇÃO COM ELEMENTO VAZADO DE CERÂMICA (COBOGÓ) DE 7X20X20CM E ARGAMASSA DE ASSENTAMENTO COM PREPARO EM BETONEIRA. AF_05/2020 | F58: =IF(B58="SINAPI",IFERROR(INDEX(SINAPI!$C:$C,MATCH($C58,SINAPI!$A:$A,0)),""),IF(B58="COMPOSIÇÃO",IFERROR(INDEX(COMPOSIÇÃO!$D:$D,MATCH($C58,COMPOSIÇÃO!$A:$A,0)),""),"")) -> M2 | G58: 1.6 | H58: =IF(B58="SINAPI",IFERROR(INDEX(SINAPI!$D:$D,MATCH($C58,SINAPI!$A:$A,0)),0),IF(B58="COMPOSIÇÃO",IFERROR(INDEX(COMPOSIÇÃO!$G:$G,MATCH($C58,COMPOSIÇÃO!$A:$A,0)),0),0)) -> 123.92 | I58: 149.2549017 | J58: 238.81 | K58: =J58/$J$302 -> 0.0003570573398
A59: 4.3 | B59: SINAPI | C59: 96364 | D59: =IF(B59="SINAPI",IFERROR(INDEX(SINAPI!$B:$B,MATCH($C59,SINAPI!$A:$A,0)),""),IF(B59="COMPOSIÇÃO",IFERROR(INDEX(COMPOSIÇÃO!$C:$C,MATCH($C59,COMPOSIÇÃO!$A:$A,0)),""),"")) -> PAREDE COM PLACAS DE GESSO ACARTONADO (DRYWALL), PARA USO INTERNO COM UMA FACE SIMPLES E OUTRA FACE DUPLA E ESTRUTURA METÁLICA COM GUIAS DUPLAS, SEM VÃOS. AF_06/2017_P | F59: =IF(B59="SINAPI",IFERROR(INDEX(SINAPI!$C:$C,MATCH($C59,SINAPI!$A:$A,0)),""),IF(B59="COMPOSIÇÃO",IFERROR(INDEX(COMPOSIÇÃO!$D:$D,MATCH($C59,COMPOSIÇÃO!$A:$A,0)),""),"")) -> M2 | G59: 28 | H59: =IF(B59="SINAPI",IFERROR(INDEX(SINAPI!$D:$D,MATCH($C59,SINAPI!$A:$A,0)),0),IF(B59="COMPOSIÇÃO",IFERROR(INDEX(COMPOSIÇÃO!$G:$G,MATCH($C59,COMPOSIÇÃO!$A:$A,0)),0),0)) -> 123.77 | I59: =H59*(1+$J$9) -> 149.0742349 | J59: =ROUND(G59*I59,2) -> 4174.08 | K59: =J59/$J$302 -> 0.006240885645
A60: 4.4 | B60: SINAPI | C60: 93184 | D60: =IF(B60="SINAPI",IFERROR(INDEX(SINAPI!$B:$B,MATCH($C60,SINAPI!$A:$A,0)),""),IF(B60="COMPOSIÇÃO",IFERROR(INDEX(COMPOSIÇÃO!$C:$C,MATCH($C60,COMPOSIÇÃO!$A:$A,0)),""),"")) -> VERGA PRÉ-MOLDADA PARA PORTAS COM ATÉ 1,5 M DE VÃO. AF_03/2016 | F60: =IF(B60="SINAPI",IFERROR(INDEX(SINAPI!$C:$C,MATCH($C60,SINAPI!$A:$A,0)),""),IF(B60="COMPOSIÇÃO",IFERROR(INDEX(COMPOSIÇÃO!$D:$D,MATCH($C60,COMPOSIÇÃO!$A:$A,0)),""),"")) -> M | G60: 13.3 | H60: =IF(B60="SINAPI",IFERROR(INDEX(SINAPI!$D:$D,MATCH($C60,SINAPI!$A:$A,0)),0),IF(B60="COMPOSIÇÃO",IFERROR(INDEX(COMPOSIÇÃO!$G:$G,MATCH($C60,COMPOSIÇÃO!$A:$A,0)),0),0)) -> 20.2 | I60: 24.3298016 | J60: 323.59 | K60: =J60/$J$302 -> 0.0004838163585
A61: 4.5 | B61: SINAPI | C61: 93185 | D61: =IF(B61="SINAPI",IFERROR(INDEX(SINAPI!$B:$B,MATCH($C61,SINAPI!$A:$A,0)),""),IF(B61="COMPOSIÇÃO",IFERROR(INDEX(COMPOSIÇÃO!$C:$C,MATCH($C61,COMPOSIÇÃO!$A:$A,0)),""),"")) -> VERGA PRÉ-MOLDADA PARA PORTAS COM MAIS DE 1,5 M DE VÃO. AF_03/2016 | F61: =IF(B61="SINAPI",IFERROR(INDEX(SINAPI!$C:$C,MATCH($C61,SINAPI!$A:$A,0)),""),IF(B61="COMPOSIÇÃO",IFERROR(INDEX(COMPOSIÇÃO!$D:$D,MATCH($C61,COMPOSIÇÃO!$A:$A,0)),""),"")) -> M | G61: 1.8 | H61: =IF(B61="SINAPI",IFERROR(INDEX(SINAPI!$D:$D,MATCH($C61,SINAPI!$A:$A,0)),0),IF(B61="COMPOSIÇÃO",IFERROR(INDEX(COMPOSIÇÃO!$G:$G,MATCH($C61,COMPOSIÇÃO!$A:$A,0)),0),0)) -> 33.53 | I61: 40.38506177 | J61: 72.69 | K61: =J61/$J$302 -> 0.0001086826265
A62: 5.0 | D62: COBERTURA | J62: =SUM(J63) -> 2225.55 | K62: =J62/$J$302 -> 0.003327536378
A63: 5.1 | B63: COMPOSIÇÃO | C63: IFMT 061.05.2019 | D63: =IF(B63="SINAPI",IFERROR(INDEX(SINAPI!$B:$B,MATCH($C63,SINAPI!$A:$A,0)),""),IF(B63="COMPOSIÇÃO",IFERROR(INDEX(COMPOSIÇÃO!$C:$C,MATCH($C63,COMPOSIÇÃO!$A:$A,0)),""),"")) -> RESTAURAÇÃO DA COBERTURA COM MANTA ASFALTICA ALUMINIZADA MULTIUSO. FORNECIMENTO E INSTALAÇÃO | F63: =IF(B63="SINAPI",IFERROR(INDEX(SINAPI!$C:$C,MATCH($C63,SINAPI!$A:$A,0)),""),IF(B63="COMPOSIÇÃO",IFERROR(INDEX(COMPOSIÇÃO!$D:$D,MATCH($C63,COMPOSIÇÃO!$A:$A,0)),""),"")) -> M2 | G63: 129.8 | H63: =IF(B63="SINAPI",IFERROR(INDEX(SINAPI!$D:$D,MATCH($C63,SINAPI!$A:$A,0)),0),IF(B63="COMPOSIÇÃO",IFERROR(INDEX(COMPOSIÇÃO!$G:$G,MATCH($C63,COMPOSIÇÃO!$A:$A,0)),0),0)) -> 14.23557 | I63: 17.14596999 | J63: 2225.55 | K63: =J63/$J$302 -> 0.003327536378
A64: 6.0 | D64: REVESTIMENTO | J64: =SUM(J65:J66) -> 309.13 | K64: =J64/$J$302 -> 0.0004621964551
A65: 6.1 | B65: SINAPI | C65: 87894 | D65: =IF(B65="SINAPI",IFERROR(INDEX(SINAPI!$B:$B,MATCH($C65,SINAPI!$A:$A,0)),""),IF(B65="COMPOSIÇÃO",IFERROR(INDEX(COMPOSIÇÃO!$C:$C,MATCH($C65,COMPOSIÇÃO!$A:$A,0)),""),"")) -> CHAPISCO APLICADO EM ALVENARIA (SEM PRESENÇA DE VÃOS) E ESTRUTURAS DE CONCRETO DE FACHADA, COM COLHER DE PEDREIRO. ARGAMASSA TRAÇO 1:3 COM PREPARO EM BETONEIRA 400L. AF_06/2014 | F65: =IF(B65="SINAPI",IFERROR(INDEX(SINAPI!$C:$C,MATCH($C65,SINAPI!$A:$A,0)),""),IF(B65="COMPOSIÇÃO",IFERROR(INDEX(COMPOSIÇÃO!$D:$D,MATCH($C65,COMPOSIÇÃO!$A:$A,0)),""),"")) -> M2 | G65: =2*G52 -> 12.16 | H65: =IF(B65="SINAPI",IFERROR(INDEX(SINAPI!$D:$D,MATCH($C65,SINAPI!$A:$A,0)),0),IF(B65="COMPOSIÇÃO",IFERROR(INDEX(COMPOSIÇÃO!$G:$G,MATCH($C65,COMPOSIÇÃO!$A:$A,0)),0),0)) -> 4.89 | I65: 5.8897391 | J65: 71.62 | K65: =J65/$J$302 -> 0.0001070828134
A66: 6.2 | B66: SINAPI | C66: 87529 | D66: =IF(B66="SINAPI",IFERROR(INDEX(SINAPI!$B:$B,MATCH($C66,SINAPI!$A:$A,0)),""),IF(B66="COMPOSIÇÃO",IFERROR(INDEX(COMPOSIÇÃO!$C:$C,MATCH($C66,COMPOSIÇÃO!$A:$A,0)),""),"")) -> MASSA ÚNICA, PARA RECEBIMENTO DE PINTURA, EM ARGAMASSA TRAÇO 1:2:8, PREPARO MECÂNICO COM BETONEIRA 400L, APLICADA MANUALMENTE EM FACES INTERNAS DE PAREDES, ESPESSURA DE 20MM, COM EXECUÇÃO DE TALISCAS. AF_06/2014 | F66: =IF(B66="SINAPI",IFERROR(INDEX(SINAPI!$C:$C,MATCH($C66,SINAPI!$A:$A,0)),""),IF(B66="COMPOSIÇÃO",IFERROR(INDEX(COMPOSIÇÃO!$D:$D,MATCH($C66,COMPOSIÇÃO!$A:$A,0)),""),"")) -> M2 | G66: 7.7 | H66: =IF(B66="SINAPI",IFERROR(INDEX(SINAPI!$D:$D,MATCH($C66,SINAPI!$A:$A,0)),0),IF(B66="COMPOSIÇÃO",IFERROR(INDEX(COMPOSIÇÃO!$G:$G,MATCH($C66,COMPOSIÇÃO!$A:$A,0)),0),0)) -> 25.61 | I66: 30.84585243 | J66: 237.51 | K66: =J66/$J$302 -> 0.0003551136417
A67: 7.0 | D67: IMPERMEABILIZAÇÃO | J67: =SUM(J68) -> 45 | K67: =J67/$J$302 -> 6.728185708e-05
A68: 7.1 | B68: COMPOSIÇÃO | C68: IFMT 232.08.2020 | D68: =IF(B68="SINAPI",IFERROR(INDEX(SINAPI!$B:$B,MATCH($C68,SINAPI!$A:$A,0)),""),IF(B68="COMPOSIÇÃO",IFERROR(INDEX(COMPOSIÇÃO!$C:$C,MATCH($C68,COMPOSIÇÃO!$A:$A,0)),""),"")) -> IMPERMEABILIZACAO DE ESTRUTURAS ENTERRADAS, COM TINTA ASFALTICA, DUAS DEMAOS. | F68: =IF(B68="SINAPI",IFERROR(INDEX(SINAPI!$C:$C,MATCH($C68,SINAPI!$A:$A,0)),""),IF(B68="COMPOSIÇÃO",IFERROR(INDEX(COMPOSIÇÃO!$D:$D,MATCH($C68,COMPOSIÇÃO!$A:$A,0)),""),"")) -> M2 | G68: 3.91 | H68: =IF(B68="SINAPI",IFERROR(INDEX(SINAPI!$D:$D,MATCH($C68,SINAPI!$A:$A,0)),0),IF(B68="COMPOSIÇÃO",IFERROR(INDEX(COMPOSIÇÃO!$G:$G,MATCH($C68,COMPOSIÇÃO!$A:$A,0)),0),0)) -> 9.556 | I68: 11.50968238 | J68: 45 | K68: =J68/$J$302 -> 6.728185708e-05
A69: 8.0 | D69: PISO E RODAPÉ | J69: =SUM(J70:J76) -> 70553.16 | K69: =J69/$J$302 -> 0.1054877251
A70: 8.1 | B70: SINAPI | C70: 98689 | D70: =IF(B70="SINAPI",IFERROR(INDEX(SINAPI!$B:$B,MATCH($C70,SINAPI!$A:$A,0)),""),IF(B70="COMPOSIÇÃO",IFERROR(INDEX(COMPOSIÇÃO!$C:$C,MATCH($C70,COMPOSIÇÃO!$A:$A,0)),""),"")) -> SOLEIRA EM GRANITO, LARGURA 15 CM, ESPESSURA 2,0 CM. AF_09/2020 | F70: =IF(B70="SINAPI",IFERROR(INDEX(SINAPI!$C:$C,MATCH($C70,SINAPI!$A:$A,0)),""),IF(B70="COMPOSIÇÃO",IFERROR(INDEX(COMPOSIÇÃO!$D:$D,MATCH($C70,COMPOSIÇÃO!$A:$A,0)),""),"")) -> M | G70: 3 | H70: =IF(B70="SINAPI",IFERROR(INDEX(SINAPI!$D:$D,MATCH($C70,SINAPI!$A:$A,0)),0),IF(B70="COMPOSIÇÃO",IFERROR(INDEX(COMPOSIÇÃO!$G:$G,MATCH($C70,COMPOSIÇÃO!$A:$A,0)),0),0)) -> 93.71 | I70: 112.8685994 | J70: 338.61 | K70: =J70/$J$302 -> 0.0005062735472
A71: 8.2 | B71: SINAPI | C71: 87255 | D71: =IF(B71="SINAPI",IFERROR(INDEX(SINAPI!$B:$B,MATCH($C71,SINAPI!$A:$A,0)),""),IF(B71="COMPOSIÇÃO",IFERROR(INDEX(COMPOSIÇÃO!$C:$C,MATCH($C71,COMPOSIÇÃO!$A:$A,0)),""),"")) -> REVESTIMENTO CERÂMICO PARA PISO COM PLACAS TIPO ESMALTADA EXTRA DE DIMENSÕES 60X60 CM APLICADA EM AMBIENTES DE ÁREA MENOR QUE 5 M2. AF_06/2014 | F71: =IF(B71="SINAPI",IFERROR(INDEX(SINAPI!$C:$C,MATCH($C71,SINAPI!$A:$A,0)),""),IF(B71="COMPOSIÇÃO",IFERROR(INDEX(COMPOSIÇÃO!$D:$D,MATCH($C71,COMPOSIÇÃO!$A:$A,0)),""),"")) -> M2 | G71: =150*1.15 -> 172.5 | H71: =IF(B71="SINAPI",IFERROR(INDEX(SINAPI!$D:$D,MATCH($C71,SINAPI!$A:$A,0)),0),IF(B71="COMPOSIÇÃO",IFERROR(INDEX(COMPOSIÇÃO!$G:$G,MATCH($C71,COMPOSIÇÃO!$A:$A,0)),0),0)) -> 68.67 | I71: 82.70928099 | J71: 14267.35 | K71: =J71/$J$302 -> 0.0213318623
A72: 8.3 | B72: SINAPI | C72: 87260 | D72: =IF(B72="SINAPI",IFERROR(INDEX(SINAPI!$B:$B,MATCH($C72,SINAPI!$A:$A,0)),""),IF(B72="COMPOSIÇÃO",IFERROR(INDEX(COMPOSIÇÃO!$C:$C,MATCH($C72,COMPOSIÇÃO!$A:$A,0)),""),"")) -> REVESTIMENTO CERÂMICO PARA PISO COM PLACAS TIPO PORCELANATO DE DIMENSÕES 45X45 CM APLICADA EM AMBIENTES DE ÁREA MAIOR QUE 10 M². AF_06/2014 | F72: =IF(B72="SINAPI",IFERROR(INDEX(SINAPI!$C:$C,MATCH($C72,SINAPI!$A:$A,0)),""),IF(B72="COMPOSIÇÃO",IFERROR(INDEX(COMPOSIÇÃO!$D:$D,MATCH($C72,COMPOSIÇÃO!$A:$A,0)),""),"")) -> M2 | G72: 2 | H72: =IF(B72="SINAPI",IFERROR(INDEX(SINAPI!$D:$D,MATCH($C72,SINAPI!$A:$A,0)),0),IF(B72="COMPOSIÇÃO",IFERROR(INDEX(COMPOSIÇÃO!$G:$G,MATCH($C72,COMPOSIÇÃO!$A:$A,0)),0),0)) -> 77.7 | I72: 93.58542497 | J72: 187.17 | K72: =J72/$J$302 -> 0.0002798476709
A73: 8.4 | B73: SINAPI | C73: 94991 | D73: =IF(B73="SINAPI",IFERROR(INDEX(SINAPI!$B:$B,MATCH($C73,SINAPI!$A:$A,0)),""),IF(B73="COMPOSIÇÃO",IFERROR(INDEX(COMPOSIÇÃO!$C:$C,MATCH($C73,COMPOSIÇÃO!$A:$A,0)),""),"")) -> EXECUÇÃO DE PASSEIO (CALÇADA) OU PISO DE CONCRETO COM CONCRETO MOLDADO IN LOCO, USINADO, ACABAMENTO CONVENCIONAL, NÃO ARMADO. AF_07/2016 | F73: =IF(B73="SINAPI",IFERROR(INDEX(SINAPI!$C:$C,MATCH($C73,SINAPI!$A:$A,0)),""),IF(B73="COMPOSIÇÃO",IFERROR(INDEX(COMPOSIÇÃO!$D:$D,MATCH($C73,COMPOSIÇÃO!$A:$A,0)),""),"")) -> M3 | G73: =20*2 -> 40 | H73: =IF(B73="SINAPI",IFERROR(INDEX(SINAPI!$D:$D,MATCH($C73,SINAPI!$A:$A,0)),0),IF(B73="COMPOSIÇÃO",IFERROR(INDEX(COMPOSIÇÃO!$G:$G,MATCH($C73,COMPOSIÇÃO!$A:$A,0)),0),0)) -> 546.12 | I73: 657.7718441 | J73: 26310.87 | K73: =J73/$J$302 -> 0.03933875989
A74: 8.5 | B74: SINAPI | C74: 94993 | D74: =IF(B74="SINAPI",IFERROR(INDEX(SINAPI!$B:$B,MATCH($C74,SINAPI!$A:$A,0)),""),IF(B74="COMPOSIÇÃO",IFERROR(INDEX(COMPOSIÇÃO!$C:$C,MATCH($C74,COMPOSIÇÃO!$A:$A,0)),""),"")) -> EXECUÇÃO DE PASSEIO (CALÇADA) OU PISO DE CONCRETO COM CONCRETO MOLDADO IN LOCO, USINADO, ACABAMENTO CONVENCIONAL, ESPESSURA 6 CM, ARMADO. AF_07/2016 | F74: =IF(B74="SINAPI",IFERROR(INDEX(SINAPI!$C:$C,MATCH($C74,SINAPI!$A:$A,0)),""),IF(B74="COMPOSIÇÃO",IFERROR(INDEX(COMPOSIÇÃO!$D:$D,MATCH($C74,COMPOSIÇÃO!$A:$A,0)),""),"")) -> M2 | G74: =43.2+22.05+127.02+21.05 -> 213.32 | H74: =IF(B74="SINAPI",IFERROR(INDEX(SINAPI!$D:$D,MATCH($C74,SINAPI!$A:$A,0)),0),IF(B74="COMPOSIÇÃO",IFERROR(INDEX(COMPOSIÇÃO!$G:$G,MATCH($C74,COMPOSIÇÃO!$A:$A,0)),0),0)) -> 64.82 | I74: 78.07216533 | J74: 16654.35 | K74: =J74/$J$302 -> 0.02490079103
A75: 8.6 | B75: SINAPI | C75: 92396 | D75: =IF(B75="SINAPI",IFERROR(INDEX(SINAPI!$B:$B,MATCH($C75,SINAPI!$A:$A,0)),""),IF(B75="COMPOSIÇÃO",IFERROR(INDEX(COMPOSIÇÃO!$C:$C,MATCH($C75,COMPOSIÇÃO!$A:$A,0)),""),"")) -> EXECUÇÃO DE PASSEIO EM PISO INTERTRAVADO, COM BLOCO RETANGULAR COR NATURAL DE 20 X 10 CM, ESPESSURA 6 CM. AF_12/2015 | F75: =IF(B75="SINAPI",IFERROR(INDEX(SINAPI!$C:$C,MATCH($C75,SINAPI!$A:$A,0)),""),IF(B75="COMPOSIÇÃO",IFERROR(INDEX(COMPOSIÇÃO!$D:$D,MATCH($C75,COMPOSIÇÃO!$A:$A,0)),""),"")) -> M2 | G75: 177.24 | H75: =IF(B75="SINAPI",IFERROR(INDEX(SINAPI!$D:$D,MATCH($C75,SINAPI!$A:$A,0)),0),IF(B75="COMPOSIÇÃO",IFERROR(INDEX(COMPOSIÇÃO!$G:$G,MATCH($C75,COMPOSIÇÃO!$A:$A,0)),0),0)) -> 57.65 | I75: =H75*(1+$J$9) -> 69.43629021 | J75: =ROUND(G75*I75,2) -> 12306.89 | K75: =J75/$J$302 -> 0.01840067587
A76: 8.7 | B76: SINAPI | C76: 94273 | D76: =IF(B76="SINAPI",IFERROR(INDEX(SINAPI!$B:$B,MATCH($C76,SINAPI!$A:$A,0)),""),IF(B76="COMPOSIÇÃO",IFERROR(INDEX(COMPOSIÇÃO!$C:$C,MATCH($C76,COMPOSIÇÃO!$A:$A,0)),""),"")) -> ASSENTAMENTO DE GUIA (MEIO-FIO) EM TRECHO RETO, CONFECCIONADA EM CONCRETO PRÉ-FABRICADO, DIMENSÕES 100X15X13X30 CM (COMPRIMENTO X BASE INFERIOR X BASE SUPERIOR X ALTURA), PARA VIAS URBANAS (USO VIÁRIO). AF_06/2016 | F76: =IF(B76="SINAPI",IFERROR(INDEX(SINAPI!$C:$C,MATCH($C76,SINAPI!$A:$A,0)),""),IF(B76="COMPOSIÇÃO",IFERROR(INDEX(COMPOSIÇÃO!$D:$D,MATCH($C76,COMPOSIÇÃO!$A:$A,0)),""),"")) -> M | G76: 10 | H76: =IF(B76="SINAPI",IFERROR(INDEX(SINAPI!$D:$D,MATCH($C76,SINAPI!$A:$A,0)),0),IF(B76="COMPOSIÇÃO",IFERROR(INDEX(COMPOSIÇÃO!$G:$G,MATCH($C76,COMPOSIÇÃO!$A:$A,0)),0),0)) -> 40.51 | I76: =H76*(1+$J$9) -> 48.79209222 | J76: =ROUND(G76*I76,2) -> 487.92 | K76: =J76/$J$302 -> 0.000729514749
A77: 9.0 | D77: ESQUADRIAS | J77: =SUM(J78:J81) -> 185464.25 | K77: =J77/$J$302 -> 0.2772973147
A78: 9.1 | B78: SINAPI | C78: 90842 | D78: =IF(B78="SINAPI",IFERROR(INDEX(SINAPI!$B:$B,MATCH($C78,SINAPI!$A:$A,0)),""),IF(B78="COMPOSIÇÃO",IFERROR(INDEX(COMPOSIÇÃO!$C:$C,MATCH($C78,COMPOSIÇÃO!$A:$A,0)),""),"")) -> KIT DE PORTA DE MADEIRA PARA PINTURA, SEMI-OCA (LEVE OU MÉDIA), PADRÃO MÉDIO, 70X210CM, ESPESSURA DE 3,5CM, ITENS INCLUSOS: DOBRADIÇAS, MONTAGEM E INSTALAÇÃO DO BATENTE, FECHADURA COM EXECUÇÃO DO FURO - FORNECIMENTO E INSTALAÇÃO. AF_12/2019 | F78: =IF(B78="SINAPI",IFERROR(INDEX(SINAPI!$C:$C,MATCH($C78,SINAPI!$A:$A,0)),""),IF(B78="COMPOSIÇÃO",IFERROR(INDEX(COMPOSIÇÃO!$D:$D,MATCH($C78,COMPOSIÇÃO!$A:$A,0)),""),"")) -> UN | G78: 3 | H78: =IF(B78="SINAPI",IFERROR(INDEX(SINAPI!$D:$D,MATCH($C78,SINAPI!$A:$A,0)),0),IF(B78="COMPOSIÇÃO",IFERROR(INDEX(COMPOSIÇÃO!$G:$G,MATCH($C78,COMPOSIÇÃO!$A:$A,0)),0),0)) -> 765.2 | I78: 921.6417913 | J78: 2764.93 | K78: =J78/$J$302 -> 0.004133991669
A79: 9.2 | B79: SINAPI | C79: 90844 | D79: =IF(B79="SINAPI",IFERROR(INDEX(SINAPI!$B:$B,MATCH($C79,SINAPI!$A:$A,0)),""),IF(B79="COMPOSIÇÃO",IFERROR(INDEX(COMPOSIÇÃO!$C:$C,MATCH($C79,COMPOSIÇÃO!$A:$A,0)),""),"")) -> KIT DE PORTA DE MADEIRA PARA PINTURA, SEMI-OCA (LEVE OU MÉDIA), PADRÃO MÉDIO, 90X210CM, ESPESSURA DE 3,5CM, ITENS INCLUSOS: DOBRADIÇAS, MONTAGEM E INSTALAÇÃO DO BATENTE, FECHADURA COM EXECUÇÃO DO FURO - FORNECIMENTO E INSTALAÇÃO. AF_12/2019 | F79: =IF(B79="SINAPI",IFERROR(INDEX(SINAPI!$C:$C,MATCH($C79,SINAPI!$A:$A,0)),""),IF(B79="COMPOSIÇÃO",IFERROR(INDEX(COMPOSIÇÃO!$D:$D,MATCH($C79,COMPOSIÇÃO!$A:$A,0)),""),"")) -> UN | G79: 5 | H79: =IF(B79="SINAPI",IFERROR(INDEX(SINAPI!$D:$D,MATCH($C79,SINAPI!$A:$A,0)),0),IF(B79="COMPOSIÇÃO",IFERROR(INDEX(COMPOSIÇÃO!$G:$G,MATCH($C79,COMPOSIÇÃO!$A:$A,0)),0),0)) -> 796.48 | I79: 959.3168504 | J79: 4796.58 | K79: =J79/$J$302 -> 0.007171618001
A80: 9.3 | B80: COMPOSIÇÃO | C80: IFMT 047.04.2019 | D80: =IF(B80="SINAPI",IFERROR(INDEX(SINAPI!$B:$B,MATCH($C80,SINAPI!$A:$A,0)),""),IF(B80="COMPOSIÇÃO",IFERROR(INDEX(COMPOSIÇÃO!$C:$C,MATCH($C80,COMPOSIÇÃO!$A:$A,0)),""),"")) -> PORTA DE FERRO, DE ABRIR, 2 FOLHAS DE 1,40X2,10M, VENEZIANA, COM FUNDO ANTI CORRESIVO. FORNECIMENTO E INSTALAÇÃO | F80: =IF(B80="SINAPI",IFERROR(INDEX(SINAPI!$C:$C,MATCH($C80,SINAPI!$A:$A,0)),""),IF(B80="COMPOSIÇÃO",IFERROR(INDEX(COMPOSIÇÃO!$D:$D,MATCH($C80,COMPOSIÇÃO!$A:$A,0)),""),"")) -> M2 | G80: 2.94 | H80: =IF(B80="SINAPI",IFERROR(INDEX(SINAPI!$D:$D,MATCH($C80,SINAPI!$A:$A,0)),0),IF(B80="COMPOSIÇÃO",IFERROR(INDEX(COMPOSIÇÃO!$G:$G,MATCH($C80,COMPOSIÇÃO!$A:$A,0)),0),0)) -> 596.96502 | I80: 719.0119059 | J80: 2113.9 | K80: =J80/$J$302 -> 0.003160602615
A81: 9.4 | B81: COTAÇÃO | C81: COT.14 | D81: =Cotação!C17 -> PASSARELA METALICA 31,00 M X 1,60M | F81: UN | G81: 1 | H81: =Cotação!K17 -> 145950 | I81: 175788.8388 | J81: 175788.84 | K81: =J81/$J$302 -> 0.2628311024
A82: 10.0 | D82: PINTURA | J82: =SUM(J83:J99) -> 68593.66 | K82: =J82/$J$302 -> 0.102557974
A83: 10.1 | B83: SINAPI | C83: 88495 | D83: =IF(B83="SINAPI",IFERROR(INDEX(SINAPI!$B:$B,MATCH($C83,SINAPI!$A:$A,0)),""),IF(B83="COMPOSIÇÃO",IFERROR(INDEX(COMPOSIÇÃO!$C:$C,MATCH($C83,COMPOSIÇÃO!$A:$A,0)),""),"")) -> APLICAÇÃO E LIXAMENTO DE MASSA LÁTEX EM PAREDES, UMA DEMÃO. AF_06/2014 | F83: =IF(B83="SINAPI",IFERROR(INDEX(SINAPI!$C:$C,MATCH($C83,SINAPI!$A:$A,0)),""),IF(B83="COMPOSIÇÃO",IFERROR(INDEX(COMPOSIÇÃO!$D:$D,MATCH($C83,COMPOSIÇÃO!$A:$A,0)),""),"")) -> M2 | G83: 100 | H83: =IF(B83="SINAPI",IFERROR(INDEX(SINAPI!$D:$D,MATCH($C83,SINAPI!$A:$A,0)),0),IF(B83="COMPOSIÇÃO",IFERROR(INDEX(COMPOSIÇÃO!$G:$G,MATCH($C83,COMPOSIÇÃO!$A:$A,0)),0),0)) -> 8.74 | I83: 10.52685475 | J83: 1052.69 | K83: =J83/$J$302 -> 0.001573931958
A84: 10.2 | B84: SINAPI | C84: 88483 | D84: =IF(B84="SINAPI",IFERROR(INDEX(SINAPI!$B:$B,MATCH($C84,SINAPI!$A:$A,0)),""),IF(B84="COMPOSIÇÃO",IFERROR(INDEX(COMPOSIÇÃO!$C:$C,MATCH($C84,COMPOSIÇÃO!$A:$A,0)),""),"")) -> APLICAÇÃO DE FUNDO SELADOR LÁTEX PVA EM PAREDES, UMA DEMÃO. AF_06/2014 | F84: =IF(B84="SINAPI",IFERROR(INDEX(SINAPI!$C:$C,MATCH($C84,SINAPI!$A:$A,0)),""),IF(B84="COMPOSIÇÃO",IFERROR(INDEX(COMPOSIÇÃO!$D:$D,MATCH($C84,COMPOSIÇÃO!$A:$A,0)),""),"")) -> M2 | G84: 100 | H84: =IF(B84="SINAPI",IFERROR(INDEX(SINAPI!$D:$D,MATCH($C84,SINAPI!$A:$A,0)),0),IF(B84="COMPOSIÇÃO",IFERROR(INDEX(COMPOSIÇÃO!$G:$G,MATCH($C84,COMPOSIÇÃO!$A:$A,0)),0),0)) -> 1.89 | I84: 2.276402229 | J84: 227.64 | K84: =J84/$J$302 -> 0.0003403564877
A85: 10.3 | B85: COMPOSIÇÃO | C85: IFMT 060.05.2019 | D85: =IF(B85="SINAPI",IFERROR(INDEX(SINAPI!$B:$B,MATCH($C85,SINAPI!$A:$A,0)),""),IF(B85="COMPOSIÇÃO",IFERROR(INDEX(COMPOSIÇÃO!$C:$C,MATCH($C85,COMPOSIÇÃO!$A:$A,0)),""),"")) -> LIXAMENTO DE PAREDES E TETO, PARA PINTURA | F85: =IF(B85="SINAPI",IFERROR(INDEX(SINAPI!$C:$C,MATCH($C85,SINAPI!$A:$A,0)),""),IF(B85="COMPOSIÇÃO",IFERROR(INDEX(COMPOSIÇÃO!$D:$D,MATCH($C85,COMPOSIÇÃO!$A:$A,0)),""),"")) -> M2 | G85: 413.1 | H85: =IF(B85="SINAPI",IFERROR(INDEX(SINAPI!$D:$D,MATCH($C85,SINAPI!$A:$A,0)),0),IF(B85="COMPOSIÇÃO",IFERROR(INDEX(COMPOSIÇÃO!$G:$G,MATCH($C85,COMPOSIÇÃO!$A:$A,0)),0),0)) -> 1.39612 | I85: 1.681550624 | J85: 694.65 | K85: =J85/$J$302 -> 0.0010386076
A86: 10.4 | B86: SINAPI | C86: 88489 | D86: =IF(B86="SINAPI",IFERROR(INDEX(SINAPI!$B:$B,MATCH($C86,SINAPI!$A:$A,0)),""),IF(B86="COMPOSIÇÃO",IFERROR(INDEX(COMPOSIÇÃO!$C:$C,MATCH($C86,COMPOSIÇÃO!$A:$A,0)),""),"")) -> APLICAÇÃO MANUAL DE PINTURA COM TINTA LÁTEX ACRÍLICA EM PAREDES, DUAS DEMÃOS. AF_06/2014 | F86: =IF(B86="SINAPI",IFERROR(INDEX(SINAPI!$C:$C,MATCH($C86,SINAPI!$A:$A,0)),""),IF(B86="COMPOSIÇÃO",IFERROR(INDEX(COMPOSIÇÃO!$D:$D,MATCH($C86,COMPOSIÇÃO!$A:$A,0)),""),"")) -> M2 | G86: 413.1 | H86: =IF(B86="SINAPI",IFERROR(INDEX(SINAPI!$D:$D,MATCH($C86,SINAPI!$A:$A,0)),0),IF(B86="COMPOSIÇÃO",IFERROR(INDEX(COMPOSIÇÃO!$G:$G,MATCH($C86,COMPOSIÇÃO!$A:$A,0)),0),0)) -> 11.78 | I86: 14.18836945 | J86: 5861.22 | K86: =J86/$J$302 -> 0.00876341703
D87: PAREDE EXTERNA
A88: 10.6 | B88: SINAPI | C88: 88489 | D88: =IF(B88="SINAPI",IFERROR(INDEX(SINAPI!$B:$B,MATCH($C88,SINAPI!$A:$A,0)),""),IF(B88="COMPOSIÇÃO",IFERROR(INDEX(COMPOSIÇÃO!$C:$C,MATCH($C88,COMPOSIÇÃO!$A:$A,0)),""),"")) -> APLICAÇÃO MANUAL DE PINTURA COM TINTA LÁTEX ACRÍLICA EM PAREDES, DUAS DEMÃOS. AF_06/2014 | F88: =IF(B88="SINAPI",IFERROR(INDEX(SINAPI!$C:$C,MATCH($C88,SINAPI!$A:$A,0)),""),IF(B88="COMPOSIÇÃO",IFERROR(INDEX(COMPOSIÇÃO!$D:$D,MATCH($C88,COMPOSIÇÃO!$A:$A,0)),""),"")) -> M2 | G88: 1673.16 | H88: =IF(B88="SINAPI",IFERROR(INDEX(SINAPI!$D:$D,MATCH($C88,SINAPI!$A:$A,0)),0),IF(B88="COMPOSIÇÃO",IFERROR(INDEX(COMPOSIÇÃO!$G:$G,MATCH($C88,COMPOSIÇÃO!$A:$A,0)),0),0)) -> 11.78 | I88: 14.18836945 | J88: 23739.41 | K88: =J88/$J$302 -> 0.03549403535
A89: 10.7 | B89: COMPOSIÇÃO | C89: IFMT 060.05.2019 | D89: =IF(B89="SINAPI",IFERROR(INDEX(SINAPI!$B:$B,MATCH($C89,SINAPI!$A:$A,0)),""),IF(B89="COMPOSIÇÃO",IFERROR(INDEX(COMPOSIÇÃO!$C:$C,MATCH($C89,COMPOSIÇÃO!$A:$A,0)),""),"")) -> LIXAMENTO DE PAREDES E TETO, PARA PINTURA | F89: =IF(B89="SINAPI",IFERROR(INDEX(SINAPI!$C:$C,MATCH($C89,SINAPI!$A:$A,0)),""),IF(B89="COMPOSIÇÃO",IFERROR(INDEX(COMPOSIÇÃO!$D:$D,MATCH($C89,COMPOSIÇÃO!$A:$A,0)),""),"")) -> M2 | G89: 1673.16 | H89: =IF(B89="SINAPI",IFERROR(INDEX(SINAPI!$D:$D,MATCH($C89,SINAPI!$A:$A,0)),0),IF(B89="COMPOSIÇÃO",IFERROR(INDEX(COMPOSIÇÃO!$G:$G,MATCH($C89,COMPOSIÇÃO!$A:$A,0)),0),0)) -> 1.39612 | I89: 1.681550624 | J89: 2813.5 | K89: =J89/$J$302 -> 0.00420661122
A90: 10.8 | B90: SINAPI | C90: 88489 | D90: =IF(B90="SINAPI",IFERROR(INDEX(SINAPI!$B:$B,MATCH($C90,SINAPI!$A:$A,0)),""),IF(B90="COMPOSIÇÃO",IFERROR(INDEX(COMPOSIÇÃO!$C:$C,MATCH($C90,COMPOSIÇÃO!$A:$A,0)),""),"")) -> APLICAÇÃO MANUAL DE PINTURA COM TINTA LÁTEX ACRÍLICA EM PAREDES, DUAS DEMÃOS. AF_06/2014 | F90: =IF(B90="SINAPI",IFERROR(INDEX(SINAPI!$C:$C,MATCH($C90,SINAPI!$A:$A,0)),""),IF(B90="COMPOSIÇÃO",IFERROR(INDEX(COMPOSIÇÃO!$D:$D,MATCH($C90,COMPOSIÇÃO!$A:$A,0)),""),"")) -> M2 | G90: 1871.16 | H90: =IF(B90="SINAPI",IFERROR(INDEX(SINAPI!$D:$D,MATCH($C90,SINAPI!$A:$A,0)),0),IF(B90="COMPOSIÇÃO",IFERROR(INDEX(COMPOSIÇÃO!$G:$G,MATCH($C90,COMPOSIÇÃO!$A:$A,0)),0),0)) -> 11.78 | I90: 14.18836945 | J90: 26548.71 | K90: =J90/$J$302 -> 0.03969436693
D91: SOB TETO | F91: =IF(B91="SINAPI",IFERROR(INDEX(SINAPI!$C:$C,MATCH($C91,SINAPI!$A:$A,0)),""),IF(B91="COMPOSIÇÃO",IFERROR(INDEX(COMPOSIÇÃO!$D:$D,MATCH($C91,COMPOSIÇÃO!$A:$A,0)),""),"")) -> 
A92: 10.10 | B92: SINAPI | C92: 88496 | D92: =IF(B92="SINAPI",IFERROR(INDEX(SINAPI!$B:$B,MATCH($C92,SINAPI!$A:$A,0)),""),IF(B92="COMPOSIÇÃO",IFERROR(INDEX(COMPOSIÇÃO!$C:$C,MATCH($C92,COMPOSIÇÃO!$A:$A,0)),""),"")) -> APLICAÇÃO E LIXAMENTO DE MASSA LÁTEX EM TETO, DUAS DEMÃOS. AF_06/2014 | F92: =IF(B92="SINAPI",IFERROR(INDEX(SINAPI!$C:$C,MATCH($C92,SINAPI!$A:$A,0)),""),IF(B92="COMPOSIÇÃO",IFERROR(INDEX(COMPOSIÇÃO!$D:$D,MATCH($C92,COMPOSIÇÃO!$A:$A,0)),""),"")) -> M2 | G92: 104 | H92: =IF(B92="SINAPI",IFERROR(INDEX(SINAPI!$D:$D,MATCH($C92,SINAPI!$A:$A,0)),0),IF(B92="COMPOSIÇÃO",IFERROR(INDEX(COMPOSIÇÃO!$G:$G,MATCH($C92,COMPOSIÇÃO!$A:$A,0)),0),0)) -> 21.69 | I92: 26.12442558 | J92: 2716.94 | K92: =J92/$J$302 -> 0.004062239306
A93: 10.11 | B93: SINAPI | C93: 88486 | D93: =IF(B93="SINAPI",IFERROR(INDEX(SINAPI!$B:$B,MATCH($C93,SINAPI!$A:$A,0)),""),IF(B93="COMPOSIÇÃO",IFERROR(INDEX(COMPOSIÇÃO!$C:$C,MATCH($C93,COMPOSIÇÃO!$A:$A,0)),""),"")) -> APLICAÇÃO MANUAL DE PINTURA COM TINTA LÁTEX PVA EM TETO, DUAS DEMÃOS. AF_06/2014 | F93: =IF(B93="SINAPI",IFERROR(INDEX(SINAPI!$C:$C,MATCH($C93,SINAPI!$A:$A,0)),""),IF(B93="COMPOSIÇÃO",IFERROR(INDEX(COMPOSIÇÃO!$D:$D,MATCH($C93,COMPOSIÇÃO!$A:$A,0)),""),"")) -> M2 | G93: 104 | H93: =IF(B93="SINAPI",IFERROR(INDEX(SINAPI!$D:$D,MATCH($C93,SINAPI!$A:$A,0)),0),IF(B93="COMPOSIÇÃO",IFERROR(INDEX(COMPOSIÇÃO!$G:$G,MATCH($C93,COMPOSIÇÃO!$A:$A,0)),0),0)) -> 10.39 | I93: 12.51419003 | J93: 1301.48 | K93: =J93/$J$302 -> 0.001945910919
A94: 10.12 | B94: COMPOSIÇÃO | C94: IFMT 060.05.2019 | D94: =IF(B94="SINAPI",IFERROR(INDEX(SINAPI!$B:$B,MATCH($C94,SINAPI!$A:$A,0)),""),IF(B94="COMPOSIÇÃO",IFERROR(INDEX(COMPOSIÇÃO!$C:$C,MATCH($C94,COMPOSIÇÃO!$A:$A,0)),""),"")) -> LIXAMENTO DE PAREDES E TETO, PARA PINTURA | F94: =IF(B94="SINAPI",IFERROR(INDEX(SINAPI!$C:$C,MATCH($C94,SINAPI!$A:$A,0)),""),IF(B94="COMPOSIÇÃO",IFERROR(INDEX(COMPOSIÇÃO!$D:$D,MATCH($C94,COMPOSIÇÃO!$A:$A,0)),""),"")) -> M2 | G94: 104 | H94: =IF(B94="SINAPI",IFERROR(INDEX(SINAPI!$D:$D,MATCH($C94,SINAPI!$A:$A,0)),0),IF(B94="COMPOSIÇÃO",IFERROR(INDEX(COMPOSIÇÃO!$G:$G,MATCH($C94,COMPOSIÇÃO!$A:$A,0)),0),0)) -> 1.39612 | I94: 1.681550624 | J94: 174.88 | K94: =J94/$J$302 -> 0.0002614722481
D95: PINTURA DO PISO | F95: =IF(B95="SINAPI",IFERROR(INDEX(SINAPI!$C:$C,MATCH($C95,SINAPI!$A:$A,0)),""),IF(B95="COMPOSIÇÃO",IFERROR(INDEX(COMPOSIÇÃO!$D:$D,MATCH($C95,COMPOSIÇÃO!$A:$A,0)),""),"")) -> 
D96: PINTURA DE ESQUADRIAS | F96: =IF(B96="SINAPI",IFERROR(INDEX(SINAPI!$C:$C,MATCH($C96,SINAPI!$A:$A,0)),""),IF(B96="COMPOSIÇÃO",IFERROR(INDEX(COMPOSIÇÃO!$D:$D,MATCH($C96,COMPOSIÇÃO!$A:$A,0)),""),"")) -> 
A97: 10.15 | B97: COMPOSIÇÃO | C97: IFMT 223.07.2020 | D97: =IF(B97="SINAPI",IFERROR(INDEX(SINAPI!$B:$B,MATCH($C97,SINAPI!$A:$A,0)),""),IF(B97="COMPOSIÇÃO",IFERROR(INDEX(COMPOSIÇÃO!$C:$C,MATCH($C97,COMPOSIÇÃO!$A:$A,0)),""),"")) -> FUNDO ANTICORROSIVO A BASE DE OXIDO DE FERRO (ZARCAO), DUAS DEMAOS | F97: =IF(B97="SINAPI",IFERROR(INDEX(SINAPI!$C:$C,MATCH($C97,SINAPI!$A:$A,0)),""),IF(B97="COMPOSIÇÃO",IFERROR(INDEX(COMPOSIÇÃO!$D:$D,MATCH($C97,COMPOSIÇÃO!$A:$A,0)),""),"")) -> M2 | G97: 57 | H97: =IF(B97="SINAPI",IFERROR(INDEX(SINAPI!$D:$D,MATCH($C97,SINAPI!$A:$A,0)),0),IF(B97="COMPOSIÇÃO",IFERROR(INDEX(COMPOSIÇÃO!$G:$G,MATCH($C97,COMPOSIÇÃO!$A:$A,0)),0),0)) -> 18.9586 | I97: 22.8346028 | J97: 1301.57 | K97: =J97/$J$302 -> 0.001946045483
A98: 10.16 | B98: COMPOSIÇÃO | C98: IFMT 249.09.2020 | D98: =IF(B98="SINAPI",IFERROR(INDEX(SINAPI!$B:$B,MATCH($C98,SINAPI!$A:$A,0)),""),IF(B98="COMPOSIÇÃO",IFERROR(INDEX(COMPOSIÇÃO!$C:$C,MATCH($C98,COMPOSIÇÃO!$A:$A,0)),""),"")) -> PINTURA ESMALTE ALTO BRILHO, DUAS DEMAOS, SOBRE SUPERFICIE METALICA | F98: =IF(B98="SINAPI",IFERROR(INDEX(SINAPI!$C:$C,MATCH($C98,SINAPI!$A:$A,0)),""),IF(B98="COMPOSIÇÃO",IFERROR(INDEX(COMPOSIÇÃO!$D:$D,MATCH($C98,COMPOSIÇÃO!$A:$A,0)),""),"")) -> M2 | G98: =G97 -> 57 | H98: =IF(B98="SINAPI",IFERROR(INDEX(SINAPI!$D:$D,MATCH($C98,SINAPI!$A:$A,0)),0),IF(B98="COMPOSIÇÃO",IFERROR(INDEX(COMPOSIÇÃO!$G:$G,MATCH($C98,COMPOSIÇÃO!$A:$A,0)),0),0)) -> 24.6681 | I98: 29.71138509 | J98: 1693.55 | K98: =J98/$J$302 -> 0.002532115312
A99: 10.17 | B99: SINAPI | C99: 6082 | D99: =IF(B99="SINAPI",IFERROR(INDEX(SINAPI!$B:$B,MATCH($C99,SINAPI!$A:$A,0)),""),IF(B99="COMPOSIÇÃO",IFERROR(INDEX(COMPOSIÇÃO!$C:$C,MATCH($C99,COMPOSIÇÃO!$A:$A,0)),""),"")) -> PINTURA EM VERNIZ SINTETICO BRILHANTE EM MADEIRA, TRES DEMAOS | F99: =IF(B99="SINAPI",IFERROR(INDEX(SINAPI!$C:$C,MATCH($C99,SINAPI!$A:$A,0)),""),IF(B99="COMPOSIÇÃO",IFERROR(INDEX(COMPOSIÇÃO!$D:$D,MATCH($C99,COMPOSIÇÃO!$A:$A,0)),""),"")) -> M2 | G99: 24 | H99: =IF(B99="SINAPI",IFERROR(INDEX(SINAPI!$D:$D,MATCH($C99,SINAPI!$A:$A,0)),0),IF(B99="COMPOSIÇÃO",IFERROR(INDEX(COMPOSIÇÃO!$G:$G,MATCH($C99,COMPOSIÇÃO!$A:$A,0)),0),0)) -> 16.17 | I99: 19.47588574 | J99: 467.42 | K99: =J99/$J$302 -> 0.0006988641253
A100: 11.0 | D100: LOUÇAS E METAIS | J100: =SUM(J101:J132) -> 24997.02 | K100: =J100/$J$302 -> 0.03737435394
A101: 11.1 | B101: SINAPI | C101: 86932 | D101: =IF(B101="SINAPI",IFERROR(INDEX(SINAPI!$B:$B,MATCH($C101,SINAPI!$A:$A,0)),""),IF(B101="COMPOSIÇÃO",IFERROR(INDEX(COMPOSIÇÃO!$C:$C,MATCH($C101,COMPOSIÇÃO!$A:$A,0)),""),"")) -> VASO SANITÁRIO SIFONADO COM CAIXA ACOPLADA LOUÇA BRANCA - PADRÃO MÉDIO, INCLUSO ENGATE FLEXÍVEL EM METAL CROMADO, 1/2 X 40CM - FORNECIMENTO E INSTALAÇÃO. AF_01/2020 | F101: =IF(B101="SINAPI",IFERROR(INDEX(SINAPI!$C:$C,MATCH($C101,SINAPI!$A:$A,0)),""),IF(B101="COMPOSIÇÃO",IFERROR(INDEX(COMPOSIÇÃO!$D:$D,MATCH($C101,COMPOSIÇÃO!$A:$A,0)),""),"")) -> UN | G101: 8 | H101: =IF(B101="SINAPI",IFERROR(INDEX(SINAPI!$D:$D,MATCH($C101,SINAPI!$A:$A,0)),0),IF(B101="COMPOSIÇÃO",IFERROR(INDEX(COMPOSIÇÃO!$G:$G,MATCH($C101,COMPOSIÇÃO!$A:$A,0)),0),0)) -> 395.97 | I101: 476.9243337 | J101: 3815.39 | K101: =J101/$J$302 -> 0.005704589438
A102: 11.2 | B102: SINAPI | C102: 86939 | D102: =IF(B102="SINAPI",IFERROR(INDEX(SINAPI!$B:$B,MATCH($C102,SINAPI!$A:$A,0)),""),IF(B102="COMPOSIÇÃO",IFERROR(INDEX(COMPOSIÇÃO!$C:$C,MATCH($C102,COMPOSIÇÃO!$A:$A,0)),""),"")) -> LAVATÓRIO LOUÇA BRANCA COM COLUNA, *44 X 35,5* CM, PADRÃO POPULAR, INCLUSO SIFÃO FLEXÍVEL EM PVC, VÁLVULA E ENGATE FLEXÍVEL 30CM EM PLÁSTICO E COM TORNEIRA CROMADA PADRÃO POPULAR - FORNECIMENTO E INSTALAÇÃO. AF_01/2020 | F102: =IF(B102="SINAPI",IFERROR(INDEX(SINAPI!$C:$C,MATCH($C102,SINAPI!$A:$A,0)),""),IF(B102="COMPOSIÇÃO",IFERROR(INDEX(COMPOSIÇÃO!$D:$D,MATCH($C102,COMPOSIÇÃO!$A:$A,0)),""),"")) -> UN | G102: 6 | H102: =IF(B102="SINAPI",IFERROR(INDEX(SINAPI!$D:$D,MATCH($C102,SINAPI!$A:$A,0)),0),IF(B102="COMPOSIÇÃO",IFERROR(INDEX(COMPOSIÇÃO!$G:$G,MATCH($C102,COMPOSIÇÃO!$A:$A,0)),0),0)) -> 284.91 | I102: 343.1586027 | J102: 2058.95 | K102: =J102/$J$302 -> 0.003078443992
A103: 11.3 | B103: SINAPI | C103: 95545 | D103: =IF(B103="SINAPI",IFERROR(INDEX(SINAPI!$B:$B,MATCH($C103,SINAPI!$A:$A,0)),""),IF(B103="COMPOSIÇÃO",IFERROR(INDEX(COMPOSIÇÃO!$C:$C,MATCH($C103,COMPOSIÇÃO!$A:$A,0)),""),"")) -> SABONETEIRA DE PAREDE EM METAL CROMADO, INCLUSO FIXAÇÃO. AF_01/2020 | F103: =IF(B103="SINAPI",IFERROR(INDEX(SINAPI!$C:$C,MATCH($C103,SINAPI!$A:$A,0)),""),IF(B103="COMPOSIÇÃO",IFERROR(INDEX(COMPOSIÇÃO!$D:$D,MATCH($C103,COMPOSIÇÃO!$A:$A,0)),""),"")) -> UN | G103: 4 | H103: =IF(B103="SINAPI",IFERROR(INDEX(SINAPI!$D:$D,MATCH($C103,SINAPI!$A:$A,0)),0),IF(B103="COMPOSIÇÃO",IFERROR(INDEX(COMPOSIÇÃO!$G:$G,MATCH($C103,COMPOSIÇÃO!$A:$A,0)),0),0)) -> 30.16 | I103: 36.32608001 | J103: 145.3 | K103: =J103/$J$302 -> 0.0002172456408
A104: 11.4 | B104: SINAPI | C104: 95544 | D104: =IF(B104="SINAPI",IFERROR(INDEX(SINAPI!$B:$B,MATCH($C104,SINAPI!$A:$A,0)),""),IF(B104="COMPOSIÇÃO",IFERROR(INDEX(COMPOSIÇÃO!$C:$C,MATCH($C104,COMPOSIÇÃO!$A:$A,0)),""),"")) -> PAPELEIRA DE PAREDE EM METAL CROMADO SEM TAMPA, INCLUSO FIXAÇÃO. AF_01/2020 | F104: =IF(B104="SINAPI",IFERROR(INDEX(SINAPI!$C:$C,MATCH($C104,SINAPI!$A:$A,0)),""),IF(B104="COMPOSIÇÃO",IFERROR(INDEX(COMPOSIÇÃO!$D:$D,MATCH($C104,COMPOSIÇÃO!$A:$A,0)),""),"")) -> UN | G104: 8 | H104: =IF(B104="SINAPI",IFERROR(INDEX(SINAPI!$D:$D,MATCH($C104,SINAPI!$A:$A,0)),0),IF(B104="COMPOSIÇÃO",IFERROR(INDEX(COMPOSIÇÃO!$G:$G,MATCH($C104,COMPOSIÇÃO!$A:$A,0)),0),0)) -> 30.73 | I104: =H104*(1+$J$9) -> 37.01261402 | J104: =ROUND(G104*I104,2) -> 296.1 | K104: =J104/$J$302 -> 0.0004427146196
A105: 11.5 | B105: SINAPI | C105: 74125/002 | D105: =IF(B105="SINAPI",IFERROR(INDEX(SINAPI!$B:$B,MATCH($C105,SINAPI!$A:$A,0)),""),IF(B105="COMPOSIÇÃO",IFERROR(INDEX(COMPOSIÇÃO!$C:$C,MATCH($C105,COMPOSIÇÃO!$A:$A,0)),""),"")) -> ESPELHO CRISTAL ESPESSURA 4MM, COM MOLDURA EM ALUMINIO E COMPENSADO 6MM PLASTIFICADO COLADO | F105: =IF(B105="SINAPI",IFERROR(INDEX(SINAPI!$C:$C,MATCH($C105,SINAPI!$A:$A,0)),""),IF(B105="COMPOSIÇÃO",IFERROR(INDEX(COMPOSIÇÃO!$D:$D,MATCH($C105,COMPOSIÇÃO!$A:$A,0)),""),"")) -> M2 | G105: =0.6*2*2 -> 2.4 | H105: =IF(B105="SINAPI",IFERROR(INDEX(SINAPI!$D:$D,MATCH($C105,SINAPI!$A:$A,0)),0),IF(B105="COMPOSIÇÃO",IFERROR(INDEX(COMPOSIÇÃO!$G:$G,MATCH($C105,COMPOSIÇÃO!$A:$A,0)),0),0)) -> 503.35 | I105: 606.2577047 | J105: 1455.02 | K105: =J105/$J$302 -> 0.002175476615
D106: WC PNE | F106: =IF(B106="SINAPI",IFERROR(INDEX(SINAPI!$C:$C,MATCH($C106,SINAPI!$A:$A,0)),""),IF(B106="COMPOSIÇÃO",IFERROR(INDEX(COMPOSIÇÃO!$D:$D,MATCH($C106,COMPOSIÇÃO!$A:$A,0)),""),"")) -> 
A107: 11.7 | B107: SINAPI | C107: 86942 | D107: =IF(B107="SINAPI",IFERROR(INDEX(SINAPI!$B:$B,MATCH($C107,SINAPI!$A:$A,0)),""),IF(B107="COMPOSIÇÃO",IFERROR(INDEX(COMPOSIÇÃO!$C:$C,MATCH($C107,COMPOSIÇÃO!$A:$A,0)),""),"")) -> LAVATÓRIO LOUÇA BRANCA SUSPENSO, 29,5 X 39CM OU EQUIVALENTE, PADRÃO POPULAR, INCLUSO SIFÃO TIPO GARRAFA EM PVC, VÁLVULA E ENGATE FLEXÍVEL 30CM EM PLÁSTICO E TORNEIRA CROMADA DE MESA, PADRÃO POPULAR - FORNECIMENTO E INSTALAÇÃO. AF_01/2020 | F107: =IF(B107="SINAPI",IFERROR(INDEX(SINAPI!$C:$C,MATCH($C107,SINAPI!$A:$A,0)),""),IF(B107="COMPOSIÇÃO",IFERROR(INDEX(COMPOSIÇÃO!$D:$D,MATCH($C107,COMPOSIÇÃO!$A:$A,0)),""),"")) -> UN | G107: 1 | H107: =IF(B107="SINAPI",IFERROR(INDEX(SINAPI!$D:$D,MATCH($C107,SINAPI!$A:$A,0)),0),IF(B107="COMPOSIÇÃO",IFERROR(INDEX(COMPOSIÇÃO!$G:$G,MATCH($C107,COMPOSIÇÃO!$A:$A,0)),0),0)) -> 189.63 | I107: 228.3990236 | J107: 228.4 | K107: =J107/$J$302 -> 0.0003414928035
A108: 11.8 | B108: SINAPI | C108: 95472 | D108: =IF(B108="SINAPI",IFERROR(INDEX(SINAPI!$B:$B,MATCH($C108,SINAPI!$A:$A,0)),""),IF(B108="COMPOSIÇÃO",IFERROR(INDEX(COMPOSIÇÃO!$C:$C,MATCH($C108,COMPOSIÇÃO!$A:$A,0)),""),"")) -> VASO SANITARIO SIFONADO CONVENCIONAL PARA PCD SEM FURO FRONTAL COM LOUÇA BRANCA SEM ASSENTO, INCLUSO CONJUNTO DE LIGAÇÃO PARA BACIA SANITÁRIA AJUSTÁVEL - FORNECIMENTO E INSTALAÇÃO. AF_01/2020 | F108: =IF(B108="SINAPI",IFERROR(INDEX(SINAPI!$C:$C,MATCH($C108,SINAPI!$A:$A,0)),""),IF(B108="COMPOSIÇÃO",IFERROR(INDEX(COMPOSIÇÃO!$D:$D,MATCH($C108,COMPOSIÇÃO!$A:$A,0)),""),"")) -> UN | G108: 1 | H108: =IF(B108="SINAPI",IFERROR(INDEX(SINAPI!$D:$D,MATCH($C108,SINAPI!$A:$A,0)),0),IF(B108="COMPOSIÇÃO",IFERROR(INDEX(COMPOSIÇÃO!$G:$G,MATCH($C108,COMPOSIÇÃO!$A:$A,0)),0),0)) -> 625.24 | I108: 753.0675818 | J108: 753.07 | K108: =J108/$J$302 -> 0.001125954402
A109: 11.9 | B109: SINAPI | C109: 95545 | D109: =IF(B109="SINAPI",IFERROR(INDEX(SINAPI!$B:$B,MATCH($C109,SINAPI!$A:$A,0)),""),IF(B109="COMPOSIÇÃO",IFERROR(INDEX(COMPOSIÇÃO!$C:$C,MATCH($C109,COMPOSIÇÃO!$A:$A,0)),""),"")) -> SABONETEIRA DE PAREDE EM METAL CROMADO, INCLUSO FIXAÇÃO. AF_01/2020 | F109: =IF(B109="SINAPI",IFERROR(INDEX(SINAPI!$C:$C,MATCH($C109,SINAPI!$A:$A,0)),""),IF(B109="COMPOSIÇÃO",IFERROR(INDEX(COMPOSIÇÃO!$D:$D,MATCH($C109,COMPOSIÇÃO!$A:$A,0)),""),"")) -> UN | G109: 1 | H109: =IF(B109="SINAPI",IFERROR(INDEX(SINAPI!$D:$D,MATCH($C109,SINAPI!$A:$A,0)),0),IF(B109="COMPOSIÇÃO",IFERROR(INDEX(COMPOSIÇÃO!$G:$G,MATCH($C109,COMPOSIÇÃO!$A:$A,0)),0),0)) -> 30.16 | I109: 36.32608001 | J109: 36.33 | K109: =J109/$J$302 -> 5.431888595e-05
A110: 11.10 | B110: SINAPI | C110: 95544 | D110: =IF(B110="SINAPI",IFERROR(INDEX(SINAPI!$B:$B,MATCH($C110,SINAPI!$A:$A,0)),""),IF(B110="COMPOSIÇÃO",IFERROR(INDEX(COMPOSIÇÃO!$C:$C,MATCH($C110,COMPOSIÇÃO!$A:$A,0)),""),"")) -> PAPELEIRA DE PAREDE EM METAL CROMADO SEM TAMPA, INCLUSO FIXAÇÃO. AF_01/2020 | F110: =IF(B110="SINAPI",IFERROR(INDEX(SINAPI!$C:$C,MATCH($C110,SINAPI!$A:$A,0)),""),IF(B110="COMPOSIÇÃO",IFERROR(INDEX(COMPOSIÇÃO!$D:$D,MATCH($C110,COMPOSIÇÃO!$A:$A,0)),""),"")) -> UN | G110: 1 | H110: =IF(B110="SINAPI",IFERROR(INDEX(SINAPI!$D:$D,MATCH($C110,SINAPI!$A:$A,0)),0),IF(B110="COMPOSIÇÃO",IFERROR(INDEX(COMPOSIÇÃO!$G:$G,MATCH($C110,COMPOSIÇÃO!$A:$A,0)),0),0)) -> 30.73 | I110: 37.01261402 | J110: 37.01 | K110: =J110/$J$302 -> 5.533558957e-05
A111: 11.11 | B111: SINAPI | C111: 74125/002 | D111: =IF(B111="SINAPI",IFERROR(INDEX(SINAPI!$B:$B,MATCH($C111,SINAPI!$A:$A,0)),""),IF(B111="COMPOSIÇÃO",IFERROR(INDEX(COMPOSIÇÃO!$C:$C,MATCH($C111,COMPOSIÇÃO!$A:$A,0)),""),"")) -> ESPELHO CRISTAL ESPESSURA 4MM, COM MOLDURA EM ALUMINIO E COMPENSADO 6MM PLASTIFICADO COLADO | F111: =IF(B111="SINAPI",IFERROR(INDEX(SINAPI!$C:$C,MATCH($C111,SINAPI!$A:$A,0)),""),IF(B111="COMPOSIÇÃO",IFERROR(INDEX(COMPOSIÇÃO!$D:$D,MATCH($C111,COMPOSIÇÃO!$A:$A,0)),""),"")) -> M2 | G111: =0.6*0.6 -> 0.36 | H111: =IF(B111="SINAPI",IFERROR(INDEX(SINAPI!$D:$D,MATCH($C111,SINAPI!$A:$A,0)),0),IF(B111="COMPOSIÇÃO",IFERROR(INDEX(COMPOSIÇÃO!$G:$G,MATCH($C111,COMPOSIÇÃO!$A:$A,0)),0),0)) -> 503.35 | I111: 606.2577047 | J111: 218.25 | K111: =J111/$J$302 -> 0.0003263170068
A112: 11.12 | B112: COMPOSIÇÃO | C112: IFMT 054.04.2019 | D112: =IF(B112="SINAPI",IFERROR(INDEX(SINAPI!$B:$B,MATCH($C112,SINAPI!$A:$A,0)),""),IF(B112="COMPOSIÇÃO",IFERROR(INDEX(COMPOSIÇÃO!$C:$C,MATCH($C112,COMPOSIÇÃO!$A:$A,0)),""),"")) -> BARRA DE APOIO RETA, EM ALUMINIO, COMPRIMENTO 70CM, DIAMETRO MINIMO 3 CM FORNECIMENTO E INSTALAÇÃO. | F112: =IF(B112="SINAPI",IFERROR(INDEX(SINAPI!$C:$C,MATCH($C112,SINAPI!$A:$A,0)),""),IF(B112="COMPOSIÇÃO",IFERROR(INDEX(COMPOSIÇÃO!$D:$D,MATCH($C112,COMPOSIÇÃO!$A:$A,0)),""),"")) -> UN | G112: 1 | H112: =IF(B112="SINAPI",IFERROR(INDEX(SINAPI!$D:$D,MATCH($C112,SINAPI!$A:$A,0)),0),IF(B112="COMPOSIÇÃO",IFERROR(INDEX(COMPOSIÇÃO!$G:$G,MATCH($C112,COMPOSIÇÃO!$A:$A,0)),0),0)) -> 126.223 | I112: 152.02874 | J112: 152.03 | K112: =J112/$J$302 -> 0.0002273080163
A113: 11.13 | B113: COMPOSIÇÃO | C113: IFMT 055.04.2019 | D113: =IF(B113="SINAPI",IFERROR(INDEX(SINAPI!$B:$B,MATCH($C113,SINAPI!$A:$A,0)),""),IF(B113="COMPOSIÇÃO",IFERROR(INDEX(COMPOSIÇÃO!$C:$C,MATCH($C113,COMPOSIÇÃO!$A:$A,0)),""),"")) -> BARRA DE APOIO RETA, EM ALUMINIO, COMPRIMENTO 80CM, DIAMETRO MINIMO 3 CM FORNECIMENTO E INSTALAÇÃO. | F113: =IF(B113="SINAPI",IFERROR(INDEX(SINAPI!$C:$C,MATCH($C113,SINAPI!$A:$A,0)),""),IF(B113="COMPOSIÇÃO",IFERROR(INDEX(COMPOSIÇÃO!$D:$D,MATCH($C113,COMPOSIÇÃO!$A:$A,0)),""),"")) -> UN | G113: 1 | H113: =IF(B113="SINAPI",IFERROR(INDEX(SINAPI!$D:$D,MATCH($C113,SINAPI!$A:$A,0)),0),IF(B113="COMPOSIÇÃO",IFERROR(INDEX(COMPOSIÇÃO!$G:$G,MATCH($C113,COMPOSIÇÃO!$A:$A,0)),0),0)) -> 136.043 | I113: 163.856396 | J113: 163.86 | K113: =J113/$J$302 -> 0.0002449956689
A114: 11.14 | B114: ORSE | C114: 12128/ORSE | D114: Barra de apoio, para lavatório,fixa, constituida de duas barras laterais em "U", em aço inox, d=1 1/4", | F114: =IF(B114="SINAPI",IFERROR(INDEX(SINAPI!$C:$C,MATCH($C114,SINAPI!$A:$A,0)),""),IF(B114="COMPOSIÇÃO",IFERROR(INDEX(COMPOSIÇÃO!$D:$D,MATCH($C114,COMPOSIÇÃO!$A:$A,0)),""),"")) ->  | G114: 1 | H114: 484.98 | I114: 584.1320386 | J114: 584.13 | K114: =J114/$J$302 -> 0.0008733633595
D115: Cozinha | F115: =IF(B116="SINAPI",IFERROR(INDEX(SINAPI!$C:$C,MATCH($C115,SINAPI!$A:$A,0)),""),IF(B116="COMPOSIÇÃO",IFERROR(INDEX(COMPOSIÇÃO!$D:$D,MATCH($C115,COMPOSIÇÃO!$A:$A,0)),""),"")) -> 
A116: 11.16 | B116: SINAPI | C116: 93441 | D116: =IF(B116="SINAPI",IFERROR(INDEX(SINAPI!$B:$B,MATCH($C116,SINAPI!$A:$A,0)),""),IF(B116="COMPOSIÇÃO",IFERROR(INDEX(COMPOSIÇÃO!$C:$C,MATCH($C116,COMPOSIÇÃO!$A:$A,0)),""),"")) -> BANCADA GRANITO CINZA 150 X 60 CM, COM CUBA DE EMBUTIR DE AÇO, VÁLVULA AMERICANA EM METAL, SIFÃO FLEXÍVEL EM PVC, ENGATE FLEXÍVEL 30 CM, TORNEIRA CROMADA LONGA, DE PAREDE, 1/2 OU 3/4, P/ COZINHA, PADRÃO POPULAR - FORNEC. E INSTALAÇÃO. AF_01/2020 | F116: =IF(B116="SINAPI",IFERROR(INDEX(SINAPI!$C:$C,MATCH($C116,SINAPI!$A:$A,0)),""),IF(B116="COMPOSIÇÃO",IFERROR(INDEX(COMPOSIÇÃO!$D:$D,MATCH($C116,COMPOSIÇÃO!$A:$A,0)),""),"")) -> UN | G116: 1 | H116: =IF(B116="SINAPI",IFERROR(INDEX(SINAPI!$D:$D,MATCH($C116,SINAPI!$A:$A,0)),0),IF(B116="COMPOSIÇÃO",IFERROR(INDEX(COMPOSIÇÃO!$G:$G,MATCH($C116,COMPOSIÇÃO!$A:$A,0)),0),0)) -> 917.21 | I116: =H116*(1+$J$9) -> 1104.729571 | J116: =ROUND(G116*I116,2) -> 1104.73 | K116: =J116/$J$302 -> 0.001651739688
A117: 11.17 | D117: Oficina | K117: =J117/$J$302 -> 0
A118: 11.18 | B118: COMPOSIÇÃO | C118: IFMT 057.04.2019 | D118: =IF(B118="SINAPI",IFERROR(INDEX(SINAPI!$B:$B,MATCH($C118,SINAPI!$A:$A,0)),""),IF(B118="COMPOSIÇÃO",IFERROR(INDEX(COMPOSIÇÃO!$C:$C,MATCH($C118,COMPOSIÇÃO!$A:$A,0)),""),"")) -> GRANITO PARA BANCADA PARA PIA, POLIDO, TIPO CINZA ANDORINHA, COM REBAIXO E= *2,5* CM, FIXADO COM SUPORTE METALICO MÃO-FRANCESA AÇO - FORNECIMENTO E INSTALAÇÃO | F118: =IF(B118="SINAPI",IFERROR(INDEX(SINAPI!$C:$C,MATCH($C118,SINAPI!$A:$A,0)),""),IF(B118="COMPOSIÇÃO",IFERROR(INDEX(COMPOSIÇÃO!$D:$D,MATCH($C118,COMPOSIÇÃO!$A:$A,0)),""),"")) -> M2 | G118: 1.2 | H118: =IF(B118="SINAPI",IFERROR(INDEX(SINAPI!$D:$D,MATCH($C118,SINAPI!$A:$A,0)),0),IF(B118="COMPOSIÇÃO",IFERROR(INDEX(COMPOSIÇÃO!$G:$G,MATCH($C118,COMPOSIÇÃO!$A:$A,0)),0),0)) -> 721.6040882 | I118: 869.1328861 | J118: 1042.96 | K118: =J118/$J$302 -> 0.001559384126
A119: 11.19 | B119: COMPOSIÇÃO | C119: IFMT 058.04.2019 | D119: =IF(B119="SINAPI",IFERROR(INDEX(SINAPI!$B:$B,MATCH($C119,SINAPI!$A:$A,0)),""),IF(B119="COMPOSIÇÃO",IFERROR(INDEX(COMPOSIÇÃO!$C:$C,MATCH($C119,COMPOSIÇÃO!$A:$A,0)),""),"")) -> GRANITO PARA BANCADA SECA, POLIDO, TIPO CINZA ANDORINHA, COM REBAIXO E= *2,5* CM, FIXADO COM SUPORTE METALICO MÃO-FRANCESA AÇO - FORNECIMENTO E INSTALAÇÃO | F119: =IF(B119="SINAPI",IFERROR(INDEX(SINAPI!$C:$C,MATCH($C119,SINAPI!$A:$A,0)),""),IF(B119="COMPOSIÇÃO",IFERROR(INDEX(COMPOSIÇÃO!$D:$D,MATCH($C119,COMPOSIÇÃO!$A:$A,0)),""),"")) -> M2 | G119: 4.2 | H119: =IF(B119="SINAPI",IFERROR(INDEX(SINAPI!$D:$D,MATCH($C119,SINAPI!$A:$A,0)),0),IF(B119="COMPOSIÇÃO",IFERROR(INDEX(COMPOSIÇÃO!$G:$G,MATCH($C119,COMPOSIÇÃO!$A:$A,0)),0),0)) -> 693.467354 | I119: 835.2437198 | J119: 3508.02 | K119: =J119/$J$302 -> 0.005245024451
A120: 11.20 | B120: SINAPI | C120: 86938 | D120: =IF(B120="SINAPI",IFERROR(INDEX(SINAPI!$B:$B,MATCH($C120,SINAPI!$A:$A,0)),""),IF(B120="COMPOSIÇÃO",IFERROR(INDEX(COMPOSIÇÃO!$C:$C,MATCH($C120,COMPOSIÇÃO!$A:$A,0)),""),"")) -> CUBA DE EMBUTIR OVAL EM LOUÇA BRANCA, 35 X 50CM OU EQUIVALENTE, INCLUSO VÁLVULA E SIFÃO TIPO GARRAFA EM METAL CROMADO - FORNECIMENTO E INSTALAÇÃO. AF_01/2020 | F120: =IF(B120="SINAPI",IFERROR(INDEX(SINAPI!$C:$C,MATCH($C120,SINAPI!$A:$A,0)),""),IF(B120="COMPOSIÇÃO",IFERROR(INDEX(COMPOSIÇÃO!$D:$D,MATCH($C120,COMPOSIÇÃO!$A:$A,0)),""),"")) -> UN | G120: 2 | H120: =IF(B120="SINAPI",IFERROR(INDEX(SINAPI!$D:$D,MATCH($C120,SINAPI!$A:$A,0)),0),IF(B120="COMPOSIÇÃO",IFERROR(INDEX(COMPOSIÇÃO!$G:$G,MATCH($C120,COMPOSIÇÃO!$A:$A,0)),0),0)) -> 292.62 | I120: 352.4448784 | J120: 704.89 | K120: =J120/$J$302 -> 0.001053917961
A121: 11.21 | B121: SINAPI | C121: 86911 | D121: =IF(B121="SINAPI",IFERROR(INDEX(SINAPI!$B:$B,MATCH($C121,SINAPI!$A:$A,0)),""),IF(B121="COMPOSIÇÃO",IFERROR(INDEX(COMPOSIÇÃO!$C:$C,MATCH($C121,COMPOSIÇÃO!$A:$A,0)),""),"")) -> TORNEIRA CROMADA LONGA, DE PAREDE, 1/2 OU 3/4, PARA PIA DE COZINHA, PADRÃO POPULAR - FORNECIMENTO E INSTALAÇÃO. AF_01/2020 | F121: =IF(B121="SINAPI",IFERROR(INDEX(SINAPI!$C:$C,MATCH($C121,SINAPI!$A:$A,0)),""),IF(B121="COMPOSIÇÃO",IFERROR(INDEX(COMPOSIÇÃO!$D:$D,MATCH($C121,COMPOSIÇÃO!$A:$A,0)),""),"")) -> UN | G121: 2 | H121: =IF(B121="SINAPI",IFERROR(INDEX(SINAPI!$D:$D,MATCH($C121,SINAPI!$A:$A,0)),0),IF(B121="COMPOSIÇÃO",IFERROR(INDEX(COMPOSIÇÃO!$G:$G,MATCH($C121,COMPOSIÇÃO!$A:$A,0)),0),0)) -> 42.71 | I121: 51.44187259 | J121: 102.88 | K121: =J121/$J$302 -> 0.0001538212768
D122: Materiais | F122: =IF(B122="SINAPI",IFERROR(INDEX(SINAPI!$C:$C,MATCH($C122,SINAPI!$A:$A,0)),""),IF(B122="COMPOSIÇÃO",IFERROR(INDEX(COMPOSIÇÃO!$D:$D,MATCH($C122,COMPOSIÇÃO!$A:$A,0)),""),"")) -> 
A123: 11.23 | B123: COMPOSIÇÃO | C123: IFMT 057.04.2019 | D123: =IF(B123="SINAPI",IFERROR(INDEX(SINAPI!$B:$B,MATCH($C123,SINAPI!$A:$A,0)),""),IF(B123="COMPOSIÇÃO",IFERROR(INDEX(COMPOSIÇÃO!$C:$C,MATCH($C123,COMPOSIÇÃO!$A:$A,0)),""),"")) -> GRANITO PARA BANCADA PARA PIA, POLIDO, TIPO CINZA ANDORINHA, COM REBAIXO E= *2,5* CM, FIXADO COM SUPORTE METALICO MÃO-FRANCESA AÇO - FORNECIMENTO E INSTALAÇÃO | F123: =IF(B123="SINAPI",IFERROR(INDEX(SINAPI!$C:$C,MATCH($C123,SINAPI!$A:$A,0)),""),IF(B123="COMPOSIÇÃO",IFERROR(INDEX(COMPOSIÇÃO!$D:$D,MATCH($C123,COMPOSIÇÃO!$A:$A,0)),""),"")) -> M2 | G123: 1.5 | H123: =IF(B123="SINAPI",IFERROR(INDEX(SINAPI!$D:$D,MATCH($C123,SINAPI!$A:$A,0)),0),IF(B123="COMPOSIÇÃO",IFERROR(INDEX(COMPOSIÇÃO!$G:$G,MATCH($C123,COMPOSIÇÃO!$A:$A,0)),0),0)) -> 721.6040882 | I123: 869.1328861 | J123: 1303.7 | K123: =J123/$J$302 -> 0.001949230157
A124: 11.24 | B124: COMPOSIÇÃO | C124: IFMT 058.04.2019 | D124: =IF(B124="SINAPI",IFERROR(INDEX(SINAPI!$B:$B,MATCH($C124,SINAPI!$A:$A,0)),""),IF(B124="COMPOSIÇÃO",IFERROR(INDEX(COMPOSIÇÃO!$C:$C,MATCH($C124,COMPOSIÇÃO!$A:$A,0)),""),"")) -> GRANITO PARA BANCADA SECA, POLIDO, TIPO CINZA ANDORINHA, COM REBAIXO E= *2,5* CM, FIXADO COM SUPORTE METALICO MÃO-FRANCESA AÇO - FORNECIMENTO E INSTALAÇÃO | F124: =IF(B124="SINAPI",IFERROR(INDEX(SINAPI!$C:$C,MATCH($C124,SINAPI!$A:$A,0)),""),IF(B124="COMPOSIÇÃO",IFERROR(INDEX(COMPOSIÇÃO!$D:$D,MATCH($C124,COMPOSIÇÃO!$A:$A,0)),""),"")) -> M2 | G124: 5.4 | H124: =IF(B124="SINAPI",IFERROR(INDEX(SINAPI!$D:$D,MATCH($C124,SINAPI!$A:$A,0)),0),IF(B124="COMPOSIÇÃO",IFERROR(INDEX(COMPOSIÇÃO!$G:$G,MATCH($C124,COMPOSIÇÃO!$A:$A,0)),0),0)) -> 693.467354 | I124: 835.2437198 | J124: 4510.32 | K124: =J124/$J$302 -> 0.006743615681
A125: 11.25 | B125: SINAPI | C125: 86938 | D125: =IF(B125="SINAPI",IFERROR(INDEX(SINAPI!$B:$B,MATCH($C125,SINAPI!$A:$A,0)),""),IF(B125="COMPOSIÇÃO",IFERROR(INDEX(COMPOSIÇÃO!$C:$C,MATCH($C125,COMPOSIÇÃO!$A:$A,0)),""),"")) -> CUBA DE EMBUTIR OVAL EM LOUÇA BRANCA, 35 X 50CM OU EQUIVALENTE, INCLUSO VÁLVULA E SIFÃO TIPO GARRAFA EM METAL CROMADO - FORNECIMENTO E INSTALAÇÃO. AF_01/2020 | F125: =IF(B125="SINAPI",IFERROR(INDEX(SINAPI!$C:$C,MATCH($C125,SINAPI!$A:$A,0)),""),IF(B125="COMPOSIÇÃO",IFERROR(INDEX(COMPOSIÇÃO!$D:$D,MATCH($C125,COMPOSIÇÃO!$A:$A,0)),""),"")) -> UN | G125: 2 | H125: =IF(B125="SINAPI",IFERROR(INDEX(SINAPI!$D:$D,MATCH($C125,SINAPI!$A:$A,0)),0),IF(B125="COMPOSIÇÃO",IFERROR(INDEX(COMPOSIÇÃO!$G:$G,MATCH($C125,COMPOSIÇÃO!$A:$A,0)),0),0)) -> 292.62 | I125: 352.4448784 | J125: 704.89 | K125: =J125/$J$302 -> 0.001053917961
A126: 11.26 | B126: SINAPI | C126: 86911 | D126: =IF(B126="SINAPI",IFERROR(INDEX(SINAPI!$B:$B,MATCH($C126,SINAPI!$A:$A,0)),""),IF(B126="COMPOSIÇÃO",IFERROR(INDEX(COMPOSIÇÃO!$C:$C,MATCH($C126,COMPOSIÇÃO!$A:$A,0)),""),"")) -> TORNEIRA CROMADA LONGA, DE PAREDE, 1/2 OU 3/4, PARA PIA DE COZINHA, PADRÃO POPULAR - FORNECIMENTO E INSTALAÇÃO. AF_01/2020 | F126: =IF(B126="SINAPI",IFERROR(INDEX(SINAPI!$C:$C,MATCH($C126,SINAPI!$A:$A,0)),""),IF(B126="COMPOSIÇÃO",IFERROR(INDEX(COMPOSIÇÃO!$D:$D,MATCH($C126,COMPOSIÇÃO!$A:$A,0)),""),"")) -> UN | G126: 12 | H126: =IF(B126="SINAPI",IFERROR(INDEX(SINAPI!$D:$D,MATCH($C126,SINAPI!$A:$A,0)),0),IF(B126="COMPOSIÇÃO",IFERROR(INDEX(COMPOSIÇÃO!$G:$G,MATCH($C126,COMPOSIÇÃO!$A:$A,0)),0),0)) -> 42.71 | I126: 51.44187259 | J126: 617.3 | K126: =J126/$J$302 -> 0.0009229575639
D127: Hidráulica | F127: =IF(B127="SINAPI",IFERROR(INDEX(SINAPI!$C:$C,MATCH($C127,SINAPI!$A:$A,0)),""),IF(B127="COMPOSIÇÃO",IFERROR(INDEX(COMPOSIÇÃO!$D:$D,MATCH($C127,COMPOSIÇÃO!$A:$A,0)),""),"")) -> 
A128: 11.28 | B128: SINAPI | C128: 86911 | D128: =IF(B128="SINAPI",IFERROR(INDEX(SINAPI!$B:$B,MATCH($C128,SINAPI!$A:$A,0)),""),IF(B128="COMPOSIÇÃO",IFERROR(INDEX(COMPOSIÇÃO!$C:$C,MATCH($C128,COMPOSIÇÃO!$A:$A,0)),""),"")) -> TORNEIRA CROMADA LONGA, DE PAREDE, 1/2 OU 3/4, PARA PIA DE COZINHA, PADRÃO POPULAR - FORNECIMENTO E INSTALAÇÃO. AF_01/2020 | F128: =IF(B128="SINAPI",IFERROR(INDEX(SINAPI!$C:$C,MATCH($C128,SINAPI!$A:$A,0)),""),IF(B128="COMPOSIÇÃO",IFERROR(INDEX(COMPOSIÇÃO!$D:$D,MATCH($C128,COMPOSIÇÃO!$A:$A,0)),""),"")) -> UN | G128: 3 | H128: =IF(B128="SINAPI",IFERROR(INDEX(SINAPI!$D:$D,MATCH($C128,SINAPI!$A:$A,0)),0),IF(B128="COMPOSIÇÃO",IFERROR(INDEX(COMPOSIÇÃO!$G:$G,MATCH($C128,COMPOSIÇÃO!$A:$A,0)),0),0)) -> 42.71 | I128: 51.44187259 | J128: 154.33 | K128: =J128/$J$302 -> 0.0002307468667
D129: Hangar | F129: =IF(B129="SINAPI",IFERROR(INDEX(SINAPI!$C:$C,MATCH($C129,SINAPI!$A:$A,0)),""),IF(B129="COMPOSIÇÃO",IFERROR(INDEX(COMPOSIÇÃO!$D:$D,MATCH($C129,COMPOSIÇÃO!$A:$A,0)),""),"")) -> 
A130: 11.30 | B130: COMPOSIÇÃO | C130: IFMT 058.04.2019 | D130: =IF(B130="SINAPI",IFERROR(INDEX(SINAPI!$B:$B,MATCH($C130,SINAPI!$A:$A,0)),""),IF(B130="COMPOSIÇÃO",IFERROR(INDEX(COMPOSIÇÃO!$C:$C,MATCH($C130,COMPOSIÇÃO!$A:$A,0)),""),"")) -> GRANITO PARA BANCADA SECA, POLIDO, TIPO CINZA ANDORINHA, COM REBAIXO E= *2,5* CM, FIXADO COM SUPORTE METALICO MÃO-FRANCESA AÇO - FORNECIMENTO E INSTALAÇÃO | F130: =IF(B130="SINAPI",IFERROR(INDEX(SINAPI!$C:$C,MATCH($C130,SINAPI!$A:$A,0)),""),IF(B130="COMPOSIÇÃO",IFERROR(INDEX(COMPOSIÇÃO!$D:$D,MATCH($C130,COMPOSIÇÃO!$A:$A,0)),""),"")) -> M2 | G130: 1.2 | H130: =IF(B130="SINAPI",IFERROR(INDEX(SINAPI!$D:$D,MATCH($C130,SINAPI!$A:$A,0)),0),IF(B130="COMPOSIÇÃO",IFERROR(INDEX(COMPOSIÇÃO!$G:$G,MATCH($C130,COMPOSIÇÃO!$A:$A,0)),0),0)) -> 693.467354 | I130: 835.2437198 | J130: 1002.29 | K130: =J130/$J$302 -> 0.001498576279
A131: 11.31 | B131: SINAPI | C131: 86929 | D131: =IF(B131="SINAPI",IFERROR(INDEX(SINAPI!$B:$B,MATCH($C131,SINAPI!$A:$A,0)),""),IF(B131="COMPOSIÇÃO",IFERROR(INDEX(COMPOSIÇÃO!$C:$C,MATCH($C131,COMPOSIÇÃO!$A:$A,0)),""),"")) -> TANQUE DE MÁRMORE SINTÉTICO SUSPENSO, 22L OU EQUIVALENTE, INCLUSO SIFÃO FLEXÍVEL EM PVC, VÁLVULA PLÁSTICA E TORNEIRA DE METAL CROMADO PADRÃO POPULAR - FORNECIMENTO E INSTALAÇÃO. AF_01/2020 | F131: =IF(B131="SINAPI",IFERROR(INDEX(SINAPI!$C:$C,MATCH($C131,SINAPI!$A:$A,0)),""),IF(B131="COMPOSIÇÃO",IFERROR(INDEX(COMPOSIÇÃO!$D:$D,MATCH($C131,COMPOSIÇÃO!$A:$A,0)),""),"")) -> UN | G131: 1 | H131: =IF(B131="SINAPI",IFERROR(INDEX(SINAPI!$D:$D,MATCH($C131,SINAPI!$A:$A,0)),0),IF(B131="COMPOSIÇÃO",IFERROR(INDEX(COMPOSIÇÃO!$G:$G,MATCH($C131,COMPOSIÇÃO!$A:$A,0)),0),0)) -> 227.43 | I131: 273.9270682 | J131: 273.93 | K131: =J131/$J$302 -> 0.0004095670913
A132: 11.32 | B132: SINAPI | C132: 86913 | D132: =IF(B132="SINAPI",IFERROR(INDEX(SINAPI!$B:$B,MATCH($C132,SINAPI!$A:$A,0)),""),IF(B132="COMPOSIÇÃO",IFERROR(INDEX(COMPOSIÇÃO!$C:$C,MATCH($C132,COMPOSIÇÃO!$A:$A,0)),""),"")) -> TORNEIRA CROMADA 1/2 OU 3/4 PARA TANQUE, PADRÃO POPULAR - FORNECIMENTO E INSTALAÇÃO. AF_01/2020 | F132: =IF(B132="SINAPI",IFERROR(INDEX(SINAPI!$C:$C,MATCH($C132,SINAPI!$A:$A,0)),""),IF(B132="COMPOSIÇÃO",IFERROR(INDEX(COMPOSIÇÃO!$D:$D,MATCH($C132,COMPOSIÇÃO!$A:$A,0)),""),"")) -> UN | G132: 1 | H132: =IF(B132="SINAPI",IFERROR(INDEX(SINAPI!$D:$D,MATCH($C132,SINAPI!$A:$A,0)),0),IF(B132="COMPOSIÇÃO",IFERROR(INDEX(COMPOSIÇÃO!$G:$G,MATCH($C132,COMPOSIÇÃO!$A:$A,0)),0),0)) -> 19.05 | I132: 22.94468913 | J132: 22.94 | K132: =J132/$J$302 -> 3.429879559e-05
A133: 12.0 | D133: DRENAGEM DO AR CONDICIONADO | J133: =SUM(J134) -> 1390.44 | K133: =J133/$J$302 -> 0.002078919675
A134: 12.1 | B134: COMPOSIÇÃO | C134: IFMT 059.05.2019 | D134: =IF(B134="SINAPI",IFERROR(INDEX(SINAPI!$B:$B,MATCH($C134,SINAPI!$A:$A,0)),""),IF(B134="COMPOSIÇÃO",IFERROR(INDEX(COMPOSIÇÃO!$C:$C,MATCH($C134,COMPOSIÇÃO!$A:$A,0)),""),"")) -> DRENO EM PVC SOLDAVEL 25MM FIXADO COM BRÇADAEIRA DE AÇO NA PAREDE E NO PISO/CALÇADA ESCAVAÇÃO E CONCRETO | F134: =IF(B134="SINAPI",IFERROR(INDEX(SINAPI!$C:$C,MATCH($C134,SINAPI!$A:$A,0)),""),IF(B134="COMPOSIÇÃO",IFERROR(INDEX(COMPOSIÇÃO!$D:$D,MATCH($C134,COMPOSIÇÃO!$A:$A,0)),""),"")) -> UN | G134: 54 | H134: =IF(B134="SINAPI",IFERROR(INDEX(SINAPI!$D:$D,MATCH($C134,SINAPI!$A:$A,0)),0),IF(B134="COMPOSIÇÃO",IFERROR(INDEX(COMPOSIÇÃO!$G:$G,MATCH($C134,COMPOSIÇÃO!$A:$A,0)),0),0)) -> 21.37815 | I134: 25.74881921 | J134: 1390.44 | K134: =J134/$J$302 -> 0.002078919675
A135: 13.0 | D135: LIMPEZA TERRENO | J135: =SUM(J136) -> 1869.57 | K135: =J135/$J$302 -> 0.002795292034
A136: 13.1 | B136: SINAPI | C136: 99814 | D136: =IF(B136="SINAPI",IFERROR(INDEX(SINAPI!$B:$B,MATCH($C136,SINAPI!$A:$A,0)),""),IF(B136="COMPOSIÇÃO",IFERROR(INDEX(COMPOSIÇÃO!$C:$C,MATCH($C136,COMPOSIÇÃO!$A:$A,0)),""),"")) -> LIMPEZA DE SUPERFÍCIE COM JATO DE ALTA PRESSÃO. AF_04/2019 | F136: =IF(B136="SINAPI",IFERROR(INDEX(SINAPI!$C:$C,MATCH($C136,SINAPI!$A:$A,0)),""),IF(B136="COMPOSIÇÃO",IFERROR(INDEX(COMPOSIÇÃO!$D:$D,MATCH($C136,COMPOSIÇÃO!$A:$A,0)),""),"")) -> M2 | G136: 1085.47 | H136: =IF(B136="SINAPI",IFERROR(INDEX(SINAPI!$D:$D,MATCH($C136,SINAPI!$A:$A,0)),0),IF(B136="COMPOSIÇÃO",IFERROR(INDEX(COMPOSIÇÃO!$G:$G,MATCH($C136,COMPOSIÇÃO!$A:$A,0)),0),0)) -> 1.43 | I136: 1.722357242 | J136: 1869.57 | K136: =J136/$J$302 -> 0.002795292034
A137: 14.0 | D137: FECHAMENTO | J137: =SUM(J138:J142) -> 53203.59 | K137: =J137/$J$302 -> 0.07954747419
A138: 14.1 | B138: SINAPI | C138: 98522 | D138: =IF(B138="SINAPI",IFERROR(INDEX(SINAPI!$B:$B,MATCH($C138,SINAPI!$A:$A,0)),""),IF(B138="COMPOSIÇÃO",IFERROR(INDEX(COMPOSIÇÃO!$C:$C,MATCH($C138,COMPOSIÇÃO!$A:$A,0)),""),"")) -> ALAMBRADO EM MOURÕES DE CONCRETO, COM TELA DE ARAME GALVANIZADO (INCLUSIVE MURETA EM CONCRETO). AF_05/2018 | F138: =IF(B138="SINAPI",IFERROR(INDEX(SINAPI!$C:$C,MATCH($C138,SINAPI!$A:$A,0)),""),IF(B138="COMPOSIÇÃO",IFERROR(INDEX(COMPOSIÇÃO!$D:$D,MATCH($C138,COMPOSIÇÃO!$A:$A,0)),""),"")) -> M | G138: 86 | H138: =IF(B138="SINAPI",IFERROR(INDEX(SINAPI!$D:$D,MATCH($C138,SINAPI!$A:$A,0)),0),IF(B138="COMPOSIÇÃO",IFERROR(INDEX(COMPOSIÇÃO!$G:$G,MATCH($C138,COMPOSIÇÃO!$A:$A,0)),0),0)) -> 111.28 | I138: 134.030709 | J138: 11526.64 | K138: =J138/$J$302 -> 0.01723408322
A139: 14.2 | B139: COMPOSIÇÃO | C139: IFMT 089.02.03.2020 | D139: =IF(B139="SINAPI",IFERROR(INDEX(SINAPI!$B:$B,MATCH($C139,SINAPI!$A:$A,0)),""),IF(B139="COMPOSIÇÃO",IFERROR(INDEX(COMPOSIÇÃO!$C:$C,MATCH($C139,COMPOSIÇÃO!$A:$A,0)),""),"")) -> PORTAO DE FERRO EM CHAPA GALVANIZADA PLANA 14 GSG | F139: =IF(B139="SINAPI",IFERROR(INDEX(SINAPI!$C:$C,MATCH($C139,SINAPI!$A:$A,0)),""),IF(B139="COMPOSIÇÃO",IFERROR(INDEX(COMPOSIÇÃO!$D:$D,MATCH($C139,COMPOSIÇÃO!$A:$A,0)),""),"")) -> M2 | G139: =4*1.8+1.2*1.8 -> 9.36 | H139: =IF(B139="SINAPI",IFERROR(INDEX(SINAPI!$D:$D,MATCH($C139,SINAPI!$A:$A,0)),0),IF(B139="COMPOSIÇÃO",IFERROR(INDEX(COMPOSIÇÃO!$G:$G,MATCH($C139,COMPOSIÇÃO!$A:$A,0)),0),0)) -> 286.0685 | I139: 344.5539529 | J139: 3225.02 | K139: =J139/$J$302 -> 0.004821896327
A140: 14.3 | B140: COTAÇÃO | C140: COT.15 | D140: =Cotação!C18 -> Kit Motor Automatizador Portão Deslizante Dz4 Bi-Turbo Rossi 220V | F140: Unid | G140: 1 | H140: =Cotação!K18 -> 764.92 | I140: 921.3045465 | J140: 921.3 | K140: =J140/$J$302 -> 0.001377483887
A141: 14.4 | B141: COMPOSIÇÃO | C141: IFMT 249.09.2020 | D141: =IF(B141="SINAPI",IFERROR(INDEX(SINAPI!$B:$B,MATCH($C141,SINAPI!$A:$A,0)),""),IF(B141="COMPOSIÇÃO",IFERROR(INDEX(COMPOSIÇÃO!$C:$C,MATCH($C141,COMPOSIÇÃO!$A:$A,0)),""),"")) -> PINTURA ESMALTE ALTO BRILHO, DUAS DEMAOS, SOBRE SUPERFICIE METALICA | F141: =IF(B141="SINAPI",IFERROR(INDEX(SINAPI!$C:$C,MATCH($C141,SINAPI!$A:$A,0)),""),IF(B141="COMPOSIÇÃO",IFERROR(INDEX(COMPOSIÇÃO!$D:$D,MATCH($C141,COMPOSIÇÃO!$A:$A,0)),""),"")) -> M2 | G141: =4*1.8+1.2*1.8 -> 9.36 | H141: =IF(B141="SINAPI",IFERROR(INDEX(SINAPI!$D:$D,MATCH($C141,SINAPI!$A:$A,0)),0),IF(B141="COMPOSIÇÃO",IFERROR(INDEX(COMPOSIÇÃO!$G:$G,MATCH($C141,COMPOSIÇÃO!$A:$A,0)),0),0)) -> 24.6681 | I141: 29.71138509 | J141: 278.1 | K141: =J141/$J$302 -> 0.0004158018768
A142: 14.5 | B142: COMPOSIÇÃO | C142: IFMT 077.05.2019 | D142: =IF(B142="SINAPI",IFERROR(INDEX(SINAPI!$B:$B,MATCH($C142,SINAPI!$A:$A,0)),""),IF(B142="COMPOSIÇÃO",IFERROR(INDEX(COMPOSIÇÃO!$C:$C,MATCH($C142,COMPOSIÇÃO!$A:$A,0)),""),"")) -> GRADE DE FERRO EM BARRA CHATA 3/16" | F142: =IF(B142="SINAPI",IFERROR(INDEX(SINAPI!$C:$C,MATCH($C142,SINAPI!$A:$A,0)),""),IF(B142="COMPOSIÇÃO",IFERROR(INDEX(COMPOSIÇÃO!$D:$D,MATCH($C142,COMPOSIÇÃO!$A:$A,0)),""),"")) -> M² | G142: 30 | H142: =IF(B142="SINAPI",IFERROR(INDEX(SINAPI!$D:$D,MATCH($C142,SINAPI!$A:$A,0)),0),IF(B142="COMPOSIÇÃO",IFERROR(INDEX(COMPOSIÇÃO!$G:$G,MATCH($C142,COMPOSIÇÃO!$A:$A,0)),0),0)) -> 1030.973 | I142: 1241.750918 | J142: 37252.53 | K142: =J142/$J$302 -> 0.05569820887
A143: 15.0 | D143: INSTALAÇÕES ELÉTRICAS | J143: =SUM(J144:J296) -> 147275.94 | K143: =J143/$J$302 -> 0.2201999721
A144: 15.1 | B144: SINAPI | C144: 95801 | D144: =IF(B144="SINAPI",IFERROR(INDEX(SINAPI!$B:$B,MATCH($C144,SINAPI!$A:$A,0)),""),IF(B144="COMPOSIÇÃO",IFERROR(INDEX(COMPOSIÇÃO!$C:$C,MATCH($C144,COMPOSIÇÃO!$A:$A,0)),""),"")) -> CONDULETE DE ALUMÍNIO, TIPO X, PARA ELETRODUTO DE AÇO GALVANIZADO DN 20 MM (3/4''), APARENTE - FORNECIMENTO E INSTALAÇÃO. AF_11/2016_P | F144: =IF(B144="SINAPI",IFERROR(INDEX(SINAPI!$C:$C,MATCH($C144,SINAPI!$A:$A,0)),""),IF(B144="COMPOSIÇÃO",IFERROR(INDEX(COMPOSIÇÃO!$D:$D,MATCH($C144,COMPOSIÇÃO!$A:$A,0)),""),"")) -> UN | G144: 239 | H144: =IF(B144="SINAPI",IFERROR(INDEX(SINAPI!$D:$D,MATCH($C144,SINAPI!$A:$A,0)),0),IF(B144="COMPOSIÇÃO",IFERROR(INDEX(COMPOSIÇÃO!$G:$G,MATCH($C144,COMPOSIÇÃO!$A:$A,0)),0),0)) -> 29.52 | I144: =H144*(1+$J$9) -> 35.55523481 | J144: =ROUND(G144*I144,2) -> 8497.7 | K144: =J144/$J$302 -> 0.01270535638
A145: 15.2 | B145: SINAPI | C145: 95802 | D145: =IF(B145="SINAPI",IFERROR(INDEX(SINAPI!$B:$B,MATCH($C145,SINAPI!$A:$A,0)),""),IF(B145="COMPOSIÇÃO",IFERROR(INDEX(COMPOSIÇÃO!$C:$C,MATCH($C145,COMPOSIÇÃO!$A:$A,0)),""),"")) -> CONDULETE DE ALUMÍNIO, TIPO X, PARA ELETRODUTO DE AÇO GALVANIZADO DN 25 MM (1''), APARENTE - FORNECIMENTO E INSTALAÇÃO. AF_11/2016_P | F145: =IF(B145="SINAPI",IFERROR(INDEX(SINAPI!$C:$C,MATCH($C145,SINAPI!$A:$A,0)),""),IF(B145="COMPOSIÇÃO",IFERROR(INDEX(COMPOSIÇÃO!$D:$D,MATCH($C145,COMPOSIÇÃO!$A:$A,0)),""),"")) -> UN | G145: 30 | H145: =IF(B145="SINAPI",IFERROR(INDEX(SINAPI!$D:$D,MATCH($C145,SINAPI!$A:$A,0)),0),IF(B145="COMPOSIÇÃO",IFERROR(INDEX(COMPOSIÇÃO!$G:$G,MATCH($C145,COMPOSIÇÃO!$A:$A,0)),0),0)) -> 32.9 | I145: 39.62626102 | J145: 1188.79 | K145: =J145/$J$302 -> 0.001777422197
A146: 15.3 | B146: SINAPI | C146: 95803 | D146: =IF(B146="SINAPI",IFERROR(INDEX(SINAPI!$B:$B,MATCH($C146,SINAPI!$A:$A,0)),""),IF(B146="COMPOSIÇÃO",IFERROR(INDEX(COMPOSIÇÃO!$C:$C,MATCH($C146,COMPOSIÇÃO!$A:$A,0)),""),"")) -> CONDULETE DE ALUMÍNIO, TIPO X, PARA ELETRODUTO DE AÇO GALVANIZADO DN 32 MM (1 1/4''), APARENTE - FORNECIMENTO E INSTALAÇÃO. AF_11/2016_P | F146: =IF(B146="SINAPI",IFERROR(INDEX(SINAPI!$C:$C,MATCH($C146,SINAPI!$A:$A,0)),""),IF(B146="COMPOSIÇÃO",IFERROR(INDEX(COMPOSIÇÃO!$D:$D,MATCH($C146,COMPOSIÇÃO!$A:$A,0)),""),"")) -> UN | G146: 11 | H146: =IF(B146="SINAPI",IFERROR(INDEX(SINAPI!$D:$D,MATCH($C146,SINAPI!$A:$A,0)),0),IF(B146="COMPOSIÇÃO",IFERROR(INDEX(COMPOSIÇÃO!$G:$G,MATCH($C146,COMPOSIÇÃO!$A:$A,0)),0),0)) -> 43.32 | I146: 52.17658442 | J146: 573.94 | K146: =J146/$J$302 -> 0.0008581277567
A147: 15.4 | B147: COMPOSIÇÃO | C147: IFMT 194.02.2020 | D147: =IF(B147="SINAPI",IFERROR(INDEX(SINAPI!$B:$B,MATCH($C147,SINAPI!$A:$A,0)),""),IF(B147="COMPOSIÇÃO",IFERROR(INDEX(COMPOSIÇÃO!$C:$C,MATCH($C147,COMPOSIÇÃO!$A:$A,0)),""),"")) -> CONDULETE MULTIPLO DE ALUMÍNIO TIPO X 1.1/2" - FORNECIMENTO E INSTALAÇÃO | F147: =IF(B147="SINAPI",IFERROR(INDEX(SINAPI!$C:$C,MATCH($C147,SINAPI!$A:$A,0)),""),IF(B147="COMPOSIÇÃO",IFERROR(INDEX(COMPOSIÇÃO!$D:$D,MATCH($C147,COMPOSIÇÃO!$A:$A,0)),""),"")) -> UN | G147: 7 | H147: =IF(B147="SINAPI",IFERROR(INDEX(SINAPI!$D:$D,MATCH($C147,SINAPI!$A:$A,0)),0),IF(B147="COMPOSIÇÃO",IFERROR(INDEX(COMPOSIÇÃO!$G:$G,MATCH($C147,COMPOSIÇÃO!$A:$A,0)),0),0)) -> 53.1891 | I147: 64.06337873 | J147: 448.44 | K147: =J147/$J$302 -> 0.0006704861331
A148: 15.5 | B148: COMPOSIÇÃO | C148: IFMT 126.01.2020 | D148: =IF(B148="SINAPI",IFERROR(INDEX(SINAPI!$B:$B,MATCH($C148,SINAPI!$A:$A,0)),""),IF(B148="COMPOSIÇÃO",IFERROR(INDEX(COMPOSIÇÃO!$C:$C,MATCH($C148,COMPOSIÇÃO!$A:$A,0)),""),"")) -> CURVA 90 GRAUS PARA ELETRODUTO, AÇO GALVANIZADO, DN 20 MM (3/4''), APARENTE, INSTALADA EM PAREDE - FORNECIMENTO E INSTALAÇÃO. | F148: =IF(B148="SINAPI",IFERROR(INDEX(SINAPI!$C:$C,MATCH($C148,SINAPI!$A:$A,0)),""),IF(B148="COMPOSIÇÃO",IFERROR(INDEX(COMPOSIÇÃO!$D:$D,MATCH($C148,COMPOSIÇÃO!$A:$A,0)),""),"")) -> UN | G148: 98 | H148: =IF(B148="SINAPI",IFERROR(INDEX(SINAPI!$D:$D,MATCH($C148,SINAPI!$A:$A,0)),0),IF(B148="COMPOSIÇÃO",IFERROR(INDEX(COMPOSIÇÃO!$G:$G,MATCH($C148,COMPOSIÇÃO!$A:$A,0)),0),0)) -> 10.602972 | I148: 12.77070322 | J148: 1251.53 | K148: =J148/$J$302 -> 0.001871228058
A149: 15.6 | B149: COMPOSIÇÃO | C149: IFMT 125.01.2020 | D149: =IF(B149="SINAPI",IFERROR(INDEX(SINAPI!$B:$B,MATCH($C149,SINAPI!$A:$A,0)),""),IF(B149="COMPOSIÇÃO",IFERROR(INDEX(COMPOSIÇÃO!$C:$C,MATCH($C149,COMPOSIÇÃO!$A:$A,0)),""),"")) -> CURVA 90 GRAUS PARA ELETRODUTO, AÇO GALVANIZADO, DN 25 MM (1''), APARENTE, INSTALADA EM PAREDE - FORNECIMENTO E INSTALAÇÃO. | F149: =IF(B149="SINAPI",IFERROR(INDEX(SINAPI!$C:$C,MATCH($C149,SINAPI!$A:$A,0)),""),IF(B149="COMPOSIÇÃO",IFERROR(INDEX(COMPOSIÇÃO!$D:$D,MATCH($C149,COMPOSIÇÃO!$A:$A,0)),""),"")) -> UN | G149: 20 | H149: =IF(B149="SINAPI",IFERROR(INDEX(SINAPI!$D:$D,MATCH($C149,SINAPI!$A:$A,0)),0),IF(B149="COMPOSIÇÃO",IFERROR(INDEX(COMPOSIÇÃO!$G:$G,MATCH($C149,COMPOSIÇÃO!$A:$A,0)),0),0)) -> 12.771988 | I149: 15.38316505 | J149: 307.66 | K149: =J149/$J$302 -> 0.0004599985811
A150: 15.7 | B150: COMPOSIÇÃO | C150: IFMT 127.01.2020 | D150: =IF(B150="SINAPI",IFERROR(INDEX(SINAPI!$B:$B,MATCH($C150,SINAPI!$A:$A,0)),""),IF(B150="COMPOSIÇÃO",IFERROR(INDEX(COMPOSIÇÃO!$C:$C,MATCH($C150,COMPOSIÇÃO!$A:$A,0)),""),"")) -> CURVA 90 GRAUS PARA ELETRODUTO, AÇO GALVANIZADO, DN 32 MM (1 1/4''), APARENTE, INSTALADA EM PAREDE - FORNECIMENTO E INSTALAÇÃO. | F150: =IF(B150="SINAPI",IFERROR(INDEX(SINAPI!$C:$C,MATCH($C150,SINAPI!$A:$A,0)),""),IF(B150="COMPOSIÇÃO",IFERROR(INDEX(COMPOSIÇÃO!$D:$D,MATCH($C150,COMPOSIÇÃO!$A:$A,0)),""),"")) -> UN | G150: 6 | H150: =IF(B150="SINAPI",IFERROR(INDEX(SINAPI!$D:$D,MATCH($C150,SINAPI!$A:$A,0)),0),IF(B150="COMPOSIÇÃO",IFERROR(INDEX(COMPOSIÇÃO!$G:$G,MATCH($C150,COMPOSIÇÃO!$A:$A,0)),0),0)) -> 20.682792 | I150: 24.91129831 | J150: 149.47 | K150: =J150/$J$302 -> 0.0002234804262
A151: 15.8 | B151: COMPOSIÇÃO | C151: IFMT 173.02.2020 | D151: =IF(B151="SINAPI",IFERROR(INDEX(SINAPI!$B:$B,MATCH($C151,SINAPI!$A:$A,0)),""),IF(B151="COMPOSIÇÃO",IFERROR(INDEX(COMPOSIÇÃO!$C:$C,MATCH($C151,COMPOSIÇÃO!$A:$A,0)),""),"")) -> TOMADA ALTA PARA INSTALAÇÃO EM CONDULETE (1 MÓDULO), 2P+T 10 A, INCLUINDO SUPORTE E PLACA - FORNECIMENTO E INSTALAÇÃO. | F151: =IF(B151="SINAPI",IFERROR(INDEX(SINAPI!$C:$C,MATCH($C151,SINAPI!$A:$A,0)),""),IF(B151="COMPOSIÇÃO",IFERROR(INDEX(COMPOSIÇÃO!$D:$D,MATCH($C151,COMPOSIÇÃO!$A:$A,0)),""),"")) -> UN | G151: 21 | H151: =IF(B151="SINAPI",IFERROR(INDEX(SINAPI!$D:$D,MATCH($C151,SINAPI!$A:$A,0)),0),IF(B151="COMPOSIÇÃO",IFERROR(INDEX(COMPOSIÇÃO!$G:$G,MATCH($C151,COMPOSIÇÃO!$A:$A,0)),0),0)) -> 27.88456 | I151: 33.58543626 | J151: 705.29 | K151: =J151/$J$302 -> 0.001054516022
A152: 15.9 | B152: COMPOSIÇÃO | C152: IFMT 177.02.2020 | D152: =IF(B152="SINAPI",IFERROR(INDEX(SINAPI!$B:$B,MATCH($C152,SINAPI!$A:$A,0)),""),IF(B152="COMPOSIÇÃO",IFERROR(INDEX(COMPOSIÇÃO!$C:$C,MATCH($C152,COMPOSIÇÃO!$A:$A,0)),""),"")) -> TOMADA ALTA PARA INSTALAÇÃO EM CONDULETE (1 MÓDULO), 2P+T 20 A, INCLUINDO SUPORTE E PLACA - FORNECIMENTO E INSTALAÇÃO. | F152: =IF(B152="SINAPI",IFERROR(INDEX(SINAPI!$C:$C,MATCH($C152,SINAPI!$A:$A,0)),""),IF(B152="COMPOSIÇÃO",IFERROR(INDEX(COMPOSIÇÃO!$D:$D,MATCH($C152,COMPOSIÇÃO!$A:$A,0)),""),"")) -> UN | G152: 7 | H152: =IF(B152="SINAPI",IFERROR(INDEX(SINAPI!$D:$D,MATCH($C152,SINAPI!$A:$A,0)),0),IF(B152="COMPOSIÇÃO",IFERROR(INDEX(COMPOSIÇÃO!$G:$G,MATCH($C152,COMPOSIÇÃO!$A:$A,0)),0),0)) -> 29.18456 | I152: 35.15121557 | J152: 246.06 | K152: =J152/$J$302 -> 0.0003678971945
A153: 15.10 | B153: COMPOSIÇÃO | C153: IFMT 175.02.2020 | D153: =IF(B153="SINAPI",IFERROR(INDEX(SINAPI!$B:$B,MATCH($C153,SINAPI!$A:$A,0)),""),IF(B153="COMPOSIÇÃO",IFERROR(INDEX(COMPOSIÇÃO!$C:$C,MATCH($C153,COMPOSIÇÃO!$A:$A,0)),""),"")) -> TOMADA MÉDIA PARA INSTALAÇÃO EM CONDULETE (1 MÓDULO), 2P+T 10 A, INCLUINDO SUPORTE E PLACA - FORNECIMENTO E INSTALAÇÃO. | F153: =IF(B153="SINAPI",IFERROR(INDEX(SINAPI!$C:$C,MATCH($C153,SINAPI!$A:$A,0)),""),IF(B153="COMPOSIÇÃO",IFERROR(INDEX(COMPOSIÇÃO!$D:$D,MATCH($C153,COMPOSIÇÃO!$A:$A,0)),""),"")) -> UN | G153: 4 | H153: =IF(B153="SINAPI",IFERROR(INDEX(SINAPI!$D:$D,MATCH($C153,SINAPI!$A:$A,0)),0),IF(B153="COMPOSIÇÃO",IFERROR(INDEX(COMPOSIÇÃO!$G:$G,MATCH($C153,COMPOSIÇÃO!$A:$A,0)),0),0)) -> 21.04888 | I153: 25.3522314 | J153: 101.41 | K153: =J153/$J$302 -> 0.0001516234028
A154: 15.11 | B154: COMPOSIÇÃO | C154: IFMT 179.02.2020 | D154: =IF(B154="SINAPI",IFERROR(INDEX(SINAPI!$B:$B,MATCH($C154,SINAPI!$A:$A,0)),""),IF(B154="COMPOSIÇÃO",IFERROR(INDEX(COMPOSIÇÃO!$C:$C,MATCH($C154,COMPOSIÇÃO!$A:$A,0)),""),"")) -> TOMADA MÉDIA PARA INSTALAÇÃO EM CONDULETE (2 MÓDULOS), 2P+T 10 A, INCLUINDO SUPORTE E PLACA - FORNECIMENTO E INSTALAÇÃO. | F154: =IF(B154="SINAPI",IFERROR(INDEX(SINAPI!$C:$C,MATCH($C154,SINAPI!$A:$A,0)),""),IF(B154="COMPOSIÇÃO",IFERROR(INDEX(COMPOSIÇÃO!$D:$D,MATCH($C154,COMPOSIÇÃO!$A:$A,0)),""),"")) -> UN | G154: 18 | H154: =IF(B154="SINAPI",IFERROR(INDEX(SINAPI!$D:$D,MATCH($C154,SINAPI!$A:$A,0)),0),IF(B154="COMPOSIÇÃO",IFERROR(INDEX(COMPOSIÇÃO!$G:$G,MATCH($C154,COMPOSIÇÃO!$A:$A,0)),0),0)) -> 34.6998 | I154: 41.79402226 | J154: 752.29 | K154: =J154/$J$302 -> 0.001124788184
A155: 15.12 | B155: COMPOSIÇÃO | C155: IFMT 181.02.2020 | D155: =IF(B155="SINAPI",IFERROR(INDEX(SINAPI!$B:$B,MATCH($C155,SINAPI!$A:$A,0)),""),IF(B155="COMPOSIÇÃO",IFERROR(INDEX(COMPOSIÇÃO!$C:$C,MATCH($C155,COMPOSIÇÃO!$A:$A,0)),""),"")) -> TOMADA BAIXA PARA INSTALAÇÃO EM CONDULETE (2 MÓDULOS), 2P+T 10 A, INCLUINDO SUPORTE E PLACA - FORNECIMENTO E INSTALAÇÃO. | F155: =IF(B155="SINAPI",IFERROR(INDEX(SINAPI!$C:$C,MATCH($C155,SINAPI!$A:$A,0)),""),IF(B155="COMPOSIÇÃO",IFERROR(INDEX(COMPOSIÇÃO!$D:$D,MATCH($C155,COMPOSIÇÃO!$A:$A,0)),""),"")) -> UN | G155: 58 | H155: =IF(B155="SINAPI",IFERROR(INDEX(SINAPI!$D:$D,MATCH($C155,SINAPI!$A:$A,0)),0),IF(B155="COMPOSIÇÃO",IFERROR(INDEX(COMPOSIÇÃO!$G:$G,MATCH($C155,COMPOSIÇÃO!$A:$A,0)),0),0)) -> 29.39124 | I155: 35.4001504 | J155: 2053.21 | K155: =J155/$J$302 -> 0.003069861817
A156: 15.13 | B156: COMPOSIÇÃO | C156: IFMT 185.02.2020 | D156: =IF(B156="SINAPI",IFERROR(INDEX(SINAPI!$B:$B,MATCH($C156,SINAPI!$A:$A,0)),""),IF(B156="COMPOSIÇÃO",IFERROR(INDEX(COMPOSIÇÃO!$C:$C,MATCH($C156,COMPOSIÇÃO!$A:$A,0)),""),"")) -> TOMADA INDUSTRIAL 16A SOBREPOR 3P+T VERMELHA - FORNECIMENTO E INSTALAÇÃO | F156: =IF(B156="SINAPI",IFERROR(INDEX(SINAPI!$C:$C,MATCH($C156,SINAPI!$A:$A,0)),""),IF(B156="COMPOSIÇÃO",IFERROR(INDEX(COMPOSIÇÃO!$D:$D,MATCH($C156,COMPOSIÇÃO!$A:$A,0)),""),"")) -> UN | G156: 10 | H156: =IF(B156="SINAPI",IFERROR(INDEX(SINAPI!$D:$D,MATCH($C156,SINAPI!$A:$A,0)),0),IF(B156="COMPOSIÇÃO",IFERROR(INDEX(COMPOSIÇÃO!$G:$G,MATCH($C156,COMPOSIÇÃO!$A:$A,0)),0),0)) -> 43.032 | I156: 51.82970408 | J156: 518.3 | K156: =J156/$J$302 -> 0.0007749374783
A157: 15.14 | B157: COMPOSIÇÃO | C157: IFMT 186.02.2020 | D157: =IF(B157="SINAPI",IFERROR(INDEX(SINAPI!$B:$B,MATCH($C157,SINAPI!$A:$A,0)),""),IF(B157="COMPOSIÇÃO",IFERROR(INDEX(COMPOSIÇÃO!$C:$C,MATCH($C157,COMPOSIÇÃO!$A:$A,0)),""),"")) -> TOMADA INDUSTRIAL 32A SOBREPOR 3P+T AZUL - FORNECIMENTO E INSTALAÇÃO | F157: =IF(B157="SINAPI",IFERROR(INDEX(SINAPI!$C:$C,MATCH($C157,SINAPI!$A:$A,0)),""),IF(B157="COMPOSIÇÃO",IFERROR(INDEX(COMPOSIÇÃO!$D:$D,MATCH($C157,COMPOSIÇÃO!$A:$A,0)),""),"")) -> UNID. | G157: 10 | H157: =IF(B157="SINAPI",IFERROR(INDEX(SINAPI!$D:$D,MATCH($C157,SINAPI!$A:$A,0)),0),IF(B157="COMPOSIÇÃO",IFERROR(INDEX(COMPOSIÇÃO!$G:$G,MATCH($C157,COMPOSIÇÃO!$A:$A,0)),0),0)) -> 50.432 | I157: 60.7426017 | J157: 607.43 | K157: =J157/$J$302 -> 0.0009082004099
A158: 15.15 | B158: SINAPI | C158: 91955 | D158: =IF(B158="SINAPI",IFERROR(INDEX(SINAPI!$B:$B,MATCH($C158,SINAPI!$A:$A,0)),""),IF(B158="COMPOSIÇÃO",IFERROR(INDEX(COMPOSIÇÃO!$C:$C,MATCH($C158,COMPOSIÇÃO!$A:$A,0)),""),"")) -> INTERRUPTOR PARALELO (1 MÓDULO), 10A/250V, INCLUINDO SUPORTE E PLACA - FORNECIMENTO E INSTALAÇÃO. AF_12/2015 | F158: =IF(B158="SINAPI",IFERROR(INDEX(SINAPI!$C:$C,MATCH($C158,SINAPI!$A:$A,0)),""),IF(B158="COMPOSIÇÃO",IFERROR(INDEX(COMPOSIÇÃO!$D:$D,MATCH($C158,COMPOSIÇÃO!$A:$A,0)),""),"")) -> UN | G158: 6 | H158: =IF(B158="SINAPI",IFERROR(INDEX(SINAPI!$D:$D,MATCH($C158,SINAPI!$A:$A,0)),0),IF(B158="COMPOSIÇÃO",IFERROR(INDEX(COMPOSIÇÃO!$G:$G,MATCH($C158,COMPOSIÇÃO!$A:$A,0)),0),0)) -> 21.71 | I158: 26.14851449 | J158: 156.89 | K158: =J158/$J$302 -> 0.0002345744568
A159: 15.16 | B159: SINAPI | C159: 91959 | D159: =IF(B159="SINAPI",IFERROR(INDEX(SINAPI!$B:$B,MATCH($C159,SINAPI!$A:$A,0)),""),IF(B159="COMPOSIÇÃO",IFERROR(INDEX(COMPOSIÇÃO!$C:$C,MATCH($C159,COMPOSIÇÃO!$A:$A,0)),""),"")) -> INTERRUPTOR SIMPLES (2 MÓDULOS), 10A/250V, INCLUINDO SUPORTE E PLACA - FORNECIMENTO E INSTALAÇÃO. AF_12/2015 | F159: =IF(B159="SINAPI",IFERROR(INDEX(SINAPI!$C:$C,MATCH($C159,SINAPI!$A:$A,0)),""),IF(B159="COMPOSIÇÃO",IFERROR(INDEX(COMPOSIÇÃO!$D:$D,MATCH($C159,COMPOSIÇÃO!$A:$A,0)),""),"")) -> UN | G159: 2 | H159: =IF(B159="SINAPI",IFERROR(INDEX(SINAPI!$D:$D,MATCH($C159,SINAPI!$A:$A,0)),0),IF(B159="COMPOSIÇÃO",IFERROR(INDEX(COMPOSIÇÃO!$G:$G,MATCH($C159,COMPOSIÇÃO!$A:$A,0)),0),0)) -> 27.55 | I159: 33.18247694 | J159: 66.36 | K159: =J159/$J$302 -> 9.921831191e-05
A160: 15.17 | B160: SINAPI | C160: 91925 | D160: =IF(B160="SINAPI",IFERROR(INDEX(SINAPI!$B:$B,MATCH($C160,SINAPI!$A:$A,0)),""),IF(B160="COMPOSIÇÃO",IFERROR(INDEX(COMPOSIÇÃO!$C:$C,MATCH($C160,COMPOSIÇÃO!$A:$A,0)),""),"")) -> CABO DE COBRE FLEXÍVEL ISOLADO, 1,5 MM², ANTI-CHAMA 0,6/1,0 KV, PARA CIRCUITOS TERMINAIS - FORNECIMENTO E INSTALAÇÃO. AF_12/2015 | E160: VERMELHO | F160: =IF(B160="SINAPI",IFERROR(INDEX(SINAPI!$C:$C,MATCH($C160,SINAPI!$A:$A,0)),""),IF(B160="COMPOSIÇÃO",IFERROR(INDEX(COMPOSIÇÃO!$D:$D,MATCH($C160,COMPOSIÇÃO!$A:$A,0)),""),"")) -> M | G160: 105.4 | H160: =IF(B160="SINAPI",IFERROR(INDEX(SINAPI!$D:$D,MATCH($C160,SINAPI!$A:$A,0)),0),IF(B160="COMPOSIÇÃO",IFERROR(INDEX(COMPOSIÇÃO!$G:$G,MATCH($C160,COMPOSIÇÃO!$A:$A,0)),0),0)) -> 2.81 | I160: 3.384492203 | J160: 356.73 | K160: =J160/$J$302 -> 0.0005333657084
A161: 15.18 | B161: SINAPI | C161: 91925 | D161: =IF(B161="SINAPI",IFERROR(INDEX(SINAPI!$B:$B,MATCH($C161,SINAPI!$A:$A,0)),""),IF(B161="COMPOSIÇÃO",IFERROR(INDEX(COMPOSIÇÃO!$C:$C,MATCH($C161,COMPOSIÇÃO!$A:$A,0)),""),"")) -> CABO DE COBRE FLEXÍVEL ISOLADO, 1,5 MM², ANTI-CHAMA 0,6/1,0 KV, PARA CIRCUITOS TERMINAIS - FORNECIMENTO E INSTALAÇÃO. AF_12/2015 | E161: BRANCO | F161: =IF(B161="SINAPI",IFERROR(INDEX(SINAPI!$C:$C,MATCH($C161,SINAPI!$A:$A,0)),""),IF(B161="COMPOSIÇÃO",IFERROR(INDEX(COMPOSIÇÃO!$D:$D,MATCH($C161,COMPOSIÇÃO!$A:$A,0)),""),"")) -> M | G161: 67.4 | H161: =IF(B161="SINAPI",IFERROR(INDEX(SINAPI!$D:$D,MATCH($C161,SINAPI!$A:$A,0)),0),IF(B161="COMPOSIÇÃO",IFERROR(INDEX(COMPOSIÇÃO!$G:$G,MATCH($C161,COMPOSIÇÃO!$A:$A,0)),0),0)) -> 2.81 | I161: 3.384492203 | J161: 228.11 | K161: =J161/$J$302 -> 0.0003410592093
A162: 15.19 | B162: SINAPI | C162: 91925 | D162: =IF(B162="SINAPI",IFERROR(INDEX(SINAPI!$B:$B,MATCH($C162,SINAPI!$A:$A,0)),""),IF(B162="COMPOSIÇÃO",IFERROR(INDEX(COMPOSIÇÃO!$C:$C,MATCH($C162,COMPOSIÇÃO!$A:$A,0)),""),"")) -> CABO DE COBRE FLEXÍVEL ISOLADO, 1,5 MM², ANTI-CHAMA 0,6/1,0 KV, PARA CIRCUITOS TERMINAIS - FORNECIMENTO E INSTALAÇÃO. AF_12/2015 | E162: PRETO | F162: =IF(B162="SINAPI",IFERROR(INDEX(SINAPI!$C:$C,MATCH($C162,SINAPI!$A:$A,0)),""),IF(B162="COMPOSIÇÃO",IFERROR(INDEX(COMPOSIÇÃO!$D:$D,MATCH($C162,COMPOSIÇÃO!$A:$A,0)),""),"")) -> M | G162: 76.05 | H162: =IF(B162="SINAPI",IFERROR(INDEX(SINAPI!$D:$D,MATCH($C162,SINAPI!$A:$A,0)),0),IF(B162="COMPOSIÇÃO",IFERROR(INDEX(COMPOSIÇÃO!$G:$G,MATCH($C162,COMPOSIÇÃO!$A:$A,0)),0),0)) -> 2.81 | I162: 3.384492203 | J162: 257.39 | K162: =J162/$J$302 -> 0.000384837271
A163: 15.20 | B163: SINAPI | C163: 91925 | D163: =IF(B163="SINAPI",IFERROR(INDEX(SINAPI!$B:$B,MATCH($C163,SINAPI!$A:$A,0)),""),IF(B163="COMPOSIÇÃO",IFERROR(INDEX(COMPOSIÇÃO!$C:$C,MATCH($C163,COMPOSIÇÃO!$A:$A,0)),""),"")) -> CABO DE COBRE FLEXÍVEL ISOLADO, 1,5 MM², ANTI-CHAMA 0,6/1,0 KV, PARA CIRCUITOS TERMINAIS - FORNECIMENTO E INSTALAÇÃO. AF_12/2015 | E163: AZUL CLARO | F163: =IF(B163="SINAPI",IFERROR(INDEX(SINAPI!$C:$C,MATCH($C163,SINAPI!$A:$A,0)),""),IF(B163="COMPOSIÇÃO",IFERROR(INDEX(COMPOSIÇÃO!$D:$D,MATCH($C163,COMPOSIÇÃO!$A:$A,0)),""),"")) -> M | G163: 353 | H163: =IF(B163="SINAPI",IFERROR(INDEX(SINAPI!$D:$D,MATCH($C163,SINAPI!$A:$A,0)),0),IF(B163="COMPOSIÇÃO",IFERROR(INDEX(COMPOSIÇÃO!$G:$G,MATCH($C163,COMPOSIÇÃO!$A:$A,0)),0),0)) -> 2.81 | I163: 3.384492203 | J163: 1194.73 | K163: =J163/$J$302 -> 0.001786303402
A164: 15.21 | B164: SINAPI | C164: 91925 | D164: =IF(B164="SINAPI",IFERROR(INDEX(SINAPI!$B:$B,MATCH($C164,SINAPI!$A:$A,0)),""),IF(B164="COMPOSIÇÃO",IFERROR(INDEX(COMPOSIÇÃO!$C:$C,MATCH($C164,COMPOSIÇÃO!$A:$A,0)),""),"")) -> CABO DE COBRE FLEXÍVEL ISOLADO, 1,5 MM², ANTI-CHAMA 0,6/1,0 KV, PARA CIRCUITOS TERMINAIS - FORNECIMENTO E INSTALAÇÃO. AF_12/2015 | E164: VERDE | F164: =IF(B164="SINAPI",IFERROR(INDEX(SINAPI!$C:$C,MATCH($C164,SINAPI!$A:$A,0)),""),IF(B164="COMPOSIÇÃO",IFERROR(INDEX(COMPOSIÇÃO!$D:$D,MATCH($C164,COMPOSIÇÃO!$A:$A,0)),""),"")) -> M | G164: 62.8 | H164: =IF(B164="SINAPI",IFERROR(INDEX(SINAPI!$D:$D,MATCH($C164,SINAPI!$A:$A,0)),0),IF(B164="COMPOSIÇÃO",IFERROR(INDEX(COMPOSIÇÃO!$G:$G,MATCH($C164,COMPOSIÇÃO!$A:$A,0)),0),0)) -> 2.81 | I164: 3.384492203 | J164: 212.55 | K164: =J164/$J$302 -> 0.0003177946383
A165: 15.22 | B165: SINAPI | C165: 91925 | D165: =IF(B165="SINAPI",IFERROR(INDEX(SINAPI!$B:$B,MATCH($C165,SINAPI!$A:$A,0)),""),IF(B165="COMPOSIÇÃO",IFERROR(INDEX(COMPOSIÇÃO!$C:$C,MATCH($C165,COMPOSIÇÃO!$A:$A,0)),""),"")) -> CABO DE COBRE FLEXÍVEL ISOLADO, 1,5 MM², ANTI-CHAMA 0,6/1,0 KV, PARA CIRCUITOS TERMINAIS - FORNECIMENTO E INSTALAÇÃO. AF_12/2015 | E165: AMARELO | F165: =IF(B165="SINAPI",IFERROR(INDEX(SINAPI!$C:$C,MATCH($C165,SINAPI!$A:$A,0)),""),IF(B165="COMPOSIÇÃO",IFERROR(INDEX(COMPOSIÇÃO!$D:$D,MATCH($C165,COMPOSIÇÃO!$A:$A,0)),""),"")) -> M | G165: 467.1 | H165: =IF(B165="SINAPI",IFERROR(INDEX(SINAPI!$D:$D,MATCH($C165,SINAPI!$A:$A,0)),0),IF(B165="COMPOSIÇÃO",IFERROR(INDEX(COMPOSIÇÃO!$G:$G,MATCH($C165,COMPOSIÇÃO!$A:$A,0)),0),0)) -> 2.81 | I165: 3.384492203 | J165: 1580.9 | K165: =J165/$J$302 -> 0.002363686397
A166: 15.23 | B166: SINAPI | C166: 91927 | D166: =IF(B166="SINAPI",IFERROR(INDEX(SINAPI!$B:$B,MATCH($C166,SINAPI!$A:$A,0)),""),IF(B166="COMPOSIÇÃO",IFERROR(INDEX(COMPOSIÇÃO!$C:$C,MATCH($C166,COMPOSIÇÃO!$A:$A,0)),""),"")) -> CABO DE COBRE FLEXÍVEL ISOLADO, 2,5 MM², ANTI-CHAMA 0,6/1,0 KV, PARA CIRCUITOS TERMINAIS - FORNECIMENTO E INSTALAÇÃO. AF_12/2015 | E166: VERMELHO | F166: =IF(B166="SINAPI",IFERROR(INDEX(SINAPI!$C:$C,MATCH($C166,SINAPI!$A:$A,0)),""),IF(B166="COMPOSIÇÃO",IFERROR(INDEX(COMPOSIÇÃO!$D:$D,MATCH($C166,COMPOSIÇÃO!$A:$A,0)),""),"")) -> M | G166: 456.6 | H166: =IF(B166="SINAPI",IFERROR(INDEX(SINAPI!$D:$D,MATCH($C166,SINAPI!$A:$A,0)),0),IF(B166="COMPOSIÇÃO",IFERROR(INDEX(COMPOSIÇÃO!$G:$G,MATCH($C166,COMPOSIÇÃO!$A:$A,0)),0),0)) -> 3.76 | I166: 4.528715545 | J166: 2067.81 | K166: =J166/$J$302 -> 0.003091691042
A167: 15.24 | B167: SINAPI | C167: 91927 | D167: =IF(B167="SINAPI",IFERROR(INDEX(SINAPI!$B:$B,MATCH($C167,SINAPI!$A:$A,0)),""),IF(B167="COMPOSIÇÃO",IFERROR(INDEX(COMPOSIÇÃO!$C:$C,MATCH($C167,COMPOSIÇÃO!$A:$A,0)),""),"")) -> CABO DE COBRE FLEXÍVEL ISOLADO, 2,5 MM², ANTI-CHAMA 0,6/1,0 KV, PARA CIRCUITOS TERMINAIS - FORNECIMENTO E INSTALAÇÃO. AF_12/2015 | E167: BRANCO | F167: =IF(B167="SINAPI",IFERROR(INDEX(SINAPI!$C:$C,MATCH($C167,SINAPI!$A:$A,0)),""),IF(B167="COMPOSIÇÃO",IFERROR(INDEX(COMPOSIÇÃO!$D:$D,MATCH($C167,COMPOSIÇÃO!$A:$A,0)),""),"")) -> M | G167: 471.4 | H167: =IF(B167="SINAPI",IFERROR(INDEX(SINAPI!$D:$D,MATCH($C167,SINAPI!$A:$A,0)),0),IF(B167="COMPOSIÇÃO",IFERROR(INDEX(COMPOSIÇÃO!$G:$G,MATCH($C167,COMPOSIÇÃO!$A:$A,0)),0),0)) -> 3.76 | I167: 4.528715545 | J167: 2134.84 | K167: =J167/$J$302 -> 0.003191911106
A168: 15.25 | B168: SINAPI | C168: 91927 | D168: =IF(B168="SINAPI",IFERROR(INDEX(SINAPI!$B:$B,MATCH($C168,SINAPI!$A:$A,0)),""),IF(B168="COMPOSIÇÃO",IFERROR(INDEX(COMPOSIÇÃO!$C:$C,MATCH($C168,COMPOSIÇÃO!$A:$A,0)),""),"")) -> CABO DE COBRE FLEXÍVEL ISOLADO, 2,5 MM², ANTI-CHAMA 0,6/1,0 KV, PARA CIRCUITOS TERMINAIS - FORNECIMENTO E INSTALAÇÃO. AF_12/2015 | E168: PRETO | F168: =IF(B168="SINAPI",IFERROR(INDEX(SINAPI!$C:$C,MATCH($C168,SINAPI!$A:$A,0)),""),IF(B168="COMPOSIÇÃO",IFERROR(INDEX(COMPOSIÇÃO!$D:$D,MATCH($C168,COMPOSIÇÃO!$A:$A,0)),""),"")) -> M | G168: 508.5 | H168: =IF(B168="SINAPI",IFERROR(INDEX(SINAPI!$D:$D,MATCH($C168,SINAPI!$A:$A,0)),0),IF(B168="COMPOSIÇÃO",IFERROR(INDEX(COMPOSIÇÃO!$G:$G,MATCH($C168,COMPOSIÇÃO!$A:$A,0)),0),0)) -> 3.76 | I168: 4.528715545 | J168: 2302.85 | K168: =J168/$J$302 -> 0.003443111657
A169: 15.26 | B169: SINAPI | C169: 91927 | D169: =IF(B169="SINAPI",IFERROR(INDEX(SINAPI!$B:$B,MATCH($C169,SINAPI!$A:$A,0)),""),IF(B169="COMPOSIÇÃO",IFERROR(INDEX(COMPOSIÇÃO!$C:$C,MATCH($C169,COMPOSIÇÃO!$A:$A,0)),""),"")) -> CABO DE COBRE FLEXÍVEL ISOLADO, 2,5 MM², ANTI-CHAMA 0,6/1,0 KV, PARA CIRCUITOS TERMINAIS - FORNECIMENTO E INSTALAÇÃO. AF_12/2015 | E169: AZUL CLARO | F169: =IF(B169="SINAPI",IFERROR(INDEX(SINAPI!$C:$C,MATCH($C169,SINAPI!$A:$A,0)),""),IF(B169="COMPOSIÇÃO",IFERROR(INDEX(COMPOSIÇÃO!$D:$D,MATCH($C169,COMPOSIÇÃO!$A:$A,0)),""),"")) -> M | G169: 658.1 | H169: =IF(B169="SINAPI",IFERROR(INDEX(SINAPI!$D:$D,MATCH($C169,SINAPI!$A:$A,0)),0),IF(B169="COMPOSIÇÃO",IFERROR(INDEX(COMPOSIÇÃO!$G:$G,MATCH($C169,COMPOSIÇÃO!$A:$A,0)),0),0)) -> 3.76 | I169: 4.528715545 | J169: 2980.35 | K169: =J169/$J$302 -> 0.004456077394
A170: 15.27 | B170: SINAPI | C170: 91927 | D170: =IF(B170="SINAPI",IFERROR(INDEX(SINAPI!$B:$B,MATCH($C170,SINAPI!$A:$A,0)),""),IF(B170="COMPOSIÇÃO",IFERROR(INDEX(COMPOSIÇÃO!$C:$C,MATCH($C170,COMPOSIÇÃO!$A:$A,0)),""),"")) -> CABO DE COBRE FLEXÍVEL ISOLADO, 2,5 MM², ANTI-CHAMA 0,6/1,0 KV, PARA CIRCUITOS TERMINAIS - FORNECIMENTO E INSTALAÇÃO. AF_12/2015 | E170: VERDE | F170: =IF(B170="SINAPI",IFERROR(INDEX(SINAPI!$C:$C,MATCH($C170,SINAPI!$A:$A,0)),""),IF(B170="COMPOSIÇÃO",IFERROR(INDEX(COMPOSIÇÃO!$D:$D,MATCH($C170,COMPOSIÇÃO!$A:$A,0)),""),"")) -> M | G170: 940.6 | H170: =IF(B170="SINAPI",IFERROR(INDEX(SINAPI!$D:$D,MATCH($C170,SINAPI!$A:$A,0)),0),IF(B170="COMPOSIÇÃO",IFERROR(INDEX(COMPOSIÇÃO!$G:$G,MATCH($C170,COMPOSIÇÃO!$A:$A,0)),0),0)) -> 3.76 | I170: 4.528715545 | J170: 4259.71 | K170: =J170/$J$302 -> 0.006368915543
A171: 15.28 | B171: SINAPI | C171: 91929 | D171: =IF(B171="SINAPI",IFERROR(INDEX(SINAPI!$B:$B,MATCH($C171,SINAPI!$A:$A,0)),""),IF(B171="COMPOSIÇÃO",IFERROR(INDEX(COMPOSIÇÃO!$C:$C,MATCH($C171,COMPOSIÇÃO!$A:$A,0)),""),"")) -> CABO DE COBRE FLEXÍVEL ISOLADO, 4 MM², ANTI-CHAMA 0,6/1,0 KV, PARA CIRCUITOS TERMINAIS - FORNECIMENTO E INSTALAÇÃO. AF_12/2015 | E171: VERMELHO | F171: =IF(B171="SINAPI",IFERROR(INDEX(SINAPI!$C:$C,MATCH($C171,SINAPI!$A:$A,0)),""),IF(B171="COMPOSIÇÃO",IFERROR(INDEX(COMPOSIÇÃO!$D:$D,MATCH($C171,COMPOSIÇÃO!$A:$A,0)),""),"")) -> M | G171: 489.7 | H171: =IF(B171="SINAPI",IFERROR(INDEX(SINAPI!$D:$D,MATCH($C171,SINAPI!$A:$A,0)),0),IF(B171="COMPOSIÇÃO",IFERROR(INDEX(COMPOSIÇÃO!$G:$G,MATCH($C171,COMPOSIÇÃO!$A:$A,0)),0),0)) -> 5.28 | I171: 6.359472894 | J171: 3114.23 | K171: =J171/$J$302 -> 0.004656248395
A172: 15.29 | B172: SINAPI | C172: 91929 | D172: =IF(B172="SINAPI",IFERROR(INDEX(SINAPI!$B:$B,MATCH($C172,SINAPI!$A:$A,0)),""),IF(B172="COMPOSIÇÃO",IFERROR(INDEX(COMPOSIÇÃO!$C:$C,MATCH($C172,COMPOSIÇÃO!$A:$A,0)),""),"")) -> CABO DE COBRE FLEXÍVEL ISOLADO, 4 MM², ANTI-CHAMA 0,6/1,0 KV, PARA CIRCUITOS TERMINAIS - FORNECIMENTO E INSTALAÇÃO. AF_12/2015 | E172: BRANCO | F172: =IF(B172="SINAPI",IFERROR(INDEX(SINAPI!$C:$C,MATCH($C172,SINAPI!$A:$A,0)),""),IF(B172="COMPOSIÇÃO",IFERROR(INDEX(COMPOSIÇÃO!$D:$D,MATCH($C172,COMPOSIÇÃO!$A:$A,0)),""),"")) -> M | G172: 464.4 | H172: =IF(B172="SINAPI",IFERROR(INDEX(SINAPI!$D:$D,MATCH($C172,SINAPI!$A:$A,0)),0),IF(B172="COMPOSIÇÃO",IFERROR(INDEX(COMPOSIÇÃO!$G:$G,MATCH($C172,COMPOSIÇÃO!$A:$A,0)),0),0)) -> 5.28 | I172: 6.359472894 | J172: 2953.34 | K172: =J172/$J$302 -> 0.004415693329
A173: 15.30 | B173: SINAPI | C173: 91929 | D173: =IF(B173="SINAPI",IFERROR(INDEX(SINAPI!$B:$B,MATCH($C173,SINAPI!$A:$A,0)),""),IF(B173="COMPOSIÇÃO",IFERROR(INDEX(COMPOSIÇÃO!$C:$C,MATCH($C173,COMPOSIÇÃO!$A:$A,0)),""),"")) -> CABO DE COBRE FLEXÍVEL ISOLADO, 4 MM², ANTI-CHAMA 0,6/1,0 KV, PARA CIRCUITOS TERMINAIS - FORNECIMENTO E INSTALAÇÃO. AF_12/2015 | E173: PRETO | F173: =IF(B173="SINAPI",IFERROR(INDEX(SINAPI!$C:$C,MATCH($C173,SINAPI!$A:$A,0)),""),IF(B173="COMPOSIÇÃO",IFERROR(INDEX(COMPOSIÇÃO!$D:$D,MATCH($C173,COMPOSIÇÃO!$A:$A,0)),""),"")) -> M | G173: 424.6 | H173: =IF(B173="SINAPI",IFERROR(INDEX(SINAPI!$D:$D,MATCH($C173,SINAPI!$A:$A,0)),0),IF(B173="COMPOSIÇÃO",IFERROR(INDEX(COMPOSIÇÃO!$G:$G,MATCH($C173,COMPOSIÇÃO!$A:$A,0)),0),0)) -> 5.28 | I173: 6.359472894 | J173: 2700.23 | K173: =J173/$J$302 -> 0.00403725531
A174: 15.31 | B174: SINAPI | C174: 91929 | D174: =IF(B174="SINAPI",IFERROR(INDEX(SINAPI!$B:$B,MATCH($C174,SINAPI!$A:$A,0)),""),IF(B174="COMPOSIÇÃO",IFERROR(INDEX(COMPOSIÇÃO!$C:$C,MATCH($C174,COMPOSIÇÃO!$A:$A,0)),""),"")) -> CABO DE COBRE FLEXÍVEL ISOLADO, 4 MM², ANTI-CHAMA 0,6/1,0 KV, PARA CIRCUITOS TERMINAIS - FORNECIMENTO E INSTALAÇÃO. AF_12/2015 | E174: AZUL CLARO | F174: =IF(B174="SINAPI",IFERROR(INDEX(SINAPI!$C:$C,MATCH($C174,SINAPI!$A:$A,0)),""),IF(B174="COMPOSIÇÃO",IFERROR(INDEX(COMPOSIÇÃO!$D:$D,MATCH($C174,COMPOSIÇÃO!$A:$A,0)),""),"")) -> M | G174: 229 | H174: =IF(B174="SINAPI",IFERROR(INDEX(SINAPI!$D:$D,MATCH($C174,SINAPI!$A:$A,0)),0),IF(B174="COMPOSIÇÃO",IFERROR(INDEX(COMPOSIÇÃO!$G:$G,MATCH($C174,COMPOSIÇÃO!$A:$A,0)),0),0)) -> 5.28 | I174: 6.359472894 | J174: 1456.32 | K174: =J174/$J$302 -> 0.002177420313
A175: 15.32 | B175: SINAPI | C175: 91929 | D175: =IF(B175="SINAPI",IFERROR(INDEX(SINAPI!$B:$B,MATCH($C175,SINAPI!$A:$A,0)),""),IF(B175="COMPOSIÇÃO",IFERROR(INDEX(COMPOSIÇÃO!$C:$C,MATCH($C175,COMPOSIÇÃO!$A:$A,0)),""),"")) -> CABO DE COBRE FLEXÍVEL ISOLADO, 4 MM², ANTI-CHAMA 0,6/1,0 KV, PARA CIRCUITOS TERMINAIS - FORNECIMENTO E INSTALAÇÃO. AF_12/2015 | E175: VERDE | F175: =IF(B175="SINAPI",IFERROR(INDEX(SINAPI!$C:$C,MATCH($C175,SINAPI!$A:$A,0)),""),IF(B175="COMPOSIÇÃO",IFERROR(INDEX(COMPOSIÇÃO!$D:$D,MATCH($C175,COMPOSIÇÃO!$A:$A,0)),""),"")) -> M | G175: 489.7 | H175: =IF(B175="SINAPI",IFERROR(INDEX(SINAPI!$D:$D,MATCH($C175,SINAPI!$A:$A,0)),0),IF(B175="COMPOSIÇÃO",IFERROR(INDEX(COMPOSIÇÃO!$G:$G,MATCH($C175,COMPOSIÇÃO!$A:$A,0)),0),0)) -> 5.28 | I175: 6.359472894 | J175: 3114.23 | K175: =J175/$J$302 -> 0.004656248395
A176: 15.33 | B176: SINAPI | C176: 91929 | D176: =IF(B176="SINAPI",IFERROR(INDEX(SINAPI!$B:$B,MATCH($C176,SINAPI!$A:$A,0)),""),IF(B176="COMPOSIÇÃO",IFERROR(INDEX(COMPOSIÇÃO!$C:$C,MATCH($C176,COMPOSIÇÃO!$A:$A,0)),""),"")) -> CABO DE COBRE FLEXÍVEL ISOLADO, 4 MM², ANTI-CHAMA 0,6/1,0 KV, PARA CIRCUITOS TERMINAIS - FORNECIMENTO E INSTALAÇÃO. AF_12/2015 | E176: AMARELO | F176: =IF(B176="SINAPI",IFERROR(INDEX(SINAPI!$C:$C,MATCH($C176,SINAPI!$A:$A,0)),""),IF(B176="COMPOSIÇÃO",IFERROR(INDEX(COMPOSIÇÃO!$D:$D,MATCH($C176,COMPOSIÇÃO!$A:$A,0)),""),"")) -> M | G176: 110.9 | H176: =IF(B176="SINAPI",IFERROR(INDEX(SINAPI!$D:$D,MATCH($C176,SINAPI!$A:$A,0)),0),IF(B176="COMPOSIÇÃO",IFERROR(INDEX(COMPOSIÇÃO!$G:$G,MATCH($C176,COMPOSIÇÃO!$A:$A,0)),0),0)) -> 5.28 | I176: =H176*(1+$J$9) -> 6.359472894 | J176: =ROUND(G176*I176,2) -> 705.27 | K176: =J176/$J$302 -> 0.001054486119
A177: 15.34 | B177: SINAPI | C177: 91931 | D177: =IF(B177="SINAPI",IFERROR(INDEX(SINAPI!$B:$B,MATCH($C177,SINAPI!$A:$A,0)),""),IF(B177="COMPOSIÇÃO",IFERROR(INDEX(COMPOSIÇÃO!$C:$C,MATCH($C177,COMPOSIÇÃO!$A:$A,0)),""),"")) -> CABO DE COBRE FLEXÍVEL ISOLADO, 6 MM², ANTI-CHAMA 0,6/1,0 KV, PARA CIRCUITOS TERMINAIS - FORNECIMENTO E INSTALAÇÃO. AF_12/2015 | E177: VERMELHO | F177: =IF(B177="SINAPI",IFERROR(INDEX(SINAPI!$C:$C,MATCH($C177,SINAPI!$A:$A,0)),""),IF(B177="COMPOSIÇÃO",IFERROR(INDEX(COMPOSIÇÃO!$D:$D,MATCH($C177,COMPOSIÇÃO!$A:$A,0)),""),"")) -> M | G177: 68.3 | H177: =IF(B177="SINAPI",IFERROR(INDEX(SINAPI!$D:$D,MATCH($C177,SINAPI!$A:$A,0)),0),IF(B177="COMPOSIÇÃO",IFERROR(INDEX(COMPOSIÇÃO!$G:$G,MATCH($C177,COMPOSIÇÃO!$A:$A,0)),0),0)) -> 7.11 | I177: 8.563608385 | J177: 584.89 | K177: =J177/$J$302 -> 0.0008744996753
A178: 15.35 | B178: SINAPI | C178: 91931 | D178: =IF(B178="SINAPI",IFERROR(INDEX(SINAPI!$B:$B,MATCH($C178,SINAPI!$A:$A,0)),""),IF(B178="COMPOSIÇÃO",IFERROR(INDEX(COMPOSIÇÃO!$C:$C,MATCH($C178,COMPOSIÇÃO!$A:$A,0)),""),"")) -> CABO DE COBRE FLEXÍVEL ISOLADO, 6 MM², ANTI-CHAMA 0,6/1,0 KV, PARA CIRCUITOS TERMINAIS - FORNECIMENTO E INSTALAÇÃO. AF_12/2015 | E178: BRANCO | F178: =IF(B178="SINAPI",IFERROR(INDEX(SINAPI!$C:$C,MATCH($C178,SINAPI!$A:$A,0)),""),IF(B178="COMPOSIÇÃO",IFERROR(INDEX(COMPOSIÇÃO!$D:$D,MATCH($C178,COMPOSIÇÃO!$A:$A,0)),""),"")) -> M | G178: 68.3 | H178: =IF(B178="SINAPI",IFERROR(INDEX(SINAPI!$D:$D,MATCH($C178,SINAPI!$A:$A,0)),0),IF(B178="COMPOSIÇÃO",IFERROR(INDEX(COMPOSIÇÃO!$G:$G,MATCH($C178,COMPOSIÇÃO!$A:$A,0)),0),0)) -> 7.11 | I178: 8.563608385 | J178: 584.89 | K178: =J178/$J$302 -> 0.0008744996753
A179: 15.36 | B179: SINAPI | C179: 91931 | D179: =IF(B179="SINAPI",IFERROR(INDEX(SINAPI!$B:$B,MATCH($C179,SINAPI!$A:$A,0)),""),IF(B179="COMPOSIÇÃO",IFERROR(INDEX(COMPOSIÇÃO!$C:$C,MATCH($C179,COMPOSIÇÃO!$A:$A,0)),""),"")) -> CABO DE COBRE FLEXÍVEL ISOLADO, 6 MM², ANTI-CHAMA 0,6/1,0 KV, PARA CIRCUITOS TERMINAIS - FORNECIMENTO E INSTALAÇÃO. AF_12/2015 | E179: PRETO | F179: =IF(B179="SINAPI",IFERROR(INDEX(SINAPI!$C:$C,MATCH($C179,SINAPI!$A:$A,0)),""),IF(B179="COMPOSIÇÃO",IFERROR(INDEX(COMPOSIÇÃO!$D:$D,MATCH($C179,COMPOSIÇÃO!$A:$A,0)),""),"")) -> M | G179: 68.3 | H179: =IF(B179="SINAPI",IFERROR(INDEX(SINAPI!$D:$D,MATCH($C179,SINAPI!$A:$A,0)),0),IF(B179="COMPOSIÇÃO",IFERROR(INDEX(COMPOSIÇÃO!$G:$G,MATCH($C179,COMPOSIÇÃO!$A:$A,0)),0),0)) -> 7.11 | I179: 8.563608385 | J179: 584.89 | K179: =J179/$J$302 -> 0.0008744996753
A180: 15.37 | B180: SINAPI | C180: 91931 | D180: =IF(B180="SINAPI",IFERROR(INDEX(SINAPI!$B:$B,MATCH($C180,SINAPI!$A:$A,0)),""),IF(B180="COMPOSIÇÃO",IFERROR(INDEX(COMPOSIÇÃO!$C:$C,MATCH($C180,COMPOSIÇÃO!$A:$A,0)),""),"")) -> CABO DE COBRE FLEXÍVEL ISOLADO, 6 MM², ANTI-CHAMA 0,6/1,0 KV, PARA CIRCUITOS TERMINAIS - FORNECIMENTO E INSTALAÇÃO. AF_12/2015 | E180: VERDE | F180: =IF(B180="SINAPI",IFERROR(INDEX(SINAPI!$C:$C,MATCH($C180,SINAPI!$A:$A,0)),""),IF(B180="COMPOSIÇÃO",IFERROR(INDEX(COMPOSIÇÃO!$D:$D,MATCH($C180,COMPOSIÇÃO!$A:$A,0)),""),"")) -> M | G180: 68.3 | H180: =IF(B180="SINAPI",IFERROR(INDEX(SINAPI!$D:$D,MATCH($C180,SINAPI!$A:$A,0)),0),IF(B180="COMPOSIÇÃO",IFERROR(INDEX(COMPOSIÇÃO!$G:$G,MATCH($C180,COMPOSIÇÃO!$A:$A,0)),0),0)) -> 7.11 | I180: 8.563608385 | J180: 584.89 | K180: =J180/$J$302 -> 0.0008744996753
A181: 15.38 | B181: SINAPI | C181: 92980 | D181: =IF(B181="SINAPI",IFERROR(INDEX(SINAPI!$B:$B,MATCH($C181,SINAPI!$A:$A,0)),""),IF(B181="COMPOSIÇÃO",IFERROR(INDEX(COMPOSIÇÃO!$C:$C,MATCH($C181,COMPOSIÇÃO!$A:$A,0)),""),"")) -> CABO DE COBRE FLEXÍVEL ISOLADO, 10 MM², ANTI-CHAMA 0,6/1,0 KV, PARA DISTRIBUIÇÃO - FORNECIMENTO E INSTALAÇÃO. AF_12/2015 | E181: VERMELHO | F181: =IF(B181="SINAPI",IFERROR(INDEX(SINAPI!$C:$C,MATCH($C181,SINAPI!$A:$A,0)),""),IF(B181="COMPOSIÇÃO",IFERROR(INDEX(COMPOSIÇÃO!$D:$D,MATCH($C181,COMPOSIÇÃO!$A:$A,0)),""),"")) -> M | G181: 2 | H181: =IF(B181="SINAPI",IFERROR(INDEX(SINAPI!$D:$D,MATCH($C181,SINAPI!$A:$A,0)),0),IF(B181="COMPOSIÇÃO",IFERROR(INDEX(COMPOSIÇÃO!$G:$G,MATCH($C181,COMPOSIÇÃO!$A:$A,0)),0),0)) -> 7.53 | I181: 9.069475547 | J181: 18.14 | K181: =J181/$J$302 -> 2.712206417e-05
A182: 15.39 | B182: SINAPI | C182: 92980 | D182: =IF(B182="SINAPI",IFERROR(INDEX(SINAPI!$B:$B,MATCH($C182,SINAPI!$A:$A,0)),""),IF(B182="COMPOSIÇÃO",IFERROR(INDEX(COMPOSIÇÃO!$C:$C,MATCH($C182,COMPOSIÇÃO!$A:$A,0)),""),"")) -> CABO DE COBRE FLEXÍVEL ISOLADO, 10 MM², ANTI-CHAMA 0,6/1,0 KV, PARA DISTRIBUIÇÃO - FORNECIMENTO E INSTALAÇÃO. AF_12/2015 | E182: BRANCO | F182: =IF(B182="SINAPI",IFERROR(INDEX(SINAPI!$C:$C,MATCH($C182,SINAPI!$A:$A,0)),""),IF(B182="COMPOSIÇÃO",IFERROR(INDEX(COMPOSIÇÃO!$D:$D,MATCH($C182,COMPOSIÇÃO!$A:$A,0)),""),"")) -> M | G182: 2 | H182: =IF(B182="SINAPI",IFERROR(INDEX(SINAPI!$D:$D,MATCH($C182,SINAPI!$A:$A,0)),0),IF(B182="COMPOSIÇÃO",IFERROR(INDEX(COMPOSIÇÃO!$G:$G,MATCH($C182,COMPOSIÇÃO!$A:$A,0)),0),0)) -> 7.53 | I182: 9.069475547 | J182: 18.14 | K182: =J182/$J$302 -> 2.712206417e-05
A183: 15.40 | B183: SINAPI | C183: 92980 | D183: =IF(B183="SINAPI",IFERROR(INDEX(SINAPI!$B:$B,MATCH($C183,SINAPI!$A:$A,0)),""),IF(B183="COMPOSIÇÃO",IFERROR(INDEX(COMPOSIÇÃO!$C:$C,MATCH($C183,COMPOSIÇÃO!$A:$A,0)),""),"")) -> CABO DE COBRE FLEXÍVEL ISOLADO, 10 MM², ANTI-CHAMA 0,6/1,0 KV, PARA DISTRIBUIÇÃO - FORNECIMENTO E INSTALAÇÃO. AF_12/2015 | E183: PRETO | F183: =IF(B183="SINAPI",IFERROR(INDEX(SINAPI!$C:$C,MATCH($C183,SINAPI!$A:$A,0)),""),IF(B183="COMPOSIÇÃO",IFERROR(INDEX(COMPOSIÇÃO!$D:$D,MATCH($C183,COMPOSIÇÃO!$A:$A,0)),""),"")) -> M | G183: 2 | H183: =IF(B183="SINAPI",IFERROR(INDEX(SINAPI!$D:$D,MATCH($C183,SINAPI!$A:$A,0)),0),IF(B183="COMPOSIÇÃO",IFERROR(INDEX(COMPOSIÇÃO!$G:$G,MATCH($C183,COMPOSIÇÃO!$A:$A,0)),0),0)) -> 7.53 | I183: 9.069475547 | J183: 18.14 | K183: =J183/$J$302 -> 2.712206417e-05
A184: 15.41 | B184: SINAPI | C184: 92980 | D184: =IF(B184="SINAPI",IFERROR(INDEX(SINAPI!$B:$B,MATCH($C184,SINAPI!$A:$A,0)),""),IF(B184="COMPOSIÇÃO",IFERROR(INDEX(COMPOSIÇÃO!$C:$C,MATCH($C184,COMPOSIÇÃO!$A:$A,0)),""),"")) -> CABO DE COBRE FLEXÍVEL ISOLADO, 10 MM², ANTI-CHAMA 0,6/1,0 KV, PARA DISTRIBUIÇÃO - FORNECIMENTO E INSTALAÇÃO. AF_12/2015 | E184: AZUL CLARO | F184: =IF(B184="SINAPI",IFERROR(INDEX(SINAPI!$C:$C,MATCH($C184,SINAPI!$A:$A,0)),""),IF(B184="COMPOSIÇÃO",IFERROR(INDEX(COMPOSIÇÃO!$D:$D,MATCH($C184,COMPOSIÇÃO!$A:$A,0)),""),"")) -> M | G184: 2 | H184: =IF(B184="SINAPI",IFERROR(INDEX(SINAPI!$D:$D,MATCH($C184,SINAPI!$A:$A,0)),0),IF(B184="COMPOSIÇÃO",IFERROR(INDEX(COMPOSIÇÃO!$G:$G,MATCH($C184,COMPOSIÇÃO!$A:$A,0)),0),0)) -> 7.53 | I184: 9.069475547 | J184: 18.14 | K184: =J184/$J$302 -> 2.712206417e-05
A185: 15.42 | B185: SINAPI | C185: 92980 | D185: =IF(B185="SINAPI",IFERROR(INDEX(SINAPI!$B:$B,MATCH($C185,SINAPI!$A:$A,0)),""),IF(B185="COMPOSIÇÃO",IFERROR(INDEX(COMPOSIÇÃO!$C:$C,MATCH($C185,COMPOSIÇÃO!$A:$A,0)),""),"")) -> CABO DE COBRE FLEXÍVEL ISOLADO, 10 MM², ANTI-CHAMA 0,6/1,0 KV, PARA DISTRIBUIÇÃO - FORNECIMENTO E INSTALAÇÃO. AF_12/2015 | E185: VERDE | F185: =IF(B185="SINAPI",IFERROR(INDEX(SINAPI!$C:$C,MATCH($C185,SINAPI!$A:$A,0)),""),IF(B185="COMPOSIÇÃO",IFERROR(INDEX(COMPOSIÇÃO!$D:$D,MATCH($C185,COMPOSIÇÃO!$A:$A,0)),""),"")) -> M | G185: 2 | H185: =IF(B185="SINAPI",IFERROR(INDEX(SINAPI!$D:$D,MATCH($C185,SINAPI!$A:$A,0)),0),IF(B185="COMPOSIÇÃO",IFERROR(INDEX(COMPOSIÇÃO!$G:$G,MATCH($C185,COMPOSIÇÃO!$A:$A,0)),0),0)) -> 7.53 | I185: 9.069475547 | J185: 18.14 | K185: =J185/$J$302 -> 2.712206417e-05
A186: 15.43 | B186: SINAPI | C186: 92982 | D186: =IF(B186="SINAPI",IFERROR(INDEX(SINAPI!$B:$B,MATCH($C186,SINAPI!$A:$A,0)),""),IF(B186="COMPOSIÇÃO",IFERROR(INDEX(COMPOSIÇÃO!$C:$C,MATCH($C186,COMPOSIÇÃO!$A:$A,0)),""),"")) -> CABO DE COBRE FLEXÍVEL ISOLADO, 16 MM², ANTI-CHAMA 0,6/1,0 KV, PARA DISTRIBUIÇÃO - FORNECIMENTO E INSTALAÇÃO. AF_12/2015 | E186: VERMELHO | F186: =IF(B186="SINAPI",IFERROR(INDEX(SINAPI!$C:$C,MATCH($C186,SINAPI!$A:$A,0)),""),IF(B186="COMPOSIÇÃO",IFERROR(INDEX(COMPOSIÇÃO!$D:$D,MATCH($C186,COMPOSIÇÃO!$A:$A,0)),""),"")) -> M | G186: 27.7 | H186: =IF(B186="SINAPI",IFERROR(INDEX(SINAPI!$D:$D,MATCH($C186,SINAPI!$A:$A,0)),0),IF(B186="COMPOSIÇÃO",IFERROR(INDEX(COMPOSIÇÃO!$G:$G,MATCH($C186,COMPOSIÇÃO!$A:$A,0)),0),0)) -> 11.51 | I186: 13.86316913 | J186: 384.01 | K186: =J186/$J$302 -> 0.0005741534653
A187: 15.44 | B187: SINAPI | C187: 92982 | D187: =IF(B187="SINAPI",IFERROR(INDEX(SINAPI!$B:$B,MATCH($C187,SINAPI!$A:$A,0)),""),IF(B187="COMPOSIÇÃO",IFERROR(INDEX(COMPOSIÇÃO!$C:$C,MATCH($C187,COMPOSIÇÃO!$A:$A,0)),""),"")) -> CABO DE COBRE FLEXÍVEL ISOLADO, 16 MM², ANTI-CHAMA 0,6/1,0 KV, PARA DISTRIBUIÇÃO - FORNECIMENTO E INSTALAÇÃO. AF_12/2015 | E187: BRANCO | F187: =IF(B187="SINAPI",IFERROR(INDEX(SINAPI!$C:$C,MATCH($C187,SINAPI!$A:$A,0)),""),IF(B187="COMPOSIÇÃO",IFERROR(INDEX(COMPOSIÇÃO!$D:$D,MATCH($C187,COMPOSIÇÃO!$A:$A,0)),""),"")) -> M | G187: 27.7 | H187: =IF(B187="SINAPI",IFERROR(INDEX(SINAPI!$D:$D,MATCH($C187,SINAPI!$A:$A,0)),0),IF(B187="COMPOSIÇÃO",IFERROR(INDEX(COMPOSIÇÃO!$G:$G,MATCH($C187,COMPOSIÇÃO!$A:$A,0)),0),0)) -> 11.51 | I187: 13.86316913 | J187: 384.01 | K187: =J187/$J$302 -> 0.0005741534653
A188: 15.45 | B188: SINAPI | C188: 92982 | D188: =IF(B188="SINAPI",IFERROR(INDEX(SINAPI!$B:$B,MATCH($C188,SINAPI!$A:$A,0)),""),IF(B188="COMPOSIÇÃO",IFERROR(INDEX(COMPOSIÇÃO!$C:$C,MATCH($C188,COMPOSIÇÃO!$A:$A,0)),""),"")) -> CABO DE COBRE FLEXÍVEL ISOLADO, 16 MM², ANTI-CHAMA 0,6/1,0 KV, PARA DISTRIBUIÇÃO - FORNECIMENTO E INSTALAÇÃO. AF_12/2015 | E188: PRETO | F188: =IF(B188="SINAPI",IFERROR(INDEX(SINAPI!$C:$C,MATCH($C188,SINAPI!$A:$A,0)),""),IF(B188="COMPOSIÇÃO",IFERROR(INDEX(COMPOSIÇÃO!$D:$D,MATCH($C188,COMPOSIÇÃO!$A:$A,0)),""),"")) -> M | G188: 27.7 | H188: =IF(B188="SINAPI",IFERROR(INDEX(SINAPI!$D:$D,MATCH($C188,SINAPI!$A:$A,0)),0),IF(B188="COMPOSIÇÃO",IFERROR(INDEX(COMPOSIÇÃO!$G:$G,MATCH($C188,COMPOSIÇÃO!$A:$A,0)),0),0)) -> 11.51 | I188: 13.86316913 | J188: 384.01 | K188: =J188/$J$302 -> 0.0005741534653
A189: 15.46 | B189: SINAPI | C189: 92982 | D189: =IF(B189="SINAPI",IFERROR(INDEX(SINAPI!$B:$B,MATCH($C189,SINAPI!$A:$A,0)),""),IF(B189="COMPOSIÇÃO",IFERROR(INDEX(COMPOSIÇÃO!$C:$C,MATCH($C189,COMPOSIÇÃO!$A:$A,0)),""),"")) -> CABO DE COBRE FLEXÍVEL ISOLADO, 16 MM², ANTI-CHAMA 0,6/1,0 KV, PARA DISTRIBUIÇÃO - FORNECIMENTO E INSTALAÇÃO. AF_12/2015 | E189: AZUL CLARO | F189: =IF(B189="SINAPI",IFERROR(INDEX(SINAPI!$C:$C,MATCH($C189,SINAPI!$A:$A,0)),""),IF(B189="COMPOSIÇÃO",IFERROR(INDEX(COMPOSIÇÃO!$D:$D,MATCH($C189,COMPOSIÇÃO!$A:$A,0)),""),"")) -> M | G189: 27.7 | H189: =IF(B189="SINAPI",IFERROR(INDEX(SINAPI!$D:$D,MATCH($C189,SINAPI!$A:$A,0)),0),IF(B189="COMPOSIÇÃO",IFERROR(INDEX(COMPOSIÇÃO!$G:$G,MATCH($C189,COMPOSIÇÃO!$A:$A,0)),0),0)) -> 11.51 | I189: 13.86316913 | J189: 384.01 | K189: =J189/$J$302 -> 0.0005741534653
A190: 15.47 | B190: SINAPI | C190: 92982 | D190: =IF(B190="SINAPI",IFERROR(INDEX(SINAPI!$B:$B,MATCH($C190,SINAPI!$A:$A,0)),""),IF(B190="COMPOSIÇÃO",IFERROR(INDEX(COMPOSIÇÃO!$C:$C,MATCH($C190,COMPOSIÇÃO!$A:$A,0)),""),"")) -> CABO DE COBRE FLEXÍVEL ISOLADO, 16 MM², ANTI-CHAMA 0,6/1,0 KV, PARA DISTRIBUIÇÃO - FORNECIMENTO E INSTALAÇÃO. AF_12/2015 | E190: VERDE | F190: =IF(B190="SINAPI",IFERROR(INDEX(SINAPI!$C:$C,MATCH($C190,SINAPI!$A:$A,0)),""),IF(B190="COMPOSIÇÃO",IFERROR(INDEX(COMPOSIÇÃO!$D:$D,MATCH($C190,COMPOSIÇÃO!$A:$A,0)),""),"")) -> M | G190: 50.1 | H190: =IF(B190="SINAPI",IFERROR(INDEX(SINAPI!$D:$D,MATCH($C190,SINAPI!$A:$A,0)),0),IF(B190="COMPOSIÇÃO",IFERROR(INDEX(COMPOSIÇÃO!$G:$G,MATCH($C190,COMPOSIÇÃO!$A:$A,0)),0),0)) -> 11.51 | I190: 13.86316913 | J190: 694.54 | K190: =J190/$J$302 -> 0.001038443134
A191: 15.48 | B191: SINAPI | C191: 92984 | D191: =IF(B191="SINAPI",IFERROR(INDEX(SINAPI!$B:$B,MATCH($C191,SINAPI!$A:$A,0)),""),IF(B191="COMPOSIÇÃO",IFERROR(INDEX(COMPOSIÇÃO!$C:$C,MATCH($C191,COMPOSIÇÃO!$A:$A,0)),""),"")) -> CABO DE COBRE FLEXÍVEL ISOLADO, 25 MM², ANTI-CHAMA 0,6/1,0 KV, PARA DISTRIBUIÇÃO - FORNECIMENTO E INSTALAÇÃO. AF_12/2015 | E191: VERMELHO | F191: =IF(B191="SINAPI",IFERROR(INDEX(SINAPI!$C:$C,MATCH($C191,SINAPI!$A:$A,0)),""),IF(B191="COMPOSIÇÃO",IFERROR(INDEX(COMPOSIÇÃO!$D:$D,MATCH($C191,COMPOSIÇÃO!$A:$A,0)),""),"")) -> M | G191: 10 | H191: =IF(B191="SINAPI",IFERROR(INDEX(SINAPI!$D:$D,MATCH($C191,SINAPI!$A:$A,0)),0),IF(B191="COMPOSIÇÃO",IFERROR(INDEX(COMPOSIÇÃO!$G:$G,MATCH($C191,COMPOSIÇÃO!$A:$A,0)),0),0)) -> 18.94 | I191: 22.81220011 | J191: 228.12 | K191: =J191/$J$302 -> 0.0003410741608
A192: 15.49 | B192: SINAPI | C192: 92985 | D192: =IF(B192="SINAPI",IFERROR(INDEX(SINAPI!$B:$B,MATCH($C192,SINAPI!$A:$A,0)),""),IF(B192="COMPOSIÇÃO",IFERROR(INDEX(COMPOSIÇÃO!$C:$C,MATCH($C192,COMPOSIÇÃO!$A:$A,0)),""),"")) -> CABO DE COBRE FLEXÍVEL ISOLADO, 35 MM², ANTI-CHAMA 450/750 V, PARA DISTRIBUIÇÃO - FORNECIMENTO E INSTALAÇÃO. AF_12/2015 | E192: BRANCO | F192: =IF(B192="SINAPI",IFERROR(INDEX(SINAPI!$C:$C,MATCH($C192,SINAPI!$A:$A,0)),""),IF(B192="COMPOSIÇÃO",IFERROR(INDEX(COMPOSIÇÃO!$D:$D,MATCH($C192,COMPOSIÇÃO!$A:$A,0)),""),"")) -> M | G192: 10 | H192: =IF(B192="SINAPI",IFERROR(INDEX(SINAPI!$D:$D,MATCH($C192,SINAPI!$A:$A,0)),0),IF(B192="COMPOSIÇÃO",IFERROR(INDEX(COMPOSIÇÃO!$G:$G,MATCH($C192,COMPOSIÇÃO!$A:$A,0)),0),0)) -> 24.82 | I192: 29.89434038 | J192: 298.94 | K192: =J192/$J$302 -> 0.0004469608524
A193: 15.50 | B193: SINAPI | C193: 92986 | D193: =IF(B193="SINAPI",IFERROR(INDEX(SINAPI!$B:$B,MATCH($C193,SINAPI!$A:$A,0)),""),IF(B193="COMPOSIÇÃO",IFERROR(INDEX(COMPOSIÇÃO!$C:$C,MATCH($C193,COMPOSIÇÃO!$A:$A,0)),""),"")) -> CABO DE COBRE FLEXÍVEL ISOLADO, 35 MM², ANTI-CHAMA 0,6/1,0 KV, PARA DISTRIBUIÇÃO - FORNECIMENTO E INSTALAÇÃO. AF_12/2015 | E193: PRETO | F193: =IF(B193="SINAPI",IFERROR(INDEX(SINAPI!$C:$C,MATCH($C193,SINAPI!$A:$A,0)),""),IF(B193="COMPOSIÇÃO",IFERROR(INDEX(COMPOSIÇÃO!$D:$D,MATCH($C193,COMPOSIÇÃO!$A:$A,0)),""),"")) -> M | G193: 10 | H193: =IF(B193="SINAPI",IFERROR(INDEX(SINAPI!$D:$D,MATCH($C193,SINAPI!$A:$A,0)),0),IF(B193="COMPOSIÇÃO",IFERROR(INDEX(COMPOSIÇÃO!$G:$G,MATCH($C193,COMPOSIÇÃO!$A:$A,0)),0),0)) -> 25.54 | I193: 30.76154123 | J193: 307.62 | K193: =J193/$J$302 -> 0.000459938775
A194: 15.51 | B194: SINAPI | C194: 92987 | D194: =IF(B194="SINAPI",IFERROR(INDEX(SINAPI!$B:$B,MATCH($C194,SINAPI!$A:$A,0)),""),IF(B194="COMPOSIÇÃO",IFERROR(INDEX(COMPOSIÇÃO!$C:$C,MATCH($C194,COMPOSIÇÃO!$A:$A,0)),""),"")) -> CABO DE COBRE FLEXÍVEL ISOLADO, 50 MM², ANTI-CHAMA 450/750 V, PARA DISTRIBUIÇÃO - FORNECIMENTO E INSTALAÇÃO. AF_12/2015 | E194: AZUL CLARO | F194: =IF(B194="SINAPI",IFERROR(INDEX(SINAPI!$C:$C,MATCH($C194,SINAPI!$A:$A,0)),""),IF(B194="COMPOSIÇÃO",IFERROR(INDEX(COMPOSIÇÃO!$D:$D,MATCH($C194,COMPOSIÇÃO!$A:$A,0)),""),"")) -> M | G194: 10 | H194: =IF(B194="SINAPI",IFERROR(INDEX(SINAPI!$D:$D,MATCH($C194,SINAPI!$A:$A,0)),0),IF(B194="COMPOSIÇÃO",IFERROR(INDEX(COMPOSIÇÃO!$G:$G,MATCH($C194,COMPOSIÇÃO!$A:$A,0)),0),0)) -> 35.7 | I194: 42.99870877 | J194: 429.99 | K194: =J194/$J$302 -> 0.0006429005717
A195: 15.52 | B195: SINAPI | C195: 92986 | D195: =IF(B195="SINAPI",IFERROR(INDEX(SINAPI!$B:$B,MATCH($C195,SINAPI!$A:$A,0)),""),IF(B195="COMPOSIÇÃO",IFERROR(INDEX(COMPOSIÇÃO!$C:$C,MATCH($C195,COMPOSIÇÃO!$A:$A,0)),""),"")) -> CABO DE COBRE FLEXÍVEL ISOLADO, 35 MM², ANTI-CHAMA 0,6/1,0 KV, PARA DISTRIBUIÇÃO - FORNECIMENTO E INSTALAÇÃO. AF_12/2015 | E195: VERMELHO | F195: =IF(B195="SINAPI",IFERROR(INDEX(SINAPI!$C:$C,MATCH($C195,SINAPI!$A:$A,0)),""),IF(B195="COMPOSIÇÃO",IFERROR(INDEX(COMPOSIÇÃO!$D:$D,MATCH($C195,COMPOSIÇÃO!$A:$A,0)),""),"")) -> M | G195: 12.4 | H195: =IF(B195="SINAPI",IFERROR(INDEX(SINAPI!$D:$D,MATCH($C195,SINAPI!$A:$A,0)),0),IF(B195="COMPOSIÇÃO",IFERROR(INDEX(COMPOSIÇÃO!$G:$G,MATCH($C195,COMPOSIÇÃO!$A:$A,0)),0),0)) -> 25.54 | I195: 30.76154123 | J195: 381.44 | K195: =J195/$J$302 -> 0.0005703109237
A196: 15.53 | B196: SINAPI | C196: 92986 | D196: =IF(B196="SINAPI",IFERROR(INDEX(SINAPI!$B:$B,MATCH($C196,SINAPI!$A:$A,0)),""),IF(B196="COMPOSIÇÃO",IFERROR(INDEX(COMPOSIÇÃO!$C:$C,MATCH($C196,COMPOSIÇÃO!$A:$A,0)),""),"")) -> CABO DE COBRE FLEXÍVEL ISOLADO, 35 MM², ANTI-CHAMA 0,6/1,0 KV, PARA DISTRIBUIÇÃO - FORNECIMENTO E INSTALAÇÃO. AF_12/2015 | E196: BRANCO | F196: =IF(B196="SINAPI",IFERROR(INDEX(SINAPI!$C:$C,MATCH($C196,SINAPI!$A:$A,0)),""),IF(B196="COMPOSIÇÃO",IFERROR(INDEX(COMPOSIÇÃO!$D:$D,MATCH($C196,COMPOSIÇÃO!$A:$A,0)),""),"")) -> M | G196: 12.4 | H196: =IF(B196="SINAPI",IFERROR(INDEX(SINAPI!$D:$D,MATCH($C196,SINAPI!$A:$A,0)),0),IF(B196="COMPOSIÇÃO",IFERROR(INDEX(COMPOSIÇÃO!$G:$G,MATCH($C196,COMPOSIÇÃO!$A:$A,0)),0),0)) -> 25.54 | I196: 30.76154123 | J196: 381.44 | K196: =J196/$J$302 -> 0.0005703109237
A197: 15.54 | B197: SINAPI | C197: 92986 | D197: =IF(B197="SINAPI",IFERROR(INDEX(SINAPI!$B:$B,MATCH($C197,SINAPI!$A:$A,0)),""),IF(B197="COMPOSIÇÃO",IFERROR(INDEX(COMPOSIÇÃO!$C:$C,MATCH($C197,COMPOSIÇÃO!$A:$A,0)),""),"")) -> CABO DE COBRE FLEXÍVEL ISOLADO, 35 MM², ANTI-CHAMA 0,6/1,0 KV, PARA DISTRIBUIÇÃO - FORNECIMENTO E INSTALAÇÃO. AF_12/2015 | E197: PRETO | F197: =IF(B197="SINAPI",IFERROR(INDEX(SINAPI!$C:$C,MATCH($C197,SINAPI!$A:$A,0)),""),IF(B197="COMPOSIÇÃO",IFERROR(INDEX(COMPOSIÇÃO!$D:$D,MATCH($C197,COMPOSIÇÃO!$A:$A,0)),""),"")) -> M | G197: 12.4 | H197: =IF(B197="SINAPI",IFERROR(INDEX(SINAPI!$D:$D,MATCH($C197,SINAPI!$A:$A,0)),0),IF(B197="COMPOSIÇÃO",IFERROR(INDEX(COMPOSIÇÃO!$G:$G,MATCH($C197,COMPOSIÇÃO!$A:$A,0)),0),0)) -> 25.54 | I197: 30.76154123 | J197: 381.44 | K197: =J197/$J$302 -> 0.0005703109237
A198: 15.55 | B198: SINAPI | C198: 92986 | D198: =IF(B198="SINAPI",IFERROR(INDEX(SINAPI!$B:$B,MATCH($C198,SINAPI!$A:$A,0)),""),IF(B198="COMPOSIÇÃO",IFERROR(INDEX(COMPOSIÇÃO!$C:$C,MATCH($C198,COMPOSIÇÃO!$A:$A,0)),""),"")) -> CABO DE COBRE FLEXÍVEL ISOLADO, 35 MM², ANTI-CHAMA 0,6/1,0 KV, PARA DISTRIBUIÇÃO - FORNECIMENTO E INSTALAÇÃO. AF_12/2015 | E198: AZUL CLARO | F198: =IF(B198="SINAPI",IFERROR(INDEX(SINAPI!$C:$C,MATCH($C198,SINAPI!$A:$A,0)),""),IF(B198="COMPOSIÇÃO",IFERROR(INDEX(COMPOSIÇÃO!$D:$D,MATCH($C198,COMPOSIÇÃO!$A:$A,0)),""),"")) -> M | G198: 12.4 | H198: =IF(B198="SINAPI",IFERROR(INDEX(SINAPI!$D:$D,MATCH($C198,SINAPI!$A:$A,0)),0),IF(B198="COMPOSIÇÃO",IFERROR(INDEX(COMPOSIÇÃO!$G:$G,MATCH($C198,COMPOSIÇÃO!$A:$A,0)),0),0)) -> 25.54 | I198: 30.76154123 | J198: 381.44 | K198: =J198/$J$302 -> 0.0005703109237
A199: 15.56 | B199: SINAPI | C199: 92988 | D199: =IF(B199="SINAPI",IFERROR(INDEX(SINAPI!$B:$B,MATCH($C199,SINAPI!$A:$A,0)),""),IF(B199="COMPOSIÇÃO",IFERROR(INDEX(COMPOSIÇÃO!$C:$C,MATCH($C199,COMPOSIÇÃO!$A:$A,0)),""),"")) -> CABO DE COBRE FLEXÍVEL ISOLADO, 50 MM², ANTI-CHAMA 0,6/1,0 KV, PARA DISTRIBUIÇÃO - FORNECIMENTO E INSTALAÇÃO. AF_12/2015 | E199: VERDE | F199: =IF(B199="SINAPI",IFERROR(INDEX(SINAPI!$C:$C,MATCH($C199,SINAPI!$A:$A,0)),""),IF(B199="COMPOSIÇÃO",IFERROR(INDEX(COMPOSIÇÃO!$D:$D,MATCH($C199,COMPOSIÇÃO!$A:$A,0)),""),"")) -> M | G199: 18.2 | H199: =IF(B199="SINAPI",IFERROR(INDEX(SINAPI!$D:$D,MATCH($C199,SINAPI!$A:$A,0)),0),IF(B199="COMPOSIÇÃO",IFERROR(INDEX(COMPOSIÇÃO!$G:$G,MATCH($C199,COMPOSIÇÃO!$A:$A,0)),0),0)) -> 35.79 | I199: 43.10710888 | J199: 784.55 | K199: =J199/$J$302 -> 0.001173021799
A200: 15.57 | B200: SINAPI | C200: 92992 | D200: =IF(B200="SINAPI",IFERROR(INDEX(SINAPI!$B:$B,MATCH($C200,SINAPI!$A:$A,0)),""),IF(B200="COMPOSIÇÃO",IFERROR(INDEX(COMPOSIÇÃO!$C:$C,MATCH($C200,COMPOSIÇÃO!$A:$A,0)),""),"")) -> CABO DE COBRE FLEXÍVEL ISOLADO, 95 MM², ANTI-CHAMA 0,6/1,0 KV, PARA DISTRIBUIÇÃO - FORNECIMENTO E INSTALAÇÃO. AF_12/2015 | E200: VERMELHO | F200: =IF(B200="SINAPI",IFERROR(INDEX(SINAPI!$C:$C,MATCH($C200,SINAPI!$A:$A,0)),""),IF(B200="COMPOSIÇÃO",IFERROR(INDEX(COMPOSIÇÃO!$D:$D,MATCH($C200,COMPOSIÇÃO!$A:$A,0)),""),"")) -> M | G200: 21.1 | H200: =IF(B200="SINAPI",IFERROR(INDEX(SINAPI!$D:$D,MATCH($C200,SINAPI!$A:$A,0)),0),IF(B200="COMPOSIÇÃO",IFERROR(INDEX(COMPOSIÇÃO!$G:$G,MATCH($C200,COMPOSIÇÃO!$A:$A,0)),0),0)) -> 64.68 | I200: 77.90354295 | J200: 1643.76 | K200: =J200/$J$302 -> 0.002457671675
A201: 15.58 | B201: SINAPI | C201: 92992 | D201: =IF(B201="SINAPI",IFERROR(INDEX(SINAPI!$B:$B,MATCH($C201,SINAPI!$A:$A,0)),""),IF(B201="COMPOSIÇÃO",IFERROR(INDEX(COMPOSIÇÃO!$C:$C,MATCH($C201,COMPOSIÇÃO!$A:$A,0)),""),"")) -> CABO DE COBRE FLEXÍVEL ISOLADO, 95 MM², ANTI-CHAMA 0,6/1,0 KV, PARA DISTRIBUIÇÃO - FORNECIMENTO E INSTALAÇÃO. AF_12/2015 | E201: BRANCO | F201: =IF(B201="SINAPI",IFERROR(INDEX(SINAPI!$C:$C,MATCH($C201,SINAPI!$A:$A,0)),""),IF(B201="COMPOSIÇÃO",IFERROR(INDEX(COMPOSIÇÃO!$D:$D,MATCH($C201,COMPOSIÇÃO!$A:$A,0)),""),"")) -> M | G201: 21.1 | H201: =IF(B201="SINAPI",IFERROR(INDEX(SINAPI!$D:$D,MATCH($C201,SINAPI!$A:$A,0)),0),IF(B201="COMPOSIÇÃO",IFERROR(INDEX(COMPOSIÇÃO!$G:$G,MATCH($C201,COMPOSIÇÃO!$A:$A,0)),0),0)) -> 64.68 | I201: 77.90354295 | J201: 1643.76 | K201: =J201/$J$302 -> 0.002457671675
A202: 15.59 | B202: SINAPI | C202: 92992 | D202: =IF(B202="SINAPI",IFERROR(INDEX(SINAPI!$B:$B,MATCH($C202,SINAPI!$A:$A,0)),""),IF(B202="COMPOSIÇÃO",IFERROR(INDEX(COMPOSIÇÃO!$C:$C,MATCH($C202,COMPOSIÇÃO!$A:$A,0)),""),"")) -> CABO DE COBRE FLEXÍVEL ISOLADO, 95 MM², ANTI-CHAMA 0,6/1,0 KV, PARA DISTRIBUIÇÃO - FORNECIMENTO E INSTALAÇÃO. AF_12/2015 | E202: PRETO | F202: =IF(B202="SINAPI",IFERROR(INDEX(SINAPI!$C:$C,MATCH($C202,SINAPI!$A:$A,0)),""),IF(B202="COMPOSIÇÃO",IFERROR(INDEX(COMPOSIÇÃO!$D:$D,MATCH($C202,COMPOSIÇÃO!$A:$A,0)),""),"")) -> M | G202: 21.1 | H202: =IF(B202="SINAPI",IFERROR(INDEX(SINAPI!$D:$D,MATCH($C202,SINAPI!$A:$A,0)),0),IF(B202="COMPOSIÇÃO",IFERROR(INDEX(COMPOSIÇÃO!$G:$G,MATCH($C202,COMPOSIÇÃO!$A:$A,0)),0),0)) -> 64.68 | I202: 77.90354295 | J202: 1643.76 | K202: =J202/$J$302 -> 0.002457671675
A203: 15.60 | B203: SINAPI | C203: 92992 | D203: =IF(B203="SINAPI",IFERROR(INDEX(SINAPI!$B:$B,MATCH($C203,SINAPI!$A:$A,0)),""),IF(B203="COMPOSIÇÃO",IFERROR(INDEX(COMPOSIÇÃO!$C:$C,MATCH($C203,COMPOSIÇÃO!$A:$A,0)),""),"")) -> CABO DE COBRE FLEXÍVEL ISOLADO, 95 MM², ANTI-CHAMA 0,6/1,0 KV, PARA DISTRIBUIÇÃO - FORNECIMENTO E INSTALAÇÃO. AF_12/2015 | E203: AZUL CLARO | F203: =IF(B203="SINAPI",IFERROR(INDEX(SINAPI!$C:$C,MATCH($C203,SINAPI!$A:$A,0)),""),IF(B203="COMPOSIÇÃO",IFERROR(INDEX(COMPOSIÇÃO!$D:$D,MATCH($C203,COMPOSIÇÃO!$A:$A,0)),""),"")) -> M | G203: 21.1 | H203: =IF(B203="SINAPI",IFERROR(INDEX(SINAPI!$D:$D,MATCH($C203,SINAPI!$A:$A,0)),0),IF(B203="COMPOSIÇÃO",IFERROR(INDEX(COMPOSIÇÃO!$G:$G,MATCH($C203,COMPOSIÇÃO!$A:$A,0)),0),0)) -> 64.68 | I203: 77.90354295 | J203: 1643.76 | K203: =J203/$J$302 -> 0.002457671675
A204: 15.61 | B204: ORSE | C204: 11298/ORSE | D204: FORNECIMENTO E INSTALAÇÃO DE MÃO FRANCESA SIMPLES 100MM | F204: UN | G204: 59 | H204: 9.39 | I204: 11.30974441 | J204: 667.27 | K204: =J204/$J$302 -> 0.0009976703283
A205: 15.62 | B205: ORSE | C205: 12471/ORSE | D205: TAMPA DE ENCAIXE 100 X 3000 MM, GALVANIZADA À FOGO, PARA ELETROCALHA METÁLICA (REF.: MOPA OU SIMILAR) | F205: UN | G205: 19 | H205: 55.85 | I205: 67.26828809 | J205: 1278.1 | K205: =J205/$J$302 -> 0.001910954256
... 98 more rows

Sheet CURVA ABC
A5: INSTITUTO FEDERAL DE EDUCAÇÃO, CIÊNCIA E TECNOLOGIA DE MATO GROSSO
A6: CAMPUS PRIMAVERA DO LESTE
A8: CURVA ABC
A9: LOCAL: | B9: PRIMAVERA DO LESTE | K9: FAIXAS DE CORTE
A10: OBRA: | B10: REFORMA HANGAR | K10: A | L10: B | M10: C
D11: TABELA SINAPI - DATA DE EMISSÃO: 16/10/2020 | K11: 0.8 | L11: 0.95 | M11: 1
D12: SINAPI DATA REFERÊNCIA TÉCNICA: 16/10/2020 - NÃO DESONERADO
A13: ITEM | B13: REFERÊNCIA | C13: CÓDIGO | D13: DESCRIÇÃO DETALHADA | F13: UND | G13: QTD | H13: VALOR UNIT (R$) | I13: VALOR UNIT c/ BDI (R$) | J13: VALOR TOTAL | K13: % ITEM | L13: % ACUM | M13: CLASSE
A14: 9.4 | B14: COTAÇÃO | C14: COT.14 | D14: PASSARELA METALICA 31,00 M X 1,60M | F14: UN | G14: 1 | H14: 145950 | I14: 175788.8388 | J14: 175788.84 | K14: =J14/$J$274 -> 0.2628311024 | L14: =K14 -> 0.2628311024 | M14: =IF(L14<K$11,"A",IF(L14<L$11,"B","C")) -> A
A15: 14.5 | B15: COMPOSIÇÃO | C15: IFMT 077.05.2019 | D15: GRADE DE FERRO EM BARRA CHATA 3/16" | F15: M² | G15: 30 | H15: 1030.973 | I15: 1241.750918 | J15: 37252.53 | K15: =J15/$J$274 -> 0.05569820887 | L15: =L14+K15 -> 0.3185293113 | M15: =IF(L15<K$11,"A",IF(L15<L$11,"B","C")) -> A
A16: 10.8 | B16: SINAPI | C16: 88489 | D16: APLICAÇÃO MANUAL DE PINTURA COM TINTA LÁTEX ACRÍLICA EM PAREDES, DUAS DEMÃOS. AF_06/2014 | F16: M2 | G16: 1871.16 | H16: 11.78 | I16: 14.18836945 | J16: 26548.71 | K16: =J16/$J$274 -> 0.03969436693 | L16: =K16+L15 -> 0.3582236782 | M16: A
A17: 8.4 | B17: SINAPI | C17: 94991 | D17: EXECUÇÃO DE PASSEIO (CALÇADA) OU PISO DE CONCRETO COM CONCRETO MOLDADO IN LOCO, USINADO, ACABAMENTO CONVENCIONAL, NÃO ARMADO. AF_07/2016 | F17: M3 | G17: 40 | H17: 546.12 | I17: 657.7718441 | J17: 26310.87 | K17: =J17/$J$274 -> 0.03933875989 | L17: 0.3975624381 | M17: A
A18: 16.1 | B18: COTAÇÃO | C18: COT. 16 | D18: Aquisisção e instalação plataforma vertical hidraulica, modelo enclusulada - vidro panoramico e capa metalica - entrada unilateral mesmo lado percurso 4m, 2 parada capacidade 250kg cabine dimensão interna 0,90x1,40 | F18: un | G18: 1 | H18: 22000 | I18: 24942.30992 | J18: 24942.31 | K18: =J18/$J$274 -> 0.03729255415 | L18: 0.4348549923 | M18: A
A19: 10.6 | B19: SINAPI | C19: 88489 | D19: APLICAÇÃO MANUAL DE PINTURA COM TINTA LÁTEX ACRÍLICA EM PAREDES, DUAS DEMÃOS. AF_06/2014 | F19: M2 | G19: 1673.16 | H19: 11.78 | I19: 14.18836945 | J19: 23739.41 | K19: =J19/$J$274 -> 0.03549403535 | L19: 0.4703490276 | M19: A
A20: 1.2 | B20: SINAPI | C20: 94295 | D20: MESTRE DE OBRAS COM ENCARGOS COMPLEMENTARES | F20: MES | G20: 3 | H20: 5672.54 | I20: 6832.265979 | J20: 20496.8 | K20: =J20/$J$274 -> 0.03064583929 | L20: 0.5009948669 | M20: A
A21: 8.5 | B21: SINAPI | C21: 94993 | D21: EXECUÇÃO DE PASSEIO (CALÇADA) OU PISO DE CONCRETO COM CONCRETO MOLDADO IN LOCO, USINADO, ACABAMENTO CONVENCIONAL, ESPESSURA 6 CM, ARMADO. AF_07/2016 | F21: M2 | G21: 213.32 | H21: 64.82 | I21: 78.07216533 | J21: 16654.35 | K21: =J21/$J$274 -> 0.02490079103 | L21: 0.525895658 | M21: A
A22: 8.2 | B22: SINAPI | C22: 87255 | D22: REVESTIMENTO CERÂMICO PARA PISO COM PLACAS TIPO ESMALTADA EXTRA DE DIMENSÕES 60X60 CM APLICADA EM AMBIENTES DE ÁREA MENOR QUE 5 M2. AF_06/2014 | F22: M2 | G22: 172.5 | H22: 68.67 | I22: 82.70928099 | J22: 14267.35 | K22: =J22/$J$274 -> 0.0213318623 | L22: 0.5472275203 | M22: A
A23: 8.6 | B23: SINAPI | C23: 92396 | D23: EXECUÇÃO DE PASSEIO EM PISO INTERTRAVADO, COM BLOCO RETANGULAR COR NATURAL DE 20 X 10 CM, ESPESSURA 6 CM. AF_12/2015 | F23: M2 | G23: 177.24 | H23: 57.65 | I23: 69.43629021 | J23: 12306.89 | K23: =J23/$J$274 -> 0.01840067587 | L23: 0.5656281961 | M23: A
A24: 16.3 | B24: COTAÇÃO | C24: COT. 10 | D24: AR CONDICIONADO 42.000BTUS BIFÁSICO 220V INVERTER | F24: UN | G24: 1 | H24: 10788.9 | I24: 12231.82216 | J24: 12231.82 | K24: =J24/$J$274 -> 0.01828843478 | L24: 0.5839166309 | M24: A
A25: 14.1 | B25: SINAPI | C25: 98522 | D25: ALAMBRADO EM MOURÕES DE CONCRETO, COM TELA DE ARAME GALVANIZADO (INCLUSIVE MURETA EM CONCRETO). AF_05/2018 | F25: M | G25: 86 | H25: 111.28 | I25: 134.030709 | J25: 11526.64 | K25: =J25/$J$274 -> 0.01723408322 | L25: 0.6011507141 | M25: A
A26: 1.1 | B26: SINAPI | C26: 93565 | D26: ENGENHEIRO CIVIL DE OBRA JUNIOR COM ENCARGOS COMPLEMENTARES | F26: MES | G26: 0.5 | H26: 16204.01 | I26: 19516.84893 | J26: 9758.42 | K26: =J26/$J$274 -> 0.01459032488 | L26: 0.615741039 | M26: A
A27: 15.76 | B27: COMPOSIÇÃO | C27: IFMT 119.01.2020 | D27: ELETRODUTO DE AÇO GALVANIZADO, CLASSE LEVE, DN 20 MM (3/4), APARENTE, INSTALADO EM PAREDE - FORNECIMENTO E INSTALAÇÃO.(FIXAÇÃO POR CUNHA) | F27: M | G27: 312.8 | H27: 24.86958 | I27: 29.9540568 | J27: 9369.63 | K27: =J27/$J$274 -> 0.01400902459 | L27: 0.6297500636 | M27: A
A28: 15.146 | B28: COMPOSIÇÃO | C28: IFMT 193.02.2020 | D28: QUADRO DE DISTRIBUIÇÃO METÁLICO DE SOBREPOR PARA 115 DISJUNTORES MONOPOLARES TIPO DIN COM BARRAMENTO TRIFÁSICO COM NEUTRO E TERRRA - FORNECIMENTO E INTALAÇÃO | F28: UN | G28: 1 | H28: 7058.547 | I28: 8501.636044 | J28: 8501.64 | K28: =J28/$J$274 -> 0.01271124728 | L28: 0.6424613109 | M28: A
A29: 15.1 | B29: SINAPI | C29: 95801 | D29: CONDULETE DE ALUMÍNIO, TIPO X, PARA ELETRODUTO DE AÇO GALVANIZADO DN 20 MM (3/4''), APARENTE - FORNECIMENTO E INSTALAÇÃO. AF_11/2016_P | F29: UN | G29: 239 | H29: 29.52 | I29: 35.55523481 | J29: 8497.7 | K29: =J29/$J$274 -> 0.01270535638 | L29: 0.6551666673 | M29: A
A30: 3.8 | B30: ORSE | C30: 09949/ORSE | D30: 09949/ORSE Estaca escavada mecanicamente - Ø = 200 a 250mm, com concreto fck = 21 Mpa e armadura CA-50 e CA-60 | F30: m | G30: 80 | H30: 77.45 | I30: 93.28431356 | J30: 7462.75 | K30: =J30/$J$274 -> 0.01115794842 | L30: 0.6663246157 | M30: A
A31: 15.147 | B31: COMPOSIÇÃO | C31: IFMT 132.01.2020 | D31: LUMINÁRIA RETANGULAR TIPO CALHA, DE SOBREPOR, COM 2 LÂMPADAS TUBULARES BIVOLT DE LED 20 W - COMPLETA. FORNECIMENTO E INSTALAÇÃO | F31: UN | G31: 87 | H31: 65.644312 | I31: 79.06500432 | J31: 6878.66 | K31: =J31/$J$274 -> 0.01028464487 | L31: 0.6766092605 | M31: A
A32: 15.75 | B32: COMPOSIÇÃO | C32: IFMT 118.01.2020 | D32: ELETRODUTO DE AÇO GALVANIZADO, CLASSE LEVE, DN 20 MM (3/4), APARENTE, INSTALADO EM TETO - FORNECIMENTO E INSTALAÇÃO.(FIXAÇÃO POR CUNHA) | F32: M | G32: 312.8 | H32: 16.56912 | I32: 19.95660407 | J32: 6242.43 | K32: =J32/$J$274 -> 0.009333384069 | L32: 0.6859426446 | M32: A
A33: 10.4 | B33: SINAPI | C33: 88489 | D33: APLICAÇÃO MANUAL DE PINTURA COM TINTA LÁTEX ACRÍLICA EM PAREDES, DUAS DEMÃOS. AF_06/2014 | F33: M2 | G33: 413.1 | H33: 11.78 | I33: 14.18836945 | J33: 5861.22 | K33: =J33/$J$274 -> 0.00876341703 | L33: 0.6947060616 | M33: A
A34: 3.9 | B34: ORSE | C34: 00140/ORSE | D34: 00140/ORSE Aço CA - 50 Ø 6,3 a 12,5mm, inclusive corte, dobragem, montagem e colocacao de ferragens nas formas, para superestruturas e fundações | F34: KG | G34: 572 | H34: 8.14 | I34: 9.804187378 | J34: 5608 | K34: =J34/$J$274 -> 0.008384814545 | L34: 0.7030908762 | M34: A
A35: 3.7 | B35: SINAPI | C35: 92446 | D35: MONTAGEM E DESMONTAGEM DE FÔRMA DE VIGA, ESCORAMENTO COM PONTALETE DE MADEIRA, PÉ-DIREITO SIMPLES, EM MADEIRA SERRADA, 1 UTILIZAÇÃO. AF_09/2020 | F35: M2 | G35: 26.88 | H35: 154.42 | I35: 185.9904932 | J35: 4999.42 | K35: =J35/$J$274 -> 0.00747489471 | L35: 0.7105657709 | M35: A
A36: 15.151 | B36: COMPOSIÇÃO | C36: IFMT 114.02.2020 | D36: INSTALAÇÃO DE UNIDADE REFRIGERADORA | F36: UN | G36: 7 | H36: 569.7104 | I36: 686.1851981 | J36: 4803.3 | K36: =J36/$J$274 -> 0.007181665425 | L36: 0.7177474363 | M36: A
A37: 9.2 | B37: SINAPI | C37: 90844 | D37: KIT DE PORTA DE MADEIRA PARA PINTURA, SEMI-OCA (LEVE OU MÉDIA), PADRÃO MÉDIO, 90X210CM, ESPESSURA DE 3,5CM, ITENS INCLUSOS: DOBRADIÇAS, MONTAGEM E INSTALAÇÃO DO BATENTE, FECHADURA COM EXECUÇÃO DO FURO - FORNECIMENTO E INSTALAÇÃO. AF_12/2019 | F37: UN | G37: 5 | H37: 796.48 | I37: 959.3168504 | J37: 4796.58 | K37: =J37/$J$274 -> 0.007171618001 | L37: 0.7249190543 | M37: A
A38: 11.24 | B38: COMPOSIÇÃO | C38: IFMT 058.04.2019 | D38: GRANITO PARA BANCADA SECA, POLIDO, TIPO CINZA ANDORINHA, COM REBAIXO E= *2,5* CM, FIXADO COM SUPORTE METALICO MÃO-FRANCESA AÇO - FORNECIMENTO E INSTALAÇÃO | F38: M2 | G38: 5.4 | H38: 693.467354 | I38: 835.2437198 | J38: 4510.32 | K38: =J38/$J$274 -> 0.006743615681 | L38: 0.73166267 | M38: A
A39: 15.27 | B39: SINAPI | C39: 91927 | D39: CABO DE COBRE FLEXÍVEL ISOLADO, 2,5 MM², ANTI-CHAMA 0,6/1,0 KV, PARA CIRCUITOS TERMINAIS - FORNECIMENTO E INSTALAÇÃO. AF_12/2015 | E39: VERDE | F39: M | G39: 940.6 | H39: 3.76 | I39: 4.528715545 | J39: 4259.71 | K39: =J39/$J$274 -> 0.006368915543 | L39: 0.7380315855 | M39: A
A40: 4.3 | B40: SINAPI | C40: 96364 | D40: PAREDE COM PLACAS DE GESSO ACARTONADO (DRYWALL), PARA USO INTERNO COM UMA FACE SIMPLES E OUTRA FACE DUPLA E ESTRUTURA METÁLICA COM GUIAS DUPLAS, SEM VÃOS. AF_06/2017_P | F40: M2 | G40: 28 | H40: 123.77 | I40: 149.0742349 | J40: 4174.08 | K40: =J40/$J$274 -> 0.006240885645 | L40: 0.7442724712 | M40: A
A41: 15.142 | B41: COMPOSIÇÃO | C41: IFMT 128.01.2020 | D41: QUADRO DE DISTRIBUICAO COM BARRAMENTO TRIFASICO, DE SOBREPOR, EM CHAPA DE ACO GALVANIZADO, PARA 18 DISJUNTORES DIN, 100 A (FORNECIMENTO E INSTALAÇÃO) | F41: UN | G41: 7 | H41: 495.07 | I41: 596.284895 | J41: 4173.99 | K41: =J41/$J$274 -> 0.006240751081 | L41: 0.7505132223 | M41: A
A42: 11.1 | B42: SINAPI | C42: 86932 | D42: VASO SANITÁRIO SIFONADO COM CAIXA ACOPLADA LOUÇA BRANCA - PADRÃO MÉDIO, INCLUSO ENGATE FLEXÍVEL EM METAL CROMADO, 1/2 X 40CM - FORNECIMENTO E INSTALAÇÃO. AF_01/2020 | F42: UN | G42: 8 | H42: 395.97 | I42: 476.9243337 | J42: 3815.39 | K42: =J42/$J$274 -> 0.005704589438 | L42: 0.7562178117 | M42: A
A43: 15.140 | B43: COMPOSIÇÃO | C43: IFMT 171.02.2020 | D43: DISPOSITIVO DE PROTEÇÃO CONTRA SURTO DE TENSÃO DPS 20KA - 175V, FORNECIMENTO E INSTALAÇÃO. | F43: UN | G43: 47 | H43: 67.348 | I43: 81.11700387 | J43: 3812.5 | K43: =J43/$J$274 -> 0.005700268447 | L43: 0.7619180802 | M43: A
A44: 3.6 | B44: SINAPI | C44: 92409 | D44: MONTAGEM E DESMONTAGEM DE FÔRMA DE PILARES RETANGULARES E ESTRUTURAS SIMILARES, PÉ-DIREITO SIMPLES, EM MADEIRA SERRADA, 1 UTILIZAÇÃO. AF_09/2020 | F44: M2 | G44: 20.16 | H44: 156.79 | I44: 188.8450294 | J44: 3807.12 | K44: =J44/$J$274 -> 0.005692224527 | L44: 0.7676103047 | M44: A
A45: 11.19 | B45: COMPOSIÇÃO | C45: IFMT 058.04.2019 | D45: GRANITO PARA BANCADA SECA, POLIDO, TIPO CINZA ANDORINHA, COM REBAIXO E= *2,5* CM, FIXADO COM SUPORTE METALICO MÃO-FRANCESA AÇO - FORNECIMENTO E INSTALAÇÃO | F45: M2 | G45: 4.2 | H45: 693.467354 | I45: 835.2437198 | J45: 3508.02 | K45: =J45/$J$274 -> 0.005245024451 | L45: 0.7728553291 | M45: A
A46: 15.83 | B46: SINAPI | C46: 97892 | D46: CAIXA ENTERRADA ELÉTRICA RETANGULAR, EM ALVENARIA COM BLOCOS DE CONCRETO, FUNDO COM BRITA, DIMENSÕES INTERNAS: 0,6X0,6X0,6 M. AF_05/2018 | F46: UN | G46: 10 | H46: 290.16 | I46: 349.4819422 | J46: 3494.82 | K46: =J46/$J$274 -> 0.005225288439 | L46: 0.7780806176 | M46: A
A47: 15.149 | B47: COMPOSIÇÃO | C47: IFMT 191.02.2020 | D47: LUMINARIA DE EMERGÊNCIA 2 FARÓIS LED 8W FORNECIMENTO E INSTALAÇÃO. | F47: UN | G47: 20 | H47: 136.668172 | I47: 164.6093817 | J47: 3292.19 | K47: =J47/$J$274 -> 0.004922325713 | L47: 0.7830029433 | M47: A
A48: 14.2 | B48: COMPOSIÇÃO | C48: IFMT 089.02.03.2020 | D48: PORTAO DE FERRO EM CHAPA GALVANIZADA PLANA 14 GSG | F48: M2 | G48: 9.36 | H48: 286.0685 | I48: 344.5539529 | J48: 3225.02 | K48: =J48/$J$274 -> 0.004821896327 | L48: 0.7878248396 | M48: A
A49: 15.28 | B49: SINAPI | C49: 91929 | D49: CABO DE COBRE FLEXÍVEL ISOLADO, 4 MM², ANTI-CHAMA 0,6/1,0 KV, PARA CIRCUITOS TERMINAIS - FORNECIMENTO E INSTALAÇÃO. AF_12/2015 | E49: VERMELHO | F49: M | G49: 489.7 | H49: 5.28 | I49: 6.359472894 | J49: 3114.23 | K49: =J49/$J$274 -> 0.004656248395 | L49: 0.792481088 | M49: A
A50: 15.32 | B50: SINAPI | C50: 91929 | D50: CABO DE COBRE FLEXÍVEL ISOLADO, 4 MM², ANTI-CHAMA 0,6/1,0 KV, PARA CIRCUITOS TERMINAIS - FORNECIMENTO E INSTALAÇÃO. AF_12/2015 | E50: VERDE | F50: M | G50: 489.7 | H50: 5.28 | I50: 6.359472894 | J50: 3114.23 | K50: =J50/$J$274 -> 0.004656248395 | L50: 0.7971373364 | M50: A
A51: 15.26 | B51: SINAPI | C51: 91927 | D51: CABO DE COBRE FLEXÍVEL ISOLADO, 2,5 MM², ANTI-CHAMA 0,6/1,0 KV, PARA CIRCUITOS TERMINAIS - FORNECIMENTO E INSTALAÇÃO. AF_12/2015 | E51: AZUL CLARO | F51: M | G51: 658.1 | H51: 3.76 | I51: 4.528715545 | J51: 2980.35 | K51: =J51/$J$274 -> 0.004456077394 | L51: 0.8015934138 | M51: B
A52: 15.29 | B52: SINAPI | C52: 91929 | D52: CABO DE COBRE FLEXÍVEL ISOLADO, 4 MM², ANTI-CHAMA 0,6/1,0 KV, PARA CIRCUITOS TERMINAIS - FORNECIMENTO E INSTALAÇÃO. AF_12/2015 | E52: BRANCO | F52: M | G52: 464.4 | H52: 5.28 | I52: 6.359472894 | J52: 2953.34 | K52: =J52/$J$274 -> 0.004415693329 | L52: 0.8060091071 | M52: B
A53: 3.5 | B53: SINAPI | C53: 94965 | D53: CONCRETO FCK = 25MPA, TRAÇO 1:2,3:2,7 (CIMENTO/ AREIA MÉDIA/ BRITA 1) - PREPARO MECÂNICO COM BETONEIRA 400 L. AF_07/2016 | F53: M3 | G53: 7.15 | H53: 340.12 | I53: 409.6560456 | J53: 2929.04 | K53: =J53/$J$274 -> 0.004379361126 | L53: 0.8103884682 | M53: B
A54: 10.7 | B54: COMPOSIÇÃO | C54: IFMT 060.05.2019 | D54: LIXAMENTO DE PAREDES E TETO, PARA PINTURA | F54: M2 | G54: 1673.16 | H54: 1.39612 | I54: 1.681550624 | J54: 2813.5 | K54: =J54/$J$274 -> 0.00420661122 | L54: 0.8145950795 | M54: B
A55: 9.1 | B55: SINAPI | C55: 90842 | D55: KIT DE PORTA DE MADEIRA PARA PINTURA, SEMI-OCA (LEVE OU MÉDIA), PADRÃO MÉDIO, 70X210CM, ESPESSURA DE 3,5CM, ITENS INCLUSOS: DOBRADIÇAS, MONTAGEM E INSTALAÇÃO DO BATENTE, FECHADURA COM EXECUÇÃO DO FURO - FORNECIMENTO E INSTALAÇÃO. AF_12/2019 | F55: UN | G55: 3 | H55: 765.2 | I55: 921.6417913 | J55: 2764.93 | K55: =J55/$J$274 -> 0.004133991669 | L55: 0.8187290711 | M55: B
A56: 2.1 | B56: COMPOSIÇÃO | C56: IFMT 211.06.2020 | D56: PLACA DE OBRA EM CHAPA DE ACO GALVANIZADO | F56: M2 | G56: 6 | H56: 381.4525 | I56: 459.4387943 | J56: 2756.63 | K56: =J56/$J$274 -> 0.004121581904 | L56: 0.822850653 | M56: B
A57: 10.10 | B57: SINAPI | C57: 88496 | D57: APLICAÇÃO E LIXAMENTO DE MASSA LÁTEX EM TETO, DUAS DEMÃOS. AF_06/2014 | F57: M2 | G57: 104 | H57: 21.69 | I57: 26.12442558 | J57: 2716.94 | K57: =J57/$J$274 -> 0.004062239306 | L57: 0.8269128923 | M57: B
A58: 15.30 | B58: SINAPI | C58: 91929 | D58: CABO DE COBRE FLEXÍVEL ISOLADO, 4 MM², ANTI-CHAMA 0,6/1,0 KV, PARA CIRCUITOS TERMINAIS - FORNECIMENTO E INSTALAÇÃO. AF_12/2015 | E58: PRETO | F58: M | G58: 424.6 | H58: 5.28 | I58: 6.359472894 | J58: 2700.23 | K58: =J58/$J$274 -> 0.00403725531 | L58: 0.8309501477 | M58: B
A59: 15.25 | B59: SINAPI | C59: 91927 | D59: CABO DE COBRE FLEXÍVEL ISOLADO, 2,5 MM², ANTI-CHAMA 0,6/1,0 KV, PARA CIRCUITOS TERMINAIS - FORNECIMENTO E INSTALAÇÃO. AF_12/2015 | E59: PRETO | F59: M | G59: 508.5 | H59: 3.76 | I59: 4.528715545 | J59: 2302.85 | K59: =J59/$J$274 -> 0.003443111657 | L59: 0.8343932593 | M59: B
A60: 3.27 | B60: SINAPI | C60: 92409 | D60: MONTAGEM E DESMONTAGEM DE FÔRMA DE PILARES RETANGULARES E ESTRUTURAS SIMILARES, PÉ-DIREITO SIMPLES, EM MADEIRA SERRADA, 1 UTILIZAÇÃO. AF_09/2020 | F60: M2 | G60: 12 | H60: 156.79 | I60: 188.8450294 | J60: 2266.14 | K60: =J60/$J$274 -> 0.003388224613 | L60: 0.8377814839 | M60: B
A61: 5.1 | B61: COMPOSIÇÃO | C61: IFMT 061.05.2019 | D61: RESTAURAÇÃO DA COBERTURA COM MANTA ASFALTICA ALUMINIZADA MULTIUSO. FORNECIMENTO E INSTALAÇÃO | F61: M2 | G61: 129.8 | H61: 14.23557 | I61: 17.14596999 | J61: 2225.55 | K61: =J61/$J$274 -> 0.003327536378 | L61: 0.8411090203 | M61: B
A62: 15.136 | B62: COMPOSIÇÃO | C62: IFMT 189.02.2020 | D62: INTERRUPTOR TETRAPOLAR DR 25 A 8KA, DISPOSITIVO RESIDUAL DIFERENCIAL | F62: UN | G62: 12 | H62: 152.65248 | I62: 183.8616115 | J62: 2206.34 | K62: =J62/$J$274 -> 0.003298814501 | L62: 0.8444078348 | M62: B
A63: 15.150 | B63: COMPOSIÇÃO | C63: IFMT 192.02.2020 | D63: LUMINARIA LED REFLETOR RETANGULAR, BIVOLT, LUZ BRANCA, 200 W, COM CAIXA ANTIVANDALISMO IP65 41cm x 33cm x 20,8cm | F63: UN | G63: 8 | H63: 225.26 | I63: 271.3134212 | J63: 2170.51 | K63: =J63/$J$274 -> 0.003245243191 | L63: 0.847653078 | M63: B
A64: 15.24 | B64: SINAPI | C64: 91927 | D64: CABO DE COBRE FLEXÍVEL ISOLADO, 2,5 MM², ANTI-CHAMA 0,6/1,0 KV, PARA CIRCUITOS TERMINAIS - FORNECIMENTO E INSTALAÇÃO. AF_12/2015 | E64: BRANCO | F64: M | G64: 471.4 | H64: 3.76 | I64: 4.528715545 | J64: 2134.84 | K64: =J64/$J$274 -> 0.003191911106 | L64: 0.8508449891 | M64: B
A65: 9.3 | B65: COMPOSIÇÃO | C65: IFMT 047.04.2019 | D65: PORTA DE FERRO, DE ABRIR, 2 FOLHAS DE 1,40X2,10M, VENEZIANA, COM FUNDO ANTI CORRESIVO. FORNECIMENTO E INSTALAÇÃO | F65: M2 | G65: 2.94 | H65: 596.96502 | I65: 719.0119059 | J65: 2113.9 | K65: =J65/$J$274 -> 0.003160602615 | L65: 0.8540055917 | M65: B
A66: 15.23 | B66: SINAPI | C66: 91927 | D66: CABO DE COBRE FLEXÍVEL ISOLADO, 2,5 MM², ANTI-CHAMA 0,6/1,0 KV, PARA CIRCUITOS TERMINAIS - FORNECIMENTO E INSTALAÇÃO. AF_12/2015 | E66: VERMELHO | F66: M | G66: 456.6 | H66: 3.76 | I66: 4.528715545 | J66: 2067.81 | K66: =J66/$J$274 -> 0.003091691042 | L66: 0.8570972828 | M66: B
A67: 11.2 | B67: SINAPI | C67: 86939 | D67: LAVATÓRIO LOUÇA BRANCA COM COLUNA, *44 X 35,5* CM, PADRÃO POPULAR, INCLUSO SIFÃO FLEXÍVEL EM PVC, VÁLVULA E ENGATE FLEXÍVEL 30CM EM PLÁSTICO E COM TORNEIRA CROMADA PADRÃO POPULAR - FORNECIMENTO E INSTALAÇÃO. AF_01/2020 | F67: UN | G67: 6 | H67: 284.91 | I67: 343.1586027 | J67: 2058.95 | K67: =J67/$J$274 -> 0.003078443992 | L67: 0.8601757268 | M67: B
A68: 15.12 | B68: COMPOSIÇÃO | C68: IFMT 181.02.2020 | D68: TOMADA BAIXA PARA INSTALAÇÃO EM CONDULETE (2 MÓDULOS), 2P+T 10 A, INCLUINDO SUPORTE E PLACA - FORNECIMENTO E INSTALAÇÃO. | F68: UN | G68: 58 | H68: 29.39124 | I68: 35.4001504 | J68: 2053.21 | K68: =J68/$J$274 -> 0.003069861817 | L68: 0.8632455886 | M68: B
A69: 15.78 | B69: COMPOSIÇÃO | C69: IFMT 121.01.2020 | D69: ELETRODUTO DE AÇO GALVANIZADO, CLASSE LEVE, DN 25 MM (1), APARENTE, INSTALADO EM PAREDE - FORNECIMENTO E INSTALAÇÃO.(FIXAÇÃO POR CUNHA) | F69: M | G69: 59.05 | H69: 28.487664 | I69: 34.31184224 | J69: 2026.11 | K69: =J69/$J$274 -> 0.003029343188 | L69: 0.8662749318 | M69: B
A70: 15.80 | B70: COMPOSIÇÃO | C70: IFMT 123.01.2020 | D70: ELETRODUTO DE AÇO GALVANIZADO, CLASSE SEMI PESADO, DN 32 MM (1 1/4), APARENTE, INSTALADO EM PAREDE - FORNECIMENTO E INSTALAÇÃO.(FIXAÇÃO POR CUNHA) | F70: M | G70: 41.93 | H70: 37.31919 | I70: 44.94893508 | J70: 1884.71 | K70: =J70/$J$274 -> 0.002817928641 | L70: 0.8690928604 | M70: B
A71: 13.1 | B71: SINAPI | C71: 99814 | D71: LIMPEZA DE SUPERFÍCIE COM JATO DE ALTA PRESSÃO. AF_04/2019 | F71: M2 | G71: 1085.47 | H71: 1.43 | I71: 1.722357242 | J71: 1869.57 | K71: =J71/$J$274 -> 0.002795292034 | L71: 0.8718881524 | M71: B
A72: 2.2 | B72: SINAPI | C72: 99814 | D72: LIMPEZA DE SUPERFÍCIE COM JATO DE ALTA PRESSÃO. AF_04/2019 | F72: M2 | G72: 1083.76 | H72: 1.43 | I72: 1.722357242 | J72: 1866.62 | K72: =J72/$J$274 -> 0.002790881335 | L72: 0.8746790338 | M72: B
A73: 10.16 | B73: COMPOSIÇÃO | C73: IFMT 249.09.2020 | D73: PINTURA ESMALTE ALTO BRILHO, DUAS DEMAOS, SOBRE SUPERFICIE METALICA | F73: M2 | G73: 57 | H73: 24.6681 | I73: 29.71138509 | J73: 1693.55 | K73: =J73/$J$274 -> 0.002532115312 | L73: 0.8772111491 | M73: B
A74: 15.57 | B74: SINAPI | C74: 92992 | D74: CABO DE COBRE FLEXÍVEL ISOLADO, 95 MM², ANTI-CHAMA 0,6/1,0 KV, PARA DISTRIBUIÇÃO - FORNECIMENTO E INSTALAÇÃO. AF_12/2015 | E74: VERMELHO | F74: M | G74: 21.1 | H74: 64.68 | I74: 77.90354295 | J74: 1643.76 | K74: =J74/$J$274 -> 0.002457671675 | L74: 0.8796688208 | M74: B
A75: 15.58 | B75: SINAPI | C75: 92992 | D75: CABO DE COBRE FLEXÍVEL ISOLADO, 95 MM², ANTI-CHAMA 0,6/1,0 KV, PARA DISTRIBUIÇÃO - FORNECIMENTO E INSTALAÇÃO. AF_12/2015 | E75: BRANCO | F75: M | G75: 21.1 | H75: 64.68 | I75: 77.90354295 | J75: 1643.76 | K75: =J75/$J$274 -> 0.002457671675 | L75: 0.8821264924 | M75: B
A76: 15.59 | B76: SINAPI | C76: 92992 | D76: CABO DE COBRE FLEXÍVEL ISOLADO, 95 MM², ANTI-CHAMA 0,6/1,0 KV, PARA DISTRIBUIÇÃO - FORNECIMENTO E INSTALAÇÃO. AF_12/2015 | E76: PRETO | F76: M | G76: 21.1 | H76: 64.68 | I76: 77.90354295 | J76: 1643.76 | K76: =J76/$J$274 -> 0.002457671675 | L76: 0.8845841641 | M76: B
A77: 15.60 | B77: SINAPI | C77: 92992 | D77: CABO DE COBRE FLEXÍVEL ISOLADO, 95 MM², ANTI-CHAMA 0,6/1,0 KV, PARA DISTRIBUIÇÃO - FORNECIMENTO E INSTALAÇÃO. AF_12/2015 | E77: AZUL CLARO | F77: M | G77: 21.1 | H77: 64.68 | I77: 77.90354295 | J77: 1643.76 | K77: =J77/$J$274 -> 0.002457671675 | L77: 0.8870418358 | M77: B
A78: 15.79 | B78: COMPOSIÇÃO | C78: IFMT 122.01.2020 | D78: ELETRODUTO DE AÇO GALVANIZADO, CLASSE SEMI PESADO, DN 32 MM (1 1/4), APARENTE, INSTALADO EM TETO - FORNECIMENTO E INSTALAÇÃO.(FIXAÇÃO POR CUNHA) | F78: M | G78: 41.93 | H78: 32.51685 | I78: 39.16477768 | J78: 1642.18 | K78: =J78/$J$274 -> 0.002455309335 | L78: 0.8894971451 | M78: =IF(L78<K$11,"A",IF(L78<L$11,"B","C")) -> B
A79: 15.63 | B79: ORSE | C79: 8684/ORSE | D79: FORNECIMENTO E INSTALAÇÃO DE ELETROCALHA PERFURADA 100 X 100 X 3000 MM (REF. MOPA OU SIMILAR) | F79: UN | G79: 19 | H79: 70.5 | I79: 84.91341648 | J79: 1613.35 | K79: 0.002412204092 | L79: =K79+L78 -> 0.8919093492 | M79: B
A80: 15.22 | B80: SINAPI | C80: 91925 | D80: CABO DE COBRE FLEXÍVEL ISOLADO, 1,5 MM², ANTI-CHAMA 0,6/1,0 KV, PARA CIRCUITOS TERMINAIS - FORNECIMENTO E INSTALAÇÃO. AF_12/2015 | E80: AMARELO | F80: M | G80: 467.1 | H80: 2.81 | I80: 3.384492203 | J80: 1580.9 | K80: 0.002363686397 | L80: 0.8942730356 | M80: B
A81: 15.31 | B81: SINAPI | C81: 91929 | D81: CABO DE COBRE FLEXÍVEL ISOLADO, 4 MM², ANTI-CHAMA 0,6/1,0 KV, PARA CIRCUITOS TERMINAIS - FORNECIMENTO E INSTALAÇÃO. AF_12/2015 | E81: AZUL CLARO | F81: M | G81: 229 | H81: 5.28 | I81: 6.359472894 | J81: 1456.32 | K81: 0.002177420313 | L81: 0.8964504559 | M81: B
A82: 11.5 | B82: SINAPI | C82: 74125/002 | D82: ESPELHO CRISTAL ESPESSURA 4MM, COM MOLDURA EM ALUMINIO E COMPENSADO 6MM PLASTIFICADO COLADO | F82: M2 | G82: 2.4 | H82: 503.35 | I82: 606.2577047 | J82: 1455.02 | K82: 0.002175476615 | L82: 0.8986259325 | M82: B
A83: 15.77 | B83: COMPOSIÇÃO | C83: IFMT 120.01.2020 | D83: ELETRODUTO DE AÇO GALVANIZADO, CLASSE LEVE, DN 25 MM (1), APARENTE, INSTALADO EM TETO - FORNECIMENTO E INSTALAÇÃO.(FIXAÇÃO POR CUNHA) | F83: M | G83: 59.05 | H83: 20.297496 | I83: 24.44723023 | J83: 1443.61 | K83: 0.002158416927 | L83: 0.9007843495 | M83: B
A84: 12.1 | B84: COMPOSIÇÃO | C84: IFMT 059.05.2019 | D84: DRENO EM PVC SOLDAVEL 25MM FIXADO COM BRÇADAEIRA DE AÇO NA PAREDE E NO PISO/CALÇADA ESCAVAÇÃO E CONCRETO | F84: UN | G84: 54 | H84: 21.37815 | I84: 25.74881921 | J84: 1390.44 | K84: 0.002078919675 | L84: 0.9028632691 | M84: B
A85: 11.23 | B85: COMPOSIÇÃO | C85: IFMT 057.04.2019 | D85: GRANITO PARA BANCADA PARA PIA, POLIDO, TIPO CINZA ANDORINHA, COM REBAIXO E= *2,5* CM, FIXADO COM SUPORTE METALICO MÃO-FRANCESA AÇO - FORNECIMENTO E INSTALAÇÃO | F85: M2 | G85: 1.5 | H85: 721.6040882 | I85: 869.1328861 | J85: 1303.7 | K85: 0.001949230157 | L85: 0.9048124993 | M85: B
A86: 10.15 | B86: COMPOSIÇÃO | C86: IFMT 223.07.2020 | D86: FUNDO ANTICORROSIVO A BASE DE OXIDO DE FERRO (ZARCAO), DUAS DEMAOS | F86: M2 | G86: 57 | H86: 18.9586 | I86: 22.8346028 | J86: 1301.57 | K86: 0.001946045483 | L86: 0.9067585448 | M86: B
A87: 10.11 | B87: SINAPI | C87: 88486 | D87: APLICAÇÃO MANUAL DE PINTURA COM TINTA LÁTEX PVA EM TETO, DUAS DEMÃOS. AF_06/2014 | F87: M2 | G87: 104 | H87: 10.39 | I87: 12.51419003 | J87: 1301.48 | K87: 0.001945910919 | L87: 0.9087044557 | M87: B
A88: 3.35 | B88: SINAPI | C88: 74202/001 | D88: LAJE PRE-MOLDADA P/FORRO, SOBRECARGA 100KG/M2, VAOS ATE 3,50M/E=8CM, C/LAJOTAS E CAP.C/CONC FCK=20MPA, 3CM, INTER-EIXO 38CM, C/ESCORAMENTO (REAPR.3X) E FERRAGEM NEGATIVA | F88: M2 | G88: 14.21 | H88: 75.67 | I88: 91.14040035 | J88: 1295.11 | K88: 0.001936386798 | L88: 0.9106408425 | M88: B
A89: 15.62 | B89: ORSE | C89: 12471/ORSE | D89: TAMPA DE ENCAIXE 100 X 3000 MM, GALVANIZADA À FOGO, PARA ELETROCALHA METÁLICA (REF.: MOPA OU SIMILAR) | F89: UN | G89: 19 | H89: 55.85 | I89: 67.26828809 | J89: 1278.1 | K89: 0.001910954256 | L89: 0.9125517968 | M89: B
A90: 15.5 | B90: COMPOSIÇÃO | C90: IFMT 126.01.2020 | D90: CURVA 90 GRAUS PARA ELETRODUTO, AÇO GALVANIZADO, DN 20 MM (3/4''), APARENTE, INSTALADA EM PAREDE - FORNECIMENTO E INSTALAÇÃO. | F90: UN | G90: 98 | H90: 10.602972 | I90: 12.77070322 | J90: 1251.53 | K90: 0.001871228058 | L90: 0.9144230248 | M90: B
A91: 15.20 | B91: SINAPI | C91: 91925 | D91: CABO DE COBRE FLEXÍVEL ISOLADO, 1,5 MM², ANTI-CHAMA 0,6/1,0 KV, PARA CIRCUITOS TERMINAIS - FORNECIMENTO E INSTALAÇÃO. AF_12/2015 | E91: AZUL CLARO | F91: M | G91: 353 | H91: 2.81 | I91: 3.384492203 | J91: 1194.73 | K91: 0.001786303402 | L91: 0.9162093282 | M91: B
A92: 15.2 | B92: SINAPI | C92: 95802 | D92: CONDULETE DE ALUMÍNIO, TIPO X, PARA ELETRODUTO DE AÇO GALVANIZADO DN 25 MM (1''), APARENTE - FORNECIMENTO E INSTALAÇÃO. AF_11/2016_P | F92: UN | G92: 30 | H92: 32.9 | I92: 39.62626102 | J92: 1188.79 | K92: 0.001777422197 | L92: 0.9179867504 | M92: B
A93: 15.145 | B93: COMPOSIÇÃO | C93: IFMT 131.01.2020 | D93: QUADRO DE DISTRIBUICAO COM BARRAMENTO TRIFASICO, DE SOBREPOR, EM CHAPA DE ACO GALVANIZADO, PARA 40 DISJUNTORES DIN, 100 A (FORNECIMENTO E INSTALAÇÃO) | F93: UN | G93: 1 | H93: 967.4 | I93: 1165.180696 | J93: 1165.18 | K93: 0.00174212165 | L93: 0.9197288721 | M93: B
A94: 3.22 | B94: SINAPI | C94: 92446 | D94: MONTAGEM E DESMONTAGEM DE FÔRMA DE VIGA, ESCORAMENTO COM PONTALETE DE MADEIRA, PÉ-DIREITO SIMPLES, EM MADEIRA SERRADA, 1 UTILIZAÇÃO. AF_09/2020 | F94: M2 | G94: 6.08 | H94: 154.42 | I94: 185.9904932 | J94: 1130.82 | K94: 0.001690748214 | L94: 0.9214196203 | M94: B
A95: 3.32 | B95: SINAPI | C95: 92446 | D95: MONTAGEM E DESMONTAGEM DE FÔRMA DE VIGA, ESCORAMENTO COM PONTALETE DE MADEIRA, PÉ-DIREITO SIMPLES, EM MADEIRA SERRADA, 1 UTILIZAÇÃO. AF_09/2020 | F95: M2 | G95: 6.08 | H95: 154.42 | I95: 185.9904932 | J95: 1130.82 | K95: 0.001690748214 | L95: 0.9231103685 | M95: B
A96: 11.16 | B96: SINAPI | C96: 93441 | D96: BANCADA GRANITO CINZA 150 X 60 CM, COM CUBA DE EMBUTIR DE AÇO, VÁLVULA AMERICANA EM METAL, SIFÃO FLEXÍVEL EM PVC, ENGATE FLEXÍVEL 30 CM, TORNEIRA CROMADA LONGA, DE PAREDE, 1/2 OU 3/4, P/ COZINHA, PADRÃO POPULAR - FORNEC. E INSTALAÇÃO. AF_01/2020 | F96: UN | G96: 1 | H96: 917.21 | I96: 1104.729571 | J96: 1104.73 | K96: 0.001651739688 | L96: 0.9247621082 | M96: B
A97: 15.134 | B97: COMPOSIÇÃO | C97: IFMT 187.02.2020 | D97: INTERRUPTOR TETRAPOLAR DR 25 A 3KA, DISPOSITIVO RESIDUAL DIFERENCIAL | F97: UN | G97: 6 | H97: 152.65248 | I97: 183.8616115 | J97: 1103.17 | K97: 0.001649407251 | L97: 0.9264115154 | M97: B
A98: 16.4 | B98: COTAÇÃO | C98: COT. 13 | D98: EXAUSTOR 220V VAZÃO DE 685M³/H | F98: UN | G98: 4 | H98: 235 | I98: 266.4292196 | J98: 1065.72 | K98: 0.001593413794 | L98: 0.9280049292 | M98: B
A99: 10.1 | B99: SINAPI | C99: 88495 | D99: APLICAÇÃO E LIXAMENTO DE MASSA LÁTEX EM PAREDES, UMA DEMÃO. AF_06/2014 | F99: M2 | G99: 100 | H99: 8.74 | I99: 10.52685475 | J99: 1052.69 | K99: 0.001573931958 | L99: 0.9295788612 | M99: B
A100: 11.18 | B100: COMPOSIÇÃO | C100: IFMT 057.04.2019 | D100: GRANITO PARA BANCADA PARA PIA, POLIDO, TIPO CINZA ANDORINHA, COM REBAIXO E= *2,5* CM, FIXADO COM SUPORTE METALICO MÃO-FRANCESA AÇO - FORNECIMENTO E INSTALAÇÃO | F100: M2 | G100: 1.2 | H100: 721.6040882 | I100: 869.1328861 | J100: 1042.96 | K100: 0.001559384126 | L100: 0.9311382453 | M100: B
A101: 15.148 | B101: COMPOSIÇÃO | C101: IFMT 184.02.2020 | D101: LUMINÁRIA ARANDELA TIPO TARTARUGA PARA 1 LÂMPADA LED 15W - FORNECIMENTO E INSTALAÇÃO. | F101: UN | G101: 10 | H101: 85.214552 | I101: 102.6362942 | J101: 1026.36 | K101: 0.001534564596 | L101: 0.9326728099 | M101: B
A102: 15.114 | B102: ORSE | C102: 11267/ORSE | D102: DISJUNTOR TERMOMAGNETICO TRIPOLAR 200 A, PADRÃO DIN (EUROPEU - LINHA BRANCA), CORRENTE 10KA | F102: UN | G102: 1 | H102: 849.69 | I102: 1023.405402 | J102: 1023.41 | K102: 0.001530153897 | L102: 0.9342029638 | M102: B
A103: 11.30 | B103: COMPOSIÇÃO | C103: IFMT 058.04.2019 | D103: GRANITO PARA BANCADA SECA, POLIDO, TIPO CINZA ANDORINHA, COM REBAIXO E= *2,5* CM, FIXADO COM SUPORTE METALICO MÃO-FRANCESA AÇO - FORNECIMENTO E INSTALAÇÃO | F103: M2 | G103: 1.2 | H103: 693.467354 | I103: 835.2437198 | J103: 1002.29 | K103: 0.001498576279 | L103: 0.9357015401 | M103: B
A104: 14.3 | B104: COTAÇÃO | C104: COT.15 | D104: Kit Motor Automatizador Portão Deslizante Dz4 Bi-Turbo Rossi 220V | F104: Unid | G104: 1 | H104: 764.92 | I104: 921.3045465 | J104: 921.3 | K104: 0.001377483887 | L104: 0.937079024 | M104: B
A105: 15.81 | B105: COMPOSIÇÃO | C105: IFMT 124.01.2020 | D105: ELETRODUTO DE AÇO GALVANIZADO, CLASSE SEMI PESADO, DN 40 MM (1 1/2 ), APARENTE, INSTALADO EM PAREDE - FORNECIMENTO E INSTALAÇÃO. (FIXAÇÃO POR CUNHA) | F105: M | G105: 16.9 | H105: 39.777507 | I105: 47.90984423 | J105: 809.68 | K105: 0.001210594979 | L105: 0.9382896189 | M105: B
A106: 15.56 | B106: SINAPI | C106: 92988 | D106: CABO DE COBRE FLEXÍVEL ISOLADO, 50 MM², ANTI-CHAMA 0,6/1,0 KV, PARA DISTRIBUIÇÃO - FORNECIMENTO E INSTALAÇÃO. AF_12/2015 | E106: VERDE | F106: M | G106: 18.2 | H106: 35.79 | I106: 43.10710888 | J106: 784.55 | K106: 0.001173021799 | L106: 0.9394626407 | M106: B
A107: 11.8 | B107: SINAPI | C107: 95472 | D107: VASO SANITARIO SIFONADO CONVENCIONAL PARA PCD SEM FURO FRONTAL COM LOUÇA BRANCA SEM ASSENTO, INCLUSO CONJUNTO DE LIGAÇÃO PARA BACIA SANITÁRIA AJUSTÁVEL - FORNECIMENTO E INSTALAÇÃO. AF_01/2020 | F107: UN | G107: 1 | H107: 625.24 | I107: 753.0675818 | J107: 753.07 | K107: 0.001125954402 | L107: 0.9405885951 | M107: B
A108: 15.11 | B108: COMPOSIÇÃO | C108: IFMT 179.02.2020 | D108: TOMADA MÉDIA PARA INSTALAÇÃO EM CONDULETE (2 MÓDULOS), 2P+T 10 A, INCLUINDO SUPORTE E PLACA - FORNECIMENTO E INSTALAÇÃO. | F108: UN | G108: 18 | H108: 34.6998 | I108: 41.79402226 | J108: 752.29 | K108: 0.001124788184 | L108: 0.9417133833 | M108: B
A109: 15.8 | B109: COMPOSIÇÃO | C109: IFMT 173.02.2020 | D109: TOMADA ALTA PARA INSTALAÇÃO EM CONDULETE (1 MÓDULO), 2P+T 10 A, INCLUINDO SUPORTE E PLACA - FORNECIMENTO E INSTALAÇÃO. | F109: UN | G109: 21 | H109: 27.88456 | I109: 33.58543626 | J109: 705.29 | K109: 0.001054516022 | L109: 0.9427678993 | M109: B
A110: 15.33 | B110: SINAPI | C110: 91929 | D110: CABO DE COBRE FLEXÍVEL ISOLADO, 4 MM², ANTI-CHAMA 0,6/1,0 KV, PARA CIRCUITOS TERMINAIS - FORNECIMENTO E INSTALAÇÃO. AF_12/2015 | E110: AMARELO | F110: M | G110: 110.9 | H110: 5.28 | I110: 6.359472894 | J110: 705.27 | K110: 0.001054486119 | L110: 0.9438223855 | M110: B
A111: 11.20 | B111: SINAPI | C111: 86938 | D111: CUBA DE EMBUTIR OVAL EM LOUÇA BRANCA, 35 X 50CM OU EQUIVALENTE, INCLUSO VÁLVULA E SIFÃO TIPO GARRAFA EM METAL CROMADO - FORNECIMENTO E INSTALAÇÃO. AF_01/2020 | F111: UN | G111: 2 | H111: 292.62 | I111: 352.4448784 | J111: 704.89 | K111: 0.001053917961 | L111: 0.9448763034 | M111: B
A112: 11.25 | B112: SINAPI | C112: 86938 | D112: CUBA DE EMBUTIR OVAL EM LOUÇA BRANCA, 35 X 50CM OU EQUIVALENTE, INCLUSO VÁLVULA E SIFÃO TIPO GARRAFA EM METAL CROMADO - FORNECIMENTO E INSTALAÇÃO. AF_01/2020 | F112: UN | G112: 2 | H112: 292.62 | I112: 352.4448784 | J112: 704.89 | K112: 0.001053917961 | L112: 0.9459302214 | M112: B
A113: 10.3 | B113: COMPOSIÇÃO | C113: IFMT 060.05.2019 | D113: LIXAMENTO DE PAREDES E TETO, PARA PINTURA | F113: M2 | G113: 413.1 | H113: 1.39612 | I113: 1.681550624 | J113: 694.65 | K113: 0.0010386076 | L113: 0.946968829 | M113: B
A114: 15.47 | B114: SINAPI | C114: 92982 | D114: CABO DE COBRE FLEXÍVEL ISOLADO, 16 MM², ANTI-CHAMA 0,6/1,0 KV, PARA DISTRIBUIÇÃO - FORNECIMENTO E INSTALAÇÃO. AF_12/2015 | E114: VERDE | F114: M | G114: 50.1 | H114: 11.51 | I114: 13.86316913 | J114: 694.54 | K114: 0.001038443134 | L114: 0.9480072721 | M114: B
A115: 15.61 | B115: ORSE | C115: 11298/ORSE | D115: FORNECIMENTO E INSTALAÇÃO DE MÃO FRANCESA SIMPLES 100MM | F115: UN | G115: 59 | H115: 9.39 | I115: 11.30974441 | J115: 667.27 | K115: 0.0009976703283 | L115: 0.9490049425 | M115: B
A116: 16.2 | B116: COTAÇÃO | C116: COT. 09 | D116: VENTILADOR DE PAREDE 60CM BIVOLT | F116: UN | G116: 2 | H116: 289.88 | I116: 328.6489455 | J116: 657.3 | K116: 0.0009827636591 | L116: 0.9499877061 | M116: B
A117: 11.26 | B117: SINAPI | C117: 86911 | D117: TORNEIRA CROMADA LONGA, DE PAREDE, 1/2 OU 3/4, PARA PIA DE COZINHA, PADRÃO POPULAR - FORNECIMENTO E INSTALAÇÃO. AF_01/2020 | F117: UN | G117: 12 | H117: 42.71 | I117: 51.44187259 | J117: 617.3 | K117: 0.0009229575639 | L117: 0.9509106637 | M117: C
A118: 15.14 | B118: COMPOSIÇÃO | C118: IFMT 186.02.2020 | D118: TOMADA INDUSTRIAL 32A SOBREPOR 3P+T AZUL - FORNECIMENTO E INSTALAÇÃO | F118: UNID. | G118: 10 | H118: 50.432 | I118: 60.7426017 | J118: 607.43 | K118: 0.0009082004099 | L118: 0.9518188641 | M118: C
A119: 15.98 | B119: COMPOSIÇÃO | C119: IFMT 143.02.2020 | D119: DISJUNTOR TRIPOLAR TIPO DIN, CORRENTE NOMINAL DE 20A - FORNECIMENTO E INSTALAÇÃO, CURVA D, CAPACIDADE DE INTERRUPÇÃO 8KA. | F119: UN | G119: 8 | H119: 62.91564 | I119: 75.77846727 | J119: 606.23 | K119: 0.0009064062271 | L119: 0.9527252703 | M119: C
A120: 15.34 | B120: SINAPI | C120: 91931 | D120: CABO DE COBRE FLEXÍVEL ISOLADO, 6 MM², ANTI-CHAMA 0,6/1,0 KV, PARA CIRCUITOS TERMINAIS - FORNECIMENTO E INSTALAÇÃO. AF_12/2015 | E120: VERMELHO | F120: M | G120: 68.3 | H120: 7.11 | I120: 8.563608385 | J120: 584.89 | K120: 0.0008744996753 | L120: 0.95359977 | M120: C
A121: 15.35 | B121: SINAPI | C121: 91931 | D121: CABO DE COBRE FLEXÍVEL ISOLADO, 6 MM², ANTI-CHAMA 0,6/1,0 KV, PARA CIRCUITOS TERMINAIS - FORNECIMENTO E INSTALAÇÃO. AF_12/2015 | E121: BRANCO | F121: M | G121: 68.3 | H121: 7.11 | I121: 8.563608385 | J121: 584.89 | K121: 0.0008744996753 | L121: 0.9544742697 | M121: C
A122: 15.36 | B122: SINAPI | C122: 91931 | D122: CABO DE COBRE FLEXÍVEL ISOLADO, 6 MM², ANTI-CHAMA 0,6/1,0 KV, PARA CIRCUITOS TERMINAIS - FORNECIMENTO E INSTALAÇÃO. AF_12/2015 | E122: PRETO | F122: M | G122: 68.3 | H122: 7.11 | I122: 8.563608385 | J122: 584.89 | K122: 0.0008744996753 | L122: 0.9553487693 | M122: C
A123: 15.37 | B123: SINAPI | C123: 91931 | D123: CABO DE COBRE FLEXÍVEL ISOLADO, 6 MM², ANTI-CHAMA 0,6/1,0 KV, PARA CIRCUITOS TERMINAIS - FORNECIMENTO E INSTALAÇÃO. AF_12/2015 | E123: VERDE | F123: M | G123: 68.3 | H123: 7.11 | I123: 8.563608385 | J123: 584.89 | K123: 0.0008744996753 | L123: 0.956223269 | M123: C
A124: 11.14 | B124: ORSE | C124: 12128/ORSE | D124: Barra de apoio, para lavatório,fixa, constituida de duas barras laterais em "U", em aço inox, d=1 1/4", | G124: 1 | H124: 484.98 | I124: 584.1320386 | J124: 584.13 | K124: 0.0008733633595 | L124: 0.9570966324 | M124: C
A125: 15.3 | B125: SINAPI | C125: 95803 | D125: CONDULETE DE ALUMÍNIO, TIPO X, PARA ELETRODUTO DE AÇO GALVANIZADO DN 32 MM (1 1/4''), APARENTE - FORNECIMENTO E INSTALAÇÃO. AF_11/2016_P | F125: UN | G125: 11 | H125: 43.32 | I125: 52.17658442 | J125: 573.94 | K125: 0.0008581277567 | L125: 0.9579547601 | M125: C
A126: 15.143 | B126: COMPOSIÇÃO | C126: IFMT 129.01.2020 | D126: QUADRO DE DISTRIBUICAO COM BARRAMENTO TRIFASICO, DE SOBREPOR, EM CHAPA DE ACO GALVANIZADO, PARA 24 DISJUNTORES DIN, 100 A (FORNECIMENTO E INSTALAÇÃO) | F126: UN | G126: 1 | H126: 466.13 | I126: 561.4282386 | J126: 561.43 | K126: 0.0008394234005 | L126: 0.9587941835 | M126: C
A127: 15.144 | B127: COMPOSIÇÃO | C127: IFMT 130.01.2020 | D127: QUADRO DE DISTRIBUICAO COM BARRAMENTO TRIFASICO, DE SOBREPOR, EM CHAPA DE ACO GALVANIZADO, PARA 28 DISJUNTORES DIN, 100 A (FORNECIMENTO E INSTALAÇÃO) | F127: UN | G127: 1 | H127: 466.13 | I127: 561.4282386 | J127: 561.43 | K127: 0.0008394234005 | L127: 0.9596336069 | M127: C
A128: 15.73 | B128: ORSE | C128: 9519/ORSE | D128: TALA PLANA PERFURADA 100MM PARA ELETROCALHA METÁLICA (REF.: MOPA OU SIMILAR) - REV 01 | F128: UN | G128: 96 | H128: 4.73 | I128: 5.697027801 | J128: 546.91 | K128: 0.0008177137879 | L128: 0.9604513207 | M128: C
A129: 15.133 | B129: ORSE | C129: 7996/ORSE | D129: DISJUNTOR BIPOLAR DR 25 A - DISPOSITIVO RESIDUAL DIFERENCIAL, TIPO AC, 30MA, REF.5SM1 312-OMB, SIEMENS OU SIMILAR | F129: UN | G129: 3 | H129: 144.65 | I129: 174.2230595 | J129: 522.67 | K129: 0.0007814712942 | L129: 0.961232792 | M129: C
A130: 15.13 | B130: COMPOSIÇÃO | C130: IFMT 185.02.2020 | D130: TOMADA INDUSTRIAL 16A SOBREPOR 3P+T VERMELHA - FORNECIMENTO E INSTALAÇÃO | F130: UN | G130: 10 | H130: 43.032 | I130: 51.82970408 | J130: 518.3 | K130: 0.0007749374783 | L130: 0.9620077295 | M130: C
A131: 15.152 | B131: COMPOSIÇÃO | C131: IFMT 115.02.2020 | D131: INSTALAÇÃO DE UNIDADE CONDENSADORA | F131: UN | G131: 7 | H131: 59.5085 | I131: 71.6747524 | J131: 501.72 | K131: 0.0007501478519 | L131: 0.9627578773 | M131: C
A132: 8.7 | B132: SINAPI | C132: 94273 | D132: ASSENTAMENTO DE GUIA (MEIO-FIO) EM TRECHO RETO, CONFECCIONADA EM CONCRETO PRÉ-FABRICADO, DIMENSÕES 100X15X13X30 CM (COMPRIMENTO X BASE INFERIOR X BASE SUPERIOR X ALTURA), PARA VIAS URBANAS (USO VIÁRIO). AF_06/2016 | F132: M | G132: 10 | H132: 40.51 | I132: 48.79209222 | J132: 487.92 | K132: 0.000729514749 | L132: 0.9634873921 | M132: C
A133: 10.17 | B133: SINAPI | C133: 6082 | D133: PINTURA EM VERNIZ SINTETICO BRILHANTE EM MADEIRA, TRES DEMAOS | F133: M2 | G133: 24 | H133: 16.17 | I133: 19.47588574 | J133: 467.42 | K133: 0.0006988641253 | L133: 0.9641862562 | M133: C
A134: 15.100 | B134: COMPOSIÇÃO | C134: IFMT 145.02.2020 | D134: DISJUNTOR TRIPOLAR TIPO DIN, CORRENTE NOMINAL DE 25A - FORNECIMENTO E INSTALAÇÃO, CURVA C, CAPACIDADE DE INTERRUPÇÃO 3KA. | F134: UN | G134: 6 | H134: 62.91564 | I134: 75.77846727 | J134: 454.67 | K134: 0.0006798009324 | L134: 0.9648660571 | M134: C
A135: 15.112 | B135: ORSE | C135: 8078/ORSE | D135: DISJUNTOR TERMOMAGNETICO TRIPOLAR 125 A, PADRÃO DIN (EUROPEU - LINHA BRANCA), 10KA | F135: UN | G135: 1 | H135: 375.06 | I135: 451.7393757 | J135: 451.74 | K135: 0.0006754201359 | L135: 0.9655414773 | M135: C
A136: 15.111 | B136: ORSE | C136: 8490/ORSE | D136: DISJUNTOR TERMOMAGNETICO TRIPOLAR 100 A, PADRÃO DIN (EUROPEU - LINHA BRANCA), 10KA | F136: UN | G136: 1 | H136: 374.47 | I136: 451.0287527 | J136: 451.03 | K136: 0.0006743585778 | L136: 0.9662158359 | M136: C
A137: 15.4 | B137: COMPOSIÇÃO | C137: IFMT 194.02.2020 | D137: CONDULETE MULTIPLO DE ALUMÍNIO TIPO X 1.1/2" - FORNECIMENTO E INSTALAÇÃO | F137: UN | G137: 7 | H137: 53.1891 | I137: 64.06337873 | J137: 448.44 | K137: 0.0006704861331 | L137: 0.966886322 | M137: C
A138: 15.51 | B138: SINAPI | C138: 92987 | D138: CABO DE COBRE FLEXÍVEL ISOLADO, 50 MM², ANTI-CHAMA 450/750 V, PARA DISTRIBUIÇÃO - FORNECIMENTO E INSTALAÇÃO. AF_12/2015 | E138: AZUL CLARO | F138: M | G138: 10 | H138: 35.7 | I138: 42.99870877 | J138: 429.99 | K138: 0.0006429005717 | L138: 0.9675292226 | M138: C
A139: 15.88 | B139: COMPOSIÇÃO | C139: IFMT 133.01.2020 | D139: DISJUNTOR TRIPOLAR TIPO DIN, CORRENTE NOMINAL DE 10A - FORNECIMENTO E INSTALAÇÃO, CURVA D, CAPACIDADE DE INTERRUPÇÃO 3KA. | F139: UN | G139: 6 | H139: 58.8678 | I139: 70.90306409 | J139: 425.42 | K139: 0.0006360677253 | L139: 0.9681652903 | M139: C
A140: 15.87 | B140: SINAPI | C140: 97670 | D140: ELETRODUTO FLEXÍVEL CORRUGADO, PEAD, DN 100 (4) - FORNECIMENTO E INSTALAÇÃO. AF_04/2016 | F140: M | G140: 17.1 | H140: 19.58 | I140: 23.58304531 | J140: 403.27 | K140: 0.0006029501001 | L140: 0.9687682404 | M140: C
A141: 15.43 | B141: SINAPI | C141: 92982 | D141: CABO DE COBRE FLEXÍVEL ISOLADO, 16 MM², ANTI-CHAMA 0,6/1,0 KV, PARA DISTRIBUIÇÃO - FORNECIMENTO E INSTALAÇÃO. AF_12/2015 | E141: VERMELHO | F141: M | G141: 27.7 | H141: 11.51 | I141: 13.86316913 | J141: 384.01 | K141: 0.0005741534653 | L141: 0.9693423939 | M141: C
A142: 15.44 | B142: SINAPI | C142: 92982 | D142: CABO DE COBRE FLEXÍVEL ISOLADO, 16 MM², ANTI-CHAMA 0,6/1,0 KV, PARA DISTRIBUIÇÃO - FORNECIMENTO E INSTALAÇÃO. AF_12/2015 | E142: BRANCO | F142: M | G142: 27.7 | H142: 11.51 | I142: 13.86316913 | J142: 384.01 | K142: =J142/$J$274 -> 0.0005741534653 | L142: 0.9699165473 | M142: =IF(L142<K$11,"A",IF(L142<L$11,"B","C")) -> C
A143: 15.45 | B143: SINAPI | C143: 92982 | D143: CABO DE COBRE FLEXÍVEL ISOLADO, 16 MM², ANTI-CHAMA 0,6/1,0 KV, PARA DISTRIBUIÇÃO - FORNECIMENTO E INSTALAÇÃO. AF_12/2015 | E143: PRETO | F143: M | G143: 27.7 | H143: 11.51 | I143: 13.86316913 | J143: 384.01 | K143: 0.0005741534653 | L143: =K143+L142 -> 0.9704907008 | M143: C
A144: 15.46 | B144: SINAPI | C144: 92982 | D144: CABO DE COBRE FLEXÍVEL ISOLADO, 16 MM², ANTI-CHAMA 0,6/1,0 KV, PARA DISTRIBUIÇÃO - FORNECIMENTO E INSTALAÇÃO. AF_12/2015 | E144: AZUL CLARO | F144: M | G144: 27.7 | H144: 11.51 | I144: 13.86316913 | J144: 384.01 | K144: 0.0005741534653 | L144: 0.9710648543 | M144: C
A145: 15.52 | B145: SINAPI | C145: 92986 | D145: CABO DE COBRE FLEXÍVEL ISOLADO, 35 MM², ANTI-CHAMA 0,6/1,0 KV, PARA DISTRIBUIÇÃO - FORNECIMENTO E INSTALAÇÃO. AF_12/2015 | E145: VERMELHO | F145: M | G145: 12.4 | H145: 25.54 | I145: 30.76154123 | J145: 381.44 | K145: 0.0005703109237 | L145: 0.9716351652 | M145: C
A146: 15.53 | B146: SINAPI | C146: 92986 | D146: CABO DE COBRE FLEXÍVEL ISOLADO, 35 MM², ANTI-CHAMA 0,6/1,0 KV, PARA DISTRIBUIÇÃO - FORNECIMENTO E INSTALAÇÃO. AF_12/2015 | E146: BRANCO | F146: M | G146: 12.4 | H146: 25.54 | I146: 30.76154123 | J146: 381.44 | K146: 0.0005703109237 | L146: 0.9722054761 | M146: C
A147: 15.54 | B147: SINAPI | C147: 92986 | D147: CABO DE COBRE FLEXÍVEL ISOLADO, 35 MM², ANTI-CHAMA 0,6/1,0 KV, PARA DISTRIBUIÇÃO - FORNECIMENTO E INSTALAÇÃO. AF_12/2015 | E147: PRETO | F147: M | G147: 12.4 | H147: 25.54 | I147: 30.76154123 | J147: 381.44 | K147: 0.0005703109237 | L147: 0.972775787 | M147: C
A148: 15.55 | B148: SINAPI | C148: 92986 | D148: CABO DE COBRE FLEXÍVEL ISOLADO, 35 MM², ANTI-CHAMA 0,6/1,0 KV, PARA DISTRIBUIÇÃO - FORNECIMENTO E INSTALAÇÃO. AF_12/2015 | E148: AZUL CLARO | F148: M | G148: 12.4 | H148: 25.54 | I148: 30.76154123 | J148: 381.44 | K148: 0.0005703109237 | L148: 0.9733460979 | M148: C
A149: 15.74 | B149: COMPOSIÇÃO | C149: IFMT 200.02.2020 | D149: TÊ VERTICAL DESCIDA LATERAL PARA ELETROCALHA 100X100MM PERFURADO GALVANIZADO COM TAMPA - FORNECIMENTO E INSTALAÇÃO | F149: UN | G149: 3 | H149: 103.286 | I149: 124.4023707 | J149: 373.21 | K149: 0.0005580058196 | L149: 0.9739041038 | M149: C
A150: 3.2 | B150: SINAPI | C150: 93358 | D150: ESCAVAÇÃO MANUAL DE VALA COM PROFUNDIDADE MENOR OU IGUAL A 1,30 M. AF_03/2016 | F150: M3 | G150: 4.75 | H150: 62.93 | I150: 75.79576311 | J150: 360.03 | K150: 0.0005382997112 | L150: 0.9744424035 | M150: C
A151: 15.17 | B151: SINAPI | C151: 91925 | D151: CABO DE COBRE FLEXÍVEL ISOLADO, 1,5 MM², ANTI-CHAMA 0,6/1,0 KV, PARA CIRCUITOS TERMINAIS - FORNECIMENTO E INSTALAÇÃO. AF_12/2015 | E151: VERMELHO | F151: M | G151: 105.4 | H151: 2.81 | I151: 3.384492203 | J151: 356.73 | K151: 0.0005333657084 | L151: 0.9749757692 | M151: C
A152: 3.12 | B152: SINAPI | C152: 92508 | D152: MONTAGEM E DESMONTAGEM DE FÔRMA DE LAJE MACIÇA, PÉ-DIREITO DUPLO, EM CHAPA DE MADEIRA COMPENSADA RESINADA, 2 UTILIZAÇÕES. AF_09/2020 | F152: M2 | G152: 4 | H152: 73.07 | I152: 88.00884173 | J152: 352.04 | K152: 0.0005263534437 | L152: 0.9755021226 | M152: C
A153: 8.1 | B153: SINAPI | C153: 98689 | D153: SOLEIRA EM GRANITO, LARGURA 15 CM, ESPESSURA 2,0 CM. AF_09/2020 | F153: M | G153: 3 | H153: 93.71 | I153: 112.8685994 | J153: 338.61 | K153: 0.0005062735472 | L153: 0.9760083962 | M153: C
A154: 3.13 | B154: SINAPI | C154: 90856 | D154: CONCRETAGEM DE LAJES EM EDIFICAÇÕES MULTIFAMILIARES FEITAS COM SISTEMA DE FÔRMAS MANUSEÁVEIS, COM CONCRETO USINADO BOMBEÁVEL FCK 20 MPA - LANÇAMENTO, ADENSAMENTO E ACABAMENTO. AF_06/2015 | F154: M3 | G154: 0.54 | H154: 508.23 | I154: 612.1353994 | J154: 330.55 | K154: 0.0004942226191 | L154: 0.9765026188 | M154: C
A155: 15.85 | B155: SINAPI | C155: 97667 | D155: ELETRODUTO FLEXÍVEL CORRUGADO, PEAD, DN 50 (1 ½) - FORNECIMENTO E INSTALAÇÃO. AF_04/2016 | F155: M | G155: 43.4 | H155: 6.25 | I155: 7.527785149 | J155: 326.71 | K155: 0.0004884812339 | L155: 0.9769911 | M155: C
A156: 4.4 | B156: SINAPI | C156: 93184 | D156: VERGA PRÉ-MOLDADA PARA PORTAS COM ATÉ 1,5 M DE VÃO. AF_03/2016 | F156: M | G156: 13.3 | H156: 20.2 | I156: 24.3298016 | J156: 323.59 | K156: 0.0004838163585 | L156: 0.9774749164 | M156: C
A157: 3.26 | B157: SINAPI | C157: 92762 | D157: ARMAÇÃO DE PILAR OU VIGA DE UMA ESTRUTURA CONVENCIONAL DE CONCRETO ARMADO EM UM EDIFÍCIO DE MÚLTIPLOS PAVIMENTOS UTILIZANDO AÇO CA-50 DE 10,0 MM - MONTAGEM. AF_12/2015 | F157: KG | G157: 29.62 | H157: 9.07 | I157: 10.92432181 | J157: 323.58 | K157: 0.000483801407 | L157: 0.9779587178 | M157: C
A158: 15.6 | B158: COMPOSIÇÃO | C158: IFMT 125.01.2020 | D158: CURVA 90 GRAUS PARA ELETRODUTO, AÇO GALVANIZADO, DN 25 MM (1''), APARENTE, INSTALADA EM PAREDE - FORNECIMENTO E INSTALAÇÃO. | F158: UN | G158: 20 | H158: 12.771988 | I158: 15.38316505 | J158: 307.66 | K158: 0.0004599985811 | L158: 0.9784187164 | M158: C
A159: 15.50 | B159: SINAPI | C159: 92986 | D159: CABO DE COBRE FLEXÍVEL ISOLADO, 35 MM², ANTI-CHAMA 0,6/1,0 KV, PARA DISTRIBUIÇÃO - FORNECIMENTO E INSTALAÇÃO. AF_12/2015 | E159: PRETO | F159: M | G159: 10 | H159: 25.54 | I159: 30.76154123 | J159: 307.62 | K159: 0.000459938775 | L159: 0.9788786552 | M159: C
A160: 15.49 | B160: SINAPI | C160: 92985 | D160: CABO DE COBRE FLEXÍVEL ISOLADO, 35 MM², ANTI-CHAMA 450/750 V, PARA DISTRIBUIÇÃO - FORNECIMENTO E INSTALAÇÃO. AF_12/2015 | E160: BRANCO | F160: M | G160: 10 | H160: 24.82 | I160: 29.89434038 | J160: 298.94 | K160: 0.0004469608524 | L160: 0.979325616 | M160: C
A161: 11.4 | B161: SINAPI | C161: 95544 | D161: PAPELEIRA DE PAREDE EM METAL CROMADO SEM TAMPA, INCLUSO FIXAÇÃO. AF_01/2020 | F161: UN | G161: 8 | H161: 30.73 | I161: 37.01261402 | J161: 296.1 | K161: 0.0004427146196 | L161: 0.9797683306 | M161: C
A162: 4.1 | B162: SINAPI | C162: 87495 | D162: ALVENARIA DE VEDAÇÃO DE BLOCOS CERÂMICOS FURADOS NA HORIZONTAL DE 9X19X19CM (ESPESSURA 9CM) DE PAREDES COM ÁREA LÍQUIDA MENOR QUE 6M² SEM VÃOS E ARGAMASSA DE ASSENTAMENTO COM PREPARO EM BETONEIRA. AF_06/2014 | F162: M2 | G162: 3.36 | H162: 72.99 | I162: 87.91248608 | J162: 295.39 | K162: 0.0004416530614 | L162: 0.9802099837 | M162: C
A163: 15.110 | B163: ORSE | C163: 11572/ORSE | D163: DISJUNTOR TERMOMAGNETICO TRIPOLAR 70 A, PADRÃO DIN (EUROPEU - LINHA BRANCA), CURVA C, 10KA | F163: UN | G163: 2 | H163: 115.99 | I163: 139.7036479 | J163: 279.41 | K163: 0.0004177605264 | L163: 0.9806277442 | M163: C
A164: 14.4 | B164: COMPOSIÇÃO | C164: IFMT 249.09.2020 | D164: PINTURA ESMALTE ALTO BRILHO, DUAS DEMAOS, SOBRE SUPERFICIE METALICA | F164: M2 | G164: 9.36 | H164: 24.6681 | I164: 29.71138509 | J164: 278.1 | K164: 0.0004158018768 | L164: 0.9810435461 | M164: C
A165: 11.31 | B165: SINAPI | C165: 86929 | D165: TANQUE DE MÁRMORE SINTÉTICO SUSPENSO, 22L OU EQUIVALENTE, INCLUSO SIFÃO FLEXÍVEL EM PVC, VÁLVULA PLÁSTICA E TORNEIRA DE METAL CROMADO PADRÃO POPULAR - FORNECIMENTO E INSTALAÇÃO. AF_01/2020 | F165: UN | G165: 1 | H165: 227.43 | I165: 273.9270682 | J165: 273.93 | K165: 0.0004095670913 | L165: 0.9814531132 | M165: C
A166: 15.127 | B166: COMPOSIÇÃO | C166: IFMT 165.02.2020 | D166: DISJUNTOR MONOPOLAR TIPO DIN, CORRENTE NOMINAL DE 10A - FORNECIMENTO E INSTALAÇÃO, CURVA B, CAPACIDADE DE INTERRUPÇÃO 3KA. | F166: UN | G166: 23 | H166: 9.5026 | I166: 11.44536498 | J166: 263.24 | K166: 0.0003935839124 | L166: 0.9818466971 | M166: C
A167: 15.66 | B167: ORSE | C167: 12497/ORSE | D167: TAMPA DE ENCAIXE PARA CURVA HORIZONTAL 100 X 100 MM, LISA, GALVANIZADA À FOGO, COM ÂNGULO 90° (REF.: MOPA OU SIMILAR) | F167: UN | G167: 8 | H167: 26.89 | I167: 32.38754282 | J167: 259.1 | K167: 0.0003873939815 | L167: 0.9822340911 | M167: C
A168: 15.19 | B168: SINAPI | C168: 91925 | D168: CABO DE COBRE FLEXÍVEL ISOLADO, 1,5 MM², ANTI-CHAMA 0,6/1,0 KV, PARA CIRCUITOS TERMINAIS - FORNECIMENTO E INSTALAÇÃO. AF_12/2015 | E168: PRETO | F168: M | G168: 76.05 | H168: 2.81 | I168: 3.384492203 | J168: 257.39 | K168: 0.000384837271 | L168: 0.9826189283 | M168: C
A169: 15.9 | B169: COMPOSIÇÃO | C169: IFMT 177.02.2020 | D169: TOMADA ALTA PARA INSTALAÇÃO EM CONDULETE (1 MÓDULO), 2P+T 20 A, INCLUINDO SUPORTE E PLACA - FORNECIMENTO E INSTALAÇÃO. | F169: UN | G169: 7 | H169: 29.18456 | I169: 35.15121557 | J169: 246.06 | K169: 0.0003678971945 | L169: 0.9829868255 | M169: C
A170: 15.104 | B170: COMPOSIÇÃO | C170: IFMT 149.02.2020 | D170: DISJUNTOR TRIPOLAR TIPO DIN, CORRENTE NOMINAL DE 32A - FORNECIMENTO E INSTALAÇÃO, CURVA D, CAPACIDADE DE INTERRUPÇÃO 8KA. | F170: UN | G170: 3 | H170: 66.14628 | I170: 79.66959748 | J170: 239.01 | K170: 0.0003573563702 | L170: 0.9833441819 | M170: C
A171: 4.2 | B171: SINAPI | C171: 101162 | D171: ALVENARIA DE VEDAÇÃO COM ELEMENTO VAZADO DE CERÂMICA (COBOGÓ) DE 7X20X20CM E ARGAMASSA DE ASSENTAMENTO COM PREPARO EM BETONEIRA. AF_05/2020 | F171: M2 | G171: 1.6 | H171: 123.92 | I171: 149.2549017 | J171: 238.81 | K171: 0.0003570573398 | L171: 0.9837012392 | M171: C
A172: 6.2 | B172: SINAPI | C172: 87529 | D172: MASSA ÚNICA, PARA RECEBIMENTO DE PINTURA, EM ARGAMASSA TRAÇO 1:2:8, PREPARO MECÂNICO COM BETONEIRA 400L, APLICADA MANUALMENTE EM FACES INTERNAS DE PAREDES, ESPESSURA DE 20MM, COM EXECUÇÃO DE TALISCAS. AF_06/2014 | F172: M2 | G172: 7.7 | H172: 25.61 | I172: 30.84585243 | J172: 237.51 | K172: 0.0003551136417 | L172: 0.9840563529 | M172: C
A173: 15.113 | B173: ORSE | C173: 9934/ORSE | D173: DISJUNTOR TERMOMAGNETICO TRIPOLAR 175 A, PADRÃO DIN (EUROPEU - LINHA BRANCA), 10KA | F173: UN | G173: 1 | H173: 193.69 | I173: 233.2890729 | J173: 233.29 | K173: 0.0003488040986 | L173: 0.984405157 | M173: C
A174: 15.120 | B174: COMPOSIÇÃO | C174: IFMT 158.02.2020 | D174: DISJUNTOR BIPOLAR TIPO DIN, CORRENTE NOMINAL DE 16A - FORNECIMENTO E INSTALAÇÃO, CURVA B, CAPACIDADE DE INTERRUPÇÃO 3KA. | F174: UN | G174: 4 | H174: 48.0742 | I174: 57.90275981 | J174: 231.61 | K174: 0.0003462922426 | L174: 0.9847514492 | M174: C
A175: 15.122 | B175: COMPOSIÇÃO | C175: IFMT 160.02.2020 | D175: DISJUNTOR BIPOLAR TIPO DIN, CORRENTE NOMINAL DE 16A - FORNECIMENTO E INSTALAÇÃO, CURVA B, CAPACIDADE DE INTERRUPÇÃO 8KA. | F175: UN | G175: 4 | H175: 48.0742 | I175: 57.90275981 | J175: 231.61 | K175: 0.0003462922426 | L175: 0.9850977415 | M175: C
A176: 11.7 | B176: SINAPI | C176: 86942 | D176: LAVATÓRIO LOUÇA BRANCA SUSPENSO, 29,5 X 39CM OU EQUIVALENTE, PADRÃO POPULAR, INCLUSO SIFÃO TIPO GARRAFA EM PVC, VÁLVULA E ENGATE FLEXÍVEL 30CM EM PLÁSTICO E TORNEIRA CROMADA DE MESA, PADRÃO POPULAR - FORNECIMENTO E INSTALAÇÃO. AF_01/2020 | F176: UN | G176: 1 | H176: 189.63 | I176: 228.3990236 | J176: 228.4 | K176: 0.0003414928035 | L176: 0.9854392343 | M176: C
A177: 15.48 | B177: SINAPI | C177: 92984 | D177: CABO DE COBRE FLEXÍVEL ISOLADO, 25 MM², ANTI-CHAMA 0,6/1,0 KV, PARA DISTRIBUIÇÃO - FORNECIMENTO E INSTALAÇÃO. AF_12/2015 | E177: VERMELHO | F177: M | G177: 10 | H177: 18.94 | I177: 22.81220011 | J177: 228.12 | K177: 0.0003410741608 | L177: 0.9857803084 | M177: C
A178: 15.18 | B178: SINAPI | C178: 91925 | D178: CABO DE COBRE FLEXÍVEL ISOLADO, 1,5 MM², ANTI-CHAMA 0,6/1,0 KV, PARA CIRCUITOS TERMINAIS - FORNECIMENTO E INSTALAÇÃO. AF_12/2015 | E178: BRANCO | F178: M | G178: 67.4 | H178: 2.81 | I178: 3.384492203 | J178: 228.11 | K178: 0.0003410592093 | L178: 0.9861213676 | M178: C
A179: 10.2 | B179: SINAPI | C179: 88483 | D179: APLICAÇÃO DE FUNDO SELADOR LÁTEX PVA EM PAREDES, UMA DEMÃO. AF_06/2014 | F179: M2 | G179: 100 | H179: 1.89 | I179: 2.276402229 | J179: 227.64 | K179: 0.0003403564877 | L179: 0.9864617241 | M179: C
A180: 15.102 | B180: COMPOSIÇÃO | C180: IFMT 147.02.2020 | D180: DISJUNTOR TRIPOLAR TIPO DIN, CORRENTE NOMINAL DE 25A - FORNECIMENTO E INSTALAÇÃO, CURVA C, CAPACIDADE DE INTERRUPÇÃO 8KA. | F180: UN | G180: 3 | H180: 62.91564 | I180: 75.77846727 | J180: 227.34 | K180: 0.000339907942 | L180: 0.9868016321 | M180: C
A181: 15.103 | B181: COMPOSIÇÃO | C181: IFMT 148.02.2020 | D181: DISJUNTOR TRIPOLAR TIPO DIN, CORRENTE NOMINAL DE 25A - FORNECIMENTO E INSTALAÇÃO, CURVA D, CAPACIDADE DE INTERRUPÇÃO 8KA. | F181: UN | G181: 3 | H181: 62.91564 | I181: 75.77846727 | J181: 227.34 | K181: 0.000339907942 | L181: 0.98714154 | M181: C
A182: 15.139 | B182: COMPOSIÇÃO | C182: IFMT 196.02.2020 | D182: INTERRUPTOR TETRAPOLAR DR 100 A 8KA, DISPOSITIVO RESIDUAL DIFERENCIAL | F182: UN | G182: 1 | H182: 188.39248 | I182: 226.9084981 | J182: 226.91 | K182: 0.0003392650264 | L182: 0.987480805 | M182: C
A183: 3.28 | B183: SINAPI | C183: 94965 | D183: CONCRETO FCK = 25MPA, TRAÇO 1:2,3:2,7 (CIMENTO/ AREIA MÉDIA/ BRITA 1) - PREPARO MECÂNICO COM BETONEIRA 400 L. AF_07/2016 | F183: M3 | G183: 0.54 | H183: 340.12 | I183: 409.6560456 | J183: 221.21 | K183: 0.0003307426579 | L183: 0.9878115477 | M183: C
A184: 11.11 | B184: SINAPI | C184: 74125/002 | D184: ESPELHO CRISTAL ESPESSURA 4MM, COM MOLDURA EM ALUMINIO E COMPENSADO 6MM PLASTIFICADO COLADO | F184: M2 | G184: 0.36 | H184: 503.35 | I184: 606.2577047 | J184: 218.25 | K184: 0.0003263170068 | L184: 0.9881378647 | M184: C
A185: 15.21 | B185: SINAPI | C185: 91925 | D185: CABO DE COBRE FLEXÍVEL ISOLADO, 1,5 MM², ANTI-CHAMA 0,6/1,0 KV, PARA CIRCUITOS TERMINAIS - FORNECIMENTO E INSTALAÇÃO. AF_12/2015 | E185: VERDE | F185: M | G185: 62.8 | H185: 2.81 | I185: 3.384492203 | J185: 212.55 | K185: 0.0003177946383 | L185: 0.9884556593 | M185: C
A186: 8.3 | B186: SINAPI | C186: 87260 | D186: REVESTIMENTO CERÂMICO PARA PISO COM PLACAS TIPO PORCELANATO DE DIMENSÕES 45X45 CM APLICADA EM AMBIENTES DE ÁREA MAIOR QUE 10 M². AF_06/2014 | F186: M2 | G186: 2 | H186: 77.7 | I186: 93.58542497 | J186: 187.17 | K186: 0.0002798476709 | L186: 0.988735507 | M186: C
A187: 15.135 | B187: COMPOSIÇÃO | C187: IFMT 188.02.2020 | D187: INTERRUPTOR TETRAPOLAR DR 25 A 6KA, DISPOSITIVO RESIDUAL DIFERENCIAL | F187: UN | G187: 1 | H187: 152.65248 | I187: 183.8616115 | J187: 183.86 | K187: 0.0002748987165 | L187: 0.9890104057 | M187: C
A188: 15.64 | B188: ORSE | C188: 8688/ORSE | D188: CURVA HORIZONTAL 100 X 100 MM PARA ELETROCALHA METÁLICA, COM ÂNGULO 90° (REF.: MOPA OU SIMILAR) | F188: un | G188: 8 | H188: 18.54 | I188: 22.33042187 | J188: 178.64 | K188: 0.0002670940211 | L188: 0.9892774998 | M188: C
A189: 10.12 | B189: COMPOSIÇÃO | C189: IFMT 060.05.2019 | D189: LIXAMENTO DE PAREDES E TETO, PARA PINTURA | F189: M2 | G189: 104 | H189: 1.39612 | I189: 1.681550624 | J189: 174.88 | K189: 0.0002614722481 | L189: 0.989538972 | M189: C
A190: 3.21 | B190: SINAPI | C190: 92761 | D190: ARMAÇÃO DE PILAR OU VIGA DE UMA ESTRUTURA CONVENCIONAL DE CONCRETO ARMADO EM UM EDIFÍCIO DE MÚLTIPLOS PAVIMENTOS UTILIZANDO AÇO CA-50 DE 8,0 MM - MONTAGEM. AF_12/2015 | F190: KG | G190: 14.22 | H190: 10.15 | I190: 12.22512308 | J190: 173.84 | K190: 0.0002599172897 | L190: 0.9897988893 | M190: C
A191: 3.31 | B191: SINAPI | C191: 92761 | D191: ARMAÇÃO DE PILAR OU VIGA DE UMA ESTRUTURA CONVENCIONAL DE CONCRETO ARMADO EM UM EDIFÍCIO DE MÚLTIPLOS PAVIMENTOS UTILIZANDO AÇO CA-50 DE 8,0 MM - MONTAGEM. AF_12/2015 | F191: KG | G191: 14.22 | H191: 10.15 | I191: 12.22512308 | J191: 173.84 | K191: 0.0002599172897 | L191: 0.9900588066 | M191: C
A192: 15.153 | B192: COMPOSIÇÃO | C192: IFMT 201.02.2020 | D192: INSTALAÇÃO DE EXAUSTOR 220V VAZÃO DE 685M³/H | F192: UN | G192: 4 | H192: 35.72 | I192: 43.02279768 | J192: 172.09 | K192: 0.000257300773 | L192: 0.9903161074 | M192: C
A193: 15.84 | B193: ORSE | C193: 11751/ORSE | D193: FORNECIMENTO E INSTALAÇÃO DE CAIXA DE PASSAGEM EM ALUMÍNIO (15 X 15 X 10 CM) | F193: UN | G193: 2 | H193: 68.8 | I193: 82.86585892 | J193: 165.73 | K193: 0.0002477916039 | L193: 0.990563899 | M193: C
A194: 11.13 | B194: COMPOSIÇÃO | C194: IFMT 055.04.2019 | D194: BARRA DE APOIO RETA, EM ALUMINIO, COMPRIMENTO 80CM, DIAMETRO MINIMO 3 CM FORNECIMENTO E INSTALAÇÃO. | F194: UN | G194: 1 | H194: 136.043 | I194: 163.856396 | J194: 163.86 | K194: 0.0002449956689 | L194: 0.9908088946 | M194: C
A195: 3.23 | B195: SINAPI | C195: 94965 | D195: CONCRETO FCK = 25MPA, TRAÇO 1:2,3:2,7 (CIMENTO/ AREIA MÉDIA/ BRITA 1) - PREPARO MECÂNICO COM BETONEIRA 400 L. AF_07/2016 | F195: M3 | G195: 0.39 | H195: 340.12 | I195: 409.6560456 | J195: 159.77 | K195: 0.0002388804957 | L195: 0.9910477751 | M195: C
A196: 3.33 | B196: SINAPI | C196: 94965 | D196: CONCRETO FCK = 25MPA, TRAÇO 1:2,3:2,7 (CIMENTO/ AREIA MÉDIA/ BRITA 1) - PREPARO MECÂNICO COM BETONEIRA 400 L. AF_07/2016 | F196: M3 | G196: 0.39 | H196: 340.12 | I196: 409.6560456 | J196: 159.77 | K196: 0.0002388804957 | L196: 0.9912866556 | M196: C
A197: 15.137 | B197: COMPOSIÇÃO | C197: IFMT 195.02.2020 | D197: INTERRUPTOR TETRAPOLAR DR 40 A 3KA, DISPOSITIVO RESIDUAL DIFERENCIAL | F197: UN | G197: 1 | H197: 131.14248 | I197: 157.9539861 | J197: 157.95 | K197: 0.0002361593184 | L197: 0.9915228149 | M197: C
A198: 15.15 | B198: SINAPI | C198: 91955 | D198: INTERRUPTOR PARALELO (1 MÓDULO), 10A/250V, INCLUINDO SUPORTE E PLACA - FORNECIMENTO E INSTALAÇÃO. AF_12/2015 | F198: UN | G198: 6 | H198: 21.71 | I198: 26.14851449 | J198: 156.89 | K198: 0.0002345744568 | L198: 0.9917573894 | M198: C
A199: 11.28 | B199: SINAPI | C199: 86911 | D199: TORNEIRA CROMADA LONGA, DE PAREDE, 1/2 OU 3/4, PARA PIA DE COZINHA, PADRÃO POPULAR - FORNECIMENTO E INSTALAÇÃO. AF_01/2020 | F199: UN | G199: 3 | H199: 42.71 | I199: 51.44187259 | J199: 154.33 | K199: 0.0002307468667 | L199: 0.9919881363 | M199: C
A200: 3.25 | B200: SINAPI | C200: 92759 | D200: ARMAÇÃO DE PILAR OU VIGA DE UMA ESTRUTURA CONVENCIONAL DE CONCRETO ARMADO EM UM EDIFÍCIO DE MÚLTIPLOS PAVIMENTOS UTILIZANDO AÇO CA-60 DE 5,0 MM - MONTAGEM. AF_12/2015 | F200: KG | G200: 11.11 | H200: 11.5 | I200: 13.85112467 | J200: 153.89 | K200: 0.0002300889997 | L200: 0.9922182253 | M200: C
A201: 11.12 | B201: COMPOSIÇÃO | C201: IFMT 054.04.2019 | D201: BARRA DE APOIO RETA, EM ALUMINIO, COMPRIMENTO 70CM, DIAMETRO MINIMO 3 CM FORNECIMENTO E INSTALAÇÃO. | F201: UN | G201: 1 | H201: 126.223 | I201: 152.02874 | J201: 152.03 | K201: 0.0002273080163 | L201: 0.9924455333 | M201: C
A202: 15.95 | B202: COMPOSIÇÃO | C202: IFMT 141.02.2020 | D202: DISJUNTOR TRIPOLAR TIPO DIN, CORRENTE NOMINAL DE 20A - FORNECIMENTO E INSTALAÇÃO, CURVA D, CAPACIDADE DE INTERRUPÇÃO 3KA. | F202: UN | G202: 2 | H202: 62.91564 | I202: 75.77846727 | J202: 151.56 | K202: 0.0002266052946 | L202: 0.9926721386 | M202: C
A203: 15.7 | B203: COMPOSIÇÃO | C203: IFMT 127.01.2020 | D203: CURVA 90 GRAUS PARA ELETRODUTO, AÇO GALVANIZADO, DN 32 MM (1 1/4''), APARENTE, INSTALADA EM PAREDE - FORNECIMENTO E INSTALAÇÃO. | F203: UN | G203: 6 | H203: 20.682792 | I203: 24.91129831 | J203: 149.47 | K203: 0.0002234804262 | L203: 0.992895619 | M203: C
A204: 11.3 | B204: SINAPI | C204: 95545 | D204: SABONETEIRA DE PAREDE EM METAL CROMADO, INCLUSO FIXAÇÃO. AF_01/2020 | F204: UN | G204: 4 | H204: 30.16 | I204: 36.32608001 | J204: 145.3 | K204: 0.0002172456408 | L204: 0.9931128646 | M204: C
A205: 2.3 | B205: SINAPI | C205: 100981 | D205: CARGA, MANOBRA E DESCARGA DE ENTULHO EM CAMINHÃO BASCULANTE 6 M³ - CARGA COM ESCAVADEIRA HIDRÁULICA (CAÇAMBA DE 0,80 M³ / 111 HP) E DESCARGA LIVRE (UNIDADE: M3). AF_07/2020 | F205: M3 | G205: 24 | H205: 4.99 | I205: 6.010183663 | J205: 144.24 | K205: 0.0002156607792 | L205: 0.9933285254 | M205: C
... 69 more rows

Sheet BDI
A6: SERVIÇO PUBLICO FEDERAL
A7: INSTITUTO FEDERAL DE EDUCAÇÃO, CIÊNCIA E TECNOLOGIA DE MATO GROSSO
A8: =ORÇAMENTO!A6 -> CAMPUS PRIMAVERA DO LESTE
B10: CALCULO DO BDI NÃO DESONERADO
B11: Serviços
B12: CALCULO DO BDI
A13: AC | B13: ADMINISTRAÇÃO CENTRAL DA OBRA | C13: 0.0353
A14: S | B14: TAXA REPRESENTATIVA DE SEGUROS | C14: 0.0042
A15: R | B15: TAXA REPRESENTATIVA DE RISCOS | C15: 0.0104
A16: G | B16: TAXA REPRESENTATIVA DE GARANTIAS | C16: 0.002
A17: DF | B17: TAXA REPRESENTATIVA DAS DESPESAS FINANCEIRAS | C17: 0.0105
A18: L | B18: TAXA REPRESENTATIVA DO LUCRO | C18: 0.0691
A20: I | B20: TAXA REPRESENTATIVA DA INCIDENCIA DE IMPOSTOS | C20: =C21+C22+C23+C24 -> 0.0565
B21: Contribuição Previdenciária sobre a Renda Bruta (CPRB) Lei 13.161/2015 | C21: 0
B22: COFINS | C22: 0.03
B23: PIS | C23: 0.0065
B24: ISS (BASE DE CALCULO 40% E ISSQN 5%) | C24: 0.02
B26: CALCULO DO BDI | C26: =(((1+(C13+C14+C15+C16))*(1+C17)*(1+C18))/(1-C20))-1 -> 0.2044456238
B27: VALOR TOTAL DO BDI | C27: =C26 -> 0.2044456238
B28: BDI= (((1+(AC+S+R+G))*(1+DF)*(1+L))/(1-I))-1
B29: Formula BDI - Paragrafo nº39 do Acórdão nº 2.369/2011 Plenario . Processo nº TC 025.990/2008-2
B30: As taxas Acórdão nº 2622/2013 Plenário. TC 036.076/2011-2 sessão:25/09/13
A38: SERVIÇO PUBLICO FEDERAL
A39: INSTITUTO FEDERAL DE EDUCAÇÃO, CIÊNCIA E TECNOLOGIA DE MATO GROSSO
A40: CAMPUS PRIMAVERA DO LESTE
B42: CALCULO DO BDI NÃO DESONERADO
B43: Equipamentos
B44: CALCULO DO BDI
A45: AC | B45: ADMINISTRAÇÃO CENTRAL DA OBRA | C45: 0.0274
A46: S | B46: TAXA REPRESENTATIVA DE SEGUROS | C46: 0.002
A47: R | B47: TAXA REPRESENTATIVA DE RISCOS | C47: 0.0069
A48: G | B48: TAXA REPRESENTATIVA DE GARANTIAS | C48: 0.0017
A49: DF | B49: TAXA REPRESENTATIVA DAS DESPESAS FINANCEIRAS | C49: 0.0085
A50: L | B50: TAXA REPRESENTATIVA DO LUCRO | C50: 0.0435
A51: I | B51: TAXA REPRESENTATIVA DA INCIDENCIA DE IMPOSTOS | C51: =C52+C53+C54+C55 -> 0.0365
B52: Contribuição Previdenciária sobre a Renda Bruta (CPRB) Lei 13.161/2015 | C52: 0
B53: COFINS | C53: 0.03
B54: PIS | C54: 0.0065
B55: ISS (BASE DE CALCULO 40% E ISSQN 5%) | C55: 0
B57: CALCULO DO BDI | C57: =(((1+(C45+C46+C47+C48))*(1+C49)*(1+C50))/(1-C51))-1 -> 0.1337413601
B58: VALOR TOTAL DO BDI | C58: =C57 -> 0.1337413601
B59: BDI= (((1+(AC+S+R+G))*(1+DF)*(1+L))/(1-I))-1
B60: Formula BDI - Paragrafo nº39 do Acórdão nº 2.369/2011 Plenario . Processo nº TC 025.990/2008-2
B61: As taxas Acórdão nº 2622/2013 Plenário. TC 036.076/2011-2 sessão:25/09/13

Sheet COMPOSIÇÃO
A6: SERVIÇO PUBLICO FEDERAL
A7: INSTITUTO FEDERAL DE EDUCAÇÃO, CIÊNCIA E TECNOLOGIA DE MATO GROSSO
A8: =ORÇAMENTO!A6 -> CAMPUS PRIMAVERA DO LESTE
C10: COMPOSIÇÃO NÃO DESONERADO
A11: =ORÇAMENTO!A10 & " " & ORÇAMENTO!B10 -> OBRA: REFORMA HANGAR
A12: TABELA SINAPI | B12: ENCARGOS SOCIAIS SOBRE PREÇOS DA MÃO-DE-OBRA: 113,19%(HORA) 71,78%(MÊS)
B13: DATA DE EMISSÃO: 16/10/2020
B14: DATA REFERÊNCIA TÉCNICA: 16/10/2020
A16: CLASSE/TIPO | B16: CÓDIGOS/ SINAPI | C16: DESCRIÇÃO | D16: UND | E16: COEFICIENTE | F16: PREÇO UNITÁRIO | G16: PREÇO TOTAL
A17: IFMT 047.04.2019 | B17: =IFERROR(INDEX(COMPOSIÇÕES_IFMT!$B:$B,MATCH($A17,COMPOSIÇÕES_IFMT!$A:$A,0)),"") -> .047/D | C17: =IFERROR(INDEX(COMPOSIÇÕES_IFMT!$C:$C,MATCH($A17,COMPOSIÇÕES_IFMT!$A:$A,0)),"") -> PORTA DE FERRO, DE ABRIR, 2 FOLHAS DE 1,40X2,10M, VENEZIANA, COM FUNDO ANTI CORRESIVO. FORNECIMENTO E INSTALAÇÃO | D17: =IFERROR(INDEX(COMPOSIÇÕES_IFMT!$D:$D,MATCH($A17,COMPOSIÇÕES_IFMT!$A:$A,0)),"") -> M2 | G17: =G23 -> 596.96502
A18: =IFERROR(INDEX(SINAPI!$E:$E,MATCH($B18,SINAPI!$A:$A,0)),"") -> INSUMO | B18: =IF(IFERROR(INDEX(COMPOSIÇÕES_IFMT!$B:$B,MATCH($A17,COMPOSIÇÕES_IFMT!$A:$A,0)),"")<>"",OFFSET(COMPOSIÇÕES_IFMT!$A$1,MATCH($A17,COMPOSIÇÕES_IFMT!$A:$A,0),1),"") -> 39022 | C18: =IFERROR(INDEX(SINAPI!$B:$B,MATCH($B18,SINAPI!$A:$A,0)),"") -> PORTA DE ABRIR EM ACO TIPO VENEZIANA, COM FUNDO ANTICORROSIVO / PRIMER DE PROTECAO, SEM GUARNICAO/ALIZAR/VISTA, 87 X 210 CM | D18: =IFERROR(INDEX(SINAPI!$C:$C,MATCH($B18,SINAPI!$A:$A,0)),"") -> UN | E18: =IF(IFERROR(INDEX(COMPOSIÇÕES_IFMT!$B:$B,MATCH($A17,COMPOSIÇÕES_IFMT!$A:$A,0)),"")<>"",OFFSET(COMPOSIÇÕES_IFMT!$A$1,MATCH($A17,COMPOSIÇÕES_IFMT!$A:$A,0),4),"") -> 1 | F18: =IFERROR(INDEX(SINAPI!$D:$D,MATCH($B18,SINAPI!$A:$A,0)),0) -> 530.95 | G18: =IFERROR(F18*E18,0) -> 530.95
A19: =IFERROR(INDEX(SINAPI!$E:$E,MATCH($B19,SINAPI!$A:$A,0)),"") -> COMPOSIÇÃO | B19: =IF(IFERROR(INDEX(COMPOSIÇÕES_IFMT!$B:$B,MATCH($A17,COMPOSIÇÕES_IFMT!$A:$A,0)),"")<>"",OFFSET(COMPOSIÇÕES_IFMT!$A$1,MATCH($A17,COMPOSIÇÕES_IFMT!$A:$A,0)+1,1),"") -> 88309 | C19: =IFERROR(INDEX(SINAPI!$B:$B,MATCH($B19,SINAPI!$A:$A,0)),"") -> PEDREIRO COM ENCARGOS COMPLEMENTARES | D19: =IFERROR(INDEX(SINAPI!$C:$C,MATCH($B19,SINAPI!$A:$A,0)),"") -> H | E19: =IF(IFERROR(INDEX(COMPOSIÇÕES_IFMT!$B:$B,MATCH($A17,COMPOSIÇÕES_IFMT!$A:$A,0)),"")<>"",OFFSET(COMPOSIÇÕES_IFMT!$A$1,MATCH($A17,COMPOSIÇÕES_IFMT!$A:$A,0)+1,4),"") -> 0.82 | F19: =IFERROR(INDEX(SINAPI!$D:$D,MATCH($B19,SINAPI!$A:$A,0)),0) -> 19.81 | G19: =IFERROR(F19*E19,0) -> 16.2442
A20: =IFERROR(INDEX(SINAPI!$E:$E,MATCH($B20,SINAPI!$A:$A,0)),"") -> COMPOSIÇÃO | B20: =IF(IFERROR(INDEX(COMPOSIÇÕES_IFMT!$B:$B,MATCH($A17,COMPOSIÇÕES_IFMT!$A:$A,0)),"")<>"",OFFSET(COMPOSIÇÕES_IFMT!$A$1,MATCH($A17,COMPOSIÇÕES_IFMT!$A:$A,0)+2,1),"") -> 88315 | C20: =IFERROR(INDEX(SINAPI!$B:$B,MATCH($B20,SINAPI!$A:$A,0)),"") -> SERRALHEIRO COM ENCARGOS COMPLEMENTARES | D20: =IFERROR(INDEX(SINAPI!$C:$C,MATCH($B20,SINAPI!$A:$A,0)),"") -> H | E20: =IF(IFERROR(INDEX(COMPOSIÇÕES_IFMT!$B:$B,MATCH($A17,COMPOSIÇÕES_IFMT!$A:$A,0)),"")<>"",OFFSET(COMPOSIÇÕES_IFMT!$A$1,MATCH($A17,COMPOSIÇÕES_IFMT!$A:$A,0)+2,4),"") -> 1.1 | F20: =IFERROR(INDEX(SINAPI!$D:$D,MATCH($B20,SINAPI!$A:$A,0)),0) -> 19.71 | G20: 21.681
A21: =IFERROR(INDEX(SINAPI!$E:$E,MATCH($B21,SINAPI!$A:$A,0)),"") -> COMPOSIÇÃO | B21: =IF(IFERROR(INDEX(COMPOSIÇÕES_IFMT!$B:$B,MATCH($A17,COMPOSIÇÕES_IFMT!$A:$A,0)),"")<>"",OFFSET(COMPOSIÇÕES_IFMT!$A$1,MATCH($A17,COMPOSIÇÕES_IFMT!$A:$A,0)+3,1),"") -> 88316 | C21: =IFERROR(INDEX(SINAPI!$B:$B,MATCH($B21,SINAPI!$A:$A,0)),"") -> SERVENTE COM ENCARGOS COMPLEMENTARES | D21: =IFERROR(INDEX(SINAPI!$C:$C,MATCH($B21,SINAPI!$A:$A,0)),"") -> H | E21: =IF(IFERROR(INDEX(COMPOSIÇÕES_IFMT!$B:$B,MATCH($A17,COMPOSIÇÕES_IFMT!$A:$A,0)),"")<>"",OFFSET(COMPOSIÇÕES_IFMT!$A$1,MATCH($A17,COMPOSIÇÕES_IFMT!$A:$A,0)+3,4),"") -> 1.6 | F21: =IFERROR(INDEX(SINAPI!$D:$D,MATCH($B21,SINAPI!$A:$A,0)),0) -> 15.91 | G21: 25.456
A22: =IFERROR(INDEX(SINAPI!$E:$E,MATCH($B22,SINAPI!$A:$A,0)),"") -> COMPOSIÇÃO | B22: =IF(IFERROR(INDEX(COMPOSIÇÕES_IFMT!$B:$B,MATCH($A17,COMPOSIÇÕES_IFMT!$A:$A,0)),"")<>"",OFFSET(COMPOSIÇÕES_IFMT!$A$1,MATCH($A17,COMPOSIÇÕES_IFMT!$A:$A,0)+4,1),"") -> 88627 | C22: =IFERROR(INDEX(SINAPI!$B:$B,MATCH($B22,SINAPI!$A:$A,0)),"") -> ARGAMASSA TRAÇO 1:0,5:4,5 (EM VOLUME DE CIMENTO, CAL E AREIA MÉDIA ÚMIDA) PARA ASSENTAMENTO DE ALVENARIA, PREPARO MANUAL. AF_08/2019 | D22: =IFERROR(INDEX(SINAPI!$C:$C,MATCH($B22,SINAPI!$A:$A,0)),"") -> M3 | E22: =IF(IFERROR(INDEX(COMPOSIÇÕES_IFMT!$B:$B,MATCH($A17,COMPOSIÇÕES_IFMT!$A:$A,0)),"")<>"",OFFSET(COMPOSIÇÕES_IFMT!$A$1,MATCH($A17,COMPOSIÇÕES_IFMT!$A:$A,0)+4,4),"") -> 0.006 | F22: =IFERROR(INDEX(SINAPI!$D:$D,MATCH($B22,SINAPI!$A:$A,0)),0) -> 438.97 | G22: 2.63382
F23: TOTAL | G23: =SUM(G18:G22) -> 596.96502
A26: CLASSE/TIPO | B26: CÓDIGOS/ SINAPI | C26: DESCRIÇÃO | D26: UND | E26: COEFICIENTE | F26: PREÇO UNITÁRIO | G26: PREÇO TOTAL
A27: IFMT 054.04.2019 | B27: =IFERROR(INDEX(COMPOSIÇÕES_IFMT!$B:$B,MATCH($A27,COMPOSIÇÕES_IFMT!$A:$A,0)),"") -> .054/D | C27: =IFERROR(INDEX(COMPOSIÇÕES_IFMT!$C:$C,MATCH($A27,COMPOSIÇÕES_IFMT!$A:$A,0)),"") -> BARRA DE APOIO RETA, EM ALUMINIO, COMPRIMENTO 70CM, DIAMETRO MINIMO 3 CM FORNECIMENTO E INSTALAÇÃO. | D27: =IFERROR(INDEX(COMPOSIÇÕES_IFMT!$D:$D,MATCH($A27,COMPOSIÇÕES_IFMT!$A:$A,0)),"") -> UN | G27: =G30 -> 126.223
A28: =IFERROR(INDEX(SINAPI!$E:$E,MATCH($B28,SINAPI!$A:$A,0)),"") -> COMPOSIÇÃO | B28: =IF(IFERROR(INDEX(COMPOSIÇÕES_IFMT!$B:$B,MATCH($A27,COMPOSIÇÕES_IFMT!$A:$A,0)),"")<>"",OFFSET(COMPOSIÇÕES_IFMT!$A$1,MATCH($A27,COMPOSIÇÕES_IFMT!$A:$A,0),1),"") -> 88309 | C28: =IFERROR(INDEX(SINAPI!$B:$B,MATCH($B28,SINAPI!$A:$A,0)),"") -> PEDREIRO COM ENCARGOS COMPLEMENTARES | D28: =IFERROR(INDEX(SINAPI!$C:$C,MATCH($B28,SINAPI!$A:$A,0)),"") -> H | E28: =IF(IFERROR(INDEX(COMPOSIÇÕES_IFMT!$B:$B,MATCH($A27,COMPOSIÇÕES_IFMT!$A:$A,0)),"")<>"",OFFSET(COMPOSIÇÕES_IFMT!$A$1,MATCH($A27,COMPOSIÇÕES_IFMT!$A:$A,0),4),"") -> 0.3 | F28: =IFERROR(INDEX(SINAPI!$D:$D,MATCH($B28,SINAPI!$A:$A,0)),0) -> 19.81 | G28: =IFERROR(F28*E28,0) -> 5.943
A29: =IFERROR(INDEX(SINAPI!$E:$E,MATCH($B29,SINAPI!$A:$A,0)),"") -> INSUMO | B29: =IF(IFERROR(INDEX(COMPOSIÇÕES_IFMT!$B:$B,MATCH($A27,COMPOSIÇÕES_IFMT!$A:$A,0)),"")<>"",OFFSET(COMPOSIÇÕES_IFMT!$A$1,MATCH($A27,COMPOSIÇÕES_IFMT!$A:$A,0)+1,1),"") -> 36220 | C29: =IFERROR(INDEX(SINAPI!$B:$B,MATCH($B29,SINAPI!$A:$A,0)),"") -> BARRA DE APOIO RETA, EM ALUMINIO, COMPRIMENTO 70CM, DIAMETRO MINIMO 3 CM | D29: =IFERROR(INDEX(SINAPI!$C:$C,MATCH($B29,SINAPI!$A:$A,0)),"") -> UN | E29: =IF(IFERROR(INDEX(COMPOSIÇÕES_IFMT!$B:$B,MATCH($A27,COMPOSIÇÕES_IFMT!$A:$A,0)),"")<>"",OFFSET(COMPOSIÇÕES_IFMT!$A$1,MATCH($A27,COMPOSIÇÕES_IFMT!$A:$A,0)+1,4),"") -> 1 | F29: =IFERROR(INDEX(SINAPI!$D:$D,MATCH($B29,SINAPI!$A:$A,0)),0) -> 120.28 | G29: =IFERROR(F29*E29,0) -> 120.28
F30: TOTAL | G30: =SUM(G28:G29) -> 126.223
A33: CLASSE/TIPO | B33: CÓDIGOS/ SINAPI | C33: DESCRIÇÃO | D33: UND | E33: COEFICIENTE | F33: PREÇO UNITÁRIO | G33: PREÇO TOTAL
A34: IFMT 055.04.2019 | B34: =IFERROR(INDEX(COMPOSIÇÕES_IFMT!$B:$B,MATCH($A34,COMPOSIÇÕES_IFMT!$A:$A,0)),"") -> .055/D | C34: =IFERROR(INDEX(COMPOSIÇÕES_IFMT!$C:$C,MATCH($A34,COMPOSIÇÕES_IFMT!$A:$A,0)),"") -> BARRA DE APOIO RETA, EM ALUMINIO, COMPRIMENTO 80CM, DIAMETRO MINIMO 3 CM FORNECIMENTO E INSTALAÇÃO. | D34: =IFERROR(INDEX(COMPOSIÇÕES_IFMT!$D:$D,MATCH($A34,COMPOSIÇÕES_IFMT!$A:$A,0)),"") -> UN | G34: =G37 -> 136.043
A35: =IFERROR(INDEX(SINAPI!$E:$E,MATCH($B35,SINAPI!$A:$A,0)),"") -> COMPOSIÇÃO | B35: =IF(IFERROR(INDEX(COMPOSIÇÕES_IFMT!$B:$B,MATCH($A34,COMPOSIÇÕES_IFMT!$A:$A,0)),"")<>"",OFFSET(COMPOSIÇÕES_IFMT!$A$1,MATCH($A34,COMPOSIÇÕES_IFMT!$A:$A,0),1),"") -> 88309 | C35: =IFERROR(INDEX(SINAPI!$B:$B,MATCH($B35,SINAPI!$A:$A,0)),"") -> PEDREIRO COM ENCARGOS COMPLEMENTARES | D35: =IFERROR(INDEX(SINAPI!$C:$C,MATCH($B35,SINAPI!$A:$A,0)),"") -> H | E35: =IF(IFERROR(INDEX(COMPOSIÇÕES_IFMT!$B:$B,MATCH($A34,COMPOSIÇÕES_IFMT!$A:$A,0)),"")<>"",OFFSET(COMPOSIÇÕES_IFMT!$A$1,MATCH($A34,COMPOSIÇÕES_IFMT!$A:$A,0),4),"") -> 0.3 | F35: =IFERROR(INDEX(SINAPI!$D:$D,MATCH($B35,SINAPI!$A:$A,0)),0) -> 19.81 | G35: =IFERROR(F35*E35,0) -> 5.943
A36: =IFERROR(INDEX(SINAPI!$E:$E,MATCH($B36,SINAPI!$A:$A,0)),"") -> INSUMO | B36: =IF(IFERROR(INDEX(COMPOSIÇÕES_IFMT!$B:$B,MATCH($A34,COMPOSIÇÕES_IFMT!$A:$A,0)),"")<>"",OFFSET(COMPOSIÇÕES_IFMT!$A$1,MATCH($A34,COMPOSIÇÕES_IFMT!$A:$A,0)+1,1),"") -> 36080 | C36: =IFERROR(INDEX(SINAPI!$B:$B,MATCH($B36,SINAPI!$A:$A,0)),"") -> BARRA DE APOIO RETA, EM ALUMINIO, COMPRIMENTO 80 CM, DIAMETRO MINIMO 3 CM | D36: =IFERROR(INDEX(SINAPI!$C:$C,MATCH($B36,SINAPI!$A:$A,0)),"") -> UN | E36: =IF(IFERROR(INDEX(COMPOSIÇÕES_IFMT!$B:$B,MATCH($A34,COMPOSIÇÕES_IFMT!$A:$A,0)),"")<>"",OFFSET(COMPOSIÇÕES_IFMT!$A$1,MATCH($A34,COMPOSIÇÕES_IFMT!$A:$A,0)+1,4),"") -> 1 | F36: =IFERROR(INDEX(SINAPI!$D:$D,MATCH($B36,SINAPI!$A:$A,0)),0) -> 130.1 | G36: =IFERROR(F36*E36,0) -> 130.1
F37: TOTAL | G37: =SUM(G35:G36) -> 136.043
A40: CLASSE/TIPO | B40: CÓDIGOS/ SINAPI | C40: DESCRIÇÃO | D40: UND | E40: COEFICIENTE | F40: PREÇO UNITÁRIO | G40: PREÇO TOTAL
A41: IFMT 057.04.2019 | B41: .057/D | C41: GRANITO PARA BANCADA PARA PIA, POLIDO, TIPO CINZA ANDORINHA, COM REBAIXO E= *2,5* CM, FIXADO COM SUPORTE METALICO MÃO-FRANCESA AÇO - FORNECIMENTO E INSTALAÇÃO | D41: M2 | G41: =G49 -> 721.6040882
A42: INSUMO | B42: 4823 | C42: 00004823 MASSA PLASTICA PARA MARMORE/GRANITO | D42: KG | E42: 0.5228 | F42: =IFERROR(INDEX(SINAPI!$D:$D,MATCH($B42,SINAPI!$A:$A,0)),0) -> 34.47 | G42: =E42*F42 -> 18.020916
A43: INSUMO | B43: 7568 | C43: 00007568 BUCHA DE NYLON SEM ABA S10, COM PARAFUSO DE 6,10 X 65 MM EM ACO ZINCADO COM ROSCA SOBERBA, CABECA CHATA E FENDA PHILLIPS | D43: UN | E43: 6 | F43: =IFERROR(INDEX(SINAPI!$D:$D,MATCH($B43,SINAPI!$A:$A,0)),0) -> 0.61 | G43: =E43*F43 -> 3.66
A44: INSUMO | B44: 11795 | C44: 00011795 GRANITO PARA BANCADA, POLIDO, TIPO ANDORINHA/ QUARTZ/ CASTELO/ CORUMBA OU OUTROS EQUIVALENTES DA REGIAO, E= *2,5* CM | D44: M2 | E44: 1.15178 | F44: =IFERROR(INDEX(SINAPI!$D:$D,MATCH($B44,SINAPI!$A:$A,0)),0) -> 543.39 | G44: 625.8657342
A45: INSUMO | B45: 37329 | C45: 00037329 REJUNTE EPOXI BRANCO | D45: KG | E45: 0.0351 | F45: =IFERROR(INDEX(SINAPI!$D:$D,MATCH($B45,SINAPI!$A:$A,0)),0) -> 80.38 | G45: 2.821338
A46: INSUMO | B46: 37591 | C46: 00037591 SUPORTE MAO-FRANCESA EM ACO, ABAS IGUAIS 40 CM, CAPACIDADE MINIMA 70 KG, BRANCO | D46: UN | E46: 2 | F46: =IFERROR(INDEX(SINAPI!$D:$D,MATCH($B46,SINAPI!$A:$A,0)),0) -> 12.87 | G46: 25.74
A47: COMPOSIÇÃO | B47: 88274 | C47: 88274 MARMORISTA/GRANITEIRO COM ENCARGOS COMPLEMENTARES | D47: H | E47: 1.49 | F47: =IFERROR(INDEX(SINAPI!$D:$D,MATCH($B47,SINAPI!$A:$A,0)),0) -> 20.07 | G47: 29.9043
A48: COMPOSIÇÃO | B48: 88316 | C48: 88316 SERVENTE COM ENCARGOS COMPLEMENTARES | D48: H | E48: 0.98 | F48: =IFERROR(INDEX(SINAPI!$D:$D,MATCH($B48,SINAPI!$A:$A,0)),0) -> 15.91 | G48: 15.5918
F49: TOTAL | G49: =SUM(G42:G48) -> 721.6040882
A52: CLASSE/TIPO | B52: CÓDIGOS/ SINAPI | C52: DESCRIÇÃO | D52: UND | E52: COEFICIENTE | F52: PREÇO UNITÁRIO | G52: PREÇO TOTAL
A53: IFMT 058.04.2019 | B53: .058/D | C53: GRANITO PARA BANCADA SECA, POLIDO, TIPO CINZA ANDORINHA, COM REBAIXO E= *2,5* CM, FIXADO COM SUPORTE METALICO MÃO-FRANCESA AÇO - FORNECIMENTO E INSTALAÇÃO | D53: M2 | G53: =G61 -> 693.467354
A54: INSUMO | B54: 4823 | C54: 00004823 MASSA PLASTICA PARA MARMORE/GRANITO | D54: KG | E54: 0.5228 | F54: =IFERROR(INDEX(SINAPI!$D:$D,MATCH($B54,SINAPI!$A:$A,0)),0) -> 34.47 | G54: =E54*F54 -> 18.020916
A55: INSUMO | B55: 7568 | C55: 00007568 BUCHA DE NYLON SEM ABA S10, COM PARAFUSO DE 6,10 X 65 MM EM ACO ZINCADO COM ROSCA SOBERBA, CABECA CHATA E FENDA PHILLIPS | D55: UN | E55: 6 | F55: =IFERROR(INDEX(SINAPI!$D:$D,MATCH($B55,SINAPI!$A:$A,0)),0) -> 0.61 | G55: =E55*F55 -> 3.66
A56: INSUMO | B56: 11795 | C56: 00011795 GRANITO PARA BANCADA, POLIDO, TIPO ANDORINHA/ QUARTZ/ CASTELO/ CORUMBA OU OUTROS EQUIVALENTES DA REGIAO, E= *2,5* CM | D56: M2 | E56: 1.1 | F56: =IFERROR(INDEX(SINAPI!$D:$D,MATCH($B56,SINAPI!$A:$A,0)),0) -> 543.39 | G56: 597.729
A57: INSUMO | B57: 37329 | C57: 00037329 REJUNTE EPOXI BRANCO | D57: KG | E57: 0.0351 | F57: =IFERROR(INDEX(SINAPI!$D:$D,MATCH($B57,SINAPI!$A:$A,0)),0) -> 80.38 | G57: 2.821338
A58: INSUMO | B58: 37591 | C58: 00037591 SUPORTE MAO-FRANCESA EM ACO, ABAS IGUAIS 40 CM, CAPACIDADE MINIMA 70 KG, BRANCO | D58: UN | E58: 2 | F58: =IFERROR(INDEX(SINAPI!$D:$D,MATCH($B58,SINAPI!$A:$A,0)),0) -> 12.87 | G58: 25.74
A59: COMPOSIÇÃO | B59: 88274 | C59: 88274 MARMORISTA/GRANITEIRO COM ENCARGOS COMPLEMENTARES | D59: H | E59: 1.49 | F59: =IFERROR(INDEX(SINAPI!$D:$D,MATCH($B59,SINAPI!$A:$A,0)),0) -> 20.07 | G59: 29.9043
A60: COMPOSIÇÃO | B60: 88316 | C60: 88316 SERVENTE COM ENCARGOS COMPLEMENTARES | D60: H | E60: 0.98 | F60: =IFERROR(INDEX(SINAPI!$D:$D,MATCH($B60,SINAPI!$A:$A,0)),0) -> 15.91 | G60: 15.5918
F61: TOTAL | G61: =SUM(G54:G60) -> 693.467354
A64: CLASSE/TIPO | B64: CÓDIGOS/ SINAPI | C64: DESCRIÇÃO | D64: UND | E64: COEFICIENTE | F64: PREÇO UNITÁRIO | G64: PREÇO TOTAL
A65: IFMT 059.05.2019 | B65: =IFERROR(INDEX(COMPOSIÇÕES_IFMT!$B:$B,MATCH($A65,COMPOSIÇÕES_IFMT!$A:$A,0)),"") -> .059/D | C65: =IFERROR(INDEX(COMPOSIÇÕES_IFMT!$C:$C,MATCH($A65,COMPOSIÇÕES_IFMT!$A:$A,0)),"") -> DRENO EM PVC SOLDAVEL 25MM FIXADO COM BRÇADAEIRA DE AÇO NA PAREDE E NO PISO/CALÇADA ESCAVAÇÃO E CONCRETO | D65: =IFERROR(INDEX(COMPOSIÇÕES_IFMT!$D:$D,MATCH($A65,COMPOSIÇÕES_IFMT!$A:$A,0)),"") -> UN | G65: =G76 -> 21.37815
A66: =IFERROR(INDEX(SINAPI!$E:$E,MATCH($B66,SINAPI!$A:$A,0)),"") -> INSUMO | B66: =IF(IFERROR(INDEX(COMPOSIÇÕES_IFMT!$B:$B,MATCH($A65,COMPOSIÇÕES_IFMT!$A:$A,0)),"")<>"",OFFSET(COMPOSIÇÕES_IFMT!$A$1,MATCH($A65,COMPOSIÇÕES_IFMT!$A:$A,0),1),"") -> 3529 | C66: =IFERROR(INDEX(SINAPI!$B:$B,MATCH($B66,SINAPI!$A:$A,0)),"") -> JOELHO PVC, SOLDAVEL, 90 GRAUS, 25 MM, PARA AGUA FRIA PREDIAL | D66: =IFERROR(INDEX(SINAPI!$C:$C,MATCH($B66,SINAPI!$A:$A,0)),"") -> UN | E66: =IF(IFERROR(INDEX(COMPOSIÇÕES_IFMT!$B:$B,MATCH($A65,COMPOSIÇÕES_IFMT!$A:$A,0)),"")<>"",OFFSET(COMPOSIÇÕES_IFMT!$A$1,MATCH($A65,COMPOSIÇÕES_IFMT!$A:$A,0),4),"") -> 1 | F66: =IFERROR(INDEX(SINAPI!$D:$D,MATCH($B66,SINAPI!$A:$A,0)),0) -> 0.56 | G66: =IFERROR(F66*E66,0) -> 0.56
A67: =IFERROR(INDEX(SINAPI!$E:$E,MATCH($B67,SINAPI!$A:$A,0)),"") -> INSUMO | B67: =IF(IFERROR(INDEX(COMPOSIÇÕES_IFMT!$B:$B,MATCH($A65,COMPOSIÇÕES_IFMT!$A:$A,0)),"")<>"",OFFSET(COMPOSIÇÕES_IFMT!$A$1,MATCH($A65,COMPOSIÇÕES_IFMT!$A:$A,0)+1,1),"") -> 3904 | C67: =IFERROR(INDEX(SINAPI!$B:$B,MATCH($B67,SINAPI!$A:$A,0)),"") -> LUVA PVC SOLDAVEL, 25 MM, PARA AGUA FRIA PREDIAL | D67: =IFERROR(INDEX(SINAPI!$C:$C,MATCH($B67,SINAPI!$A:$A,0)),"") -> UN | E67: =IF(IFERROR(INDEX(COMPOSIÇÕES_IFMT!$B:$B,MATCH($A65,COMPOSIÇÕES_IFMT!$A:$A,0)),"")<>"",OFFSET(COMPOSIÇÕES_IFMT!$A$1,MATCH($A65,COMPOSIÇÕES_IFMT!$A:$A,0)+1,4),"") -> 1 | F67: =IFERROR(INDEX(SINAPI!$D:$D,MATCH($B67,SINAPI!$A:$A,0)),0) -> 0.6 | G67: =IFERROR(F67*E67,0) -> 0.6
A68: =IFERROR(INDEX(SINAPI!$E:$E,MATCH($B68,SINAPI!$A:$A,0)),"") -> INSUMO | B68: =IF(IFERROR(INDEX(COMPOSIÇÕES_IFMT!$B:$B,MATCH($A65,COMPOSIÇÕES_IFMT!$A:$A,0)),"")<>"",OFFSET(COMPOSIÇÕES_IFMT!$A$1,MATCH($A65,COMPOSIÇÕES_IFMT!$A:$A,0)+2,1),"") -> 7139 | C68: =IFERROR(INDEX(SINAPI!$B:$B,MATCH($B68,SINAPI!$A:$A,0)),"") -> TE SOLDAVEL, PVC, 90 GRAUS, 25 MM, PARA AGUA FRIA PREDIAL (NBR 5648) | D68: =IFERROR(INDEX(SINAPI!$C:$C,MATCH($B68,SINAPI!$A:$A,0)),"") -> UN | E68: =IF(IFERROR(INDEX(COMPOSIÇÕES_IFMT!$B:$B,MATCH($A65,COMPOSIÇÕES_IFMT!$A:$A,0)),"")<>"",OFFSET(COMPOSIÇÕES_IFMT!$A$1,MATCH($A65,COMPOSIÇÕES_IFMT!$A:$A,0)+2,4),"") -> 1 | F68: =IFERROR(INDEX(SINAPI!$D:$D,MATCH($B68,SINAPI!$A:$A,0)),0) -> 0.94 | G68: 0.94
A69: =IFERROR(INDEX(SINAPI!$E:$E,MATCH($B69,SINAPI!$A:$A,0)),"") -> INSUMO | B69: =IF(IFERROR(INDEX(COMPOSIÇÕES_IFMT!$B:$B,MATCH($A65,COMPOSIÇÕES_IFMT!$A:$A,0)),"")<>"",OFFSET(COMPOSIÇÕES_IFMT!$A$1,MATCH($A65,COMPOSIÇÕES_IFMT!$A:$A,0)+3,1),"") -> 39139 | C69: =IFERROR(INDEX(SINAPI!$B:$B,MATCH($B69,SINAPI!$A:$A,0)),"") -> ABRACADEIRA EM ACO PARA AMARRACAO DE ELETRODUTOS, TIPO U SIMPLES, COM 1" | D69: =IFERROR(INDEX(SINAPI!$C:$C,MATCH($B69,SINAPI!$A:$A,0)),"") -> UN | E69: =IF(IFERROR(INDEX(COMPOSIÇÕES_IFMT!$B:$B,MATCH($A65,COMPOSIÇÕES_IFMT!$A:$A,0)),"")<>"",OFFSET(COMPOSIÇÕES_IFMT!$A$1,MATCH($A65,COMPOSIÇÕES_IFMT!$A:$A,0)+3,4),"") -> 1 | F69: =IFERROR(INDEX(SINAPI!$D:$D,MATCH($B69,SINAPI!$A:$A,0)),0) -> 0.83 | G69: 0.83
A70: =IFERROR(INDEX(SINAPI!$E:$E,MATCH($B70,SINAPI!$A:$A,0)),"") -> COMPOSIÇÃO | B70: =IF(IFERROR(INDEX(COMPOSIÇÕES_IFMT!$B:$B,MATCH($A65,COMPOSIÇÕES_IFMT!$A:$A,0)),"")<>"",OFFSET(COMPOSIÇÕES_IFMT!$A$1,MATCH($A65,COMPOSIÇÕES_IFMT!$A:$A,0)+4,1),"") -> 93358 | C70: =IFERROR(INDEX(SINAPI!$B:$B,MATCH($B70,SINAPI!$A:$A,0)),"") -> ESCAVAÇÃO MANUAL DE VALA COM PROFUNDIDADE MENOR OU IGUAL A 1,30 M. AF_03/2016 | D70: =IFERROR(INDEX(SINAPI!$C:$C,MATCH($B70,SINAPI!$A:$A,0)),"") -> M3 | E70: =IF(IFERROR(INDEX(COMPOSIÇÕES_IFMT!$B:$B,MATCH($A65,COMPOSIÇÕES_IFMT!$A:$A,0)),"")<>"",OFFSET(COMPOSIÇÕES_IFMT!$A$1,MATCH($A65,COMPOSIÇÕES_IFMT!$A:$A,0)+4,4),"") -> 0.0025 | F70: =IFERROR(INDEX(SINAPI!$D:$D,MATCH($B70,SINAPI!$A:$A,0)),0) -> 62.93 | G70: 0.157325
A71: =IFERROR(INDEX(SINAPI!$E:$E,MATCH($B71,SINAPI!$A:$A,0)),"") -> COMPOSIÇÃO | B71: =IF(IFERROR(INDEX(COMPOSIÇÕES_IFMT!$B:$B,MATCH($A65,COMPOSIÇÕES_IFMT!$A:$A,0)),"")<>"",OFFSET(COMPOSIÇÕES_IFMT!$A$1,MATCH($A65,COMPOSIÇÕES_IFMT!$A:$A,0)+5,1),"") -> 93382 | C71: =IFERROR(INDEX(SINAPI!$B:$B,MATCH($B71,SINAPI!$A:$A,0)),"") -> REATERRO MANUAL DE VALAS COM COMPACTAÇÃO MECANIZADA. AF_04/2016 | D71: =IFERROR(INDEX(SINAPI!$C:$C,MATCH($B71,SINAPI!$A:$A,0)),"") -> M3 | E71: =IF(IFERROR(INDEX(COMPOSIÇÕES_IFMT!$B:$B,MATCH($A65,COMPOSIÇÕES_IFMT!$A:$A,0)),"")<>"",OFFSET(COMPOSIÇÕES_IFMT!$A$1,MATCH($A65,COMPOSIÇÕES_IFMT!$A:$A,0)+5,4),"") -> 0.0023 | F71: =IFERROR(INDEX(SINAPI!$D:$D,MATCH($B71,SINAPI!$A:$A,0)),0) -> 21.25 | G71: 0.048875
A72: =IFERROR(INDEX(SINAPI!$E:$E,MATCH($B72,SINAPI!$A:$A,0)),"") -> COMPOSIÇÃO | B72: =IF(IFERROR(INDEX(COMPOSIÇÕES_IFMT!$B:$B,MATCH($A65,COMPOSIÇÕES_IFMT!$A:$A,0)),"")<>"",OFFSET(COMPOSIÇÕES_IFMT!$A$1,MATCH($A65,COMPOSIÇÕES_IFMT!$A:$A,0)+6,1),"") -> 97629 | C72: =IFERROR(INDEX(SINAPI!$B:$B,MATCH($B72,SINAPI!$A:$A,0)),"") -> DEMOLIÇÃO DE LAJES, DE FORMA MECANIZADA COM MARTELETE, SEM REAPROVEITAMENTO. AF_12/2017 | D72: =IFERROR(INDEX(SINAPI!$C:$C,MATCH($B72,SINAPI!$A:$A,0)),"") -> M3 | E72: =IF(IFERROR(INDEX(COMPOSIÇÕES_IFMT!$B:$B,MATCH($A65,COMPOSIÇÕES_IFMT!$A:$A,0)),"")<>"",OFFSET(COMPOSIÇÕES_IFMT!$A$1,MATCH($A65,COMPOSIÇÕES_IFMT!$A:$A,0)+6,4),"") -> 0.0025 | F72: =IFERROR(INDEX(SINAPI!$D:$D,MATCH($B72,SINAPI!$A:$A,0)),0) -> 87.96 | G72: 0.2199
A73: =IFERROR(INDEX(SINAPI!$E:$E,MATCH($B73,SINAPI!$A:$A,0)),"") -> COMPOSIÇÃO | B73: =IF(IFERROR(INDEX(COMPOSIÇÕES_IFMT!$B:$B,MATCH($A65,COMPOSIÇÕES_IFMT!$A:$A,0)),"")<>"",OFFSET(COMPOSIÇÕES_IFMT!$A$1,MATCH($A65,COMPOSIÇÕES_IFMT!$A:$A,0)+7,1),"") -> 94993 | C73: =IFERROR(INDEX(SINAPI!$B:$B,MATCH($B73,SINAPI!$A:$A,0)),"") -> EXECUÇÃO DE PASSEIO (CALÇADA) OU PISO DE CONCRETO COM CONCRETO MOLDADO IN LOCO, USINADO, ACABAMENTO CONVENCIONAL, ESPESSURA 6 CM, ARMADO. AF_07/2016 | D73: =IFERROR(INDEX(SINAPI!$C:$C,MATCH($B73,SINAPI!$A:$A,0)),"") -> M2 | E73: =IF(IFERROR(INDEX(COMPOSIÇÕES_IFMT!$B:$B,MATCH($A65,COMPOSIÇÕES_IFMT!$A:$A,0)),"")<>"",OFFSET(COMPOSIÇÕES_IFMT!$A$1,MATCH($A65,COMPOSIÇÕES_IFMT!$A:$A,0)+7,4),"") -> 0.0025 | F73: =IFERROR(INDEX(SINAPI!$D:$D,MATCH($B73,SINAPI!$A:$A,0)),0) -> 64.82 | G73: 0.16205
A74: =IFERROR(INDEX(SINAPI!$E:$E,MATCH($B74,SINAPI!$A:$A,0)),"") -> COMPOSIÇÃO | B74: =IF(IFERROR(INDEX(COMPOSIÇÕES_IFMT!$B:$B,MATCH($A65,COMPOSIÇÕES_IFMT!$A:$A,0)),"")<>"",OFFSET(COMPOSIÇÕES_IFMT!$A$1,MATCH($A65,COMPOSIÇÕES_IFMT!$A:$A,0)+8,1),"") -> 88309 | C74: =IFERROR(INDEX(SINAPI!$B:$B,MATCH($B74,SINAPI!$A:$A,0)),"") -> PEDREIRO COM ENCARGOS COMPLEMENTARES | D74: =IFERROR(INDEX(SINAPI!$C:$C,MATCH($B74,SINAPI!$A:$A,0)),"") -> H | E74: =IF(IFERROR(INDEX(COMPOSIÇÕES_IFMT!$B:$B,MATCH($A65,COMPOSIÇÕES_IFMT!$A:$A,0)),"")<>"",OFFSET(COMPOSIÇÕES_IFMT!$A$1,MATCH($A65,COMPOSIÇÕES_IFMT!$A:$A,0)+8,4),"") -> 0.5 | F74: =IFERROR(INDEX(SINAPI!$D:$D,MATCH($B74,SINAPI!$A:$A,0)),0) -> 19.81 | G74: 9.905
A75: =IFERROR(INDEX(SINAPI!$E:$E,MATCH($B75,SINAPI!$A:$A,0)),"") -> COMPOSIÇÃO | B75: =IF(IFERROR(INDEX(COMPOSIÇÕES_IFMT!$B:$B,MATCH($A65,COMPOSIÇÕES_IFMT!$A:$A,0)),"")<>"",OFFSET(COMPOSIÇÕES_IFMT!$A$1,MATCH($A65,COMPOSIÇÕES_IFMT!$A:$A,0)+9,1),"") -> 88316 | C75: =IFERROR(INDEX(SINAPI!$B:$B,MATCH($B75,SINAPI!$A:$A,0)),"") -> SERVENTE COM ENCARGOS COMPLEMENTARES | D75: =IFERROR(INDEX(SINAPI!$C:$C,MATCH($B75,SINAPI!$A:$A,0)),"") -> H | E75: =IF(IFERROR(INDEX(COMPOSIÇÕES_IFMT!$B:$B,MATCH($A65,COMPOSIÇÕES_IFMT!$A:$A,0)),"")<>"",OFFSET(COMPOSIÇÕES_IFMT!$A$1,MATCH($A65,COMPOSIÇÕES_IFMT!$A:$A,0)+9,4),"") -> 0.5 | F75: =IFERROR(INDEX(SINAPI!$D:$D,MATCH($B75,SINAPI!$A:$A,0)),0) -> 15.91 | G75: 7.955
F76: TOTAL | G76: =SUM(G66:G75) -> 21.37815
A79: CLASSE/TIPO | B79: CÓDIGOS/ SINAPI | C79: DESCRIÇÃO | D79: UND | E79: COEFICIENTE | F79: PREÇO UNITÁRIO | G79: PREÇO TOTAL
A80: IFMT 060.05.2019 | B80: =IFERROR(INDEX(COMPOSIÇÕES_IFMT!$B:$B,MATCH($A80,COMPOSIÇÕES_IFMT!$A:$A,0)),"") -> .060/D | C80: =IFERROR(INDEX(COMPOSIÇÕES_IFMT!$C:$C,MATCH($A80,COMPOSIÇÕES_IFMT!$A:$A,0)),"") -> LIXAMENTO DE PAREDES E TETO, PARA PINTURA | D80: =IFERROR(INDEX(COMPOSIÇÕES_IFMT!$D:$D,MATCH($A80,COMPOSIÇÕES_IFMT!$A:$A,0)),"") -> M2 | G80: =G84 -> 1.39612
A81: =IFERROR(INDEX(SINAPI!$E:$E,MATCH($B81,SINAPI!$A:$A,0)),"") -> INSUMO | B81: =IF(IFERROR(INDEX(COMPOSIÇÕES_IFMT!$B:$B,MATCH($A80,COMPOSIÇÕES_IFMT!$A:$A,0)),"")<>"",OFFSET(COMPOSIÇÕES_IFMT!$A$1,MATCH($A80,COMPOSIÇÕES_IFMT!$A:$A,0),1),"") -> 3767 | C81: =IFERROR(INDEX(SINAPI!$B:$B,MATCH($B81,SINAPI!$A:$A,0)),"") -> LIXA EM FOLHA PARA PAREDE OU MADEIRA, NUMERO 120 (COR VERMELHA) | D81: =IFERROR(INDEX(SINAPI!$C:$C,MATCH($B81,SINAPI!$A:$A,0)),"") -> UN | E81: =IF(IFERROR(INDEX(COMPOSIÇÕES_IFMT!$B:$B,MATCH($A80,COMPOSIÇÕES_IFMT!$A:$A,0)),"")<>"",OFFSET(COMPOSIÇÕES_IFMT!$A$1,MATCH($A80,COMPOSIÇÕES_IFMT!$A:$A,0),4),"") -> 0.0414 | F81: =IFERROR(INDEX(SINAPI!$D:$D,MATCH($B81,SINAPI!$A:$A,0)),0) -> 0.65 | G81: =IFERROR(F81*E81,0) -> 0.02691
A82: =IFERROR(INDEX(SINAPI!$E:$E,MATCH($B82,SINAPI!$A:$A,0)),"") -> COMPOSIÇÃO | B82: =IF(IFERROR(INDEX(COMPOSIÇÕES_IFMT!$B:$B,MATCH($A80,COMPOSIÇÕES_IFMT!$A:$A,0)),"")<>"",OFFSET(COMPOSIÇÕES_IFMT!$A$1,MATCH($A80,COMPOSIÇÕES_IFMT!$A:$A,0)+1,1),"") -> 88310 | C82: =IFERROR(INDEX(SINAPI!$B:$B,MATCH($B82,SINAPI!$A:$A,0)),"") -> PINTOR COM ENCARGOS COMPLEMENTARES | D82: =IFERROR(INDEX(SINAPI!$C:$C,MATCH($B82,SINAPI!$A:$A,0)),"") -> H | E82: =IF(IFERROR(INDEX(COMPOSIÇÕES_IFMT!$B:$B,MATCH($A80,COMPOSIÇÕES_IFMT!$A:$A,0)),"")<>"",OFFSET(COMPOSIÇÕES_IFMT!$A$1,MATCH($A80,COMPOSIÇÕES_IFMT!$A:$A,0)+1,4),"") -> 0.051 | F82: =IFERROR(INDEX(SINAPI!$D:$D,MATCH($B82,SINAPI!$A:$A,0)),0) -> 20.92 | G82: =IFERROR(F82*E82,0) -> 1.06692
A83: =IFERROR(INDEX(SINAPI!$E:$E,MATCH($B83,SINAPI!$A:$A,0)),"") -> COMPOSIÇÃO | B83: =IF(IFERROR(INDEX(COMPOSIÇÕES_IFMT!$B:$B,MATCH($A80,COMPOSIÇÕES_IFMT!$A:$A,0)),"")<>"",OFFSET(COMPOSIÇÕES_IFMT!$A$1,MATCH($A80,COMPOSIÇÕES_IFMT!$A:$A,0)+2,1),"") -> 88316 | C83: =IFERROR(INDEX(SINAPI!$B:$B,MATCH($B83,SINAPI!$A:$A,0)),"") -> SERVENTE COM ENCARGOS COMPLEMENTARES | D83: =IFERROR(INDEX(SINAPI!$C:$C,MATCH($B83,SINAPI!$A:$A,0)),"") -> H | E83: =IF(IFERROR(INDEX(COMPOSIÇÕES_IFMT!$B:$B,MATCH($A80,COMPOSIÇÕES_IFMT!$A:$A,0)),"")<>"",OFFSET(COMPOSIÇÕES_IFMT!$A$1,MATCH($A80,COMPOSIÇÕES_IFMT!$A:$A,0)+2,4),"") -> 0.019 | F83: =IFERROR(INDEX(SINAPI!$D:$D,MATCH($B83,SINAPI!$A:$A,0)),0) -> 15.91 | G83: 0.30229
F84: TOTAL | G84: =SUM(G81:G83) -> 1.39612
A87: CLASSE/TIPO | B87: CÓDIGOS/ SINAPI | C87: DESCRIÇÃO | D87: UND | E87: COEFICIENTE | F87: PREÇO UNITÁRIO | G87: PREÇO TOTAL
A88: IFMT 061.05.2019 | B88: =IFERROR(INDEX(COMPOSIÇÕES_IFMT!$B:$B,MATCH($A88,COMPOSIÇÕES_IFMT!$A:$A,0)),"") -> .061/D | C88: =IFERROR(INDEX(COMPOSIÇÕES_IFMT!$C:$C,MATCH($A88,COMPOSIÇÕES_IFMT!$A:$A,0)),"") -> RESTAURAÇÃO DA COBERTURA COM MANTA ASFALTICA ALUMINIZADA MULTIUSO. FORNECIMENTO E INSTALAÇÃO | D88: =IFERROR(INDEX(COMPOSIÇÕES_IFMT!$D:$D,MATCH($A88,COMPOSIÇÕES_IFMT!$A:$A,0)),"") -> M2 | G88: =G91 -> 14.23557
A89: =IFERROR(INDEX(SINAPI!$E:$E,MATCH($B89,SINAPI!$A:$A,0)),"") -> INSUMO | B89: =IF(IFERROR(INDEX(COMPOSIÇÕES_IFMT!$B:$B,MATCH($A88,COMPOSIÇÕES_IFMT!$A:$A,0)),"")<>"",OFFSET(COMPOSIÇÕES_IFMT!$A$1,MATCH($A88,COMPOSIÇÕES_IFMT!$A:$A,0),1),"") -> 39701 | C89: =IFERROR(INDEX(SINAPI!$B:$B,MATCH($B89,SINAPI!$A:$A,0)),"") -> FITA ADESIVA ASFALTICA ALUMINIZADA MULTIUSO, L = 10 CM, ROLO DE 10 M | D89: =IFERROR(INDEX(SINAPI!$C:$C,MATCH($B89,SINAPI!$A:$A,0)),"") -> UN | E89: =IF(IFERROR(INDEX(COMPOSIÇÕES_IFMT!$B:$B,MATCH($A88,COMPOSIÇÕES_IFMT!$A:$A,0)),"")<>"",OFFSET(COMPOSIÇÕES_IFMT!$A$1,MATCH($A88,COMPOSIÇÕES_IFMT!$A:$A,0),4),"") -> 0.183 | F89: =IFERROR(INDEX(SINAPI!$D:$D,MATCH($B89,SINAPI!$A:$A,0)),0) -> 61.88 | G89: =IFERROR(F89*E89,0) -> 11.32404
A90: =IFERROR(INDEX(SINAPI!$E:$E,MATCH($B90,SINAPI!$A:$A,0)),"") -> COMPOSIÇÃO | B90: =IF(IFERROR(INDEX(COMPOSIÇÕES_IFMT!$B:$B,MATCH($A88,COMPOSIÇÕES_IFMT!$A:$A,0)),"")<>"",OFFSET(COMPOSIÇÕES_IFMT!$A$1,MATCH($A88,COMPOSIÇÕES_IFMT!$A:$A,0)+1,1),"") -> 88316 | C90: =IFERROR(INDEX(SINAPI!$B:$B,MATCH($B90,SINAPI!$A:$A,0)),"") -> SERVENTE COM ENCARGOS COMPLEMENTARES | D90: =IFERROR(INDEX(SINAPI!$C:$C,MATCH($B90,SINAPI!$A:$A,0)),"") -> H | E90: =IF(IFERROR(INDEX(COMPOSIÇÕES_IFMT!$B:$B,MATCH($A88,COMPOSIÇÕES_IFMT!$A:$A,0)),"")<>"",OFFSET(COMPOSIÇÕES_IFMT!$A$1,MATCH($A88,COMPOSIÇÕES_IFMT!$A:$A,0)+1,4),"") -> 0.183 | F90: =IFERROR(INDEX(SINAPI!$D:$D,MATCH($B90,SINAPI!$A:$A,0)),0) -> 15.91 | G90: =IFERROR(F90*E90,0) -> 2.91153
F91: TOTAL | G91: =SUM(G89:G90) -> 14.23557
A94: CLASSE/TIPO | B94: CÓDIGOS/ SINAPI | C94: DESCRIÇÃO | D94: UND | E94: COEFICIENTE | F94: PREÇO UNITÁRIO | G94: PREÇO TOTAL
A95: IFMT 077.05.2019 | B95: .077/R | C95: GRADE DE FERRO EM BARRA CHATA 3/16" | D95: M² | G95: =G101 -> 1030.973
A96: =IFERROR(INDEX(SINAPI!$E:$E,MATCH($B96,SINAPI!$A:$A,0)),"") -> INSUMO | B96: 546 | C96: =IFERROR(INDEX(SINAPI!$B:$B,MATCH($B96,SINAPI!$A:$A,0)),"") -> BARRA DE FERRO RETANGULAR, BARRA CHATA (QUALQUER DIMENSAO) | D96: =IFERROR(INDEX(SINAPI!$C:$C,MATCH($B96,SINAPI!$A:$A,0)),"") -> KG | E96: 42 | F96: =IFERROR(INDEX(SINAPI!$D:$D,MATCH($B96,SINAPI!$A:$A,0)),0) -> 7.3 | G96: =IFERROR(F96*E96,0) -> 306.6
A97: =IFERROR(INDEX(SINAPI!$E:$E,MATCH($B97,SINAPI!$A:$A,0)),"") -> INSUMO | B97: 567 | C97: =IFERROR(INDEX(SINAPI!$B:$B,MATCH($B97,SINAPI!$A:$A,0)),"") -> CANTONEIRA FERRO GALVANIZADO DE ABAS IGUAIS, 1" X 1/8" (L X E) , 1,20KG/M | D97: =IFERROR(INDEX(SINAPI!$C:$C,MATCH($B97,SINAPI!$A:$A,0)),"") -> M | E97: 2 | F97: =IFERROR(INDEX(SINAPI!$D:$D,MATCH($B97,SINAPI!$A:$A,0)),0) -> 9.62 | G97: =IFERROR(F97*E97,0) -> 19.24
A98: INSUMO | B98: 88315 | C98: =IFERROR(INDEX(SINAPI!$B:$B,MATCH($B98,SINAPI!$A:$A,0)),"") -> SERRALHEIRO COM ENCARGOS COMPLEMENTARES | D98: =IFERROR(INDEX(SINAPI!$C:$C,MATCH($B98,SINAPI!$A:$A,0)),"") -> H | E98: 1.5 | F98: =IFERROR(INDEX(SINAPI!$D:$D,MATCH($B98,SINAPI!$A:$A,0)),0) -> 19.71 | G98: =IFERROR(F98*E98,0) -> 29.565
A99: =IFERROR(INDEX(SINAPI!$E:$E,MATCH($B99,SINAPI!$A:$A,0)),"") -> COMPOSIÇÃO | B99: 88316 | C99: =IFERROR(INDEX(SINAPI!$B:$B,MATCH($B99,SINAPI!$A:$A,0)),"") -> SERVENTE COM ENCARGOS COMPLEMENTARES | D99: =IFERROR(INDEX(SINAPI!$C:$C,MATCH($B99,SINAPI!$A:$A,0)),"") -> H | E99: 1.6 | F99: =IFERROR(INDEX(SINAPI!$D:$D,MATCH($B99,SINAPI!$A:$A,0)),0) -> 15.91 | G99: 25.456
A100: =IFERROR(INDEX(SINAPI!$E:$E,MATCH($B100,SINAPI!$A:$A,0)),"") -> COMPOSIÇÃO | B100: 88631 | C100: =IFERROR(INDEX(SINAPI!$B:$B,MATCH($B100,SINAPI!$A:$A,0)),"") -> ARGAMASSA TRAÇO 1:4 (EM VOLUME DE CIMENTO E AREIA MÉDIA ÚMIDA), PREPARO MANUAL. AF_08/2019 | D100: =IFERROR(INDEX(SINAPI!$C:$C,MATCH($B100,SINAPI!$A:$A,0)),"") -> M3 | E100: 1.6 | F100: =IFERROR(INDEX(SINAPI!$D:$D,MATCH($B100,SINAPI!$A:$A,0)),0) -> 406.32 | G100: 650.112
F101: TOTAL | G101: =SUM(G96:G100) -> 1030.973
A104: CLASSE/TIPO | B104: CÓDIGOS/ SINAPI | C104: DESCRIÇÃO | D104: UND | E104: COEFICIENTE | F104: PREÇO UNITÁRIO | G104: PREÇO TOTAL
A105: IFMT 089.02.03.2020 | B105: .089/R | C105: PORTAO DE FERRO EM CHAPA GALVANIZADA PLANA 14 GSG | D105: M2 | G105: =G114 -> 286.0685
A106: =IFERROR(INDEX(SINAPI!$E:$E,MATCH($B106,SINAPI!$A:$A,0)),"") -> INSUMO | B106: 43054 | C106: =IFERROR(INDEX(SINAPI!$B:$B,MATCH($B106,SINAPI!$A:$A,0)),"") -> ACO CA-25, 10,0 MM, OU 12,5 MM, OU 16,0 MM, OU 20,0 MM, OU 25,0 MM, VERGALHAO | D106: =IFERROR(INDEX(SINAPI!$C:$C,MATCH($B106,SINAPI!$A:$A,0)),"") -> KG | E106: 5.1 | F106: =IFERROR(INDEX(SINAPI!$D:$D,MATCH($B106,SINAPI!$A:$A,0)),0) -> 7.01 | G106: =IFERROR(F106*E106,0) -> 35.751
A107: =IFERROR(INDEX(SINAPI!$E:$E,MATCH($B107,SINAPI!$A:$A,0)),"") -> INSUMO | B107: 370 | C107: =IFERROR(INDEX(SINAPI!$B:$B,MATCH($B107,SINAPI!$A:$A,0)),"") -> AREIA MEDIA - POSTO JAZIDA/FORNECEDOR (RETIRADO NA JAZIDA, SEM TRANSPORTE) | D107: =IFERROR(INDEX(SINAPI!$C:$C,MATCH($B107,SINAPI!$A:$A,0)),"") -> M3 | E107: 0.025 | F107: =IFERROR(INDEX(SINAPI!$D:$D,MATCH($B107,SINAPI!$A:$A,0)),0) -> 62.5 | G107: =IFERROR(F107*E107,0) -> 1.5625
A108: =IFERROR(INDEX(SINAPI!$E:$E,MATCH($B108,SINAPI!$A:$A,0)),"") -> INSUMO | B108: 1106 | C108: =IFERROR(INDEX(SINAPI!$B:$B,MATCH($B108,SINAPI!$A:$A,0)),"") -> CAL HIDRATADA CH-I PARA ARGAMASSAS | D108: =IFERROR(INDEX(SINAPI!$C:$C,MATCH($B108,SINAPI!$A:$A,0)),"") -> KG | E108: 1 | F108: =IFERROR(INDEX(SINAPI!$D:$D,MATCH($B108,SINAPI!$A:$A,0)),0) -> 0.69 | G108: 0.69
A109: =IFERROR(INDEX(SINAPI!$E:$E,MATCH($B109,SINAPI!$A:$A,0)),"") -> INSUMO | B109: 1379 | C109: =IFERROR(INDEX(SINAPI!$B:$B,MATCH($B109,SINAPI!$A:$A,0)),"") -> CIMENTO PORTLAND COMPOSTO CP II-32 | D109: =IFERROR(INDEX(SINAPI!$C:$C,MATCH($B109,SINAPI!$A:$A,0)),"") -> KG | E109: 4.6 | F109: =IFERROR(INDEX(SINAPI!$D:$D,MATCH($B109,SINAPI!$A:$A,0)),0) -> 0.52 | G109: 2.392
A110: =IFERROR(INDEX(SINAPI!$E:$E,MATCH($B110,SINAPI!$A:$A,0)),"") -> INSUMO | B110: 4777 | C110: =IFERROR(INDEX(SINAPI!$B:$B,MATCH($B110,SINAPI!$A:$A,0)),"") -> CANTONEIRA ACO ABAS IGUAIS (QUALQUER BITOLA), ESPESSURA ENTRE 1/8" E 1/4" | D110: =IFERROR(INDEX(SINAPI!$C:$C,MATCH($B110,SINAPI!$A:$A,0)),"") -> KG | E110: 8.26 | F110: =IFERROR(INDEX(SINAPI!$D:$D,MATCH($B110,SINAPI!$A:$A,0)),0) -> 5.09 | G110: 42.0434
A111: =IFERROR(INDEX(SINAPI!$E:$E,MATCH($B111,SINAPI!$A:$A,0)),"") -> INSUMO | B111: 11026 | C111: =IFERROR(INDEX(SINAPI!$B:$B,MATCH($B111,SINAPI!$A:$A,0)),"") -> CHAPA DE ACO GALVANIZADA BITOLA GSG 14, E = 1,95 MM (15,60 KG/M2) | D111: =IFERROR(INDEX(SINAPI!$C:$C,MATCH($B111,SINAPI!$A:$A,0)),"") -> KG | E111: 15.28 | F111: =IFERROR(INDEX(SINAPI!$D:$D,MATCH($B111,SINAPI!$A:$A,0)),0) -> 9.82 | G111: 150.0496
A112: =IFERROR(INDEX(SINAPI!$E:$E,MATCH($B112,SINAPI!$A:$A,0)),"") -> COMPOSIÇÃO | B112: 88309 | C112: =IFERROR(INDEX(SINAPI!$B:$B,MATCH($B112,SINAPI!$A:$A,0)),"") -> PEDREIRO COM ENCARGOS COMPLEMENTARES | D112: =IFERROR(INDEX(SINAPI!$C:$C,MATCH($B112,SINAPI!$A:$A,0)),"") -> H | E112: 1.5 | F112: =IFERROR(INDEX(SINAPI!$D:$D,MATCH($B112,SINAPI!$A:$A,0)),0) -> 19.81 | G112: 29.715
A113: =IFERROR(INDEX(SINAPI!$E:$E,MATCH($B113,SINAPI!$A:$A,0)),"") -> COMPOSIÇÃO | B113: 88316 | C113: =IFERROR(INDEX(SINAPI!$B:$B,MATCH($B113,SINAPI!$A:$A,0)),"") -> SERVENTE COM ENCARGOS COMPLEMENTARES | D113: =IFERROR(INDEX(SINAPI!$C:$C,MATCH($B113,SINAPI!$A:$A,0)),"") -> H | E113: 1.5 | F113: =IFERROR(INDEX(SINAPI!$D:$D,MATCH($B113,SINAPI!$A:$A,0)),0) -> 15.91 | G113: 23.865
F114: TOTAL | G114: =SUM(G106:G113) -> 286.0685
A117: CLASSE/TIPO | B117: CÓDIGOS/ SINAPI | C117: DESCRIÇÃO | D117: UND | E117: COEFICIENTE | F117: PREÇO UNITÁRIO | G117: PREÇO TOTAL
A118: IFMT 114.02.2020 | B118: =IFERROR(INDEX(COMPOSIÇÕES_IFMT!$B:$B,MATCH($A118,COMPOSIÇÕES_IFMT!$A:$A,0)),"") -> .114/D | C118: =IFERROR(INDEX(COMPOSIÇÕES_IFMT!$C:$C,MATCH($A118,COMPOSIÇÕES_IFMT!$A:$A,0)),"") -> INSTALAÇÃO DE UNIDADE REFRIGERADORA | D118: =IFERROR(INDEX(COMPOSIÇÕES_IFMT!$D:$D,MATCH($A118,COMPOSIÇÕES_IFMT!$A:$A,0)),"") -> UN | G118: =G127 -> 569.7104
A119: =IFERROR(INDEX(SINAPI!$E:$E,MATCH($B119,SINAPI!$A:$A,0)),"") -> COMPOSIÇÃO | B119: =IF(IFERROR(INDEX(COMPOSIÇÕES_IFMT!$B:$B,MATCH($A118,COMPOSIÇÕES_IFMT!$A:$A,0)),"")<>"",OFFSET(COMPOSIÇÕES_IFMT!$A$1,MATCH($A118,COMPOSIÇÕES_IFMT!$A:$A,0),1),"") -> 88275 | C119: =IFERROR(INDEX(SINAPI!$B:$B,MATCH($B119,SINAPI!$A:$A,0)),"") -> MECÃNICO DE EQUIPAMENTOS PESADOS COM ENCARGOS COMPLEMENTARES | D119: =IFERROR(INDEX(SINAPI!$C:$C,MATCH($B119,SINAPI!$A:$A,0)),"") -> H | E119: =IF(IFERROR(INDEX(COMPOSIÇÕES_IFMT!$B:$B,MATCH($A118,COMPOSIÇÕES_IFMT!$A:$A,0)),"")<>"",OFFSET(COMPOSIÇÕES_IFMT!$A$1,MATCH($A118,COMPOSIÇÕES_IFMT!$A:$A,0),4),"") -> 2 | F119: =IFERROR(INDEX(SINAPI!$D:$D,MATCH($B119,SINAPI!$A:$A,0)),0) -> 20.31 | G119: =IFERROR(F119*E119,0) -> 40.62
A120: =IFERROR(INDEX(SINAPI!$E:$E,MATCH($B120,SINAPI!$A:$A,0)),"") -> COMPOSIÇÃO | B120: =IF(IFERROR(INDEX(COMPOSIÇÕES_IFMT!$B:$B,MATCH($A118,COMPOSIÇÕES_IFMT!$A:$A,0)),"")<>"",OFFSET(COMPOSIÇÕES_IFMT!$A$1,MATCH($A118,COMPOSIÇÕES_IFMT!$A:$A,0)+1,1),"") -> 88250 | C120: =IFERROR(INDEX(SINAPI!$B:$B,MATCH($B120,SINAPI!$A:$A,0)),"") -> AUXILIAR DE MECÂNICO COM ENCARGOS COMPLEMENTARES | D120: =IFERROR(INDEX(SINAPI!$C:$C,MATCH($B120,SINAPI!$A:$A,0)),"") -> H | E120: =IF(IFERROR(INDEX(COMPOSIÇÕES_IFMT!$B:$B,MATCH($A118,COMPOSIÇÕES_IFMT!$A:$A,0)),"")<>"",OFFSET(COMPOSIÇÕES_IFMT!$A$1,MATCH($A118,COMPOSIÇÕES_IFMT!$A:$A,0)+1,4),"") -> 2 | F120: =IFERROR(INDEX(SINAPI!$D:$D,MATCH($B120,SINAPI!$A:$A,0)),0) -> 13.34 | G120: =IFERROR(F120*E120,0) -> 26.68
A121: =IFERROR(INDEX(SINAPI!$E:$E,MATCH($B121,SINAPI!$A:$A,0)),"") -> INSUMO | B121: =IF(IFERROR(INDEX(COMPOSIÇÕES_IFMT!$B:$B,MATCH($A118,COMPOSIÇÕES_IFMT!$A:$A,0)),"")<>"",OFFSET(COMPOSIÇÕES_IFMT!$A$1,MATCH($A118,COMPOSIÇÕES_IFMT!$A:$A,0)+2,1),"") -> 39748 | C121: =IFERROR(INDEX(SINAPI!$B:$B,MATCH($B121,SINAPI!$A:$A,0)),"") -> TUBO DE COBRE CLASSE "A", DN = 3/4 " (22 MM), PARA INSTALACOES DE MEDIA PRESSAO PARA GASES COMBUSTIVEIS E MEDICINAIS | D121: =IFERROR(INDEX(SINAPI!$C:$C,MATCH($B121,SINAPI!$A:$A,0)),"") -> M | E121: =IF(IFERROR(INDEX(COMPOSIÇÕES_IFMT!$B:$B,MATCH($A118,COMPOSIÇÕES_IFMT!$A:$A,0)),"")<>"",OFFSET(COMPOSIÇÕES_IFMT!$A$1,MATCH($A118,COMPOSIÇÕES_IFMT!$A:$A,0)+2,4),"") -> 5 | F121: =IFERROR(INDEX(SINAPI!$D:$D,MATCH($B121,SINAPI!$A:$A,0)),0) -> 53.88 | G121: 269.4
A122: INSUMO | B122: 11509 | C122: GÁS REFRIGERANTE R22 | D122: KG | E122: 1.86 | F122: 30.14 | G122: 56.0604
A123: =IFERROR(INDEX(SINAPI!$E:$E,MATCH($B123,SINAPI!$A:$A,0)),"") -> INSUMO | B123: =IF(IFERROR(INDEX(COMPOSIÇÕES_IFMT!$B:$B,MATCH($A118,COMPOSIÇÕES_IFMT!$A:$A,0)),"")<>"",OFFSET(COMPOSIÇÕES_IFMT!$A$1,MATCH($A118,COMPOSIÇÕES_IFMT!$A:$A,0)+4,1),"") -> 39719 | C123: =IFERROR(INDEX(SINAPI!$B:$B,MATCH($B123,SINAPI!$A:$A,0)),"") -> ADESIVO LIQUIDO A BASE DE RESINAS PARA COLAGEM DE ESPUMA DE ISOLAMENTO TERMICO FLEXIVEL | D123: =IFERROR(INDEX(SINAPI!$C:$C,MATCH($B123,SINAPI!$A:$A,0)),"") -> L | E123: =IF(IFERROR(INDEX(COMPOSIÇÕES_IFMT!$B:$B,MATCH($A118,COMPOSIÇÕES_IFMT!$A:$A,0)),"")<>"",OFFSET(COMPOSIÇÕES_IFMT!$A$1,MATCH($A118,COMPOSIÇÕES_IFMT!$A:$A,0)+4,4),"") -> 1 | F123: =IFERROR(INDEX(SINAPI!$D:$D,MATCH($B123,SINAPI!$A:$A,0)),0) -> 108.01 | G123: 108.01
A124: =IFERROR(INDEX(SINAPI!$E:$E,MATCH($B124,SINAPI!$A:$A,0)),"") -> INSUMO | B124: =IF(IFERROR(INDEX(COMPOSIÇÕES_IFMT!$B:$B,MATCH($A118,COMPOSIÇÕES_IFMT!$A:$A,0)),"")<>"",OFFSET(COMPOSIÇÕES_IFMT!$A$1,MATCH($A118,COMPOSIÇÕES_IFMT!$A:$A,0)+5,1),"") -> 42529 | C124: =IFERROR(INDEX(SINAPI!$B:$B,MATCH($B124,SINAPI!$A:$A,0)),"") -> FITA ADESIVA ALUMINIZADA, PARA INSTALACAO DE MANTAS DE SUBCOBERTURA, L = *5* CM | D124: =IFERROR(INDEX(SINAPI!$C:$C,MATCH($B124,SINAPI!$A:$A,0)),"") -> M | E124: =IF(IFERROR(INDEX(COMPOSIÇÕES_IFMT!$B:$B,MATCH($A118,COMPOSIÇÕES_IFMT!$A:$A,0)),"")<>"",OFFSET(COMPOSIÇÕES_IFMT!$A$1,MATCH($A118,COMPOSIÇÕES_IFMT!$A:$A,0)+5,4),"") -> 30 | F124: =IFERROR(INDEX(SINAPI!$D:$D,MATCH($B124,SINAPI!$A:$A,0)),0) -> 1.16 | G124: 34.8
A125: =IFERROR(INDEX(SINAPI!$E:$E,MATCH($B125,SINAPI!$A:$A,0)),"") -> INSUMO | B125: =IF(IFERROR(INDEX(COMPOSIÇÕES_IFMT!$B:$B,MATCH($A118,COMPOSIÇÕES_IFMT!$A:$A,0)),"")<>"",OFFSET(COMPOSIÇÕES_IFMT!$A$1,MATCH($A118,COMPOSIÇÕES_IFMT!$A:$A,0)+6,1),"") -> 37590 | C125: =IFERROR(INDEX(SINAPI!$B:$B,MATCH($B125,SINAPI!$A:$A,0)),"") -> SUPORTE MAO-FRANCESA EM ACO, ABAS IGUAIS 30 CM, CAPACIDADE MINIMA 60 KG, BRANCO | D125: =IFERROR(INDEX(SINAPI!$C:$C,MATCH($B125,SINAPI!$A:$A,0)),"") -> UN | E125: =IF(IFERROR(INDEX(COMPOSIÇÕES_IFMT!$B:$B,MATCH($A118,COMPOSIÇÕES_IFMT!$A:$A,0)),"")<>"",OFFSET(COMPOSIÇÕES_IFMT!$A$1,MATCH($A118,COMPOSIÇÕES_IFMT!$A:$A,0)+6,4),"") -> 2 | F125: =IFERROR(INDEX(SINAPI!$D:$D,MATCH($B125,SINAPI!$A:$A,0)),0) -> 10.71 | G125: 21.42
A126: =IFERROR(INDEX(SINAPI!$E:$E,MATCH($B126,SINAPI!$A:$A,0)),"") -> INSUMO | B126: =IF(IFERROR(INDEX(COMPOSIÇÕES_IFMT!$B:$B,MATCH($A118,COMPOSIÇÕES_IFMT!$A:$A,0)),"")<>"",OFFSET(COMPOSIÇÕES_IFMT!$A$1,MATCH($A118,COMPOSIÇÕES_IFMT!$A:$A,0)+7,1),"") -> 11964 | C126: =IFERROR(INDEX(SINAPI!$B:$B,MATCH($B126,SINAPI!$A:$A,0)),"") -> PARAFUSO DE ACO TIPO CHUMBADOR PARABOLT, DIAMETRO 3/8", COMPRIMENTO 75 MM | D126: =IFERROR(INDEX(SINAPI!$C:$C,MATCH($B126,SINAPI!$A:$A,0)),"") -> UN | E126: =IF(IFERROR(INDEX(COMPOSIÇÕES_IFMT!$B:$B,MATCH($A118,COMPOSIÇÕES_IFMT!$A:$A,0)),"")<>"",OFFSET(COMPOSIÇÕES_IFMT!$A$1,MATCH($A118,COMPOSIÇÕES_IFMT!$A:$A,0)+7,4),"") -> 8 | F126: =IFERROR(INDEX(SINAPI!$D:$D,MATCH($B126,SINAPI!$A:$A,0)),0) -> 1.59 | G126: 12.72
F127: TOTAL | G127: =SUM(G119:G126) -> 569.7104
A130: CLASSE/TIPO | B130: CÓDIGOS/ SINAPI | C130: DESCRIÇÃO | D130: UND | E130: COEFICIENTE | F130: PREÇO UNITÁRIO | G130: PREÇO TOTAL
A131: IFMT 115.02.2020 | B131: =IFERROR(INDEX(COMPOSIÇÕES_IFMT!$B:$B,MATCH($A131,COMPOSIÇÕES_IFMT!$A:$A,0)),"") -> .115/D | C131: =IFERROR(INDEX(COMPOSIÇÕES_IFMT!$C:$C,MATCH($A131,COMPOSIÇÕES_IFMT!$A:$A,0)),"") -> INSTALAÇÃO DE UNIDADE CONDENSADORA | D131: =IFERROR(INDEX(COMPOSIÇÕES_IFMT!$D:$D,MATCH($A131,COMPOSIÇÕES_IFMT!$A:$A,0)),"") -> UN | G131: =G136 -> 59.5085
A132: =IFERROR(INDEX(SINAPI!$E:$E,MATCH($B132,SINAPI!$A:$A,0)),"") -> COMPOSIÇÃO | B132: =IF(IFERROR(INDEX(COMPOSIÇÕES_IFMT!$B:$B,MATCH($A131,COMPOSIÇÕES_IFMT!$A:$A,0)),"")<>"",OFFSET(COMPOSIÇÕES_IFMT!$A$1,MATCH($A131,COMPOSIÇÕES_IFMT!$A:$A,0),1),"") -> 88265 | C132: =IFERROR(INDEX(SINAPI!$B:$B,MATCH($B132,SINAPI!$A:$A,0)),"") -> ELETRICISTA INDUSTRIAL COM ENCARGOS COMPLEMENTARES | D132: =IFERROR(INDEX(SINAPI!$C:$C,MATCH($B132,SINAPI!$A:$A,0)),"") -> H | E132: =IF(IFERROR(INDEX(COMPOSIÇÕES_IFMT!$B:$B,MATCH($A131,COMPOSIÇÕES_IFMT!$A:$A,0)),"")<>"",OFFSET(COMPOSIÇÕES_IFMT!$A$1,MATCH($A131,COMPOSIÇÕES_IFMT!$A:$A,0),4),"") -> 0.85 | F132: =IFERROR(INDEX(SINAPI!$D:$D,MATCH($B132,SINAPI!$A:$A,0)),0) -> 20.52 | G132: =IFERROR(F132*E132,0) -> 17.442
A133: =IFERROR(INDEX(SINAPI!$E:$E,MATCH($B133,SINAPI!$A:$A,0)),"") -> COMPOSIÇÃO | B133: =IF(IFERROR(INDEX(COMPOSIÇÕES_IFMT!$B:$B,MATCH($A131,COMPOSIÇÕES_IFMT!$A:$A,0)),"")<>"",OFFSET(COMPOSIÇÕES_IFMT!$A$1,MATCH($A131,COMPOSIÇÕES_IFMT!$A:$A,0)+1,1),"") -> 88247 | C133: =IFERROR(INDEX(SINAPI!$B:$B,MATCH($B133,SINAPI!$A:$A,0)),"") -> AUXILIAR DE ELETRICISTA COM ENCARGOS COMPLEMENTARES | D133: =IFERROR(INDEX(SINAPI!$C:$C,MATCH($B133,SINAPI!$A:$A,0)),"") -> H | E133: =IF(IFERROR(INDEX(COMPOSIÇÕES_IFMT!$B:$B,MATCH($A131,COMPOSIÇÕES_IFMT!$A:$A,0)),"")<>"",OFFSET(COMPOSIÇÕES_IFMT!$A$1,MATCH($A131,COMPOSIÇÕES_IFMT!$A:$A,0)+1,4),"") -> 0.85 | F133: =IFERROR(INDEX(SINAPI!$D:$D,MATCH($B133,SINAPI!$A:$A,0)),0) -> 15.84 | G133: =IFERROR(F133*E133,0) -> 13.464
A134: =IFERROR(INDEX(SINAPI!$E:$E,MATCH($B134,SINAPI!$A:$A,0)),"") -> COMPOSIÇÃO | B134: =IF(IFERROR(INDEX(COMPOSIÇÕES_IFMT!$B:$B,MATCH($A131,COMPOSIÇÕES_IFMT!$A:$A,0)),"")<>"",OFFSET(COMPOSIÇÕES_IFMT!$A$1,MATCH($A131,COMPOSIÇÕES_IFMT!$A:$A,0)+2,1),"") -> 88275 | C134: =IFERROR(INDEX(SINAPI!$B:$B,MATCH($B134,SINAPI!$A:$A,0)),"") -> MECÃNICO DE EQUIPAMENTOS PESADOS COM ENCARGOS COMPLEMENTARES | D134: =IFERROR(INDEX(SINAPI!$C:$C,MATCH($B134,SINAPI!$A:$A,0)),"") -> H | E134: =IF(IFERROR(INDEX(COMPOSIÇÕES_IFMT!$B:$B,MATCH($A131,COMPOSIÇÕES_IFMT!$A:$A,0)),"")<>"",OFFSET(COMPOSIÇÕES_IFMT!$A$1,MATCH($A131,COMPOSIÇÕES_IFMT!$A:$A,0)+2,4),"") -> 0.85 | F134: =IFERROR(INDEX(SINAPI!$D:$D,MATCH($B134,SINAPI!$A:$A,0)),0) -> 20.31 | G134: 17.2635
A135: =IFERROR(INDEX(SINAPI!$E:$E,MATCH($B135,SINAPI!$A:$A,0)),"") -> COMPOSIÇÃO | B135: =IF(IFERROR(INDEX(COMPOSIÇÕES_IFMT!$B:$B,MATCH($A131,COMPOSIÇÕES_IFMT!$A:$A,0)),"")<>"",OFFSET(COMPOSIÇÕES_IFMT!$A$1,MATCH($A131,COMPOSIÇÕES_IFMT!$A:$A,0)+3,1),"") -> 88250 | C135: =IFERROR(INDEX(SINAPI!$B:$B,MATCH($B135,SINAPI!$A:$A,0)),"") -> AUXILIAR DE MECÂNICO COM ENCARGOS COMPLEMENTARES | D135: =IFERROR(INDEX(SINAPI!$C:$C,MATCH($B135,SINAPI!$A:$A,0)),"") -> H | E135: =IF(IFERROR(INDEX(COMPOSIÇÕES_IFMT!$B:$B,MATCH($A131,COMPOSIÇÕES_IFMT!$A:$A,0)),"")<>"",OFFSET(COMPOSIÇÕES_IFMT!$A$1,MATCH($A131,COMPOSIÇÕES_IFMT!$A:$A,0)+3,4),"") -> 0.85 | F135: =IFERROR(INDEX(SINAPI!$D:$D,MATCH($B135,SINAPI!$A:$A,0)),0) -> 13.34 | G135: 11.339
F136: TOTAL | G136: =SUM(G132:G135) -> 59.5085
A139: CLASSE/TIPO | B139: CÓDIGOS/ SINAPI | C139: DESCRIÇÃO | D139: UND | E139: COEFICIENTE | F139: PREÇO UNITÁRIO | G139: PREÇO TOTAL
A140: IFMT 116.01.2020 | B140: =IFERROR(INDEX(COMPOSIÇÕES_IFMT!$B:$B,MATCH($A140,COMPOSIÇÕES_IFMT!$A:$A,0)),"") -> .116/E | C140: =IFERROR(INDEX(COMPOSIÇÕES_IFMT!$C:$C,MATCH($A140,COMPOSIÇÕES_IFMT!$A:$A,0)),"") -> FIXAÇÃO DE TUBOS HORIZONTAIS DE PVC, CPVC OU COBRE DIÂMETROS MENORES OU IGUAIS A 40 MM OU ELETROCALHAS ATÉ 150MM DE LARGURA, COM ABRAÇADEIRA METÁLICA RÍGIDA TIPO D 1/2, FIXADA EM PERFILADO EM LAJE. (FIXAÇÃO POR CUNHA) | D140: =IFERROR(INDEX(COMPOSIÇÕES_IFMT!$D:$D,MATCH($A140,COMPOSIÇÕES_IFMT!$A:$A,0)),"") -> M | G140: =G144 -> 3.2949
A141: =IFERROR(INDEX(SINAPI!$E:$E,MATCH($B141,SINAPI!$A:$A,0)),"") -> COMPOSIÇÃO | B141: =IF(IFERROR(INDEX(COMPOSIÇÕES_IFMT!$B:$B,MATCH($A140,COMPOSIÇÕES_IFMT!$A:$A,0)),"")<>"",OFFSET(COMPOSIÇÕES_IFMT!$A$1,MATCH($A140,COMPOSIÇÕES_IFMT!$A:$A,0),1),"") -> 88248 | C141: =IFERROR(INDEX(SINAPI!$B:$B,MATCH($B141,SINAPI!$A:$A,0)),"") -> AUXILIAR DE ENCANADOR OU BOMBEIRO HIDRÁULICO COM ENCARGOS COMPLEMENTARES | D141: =IFERROR(INDEX(SINAPI!$C:$C,MATCH($B141,SINAPI!$A:$A,0)),"") -> H | E141: =IF(IFERROR(INDEX(COMPOSIÇÕES_IFMT!$B:$B,MATCH($A140,COMPOSIÇÕES_IFMT!$A:$A,0)),"")<>"",OFFSET(COMPOSIÇÕES_IFMT!$A$1,MATCH($A140,COMPOSIÇÕES_IFMT!$A:$A,0),4),"") -> 0.01 | F141: =IFERROR(INDEX(SINAPI!$D:$D,MATCH($B141,SINAPI!$A:$A,0)),0) -> 15.38 | G141: =IFERROR(F141*E141,0) -> 0.1538
A142: =IFERROR(INDEX(SINAPI!$E:$E,MATCH($B142,SINAPI!$A:$A,0)),"") -> COMPOSIÇÃO | B142: =IF(IFERROR(INDEX(COMPOSIÇÕES_IFMT!$B:$B,MATCH($A140,COMPOSIÇÕES_IFMT!$A:$A,0)),"")<>"",OFFSET(COMPOSIÇÕES_IFMT!$A$1,MATCH($A140,COMPOSIÇÕES_IFMT!$A:$A,0)+1,1),"") -> 88267 | C142: =IFERROR(INDEX(SINAPI!$B:$B,MATCH($B142,SINAPI!$A:$A,0)),"") -> ENCANADOR OU BOMBEIRO HIDRÁULICO COM ENCARGOS COMPLEMENTARES | D142: =IFERROR(INDEX(SINAPI!$C:$C,MATCH($B142,SINAPI!$A:$A,0)),"") -> H | E142: =IF(IFERROR(INDEX(COMPOSIÇÕES_IFMT!$B:$B,MATCH($A140,COMPOSIÇÕES_IFMT!$A:$A,0)),"")<>"",OFFSET(COMPOSIÇÕES_IFMT!$A$1,MATCH($A140,COMPOSIÇÕES_IFMT!$A:$A,0)+1,4),"") -> 0.069 | F142: =IFERROR(INDEX(SINAPI!$D:$D,MATCH($B142,SINAPI!$A:$A,0)),0) -> 19.9 | G142: =IFERROR(F142*E142,0) -> 1.3731
A143: =IFERROR(INDEX(SINAPI!$E:$E,MATCH($B143,SINAPI!$A:$A,0)),"") -> INSUMO | B143: =IF(IFERROR(INDEX(COMPOSIÇÕES_IFMT!$B:$B,MATCH($A140,COMPOSIÇÕES_IFMT!$A:$A,0)),"")<>"",OFFSET(COMPOSIÇÕES_IFMT!$A$1,MATCH($A140,COMPOSIÇÕES_IFMT!$A:$A,0)+2,1),"") -> 39131 | C143: =IFERROR(INDEX(SINAPI!$B:$B,MATCH($B143,SINAPI!$A:$A,0)),"") -> ABRACADEIRA EM ACO PARA AMARRACAO DE ELETRODUTOS, TIPO D, COM 1 1/2" E CUNHA DE FIXACAO | D143: =IFERROR(INDEX(SINAPI!$C:$C,MATCH($B143,SINAPI!$A:$A,0)),"") -> UN | E143: =IF(IFERROR(INDEX(COMPOSIÇÕES_IFMT!$B:$B,MATCH($A140,COMPOSIÇÕES_IFMT!$A:$A,0)),"")<>"",OFFSET(COMPOSIÇÕES_IFMT!$A$1,MATCH($A140,COMPOSIÇÕES_IFMT!$A:$A,0)+2,4),"") -> 0.65 | F143: =IFERROR(INDEX(SINAPI!$D:$D,MATCH($B143,SINAPI!$A:$A,0)),0) -> 2.72 | G143: 1.768
F144: TOTAL | G144: =SUM(G141:G143) -> 3.2949
A147: CLASSE/TIPO | B147: CÓDIGOS/ SINAPI | C147: DESCRIÇÃO | D147: UND | E147: COEFICIENTE | F147: PREÇO UNITÁRIO | G147: PREÇO TOTAL
A148: IFMT 117.01.2020 | B148: =IFERROR(INDEX(COMPOSIÇÕES_IFMT!$B:$B,MATCH($A148,COMPOSIÇÕES_IFMT!$A:$A,0)),"") -> .117/E | C148: =IFERROR(INDEX(COMPOSIÇÕES_IFMT!$C:$C,MATCH($A148,COMPOSIÇÕES_IFMT!$A:$A,0)),"") -> FIXAÇÃO DE TUBOS VERTICAIS DE PPR DIÂMETROS MENORES OU IGUAIS A 40 MM COM ABRAÇADEIRA METÁLICA RÍGIDA TIPO D 1/2", FIXADA EM PERFILADO EM ALVENARIA. (FIXAÇÃO POR CUNHA) | D148: =IFERROR(INDEX(COMPOSIÇÕES_IFMT!$D:$D,MATCH($A148,COMPOSIÇÕES_IFMT!$A:$A,0)),"") -> M | G148: =G152 -> 1.67916
A149: =IFERROR(INDEX(SINAPI!$E:$E,MATCH($B149,SINAPI!$A:$A,0)),"") -> INSUMO | B149: =IF(IFERROR(INDEX(COMPOSIÇÕES_IFMT!$B:$B,MATCH($A148,COMPOSIÇÕES_IFMT!$A:$A,0)),"")<>"",OFFSET(COMPOSIÇÕES_IFMT!$A$1,MATCH($A148,COMPOSIÇÕES_IFMT!$A:$A,0),1),"") -> 39131 | C149: =IFERROR(INDEX(SINAPI!$B:$B,MATCH($B149,SINAPI!$A:$A,0)),"") -> ABRACADEIRA EM ACO PARA AMARRACAO DE ELETRODUTOS, TIPO D, COM 1 1/2" E CUNHA DE FIXACAO | D149: =IFERROR(INDEX(SINAPI!$C:$C,MATCH($B149,SINAPI!$A:$A,0)),"") -> UN | E149: =IF(IFERROR(INDEX(COMPOSIÇÕES_IFMT!$B:$B,MATCH($A148,COMPOSIÇÕES_IFMT!$A:$A,0)),"")<>"",OFFSET(COMPOSIÇÕES_IFMT!$A$1,MATCH($A148,COMPOSIÇÕES_IFMT!$A:$A,0),4),"") -> 0.333 | F149: =IFERROR(INDEX(SINAPI!$D:$D,MATCH($B149,SINAPI!$A:$A,0)),0) -> 2.72 | G149: =IFERROR(F149*E149,0) -> 0.90576
A150: =IFERROR(INDEX(SINAPI!$E:$E,MATCH($B150,SINAPI!$A:$A,0)),"") -> COMPOSIÇÃO | B150: =IF(IFERROR(INDEX(COMPOSIÇÕES_IFMT!$B:$B,MATCH($A148,COMPOSIÇÕES_IFMT!$A:$A,0)),"")<>"",OFFSET(COMPOSIÇÕES_IFMT!$A$1,MATCH($A148,COMPOSIÇÕES_IFMT!$A:$A,0)+1,1),"") -> 88248 | C150: =IFERROR(INDEX(SINAPI!$B:$B,MATCH($B150,SINAPI!$A:$A,0)),"") -> AUXILIAR DE ENCANADOR OU BOMBEIRO HIDRÁULICO COM ENCARGOS COMPLEMENTARES | D150: =IFERROR(INDEX(SINAPI!$C:$C,MATCH($B150,SINAPI!$A:$A,0)),"") -> H | E150: =IF(IFERROR(INDEX(COMPOSIÇÕES_IFMT!$B:$B,MATCH($A148,COMPOSIÇÕES_IFMT!$A:$A,0)),"")<>"",OFFSET(COMPOSIÇÕES_IFMT!$A$1,MATCH($A148,COMPOSIÇÕES_IFMT!$A:$A,0)+1,4),"") -> 0.005 | F150: =IFERROR(INDEX(SINAPI!$D:$D,MATCH($B150,SINAPI!$A:$A,0)),0) -> 15.38 | G150: =IFERROR(F150*E150,0) -> 0.0769
A151: =IFERROR(INDEX(SINAPI!$E:$E,MATCH($B151,SINAPI!$A:$A,0)),"") -> COMPOSIÇÃO | B151: =IF(IFERROR(INDEX(COMPOSIÇÕES_IFMT!$B:$B,MATCH($A148,COMPOSIÇÕES_IFMT!$A:$A,0)),"")<>"",OFFSET(COMPOSIÇÕES_IFMT!$A$1,MATCH($A148,COMPOSIÇÕES_IFMT!$A:$A,0)+2,1),"") -> 88267 | C151: =IFERROR(INDEX(SINAPI!$B:$B,MATCH($B151,SINAPI!$A:$A,0)),"") -> ENCANADOR OU BOMBEIRO HIDRÁULICO COM ENCARGOS COMPLEMENTARES | D151: =IFERROR(INDEX(SINAPI!$C:$C,MATCH($B151,SINAPI!$A:$A,0)),"") -> H | E151: =IF(IFERROR(INDEX(COMPOSIÇÕES_IFMT!$B:$B,MATCH($A148,COMPOSIÇÕES_IFMT!$A:$A,0)),"")<>"",OFFSET(COMPOSIÇÕES_IFMT!$A$1,MATCH($A148,COMPOSIÇÕES_IFMT!$A:$A,0)+2,4),"") -> 0.035 | F151: =IFERROR(INDEX(SINAPI!$D:$D,MATCH($B151,SINAPI!$A:$A,0)),0) -> 19.9 | G151: 0.6965
F152: TOTAL | G152: =SUM(G149:G151) -> 1.67916
A155: CLASSE/TIPO | B155: CÓDIGOS/ SINAPI | C155: DESCRIÇÃO | D155: UND | E155: COEFICIENTE | F155: PREÇO UNITÁRIO | G155: PREÇO TOTAL
A156: IFMT 119.01.2020 | B156: =IFERROR(INDEX(COMPOSIÇÕES_IFMT!$B:$B,MATCH($A156,COMPOSIÇÕES_IFMT!$A:$A,0)),"") -> .119/E | C156: =IFERROR(INDEX(COMPOSIÇÕES_IFMT!$C:$C,MATCH($A156,COMPOSIÇÕES_IFMT!$A:$A,0)),"") -> ELETRODUTO DE AÇO GALVANIZADO, CLASSE LEVE, DN 20 MM (3/4), APARENTE, INSTALADO EM PAREDE - FORNECIMENTO E INSTALAÇÃO.(FIXAÇÃO POR CUNHA) | D156: =IFERROR(INDEX(COMPOSIÇÕES_IFMT!$D:$D,MATCH($A156,COMPOSIÇÕES_IFMT!$A:$A,0)),"") -> M | G156: =G162 -> 24.86958
A157: =IFERROR(INDEX(SINAPI!$E:$E,MATCH($B157,SINAPI!$A:$A,0)),"") -> INSUMO | B157: =IF(IFERROR(INDEX(COMPOSIÇÕES_IFMT!$B:$B,MATCH($A156,COMPOSIÇÕES_IFMT!$A:$A,0)),"")<>"",OFFSET(COMPOSIÇÕES_IFMT!$A$1,MATCH($A156,COMPOSIÇÕES_IFMT!$A:$A,0),1),"") -> 21128 | C157: =IFERROR(INDEX(SINAPI!$B:$B,MATCH($B157,SINAPI!$A:$A,0)),"") -> !EM PROCESSO DESATIVACAO! ELETRODUTO EM ACO GALVANIZADO ELETROLITICO, LEVE, DIAMETRO 3/4", PAREDE DE 0,90 MM | D157: =IFERROR(INDEX(SINAPI!$C:$C,MATCH($B157,SINAPI!$A:$A,0)),"") -> M | E157: =IF(IFERROR(INDEX(COMPOSIÇÕES_IFMT!$B:$B,MATCH($A156,COMPOSIÇÕES_IFMT!$A:$A,0)),"")<>"",OFFSET(COMPOSIÇÕES_IFMT!$A$1,MATCH($A156,COMPOSIÇÕES_IFMT!$A:$A,0),4),"") -> 1.05 | F157: =IFERROR(INDEX(SINAPI!$D:$D,MATCH($B157,SINAPI!$A:$A,0)),0) -> 8.1 | G157: =IFERROR(F157*E157,0) -> 8.505
A158: =IFERROR(INDEX(SINAPI!$E:$E,MATCH($B158,SINAPI!$A:$A,0)),"") -> COMPOSIÇÃO | B158: =IF(IFERROR(INDEX(COMPOSIÇÕES_IFMT!$B:$B,MATCH($A156,COMPOSIÇÕES_IFMT!$A:$A,0)),"")<>"",OFFSET(COMPOSIÇÕES_IFMT!$A$1,MATCH($A156,COMPOSIÇÕES_IFMT!$A:$A,0)+1,1),"") -> 88247 | C158: =IFERROR(INDEX(SINAPI!$B:$B,MATCH($B158,SINAPI!$A:$A,0)),"") -> AUXILIAR DE ELETRICISTA COM ENCARGOS COMPLEMENTARES | D158: =IFERROR(INDEX(SINAPI!$C:$C,MATCH($B158,SINAPI!$A:$A,0)),"") -> H | E158: =IF(IFERROR(INDEX(COMPOSIÇÕES_IFMT!$B:$B,MATCH($A156,COMPOSIÇÕES_IFMT!$A:$A,0)),"")<>"",OFFSET(COMPOSIÇÕES_IFMT!$A$1,MATCH($A156,COMPOSIÇÕES_IFMT!$A:$A,0)+1,4),"") -> 0.1944 | F158: =IFERROR(INDEX(SINAPI!$D:$D,MATCH($B158,SINAPI!$A:$A,0)),0) -> 15.84 | G158: =IFERROR(F158*E158,0) -> 3.079296
A159: =IFERROR(INDEX(SINAPI!$E:$E,MATCH($B159,SINAPI!$A:$A,0)),"") -> COMPOSIÇÃO | B159: =IF(IFERROR(INDEX(COMPOSIÇÕES_IFMT!$B:$B,MATCH($A156,COMPOSIÇÕES_IFMT!$A:$A,0)),"")<>"",OFFSET(COMPOSIÇÕES_IFMT!$A$1,MATCH($A156,COMPOSIÇÕES_IFMT!$A:$A,0)+2,1),"") -> 88264 | C159: =IFERROR(INDEX(SINAPI!$B:$B,MATCH($B159,SINAPI!$A:$A,0)),"") -> ELETRICISTA COM ENCARGOS COMPLEMENTARES | D159: =IFERROR(INDEX(SINAPI!$C:$C,MATCH($B159,SINAPI!$A:$A,0)),"") -> H | E159: =IF(IFERROR(INDEX(COMPOSIÇÕES_IFMT!$B:$B,MATCH($A156,COMPOSIÇÕES_IFMT!$A:$A,0)),"")<>"",OFFSET(COMPOSIÇÕES_IFMT!$A$1,MATCH($A156,COMPOSIÇÕES_IFMT!$A:$A,0)+2,4),"") -> 0.1944 | F159: =IFERROR(INDEX(SINAPI!$D:$D,MATCH($B159,SINAPI!$A:$A,0)),0) -> 20.52 | G159: 3.989088
A160: IFMT 116.01.2020 | B160: .116/E | C160: FIXAÇÃO DE TUBOS HORIZONTAIS DE PVC, CPVC OU COBRE DIÂMETROS MENORES OU IGUAIS A 40 MM OU ELETROCALHAS ATÉ 150MM DE LARGURA, COM ABRAÇADEIRA METÁLICA RÍGIDA TIPO D 1/2, FIXADA EM PERFILADO EM LAJE. (FIXAÇÃO POR CUNHA) | D160: M | E160: 2 | F160: =$G$144 -> 3.2949 | G160: 6.5898
A161: =IFERROR(INDEX(SINAPI!$E:$E,MATCH($B161,SINAPI!$A:$A,0)),"") -> COMPOSIÇÃO | B161: =IF(IFERROR(INDEX(COMPOSIÇÕES_IFMT!$B:$B,MATCH($A156,COMPOSIÇÕES_IFMT!$A:$A,0)),"")<>"",OFFSET(COMPOSIÇÕES_IFMT!$A$1,MATCH($A156,COMPOSIÇÕES_IFMT!$A:$A,0)+4,1),"") -> 95757 | C161: =IFERROR(INDEX(SINAPI!$B:$B,MATCH($B161,SINAPI!$A:$A,0)),"") -> LUVA DE EMENDA PARA ELETRODUTO, AÇO GALVANIZADO, DN 20 MM (3/4''), APARENTE, INSTALADA EM PAREDE - FORNECIMENTO E INSTALAÇÃO. AF_11/2016_P | D161: =IFERROR(INDEX(SINAPI!$C:$C,MATCH($B161,SINAPI!$A:$A,0)),"") -> UN | E161: =IF(IFERROR(INDEX(COMPOSIÇÕES_IFMT!$B:$B,MATCH($A156,COMPOSIÇÕES_IFMT!$A:$A,0)),"")<>"",OFFSET(COMPOSIÇÕES_IFMT!$A$1,MATCH($A156,COMPOSIÇÕES_IFMT!$A:$A,0)+4,4),"") -> 0.3333 | F161: =IFERROR(INDEX(SINAPI!$D:$D,MATCH($B161,SINAPI!$A:$A,0)),0) -> 8.12 | G161: 2.706396
F162: TOTAL | G162: =SUM(G157:G161) -> 24.86958
A165: CLASSE/TIPO | B165: CÓDIGOS/ SINAPI | C165: DESCRIÇÃO | D165: UND | E165: COEFICIENTE | F165: PREÇO UNITÁRIO | G165: PREÇO TOTAL
A166: IFMT 118.01.2020 | B166: =IFERROR(INDEX(COMPOSIÇÕES_IFMT!$B:$B,MATCH($A166,COMPOSIÇÕES_IFMT!$A:$A,0)),"") -> .118/E | C166: =IFERROR(INDEX(COMPOSIÇÕES_IFMT!$C:$C,MATCH($A166,COMPOSIÇÕES_IFMT!$A:$A,0)),"") -> ELETRODUTO DE AÇO GALVANIZADO, CLASSE LEVE, DN 20 MM (3/4), APARENTE, INSTALADO EM TETO - FORNECIMENTO E INSTALAÇÃO.(FIXAÇÃO POR CUNHA) | D166: =IFERROR(INDEX(COMPOSIÇÕES_IFMT!$D:$D,MATCH($A166,COMPOSIÇÕES_IFMT!$A:$A,0)),"") -> M | G166: =G172 -> 16.56912
A167: =IFERROR(INDEX(SINAPI!$E:$E,MATCH($B167,SINAPI!$A:$A,0)),"") -> COMPOSIÇÃO | B167: =IF(IFERROR(INDEX(COMPOSIÇÕES_IFMT!$B:$B,MATCH($A166,COMPOSIÇÕES_IFMT!$A:$A,0)),"")<>"",OFFSET(COMPOSIÇÕES_IFMT!$A$1,MATCH($A166,COMPOSIÇÕES_IFMT!$A:$A,0),1),"") -> 88247 | C167: =IFERROR(INDEX(SINAPI!$B:$B,MATCH($B167,SINAPI!$A:$A,0)),"") -> AUXILIAR DE ELETRICISTA COM ENCARGOS COMPLEMENTARES | D167: =IFERROR(INDEX(SINAPI!$C:$C,MATCH($B167,SINAPI!$A:$A,0)),"") -> H | E167: =IF(IFERROR(INDEX(COMPOSIÇÕES_IFMT!$B:$B,MATCH($A166,COMPOSIÇÕES_IFMT!$A:$A,0)),"")<>"",OFFSET(COMPOSIÇÕES_IFMT!$A$1,MATCH($A166,COMPOSIÇÕES_IFMT!$A:$A,0),4),"") -> 0.0824 | F167: =IFERROR(INDEX(SINAPI!$D:$D,MATCH($B167,SINAPI!$A:$A,0)),0) -> 15.84 | G167: =IFERROR(F167*E167,0) -> 1.305216
A168: =IFERROR(INDEX(SINAPI!$E:$E,MATCH($B168,SINAPI!$A:$A,0)),"") -> COMPOSIÇÃO | B168: =IF(IFERROR(INDEX(COMPOSIÇÕES_IFMT!$B:$B,MATCH($A166,COMPOSIÇÕES_IFMT!$A:$A,0)),"")<>"",OFFSET(COMPOSIÇÕES_IFMT!$A$1,MATCH($A166,COMPOSIÇÕES_IFMT!$A:$A,0)+1,1),"") -> 88264 | C168: =IFERROR(INDEX(SINAPI!$B:$B,MATCH($B168,SINAPI!$A:$A,0)),"") -> ELETRICISTA COM ENCARGOS COMPLEMENTARES | D168: =IFERROR(INDEX(SINAPI!$C:$C,MATCH($B168,SINAPI!$A:$A,0)),"") -> H | E168: =IF(IFERROR(INDEX(COMPOSIÇÕES_IFMT!$B:$B,MATCH($A166,COMPOSIÇÕES_IFMT!$A:$A,0)),"")<>"",OFFSET(COMPOSIÇÕES_IFMT!$A$1,MATCH($A166,COMPOSIÇÕES_IFMT!$A:$A,0)+1,4),"") -> 0.0824 | F168: =IFERROR(INDEX(SINAPI!$D:$D,MATCH($B168,SINAPI!$A:$A,0)),0) -> 20.52 | G168: =IFERROR(F168*E168,0) -> 1.690848
A169: IFMT 116.01.2020 | B169: .116/E | C169: FIXAÇÃO DE TUBOS HORIZONTAIS DE PVC, CPVC OU COBRE DIÂMETROS MENORES OU IGUAIS A 40 MM OU ELETROCALHAS ATÉ 150MM DE LARGURA, COM ABRAÇADEIRA METÁLICA RÍGIDA TIPO D 1/2, FIXADA EM PERFILADO EM LAJE. (FIXAÇÃO POR CUNHA) | D169: M | E169: 1 | F169: =$G$144 -> 3.2949 | G169: 3.2949
A170: =IFERROR(INDEX(SINAPI!$E:$E,MATCH($B170,SINAPI!$A:$A,0)),"") -> COMPOSIÇÃO | B170: =IF(IFERROR(INDEX(COMPOSIÇÕES_IFMT!$B:$B,MATCH($A166,COMPOSIÇÕES_IFMT!$A:$A,0)),"")<>"",OFFSET(COMPOSIÇÕES_IFMT!$A$1,MATCH($A166,COMPOSIÇÕES_IFMT!$A:$A,0)+3,1),"") -> 95753 | C170: =IFERROR(INDEX(SINAPI!$B:$B,MATCH($B170,SINAPI!$A:$A,0)),"") -> LUVA DE EMENDA PARA ELETRODUTO, AÇO GALVANIZADO, DN 20 MM (3/4 ), APARENTE, INSTALADA EM TETO - FORNECIMENTO E INSTALAÇÃO. AF_11/2016_P | D170: =IFERROR(INDEX(SINAPI!$C:$C,MATCH($B170,SINAPI!$A:$A,0)),"") -> UN | E170: =IF(IFERROR(INDEX(COMPOSIÇÕES_IFMT!$B:$B,MATCH($A166,COMPOSIÇÕES_IFMT!$A:$A,0)),"")<>"",OFFSET(COMPOSIÇÕES_IFMT!$A$1,MATCH($A166,COMPOSIÇÕES_IFMT!$A:$A,0)+3,4),"") -> 0.3333 | F170: =IFERROR(INDEX(SINAPI!$D:$D,MATCH($B170,SINAPI!$A:$A,0)),0) -> 5.32 | G170: 1.773156
A171: =IFERROR(INDEX(SINAPI!$E:$E,MATCH($B171,SINAPI!$A:$A,0)),"") -> INSUMO | B171: =IF(IFERROR(INDEX(COMPOSIÇÕES_IFMT!$B:$B,MATCH($A166,COMPOSIÇÕES_IFMT!$A:$A,0)),"")<>"",OFFSET(COMPOSIÇÕES_IFMT!$A$1,MATCH($A166,COMPOSIÇÕES_IFMT!$A:$A,0)+4,1),"") -> 21128 | C171: =IFERROR(INDEX(SINAPI!$B:$B,MATCH($B171,SINAPI!$A:$A,0)),"") -> !EM PROCESSO DESATIVACAO! ELETRODUTO EM ACO GALVANIZADO ELETROLITICO, LEVE, DIAMETRO 3/4", PAREDE DE 0,90 MM | D171: =IFERROR(INDEX(SINAPI!$C:$C,MATCH($B171,SINAPI!$A:$A,0)),"") -> M | E171: =IF(IFERROR(INDEX(COMPOSIÇÕES_IFMT!$B:$B,MATCH($A166,COMPOSIÇÕES_IFMT!$A:$A,0)),"")<>"",OFFSET(COMPOSIÇÕES_IFMT!$A$1,MATCH($A166,COMPOSIÇÕES_IFMT!$A:$A,0)+4,4),"") -> 1.05 | F171: =IFERROR(INDEX(SINAPI!$D:$D,MATCH($B171,SINAPI!$A:$A,0)),0) -> 8.1 | G171: 8.505
F172: TOTAL | G172: =SUM(G167:G171) -> 16.56912
A175: CLASSE/TIPO | B175: CÓDIGOS/ SINAPI | C175: DESCRIÇÃO | D175: UND | E175: COEFICIENTE | F175: PREÇO UNITÁRIO | G175: PREÇO TOTAL
A176: IFMT 120.01.2020 | B176: =IFERROR(INDEX(COMPOSIÇÕES_IFMT!$B:$B,MATCH($A176,COMPOSIÇÕES_IFMT!$A:$A,0)),"") -> .120/E | C176: =IFERROR(INDEX(COMPOSIÇÕES_IFMT!$C:$C,MATCH($A176,COMPOSIÇÕES_IFMT!$A:$A,0)),"") -> ELETRODUTO DE AÇO GALVANIZADO, CLASSE LEVE, DN 25 MM (1), APARENTE, INSTALADO EM TETO - FORNECIMENTO E INSTALAÇÃO.(FIXAÇÃO POR CUNHA) | D176: =IFERROR(INDEX(COMPOSIÇÕES_IFMT!$D:$D,MATCH($A176,COMPOSIÇÕES_IFMT!$A:$A,0)),"") -> M | G176: =G182 -> 20.297496
A177: =IFERROR(INDEX(SINAPI!$E:$E,MATCH($B177,SINAPI!$A:$A,0)),"") -> INSUMO | B177: =IF(IFERROR(INDEX(COMPOSIÇÕES_IFMT!$B:$B,MATCH($A176,COMPOSIÇÕES_IFMT!$A:$A,0)),"")<>"",OFFSET(COMPOSIÇÕES_IFMT!$A$1,MATCH($A176,COMPOSIÇÕES_IFMT!$A:$A,0),1),"") -> 21136 | C177: =IFERROR(INDEX(SINAPI!$B:$B,MATCH($B177,SINAPI!$A:$A,0)),"") -> !EM PROCESSO DESATIVACAO! ELETRODUTO EM ACO GALVANIZADO ELETROLITICO, LEVE, DIAMETRO 1", PAREDE DE 0,90 MM | D177: =IFERROR(INDEX(SINAPI!$C:$C,MATCH($B177,SINAPI!$A:$A,0)),"") -> M | E177: =IF(IFERROR(INDEX(COMPOSIÇÕES_IFMT!$B:$B,MATCH($A176,COMPOSIÇÕES_IFMT!$A:$A,0)),"")<>"",OFFSET(COMPOSIÇÕES_IFMT!$A$1,MATCH($A176,COMPOSIÇÕES_IFMT!$A:$A,0),4),"") -> 1.05 | F177: =IFERROR(INDEX(SINAPI!$D:$D,MATCH($B177,SINAPI!$A:$A,0)),0) -> 10.47 | G177: =IFERROR(F177*E177,0) -> 10.9935
A178: =IFERROR(INDEX(SINAPI!$E:$E,MATCH($B178,SINAPI!$A:$A,0)),"") -> COMPOSIÇÃO | B178: =IF(IFERROR(INDEX(COMPOSIÇÕES_IFMT!$B:$B,MATCH($A176,COMPOSIÇÕES_IFMT!$A:$A,0)),"")<>"",OFFSET(COMPOSIÇÕES_IFMT!$A$1,MATCH($A176,COMPOSIÇÕES_IFMT!$A:$A,0)+1,1),"") -> 88247 | C178: =IFERROR(INDEX(SINAPI!$B:$B,MATCH($B178,SINAPI!$A:$A,0)),"") -> AUXILIAR DE ELETRICISTA COM ENCARGOS COMPLEMENTARES | D178: =IFERROR(INDEX(SINAPI!$C:$C,MATCH($B178,SINAPI!$A:$A,0)),"") -> H | E178: =IF(IFERROR(INDEX(COMPOSIÇÕES_IFMT!$B:$B,MATCH($A176,COMPOSIÇÕES_IFMT!$A:$A,0)),"")<>"",OFFSET(COMPOSIÇÕES_IFMT!$A$1,MATCH($A176,COMPOSIÇÕES_IFMT!$A:$A,0)+1,4),"") -> 0.1044 | F178: =IFERROR(INDEX(SINAPI!$D:$D,MATCH($B178,SINAPI!$A:$A,0)),0) -> 15.84 | G178: =IFERROR(F178*E178,0) -> 1.653696
A179: =IFERROR(INDEX(SINAPI!$E:$E,MATCH($B179,SINAPI!$A:$A,0)),"") -> COMPOSIÇÃO | B179: =IF(IFERROR(INDEX(COMPOSIÇÕES_IFMT!$B:$B,MATCH($A176,COMPOSIÇÕES_IFMT!$A:$A,0)),"")<>"",OFFSET(COMPOSIÇÕES_IFMT!$A$1,MATCH($A176,COMPOSIÇÕES_IFMT!$A:$A,0)+2,1),"") -> 88264 | C179: =IFERROR(INDEX(SINAPI!$B:$B,MATCH($B179,SINAPI!$A:$A,0)),"") -> ELETRICISTA COM ENCARGOS COMPLEMENTARES | D179: =IFERROR(INDEX(SINAPI!$C:$C,MATCH($B179,SINAPI!$A:$A,0)),"") -> H | E179: =IF(IFERROR(INDEX(COMPOSIÇÕES_IFMT!$B:$B,MATCH($A176,COMPOSIÇÕES_IFMT!$A:$A,0)),"")<>"",OFFSET(COMPOSIÇÕES_IFMT!$A$1,MATCH($A176,COMPOSIÇÕES_IFMT!$A:$A,0)+2,4),"") -> 0.1044 | F179: =IFERROR(INDEX(SINAPI!$D:$D,MATCH($B179,SINAPI!$A:$A,0)),0) -> 20.52 | G179: 2.142288
A180: IFMT 116.01.2020 | B180: .116/E | C180: FIXAÇÃO DE TUBOS HORIZONTAIS DE PVC, CPVC OU COBRE DIÂMETROS MENORES OU IGUAIS A 40 MM OU ELETROCALHAS ATÉ 150MM DE LARGURA, COM ABRAÇADEIRA METÁLICA RÍGIDA TIPO D 1/2, FIXADA EM PERFILADO EM LAJE. (FIXAÇÃO POR CUNHA) | D180: M | E180: 1 | F180: =$G$144 -> 3.2949 | G180: 3.2949
A181: =IFERROR(INDEX(SINAPI!$E:$E,MATCH($B181,SINAPI!$A:$A,0)),"") -> COMPOSIÇÃO | B181: =IF(IFERROR(INDEX(COMPOSIÇÕES_IFMT!$B:$B,MATCH($A176,COMPOSIÇÕES_IFMT!$A:$A,0)),"")<>"",OFFSET(COMPOSIÇÕES_IFMT!$A$1,MATCH($A176,COMPOSIÇÕES_IFMT!$A:$A,0)+4,1),"") -> 95754 | C181: =IFERROR(INDEX(SINAPI!$B:$B,MATCH($B181,SINAPI!$A:$A,0)),"") -> LUVA DE EMENDA PARA ELETRODUTO, AÇO GALVANIZADO, DN 25 MM (1''), APARENTE, INSTALADA EM TETO - FORNECIMENTO E INSTALAÇÃO. AF_11/2016_P | D181: =IFERROR(INDEX(SINAPI!$C:$C,MATCH($B181,SINAPI!$A:$A,0)),"") -> UN | E181: =IF(IFERROR(INDEX(COMPOSIÇÕES_IFMT!$B:$B,MATCH($A176,COMPOSIÇÕES_IFMT!$A:$A,0)),"")<>"",OFFSET(COMPOSIÇÕES_IFMT!$A$1,MATCH($A176,COMPOSIÇÕES_IFMT!$A:$A,0)+4,4),"") -> 0.3333 | F181: =IFERROR(INDEX(SINAPI!$D:$D,MATCH($B181,SINAPI!$A:$A,0)),0) -> 6.64 | G181: 2.213112
F182: TOTAL | G182: =SUM(G177:G181) -> 20.297496
A185: CLASSE/TIPO | B185: CÓDIGOS/ SINAPI | C185: DESCRIÇÃO | D185: UND | E185: COEFICIENTE | F185: PREÇO UNITÁRIO | G185: PREÇO TOTAL
A186: IFMT 121.01.2020 | B186: =IFERROR(INDEX(COMPOSIÇÕES_IFMT!$B:$B,MATCH($A186,COMPOSIÇÕES_IFMT!$A:$A,0)),"") -> .121/E | C186: =IFERROR(INDEX(COMPOSIÇÕES_IFMT!$C:$C,MATCH($A186,COMPOSIÇÕES_IFMT!$A:$A,0)),"") -> ELETRODUTO DE AÇO GALVANIZADO, CLASSE LEVE, DN 25 MM (1), APARENTE, INSTALADO EM PAREDE - FORNECIMENTO E INSTALAÇÃO.(FIXAÇÃO POR CUNHA) | D186: =IFERROR(INDEX(COMPOSIÇÕES_IFMT!$D:$D,MATCH($A186,COMPOSIÇÕES_IFMT!$A:$A,0)),"") -> M | G186: =G192 -> 28.487664
A187: =IFERROR(INDEX(SINAPI!$E:$E,MATCH($B187,SINAPI!$A:$A,0)),"") -> INSUMO | B187: =IF(IFERROR(INDEX(COMPOSIÇÕES_IFMT!$B:$B,MATCH($A186,COMPOSIÇÕES_IFMT!$A:$A,0)),"")<>"",OFFSET(COMPOSIÇÕES_IFMT!$A$1,MATCH($A186,COMPOSIÇÕES_IFMT!$A:$A,0),1),"") -> 21136 | C187: =IFERROR(INDEX(SINAPI!$B:$B,MATCH($B187,SINAPI!$A:$A,0)),"") -> !EM PROCESSO DESATIVACAO! ELETRODUTO EM ACO GALVANIZADO ELETROLITICO, LEVE, DIAMETRO 1", PAREDE DE 0,90 MM | D187: =IFERROR(INDEX(SINAPI!$C:$C,MATCH($B187,SINAPI!$A:$A,0)),"") -> M | E187: =IF(IFERROR(INDEX(COMPOSIÇÕES_IFMT!$B:$B,MATCH($A186,COMPOSIÇÕES_IFMT!$A:$A,0)),"")<>"",OFFSET(COMPOSIÇÕES_IFMT!$A$1,MATCH($A186,COMPOSIÇÕES_IFMT!$A:$A,0),4),"") -> 1.05 | F187: =IFERROR(INDEX(SINAPI!$D:$D,MATCH($B187,SINAPI!$A:$A,0)),0) -> 10.47 | G187: =IFERROR(F187*E187,0) -> 10.9935
A188: =IFERROR(INDEX(SINAPI!$E:$E,MATCH($B188,SINAPI!$A:$A,0)),"") -> COMPOSIÇÃO | B188: =IF(IFERROR(INDEX(COMPOSIÇÕES_IFMT!$B:$B,MATCH($A186,COMPOSIÇÕES_IFMT!$A:$A,0)),"")<>"",OFFSET(COMPOSIÇÕES_IFMT!$A$1,MATCH($A186,COMPOSIÇÕES_IFMT!$A:$A,0)+1,1),"") -> 88247 | C188: =IFERROR(INDEX(SINAPI!$B:$B,MATCH($B188,SINAPI!$A:$A,0)),"") -> AUXILIAR DE ELETRICISTA COM ENCARGOS COMPLEMENTARES | D188: =IFERROR(INDEX(SINAPI!$C:$C,MATCH($B188,SINAPI!$A:$A,0)),"") -> H | E188: =IF(IFERROR(INDEX(COMPOSIÇÕES_IFMT!$B:$B,MATCH($A186,COMPOSIÇÕES_IFMT!$A:$A,0)),"")<>"",OFFSET(COMPOSIÇÕES_IFMT!$A$1,MATCH($A186,COMPOSIÇÕES_IFMT!$A:$A,0)+1,4),"") -> 0.2163 | F188: =IFERROR(INDEX(SINAPI!$D:$D,MATCH($B188,SINAPI!$A:$A,0)),0) -> 15.84 | G188: =IFERROR(F188*E188,0) -> 3.426192
A189: =IFERROR(INDEX(SINAPI!$E:$E,MATCH($B189,SINAPI!$A:$A,0)),"") -> COMPOSIÇÃO | B189: =IF(IFERROR(INDEX(COMPOSIÇÕES_IFMT!$B:$B,MATCH($A186,COMPOSIÇÕES_IFMT!$A:$A,0)),"")<>"",OFFSET(COMPOSIÇÕES_IFMT!$A$1,MATCH($A186,COMPOSIÇÕES_IFMT!$A:$A,0)+2,1),"") -> 88264 | C189: =IFERROR(INDEX(SINAPI!$B:$B,MATCH($B189,SINAPI!$A:$A,0)),"") -> ELETRICISTA COM ENCARGOS COMPLEMENTARES | D189: =IFERROR(INDEX(SINAPI!$C:$C,MATCH($B189,SINAPI!$A:$A,0)),"") -> H | E189: =IF(IFERROR(INDEX(COMPOSIÇÕES_IFMT!$B:$B,MATCH($A186,COMPOSIÇÕES_IFMT!$A:$A,0)),"")<>"",OFFSET(COMPOSIÇÕES_IFMT!$A$1,MATCH($A186,COMPOSIÇÕES_IFMT!$A:$A,0)+2,4),"") -> 0.2163 | F189: =IFERROR(INDEX(SINAPI!$D:$D,MATCH($B189,SINAPI!$A:$A,0)),0) -> 20.52 | G189: 4.438476
A190: IFMT 116.01.2020 | B190: .116/E | C190: FIXAÇÃO DE TUBOS HORIZONTAIS DE PVC, CPVC OU COBRE DIÂMETROS MENORES OU IGUAIS A 40 MM OU ELETROCALHAS ATÉ 150MM DE LARGURA, COM ABRAÇADEIRA METÁLICA RÍGIDA TIPO D 1/2, FIXADA EM PERFILADO EM LAJE. (FIXAÇÃO POR CUNHA) | D190: M | E190: 2 | F190: =$G$144 -> 3.2949 | G190: 6.5898
A191: =IFERROR(INDEX(SINAPI!$E:$E,MATCH($B191,SINAPI!$A:$A,0)),"") -> COMPOSIÇÃO | B191: =IF(IFERROR(INDEX(COMPOSIÇÕES_IFMT!$B:$B,MATCH($A186,COMPOSIÇÕES_IFMT!$A:$A,0)),"")<>"",OFFSET(COMPOSIÇÕES_IFMT!$A$1,MATCH($A186,COMPOSIÇÕES_IFMT!$A:$A,0)+4,1),"") -> 95758 | C191: =IFERROR(INDEX(SINAPI!$B:$B,MATCH($B191,SINAPI!$A:$A,0)),"") -> LUVA DE EMENDA PARA ELETRODUTO, AÇO GALVANIZADO, DN 25 MM (1''), APARENTE, INSTALADA EM PAREDE - FORNECIMENTO E INSTALAÇÃO. AF_11/2016_P | D191: =IFERROR(INDEX(SINAPI!$C:$C,MATCH($B191,SINAPI!$A:$A,0)),"") -> UN | E191: =IF(IFERROR(INDEX(COMPOSIÇÕES_IFMT!$B:$B,MATCH($A186,COMPOSIÇÕES_IFMT!$A:$A,0)),"")<>"",OFFSET(COMPOSIÇÕES_IFMT!$A$1,MATCH($A186,COMPOSIÇÕES_IFMT!$A:$A,0)+4,4),"") -> 0.3333 | F191: =IFERROR(INDEX(SINAPI!$D:$D,MATCH($B191,SINAPI!$A:$A,0)),0) -> 9.12 | G191: 3.039696
F192: TOTAL | G192: =SUM(G187:G191) -> 28.487664
A195: CLASSE/TIPO | B195: CÓDIGOS/ SINAPI | C195: DESCRIÇÃO | D195: UND | E195: COEFICIENTE | F195: PREÇO UNITÁRIO | G195: PREÇO TOTAL
A196: IFMT 122.01.2020 | B196: =IFERROR(INDEX(COMPOSIÇÕES_IFMT!$B:$B,MATCH($A196,COMPOSIÇÕES_IFMT!$A:$A,0)),"") -> .122/E | C196: =IFERROR(INDEX(COMPOSIÇÕES_IFMT!$C:$C,MATCH($A196,COMPOSIÇÕES_IFMT!$A:$A,0)),"") -> ELETRODUTO DE AÇO GALVANIZADO, CLASSE SEMI PESADO, DN 32 MM (1 1/4), APARENTE, INSTALADO EM TETO - FORNECIMENTO E INSTALAÇÃO.(FIXAÇÃO POR CUNHA) | D196: =IFERROR(INDEX(COMPOSIÇÕES_IFMT!$D:$D,MATCH($A196,COMPOSIÇÕES_IFMT!$A:$A,0)),"") -> M | G196: =G202 -> 32.51685
A197: =IFERROR(INDEX(SINAPI!$E:$E,MATCH($B197,SINAPI!$A:$A,0)),"") -> INSUMO | B197: =IF(IFERROR(INDEX(COMPOSIÇÕES_IFMT!$B:$B,MATCH($A196,COMPOSIÇÕES_IFMT!$A:$A,0)),"")<>"",OFFSET(COMPOSIÇÕES_IFMT!$A$1,MATCH($A196,COMPOSIÇÕES_IFMT!$A:$A,0),1),"") -> 21135 | C197: =IFERROR(INDEX(SINAPI!$B:$B,MATCH($B197,SINAPI!$A:$A,0)),"") -> !EM PROCESSO DESATIVACAO! ELETRODUTO EM ACO GALVANIZADO ELETROLITICO, SEMI-PESADO, DIAMETRO 1 1/4", PAREDE DE 1,20 MM | D197: =IFERROR(INDEX(SINAPI!$C:$C,MATCH($B197,SINAPI!$A:$A,0)),"") -> M | E197: =IF(IFERROR(INDEX(COMPOSIÇÕES_IFMT!$B:$B,MATCH($A196,COMPOSIÇÕES_IFMT!$A:$A,0)),"")<>"",OFFSET(COMPOSIÇÕES_IFMT!$A$1,MATCH($A196,COMPOSIÇÕES_IFMT!$A:$A,0),4),"") -> 1.05 | F197: =IFERROR(INDEX(SINAPI!$D:$D,MATCH($B197,SINAPI!$A:$A,0)),0) -> 20.14 | G197: =IFERROR(F197*E197,0) -> 21.147
A198: =IFERROR(INDEX(SINAPI!$E:$E,MATCH($B198,SINAPI!$A:$A,0)),"") -> COMPOSIÇÃO | B198: =IF(IFERROR(INDEX(COMPOSIÇÕES_IFMT!$B:$B,MATCH($A196,COMPOSIÇÕES_IFMT!$A:$A,0)),"")<>"",OFFSET(COMPOSIÇÕES_IFMT!$A$1,MATCH($A196,COMPOSIÇÕES_IFMT!$A:$A,0)+1,1),"") -> 88247 | C198: =IFERROR(INDEX(SINAPI!$B:$B,MATCH($B198,SINAPI!$A:$A,0)),"") -> AUXILIAR DE ELETRICISTA COM ENCARGOS COMPLEMENTARES | D198: =IFERROR(INDEX(SINAPI!$C:$C,MATCH($B198,SINAPI!$A:$A,0)),"") -> H | E198: =IF(IFERROR(INDEX(COMPOSIÇÕES_IFMT!$B:$B,MATCH($A196,COMPOSIÇÕES_IFMT!$A:$A,0)),"")<>"",OFFSET(COMPOSIÇÕES_IFMT!$A$1,MATCH($A196,COMPOSIÇÕES_IFMT!$A:$A,0)+1,4),"") -> 0.135 | F198: =IFERROR(INDEX(SINAPI!$D:$D,MATCH($B198,SINAPI!$A:$A,0)),0) -> 15.84 | G198: =IFERROR(F198*E198,0) -> 2.1384
A199: =IFERROR(INDEX(SINAPI!$E:$E,MATCH($B199,SINAPI!$A:$A,0)),"") -> COMPOSIÇÃO | B199: =IF(IFERROR(INDEX(COMPOSIÇÕES_IFMT!$B:$B,MATCH($A196,COMPOSIÇÕES_IFMT!$A:$A,0)),"")<>"",OFFSET(COMPOSIÇÕES_IFMT!$A$1,MATCH($A196,COMPOSIÇÕES_IFMT!$A:$A,0)+2,1),"") -> 88264 | C199: =IFERROR(INDEX(SINAPI!$B:$B,MATCH($B199,SINAPI!$A:$A,0)),"") -> ELETRICISTA COM ENCARGOS COMPLEMENTARES | D199: =IFERROR(INDEX(SINAPI!$C:$C,MATCH($B199,SINAPI!$A:$A,0)),"") -> H | E199: =IF(IFERROR(INDEX(COMPOSIÇÕES_IFMT!$B:$B,MATCH($A196,COMPOSIÇÕES_IFMT!$A:$A,0)),"")<>"",OFFSET(COMPOSIÇÕES_IFMT!$A$1,MATCH($A196,COMPOSIÇÕES_IFMT!$A:$A,0)+2,4),"") -> 0.135 | F199: =IFERROR(INDEX(SINAPI!$D:$D,MATCH($B199,SINAPI!$A:$A,0)),0) -> 20.52 | G199: 2.7702
A200: IFMT 116.01.2020 | B200: .116/E | C200: FIXAÇÃO DE TUBOS HORIZONTAIS DE PVC, CPVC OU COBRE DIÂMETROS MENORES OU IGUAIS A 40 MM OU ELETROCALHAS ATÉ 150MM DE LARGURA, COM ABRAÇADEIRA METÁLICA RÍGIDA TIPO D 1/2, FIXADA EM PERFILADO EM LAJE. (FIXAÇÃO POR CUNHA) | D200: M | E200: 1 | F200: =$G$144 -> 3.2949 | G200: 3.2949
A201: =IFERROR(INDEX(SINAPI!$E:$E,MATCH($B201,SINAPI!$A:$A,0)),"") -> COMPOSIÇÃO | B201: =IF(IFERROR(INDEX(COMPOSIÇÕES_IFMT!$B:$B,MATCH($A196,COMPOSIÇÕES_IFMT!$A:$A,0)),"")<>"",OFFSET(COMPOSIÇÕES_IFMT!$A$1,MATCH($A196,COMPOSIÇÕES_IFMT!$A:$A,0)+4,1),"") -> 95755 | C201: =IFERROR(INDEX(SINAPI!$B:$B,MATCH($B201,SINAPI!$A:$A,0)),"") -> LUVA DE EMENDA PARA ELETRODUTO, AÇO GALVANIZADO, DN 32 MM (1 1/4''), APARENTE, INSTALADA EM TETO - FORNECIMENTO E INSTALAÇÃO. AF_11/2016_P | D201: =IFERROR(INDEX(SINAPI!$C:$C,MATCH($B201,SINAPI!$A:$A,0)),"") -> UN | E201: =IF(IFERROR(INDEX(COMPOSIÇÕES_IFMT!$B:$B,MATCH($A196,COMPOSIÇÕES_IFMT!$A:$A,0)),"")<>"",OFFSET(COMPOSIÇÕES_IFMT!$A$1,MATCH($A196,COMPOSIÇÕES_IFMT!$A:$A,0)+4,4),"") -> 0.3333 | F201: =IFERROR(INDEX(SINAPI!$D:$D,MATCH($B201,SINAPI!$A:$A,0)),0) -> 9.5 | G201: 3.16635
F202: TOTAL | G202: =SUM(G197:G201) -> 32.51685
A205: CLASSE/TIPO | B205: CÓDIGOS/ SINAPI | C205: DESCRIÇÃO | D205: UND | E205: COEFICIENTE | F205: PREÇO UNITÁRIO | G205: PREÇO TOTAL
A206: IFMT 123.01.2020 | B206: =IFERROR(INDEX(COMPOSIÇÕES_IFMT!$B:$B,MATCH($A206,COMPOSIÇÕES_IFMT!$A:$A,0)),"") -> .123/E | C206: =IFERROR(INDEX(COMPOSIÇÕES_IFMT!$C:$C,MATCH($A206,COMPOSIÇÕES_IFMT!$A:$A,0)),"") -> ELETRODUTO DE AÇO GALVANIZADO, CLASSE SEMI PESADO, DN 32 MM (1 1/4), APARENTE, INSTALADO EM PAREDE - FORNECIMENTO E INSTALAÇÃO.(FIXAÇÃO POR CUNHA) | D206: =IFERROR(INDEX(COMPOSIÇÕES_IFMT!$D:$D,MATCH($A206,COMPOSIÇÕES_IFMT!$A:$A,0)),"") -> M | G206: =G212 -> 37.31919
A207: =IFERROR(INDEX(SINAPI!$E:$E,MATCH($B207,SINAPI!$A:$A,0)),"") -> INSUMO | B207: =IF(IFERROR(INDEX(COMPOSIÇÕES_IFMT!$B:$B,MATCH($A206,COMPOSIÇÕES_IFMT!$A:$A,0)),"")<>"",OFFSET(COMPOSIÇÕES_IFMT!$A$1,MATCH($A206,COMPOSIÇÕES_IFMT!$A:$A,0),1),"") -> 21135 | C207: =IFERROR(INDEX(SINAPI!$B:$B,MATCH($B207,SINAPI!$A:$A,0)),"") -> !EM PROCESSO DESATIVACAO! ELETRODUTO EM ACO GALVANIZADO ELETROLITICO, SEMI-PESADO, DIAMETRO 1 1/4", PAREDE DE 1,20 MM | D207: =IFERROR(INDEX(SINAPI!$C:$C,MATCH($B207,SINAPI!$A:$A,0)),"") -> M | E207: =IF(IFERROR(INDEX(COMPOSIÇÕES_IFMT!$B:$B,MATCH($A206,COMPOSIÇÕES_IFMT!$A:$A,0)),"")<>"",OFFSET(COMPOSIÇÕES_IFMT!$A$1,MATCH($A206,COMPOSIÇÕES_IFMT!$A:$A,0),4),"") -> 1.05 | F207: =IFERROR(INDEX(SINAPI!$D:$D,MATCH($B207,SINAPI!$A:$A,0)),0) -> 20.14 | G207: =IFERROR(F207*E207,0) -> 21.147
A208: =IFERROR(INDEX(SINAPI!$E:$E,MATCH($B208,SINAPI!$A:$A,0)),"") -> COMPOSIÇÃO | B208: =IF(IFERROR(INDEX(COMPOSIÇÕES_IFMT!$B:$B,MATCH($A206,COMPOSIÇÕES_IFMT!$A:$A,0)),"")<>"",OFFSET(COMPOSIÇÕES_IFMT!$A$1,MATCH($A206,COMPOSIÇÕES_IFMT!$A:$A,0)+1,1),"") -> 88247 | C208: =IFERROR(INDEX(SINAPI!$B:$B,MATCH($B208,SINAPI!$A:$A,0)),"") -> AUXILIAR DE ELETRICISTA COM ENCARGOS COMPLEMENTARES | D208: =IFERROR(INDEX(SINAPI!$C:$C,MATCH($B208,SINAPI!$A:$A,0)),"") -> H | E208: =IF(IFERROR(INDEX(COMPOSIÇÕES_IFMT!$B:$B,MATCH($A206,COMPOSIÇÕES_IFMT!$A:$A,0)),"")<>"",OFFSET(COMPOSIÇÕES_IFMT!$A$1,MATCH($A206,COMPOSIÇÕES_IFMT!$A:$A,0)+1,4),"") -> 0.247 | F208: =IFERROR(INDEX(SINAPI!$D:$D,MATCH($B208,SINAPI!$A:$A,0)),0) -> 15.84 | G208: =IFERROR(F208*E208,0) -> 3.91248
A209: =IFERROR(INDEX(SINAPI!$E:$E,MATCH($B209,SINAPI!$A:$A,0)),"") -> COMPOSIÇÃO | B209: =IF(IFERROR(INDEX(COMPOSIÇÕES_IFMT!$B:$B,MATCH($A206,COMPOSIÇÕES_IFMT!$A:$A,0)),"")<>"",OFFSET(COMPOSIÇÕES_IFMT!$A$1,MATCH($A206,COMPOSIÇÕES_IFMT!$A:$A,0)+2,1),"") -> 88264 | C209: =IFERROR(INDEX(SINAPI!$B:$B,MATCH($B209,SINAPI!$A:$A,0)),"") -> ELETRICISTA COM ENCARGOS COMPLEMENTARES | D209: =IFERROR(INDEX(SINAPI!$C:$C,MATCH($B209,SINAPI!$A:$A,0)),"") -> H | E209: =IF(IFERROR(INDEX(COMPOSIÇÕES_IFMT!$B:$B,MATCH($A206,COMPOSIÇÕES_IFMT!$A:$A,0)),"")<>"",OFFSET(COMPOSIÇÕES_IFMT!$A$1,MATCH($A206,COMPOSIÇÕES_IFMT!$A:$A,0)+2,4),"") -> 0.247 | F209: =IFERROR(INDEX(SINAPI!$D:$D,MATCH($B209,SINAPI!$A:$A,0)),0) -> 20.52 | G209: 5.06844
A210: IFMT 117.01.2020 | B210: .117/E | C210: FIXAÇÃO DE TUBOS VERTICAIS DE PPR DIÂMETROS MENORES OU IGUAIS A 40 MM COM ABRAÇADEIRA METÁLICA RÍGIDA TIPO D 1/2", FIXADA EM PERFILADO EM ALVENARIA. (FIXAÇÃO POR CUNHA) | D210: M | E210: 2 | F210: =$G$152 -> 1.67916 | G210: 3.35832
A211: =IFERROR(INDEX(SINAPI!$E:$E,MATCH($B211,SINAPI!$A:$A,0)),"") -> COMPOSIÇÃO | B211: =IF(IFERROR(INDEX(COMPOSIÇÕES_IFMT!$B:$B,MATCH($A206,COMPOSIÇÕES_IFMT!$A:$A,0)),"")<>"",OFFSET(COMPOSIÇÕES_IFMT!$A$1,MATCH($A206,COMPOSIÇÕES_IFMT!$A:$A,0)+4,1),"") -> 95759 | C211: =IFERROR(INDEX(SINAPI!$B:$B,MATCH($B211,SINAPI!$A:$A,0)),"") -> LUVA DE EMENDA PARA ELETRODUTO, AÇO GALVANIZADO, DN 32 MM (1 1/4''), APARENTE, INSTALADA EM PAREDE - FORNECIMENTO E INSTALAÇÃO. AF_11/2016_P | D211: =IFERROR(INDEX(SINAPI!$C:$C,MATCH($B211,SINAPI!$A:$A,0)),"") -> UN | E211: =IF(IFERROR(INDEX(COMPOSIÇÕES_IFMT!$B:$B,MATCH($A206,COMPOSIÇÕES_IFMT!$A:$A,0)),"")<>"",OFFSET(COMPOSIÇÕES_IFMT!$A$1,MATCH($A206,COMPOSIÇÕES_IFMT!$A:$A,0)+4,4),"") -> 0.3333 | F211: =IFERROR(INDEX(SINAPI!$D:$D,MATCH($B211,SINAPI!$A:$A,0)),0) -> 11.5 | G211: 3.83295
F212: TOTAL | G212: =SUM(G207:G211) -> 37.31919
A215: CLASSE/TIPO | B215: CÓDIGOS/ SINAPI | C215: DESCRIÇÃO | D215: UND | E215: COEFICIENTE | F215: PREÇO UNITÁRIO | G215: PREÇO TOTAL
A216: IFMT 124.01.2020 | B216: =IFERROR(INDEX(COMPOSIÇÕES_IFMT!$B:$B,MATCH($A216,COMPOSIÇÕES_IFMT!$A:$A,0)),"") -> .124/E | C216: =IFERROR(INDEX(COMPOSIÇÕES_IFMT!$C:$C,MATCH($A216,COMPOSIÇÕES_IFMT!$A:$A,0)),"") -> ELETRODUTO DE AÇO GALVANIZADO, CLASSE SEMI PESADO, DN 40 MM (1 1/2 ), APARENTE, INSTALADO EM PAREDE - FORNECIMENTO E INSTALAÇÃO. (FIXAÇÃO POR CUNHA) | D216: =IFERROR(INDEX(COMPOSIÇÕES_IFMT!$D:$D,MATCH($A216,COMPOSIÇÕES_IFMT!$A:$A,0)),"") -> M | G216: =G222 -> 39.777507
A217: =IFERROR(INDEX(SINAPI!$E:$E,MATCH($B217,SINAPI!$A:$A,0)),"") -> INSUMO | B217: =IF(IFERROR(INDEX(COMPOSIÇÕES_IFMT!$B:$B,MATCH($A216,COMPOSIÇÕES_IFMT!$A:$A,0)),"")<>"",OFFSET(COMPOSIÇÕES_IFMT!$A$1,MATCH($A216,COMPOSIÇÕES_IFMT!$A:$A,0),1),"") -> 21130 | C217: =IFERROR(INDEX(SINAPI!$B:$B,MATCH($B217,SINAPI!$A:$A,0)),"") -> !EM PROCESSO DESATIVACAO! ELETRODUTO EM ACO GALVANIZADO ELETROLITICO, SEMI-PESADO, DIAMETRO 1 1/2", PAREDE DE 1,20 MM | D217: =IFERROR(INDEX(SINAPI!$C:$C,MATCH($B217,SINAPI!$A:$A,0)),"") -> M | E217: =IF(IFERROR(INDEX(COMPOSIÇÕES_IFMT!$B:$B,MATCH($A216,COMPOSIÇÕES_IFMT!$A:$A,0)),"")<>"",OFFSET(COMPOSIÇÕES_IFMT!$A$1,MATCH($A216,COMPOSIÇÕES_IFMT!$A:$A,0),4),"") -> 1.05 | F217: =IFERROR(INDEX(SINAPI!$D:$D,MATCH($B217,SINAPI!$A:$A,0)),0) -> 20.45 | G217: =IFERROR(F217*E217,0) -> 21.4725
A218: =IFERROR(INDEX(SINAPI!$E:$E,MATCH($B218,SINAPI!$A:$A,0)),"") -> COMPOSIÇÃO | B218: =IF(IFERROR(INDEX(COMPOSIÇÕES_IFMT!$B:$B,MATCH($A216,COMPOSIÇÕES_IFMT!$A:$A,0)),"")<>"",OFFSET(COMPOSIÇÕES_IFMT!$A$1,MATCH($A216,COMPOSIÇÕES_IFMT!$A:$A,0)+1,1),"") -> 88247 | C218: =IFERROR(INDEX(SINAPI!$B:$B,MATCH($B218,SINAPI!$A:$A,0)),"") -> AUXILIAR DE ELETRICISTA COM ENCARGOS COMPLEMENTARES | D218: =IFERROR(INDEX(SINAPI!$C:$C,MATCH($B218,SINAPI!$A:$A,0)),"") -> H | E218: =IF(IFERROR(INDEX(COMPOSIÇÕES_IFMT!$B:$B,MATCH($A216,COMPOSIÇÕES_IFMT!$A:$A,0)),"")<>"",OFFSET(COMPOSIÇÕES_IFMT!$A$1,MATCH($A216,COMPOSIÇÕES_IFMT!$A:$A,0)+1,4),"") -> 0.2821 | F218: =IFERROR(INDEX(SINAPI!$D:$D,MATCH($B218,SINAPI!$A:$A,0)),0) -> 15.84 | G218: =IFERROR(F218*E218,0) -> 4.468464
A219: =IFERROR(INDEX(SINAPI!$E:$E,MATCH($B219,SINAPI!$A:$A,0)),"") -> COMPOSIÇÃO | B219: =IF(IFERROR(INDEX(COMPOSIÇÕES_IFMT!$B:$B,MATCH($A216,COMPOSIÇÕES_IFMT!$A:$A,0)),"")<>"",OFFSET(COMPOSIÇÕES_IFMT!$A$1,MATCH($A216,COMPOSIÇÕES_IFMT!$A:$A,0)+2,1),"") -> 88264 | C219: =IFERROR(INDEX(SINAPI!$B:$B,MATCH($B219,SINAPI!$A:$A,0)),"") -> ELETRICISTA COM ENCARGOS COMPLEMENTARES | D219: =IFERROR(INDEX(SINAPI!$C:$C,MATCH($B219,SINAPI!$A:$A,0)),"") -> H | E219: =IF(IFERROR(INDEX(COMPOSIÇÕES_IFMT!$B:$B,MATCH($A216,COMPOSIÇÕES_IFMT!$A:$A,0)),"")<>"",OFFSET(COMPOSIÇÕES_IFMT!$A$1,MATCH($A216,COMPOSIÇÕES_IFMT!$A:$A,0)+2,4),"") -> 0.2821 | F219: =IFERROR(INDEX(SINAPI!$D:$D,MATCH($B219,SINAPI!$A:$A,0)),0) -> 20.52 | G219: 5.788692
A220: IFMT 117.01.2020 | B220: .117/E | C220: FIXAÇÃO DE TUBOS VERTICAIS DE PPR DIÂMETROS MENORES OU IGUAIS A 40 MM COM ABRAÇADEIRA METÁLICA RÍGIDA TIPO D 1/2", FIXADA EM PERFILADO EM ALVENARIA. (FIXAÇÃO POR CUNHA) | D220: M | E220: 2 | F220: =$G$152 -> 1.67916 | G220: 3.35832
A221: =IFERROR(INDEX(SINAPI!$E:$E,MATCH($B221,SINAPI!$A:$A,0)),"") -> COMPOSIÇÃO | B221: =IF(IFERROR(INDEX(COMPOSIÇÕES_IFMT!$B:$B,MATCH($A216,COMPOSIÇÕES_IFMT!$A:$A,0)),"")<>"",OFFSET(COMPOSIÇÕES_IFMT!$A$1,MATCH($A216,COMPOSIÇÕES_IFMT!$A:$A,0)+4,1),"") -> 95760 | C221: =IFERROR(INDEX(SINAPI!$B:$B,MATCH($B221,SINAPI!$A:$A,0)),"") -> LUVA DE EMENDA PARA ELETRODUTO, AÇO GALVANIZADO, DN 40 MM (1 1/2''), APARENTE, INSTALADA EM PAREDE - FORNECIMENTO E INSTALAÇÃO. AF_11/2016_P | D221: =IFERROR(INDEX(SINAPI!$C:$C,MATCH($B221,SINAPI!$A:$A,0)),"") -> UN | E221: =IF(IFERROR(INDEX(COMPOSIÇÕES_IFMT!$B:$B,MATCH($A216,COMPOSIÇÕES_IFMT!$A:$A,0)),"")<>"",OFFSET(COMPOSIÇÕES_IFMT!$A$1,MATCH($A216,COMPOSIÇÕES_IFMT!$A:$A,0)+4,4),"") -> 0.3333 | F221: =IFERROR(INDEX(SINAPI!$D:$D,MATCH($B221,SINAPI!$A:$A,0)),0) -> 14.07 | G221: 4.689531
F222: TOTAL | G222: =SUM(G217:G221) -> 39.777507
A225: CLASSE/TIPO | B225: CÓDIGOS/ SINAPI | C225: DESCRIÇÃO | D225: UND | E225: COEFICIENTE | F225: PREÇO UNITÁRIO | G225: PREÇO TOTAL
A226: IFMT 125.01.2020 | B226: =IFERROR(INDEX(COMPOSIÇÕES_IFMT!$B:$B,MATCH($A226,COMPOSIÇÕES_IFMT!$A:$A,0)),"") -> .125/E | C226: =IFERROR(INDEX(COMPOSIÇÕES_IFMT!$C:$C,MATCH($A226,COMPOSIÇÕES_IFMT!$A:$A,0)),"") -> CURVA 90 GRAUS PARA ELETRODUTO, AÇO GALVANIZADO, DN 25 MM (1''), APARENTE, INSTALADA EM PAREDE - FORNECIMENTO E INSTALAÇÃO. | D226: =IFERROR(INDEX(COMPOSIÇÕES_IFMT!$D:$D,MATCH($A226,COMPOSIÇÕES_IFMT!$A:$A,0)),"") -> UN | G226: =G230 -> 12.771988
A227: =IFERROR(INDEX(SINAPI!$E:$E,MATCH($B227,SINAPI!$A:$A,0)),"") -> INSUMO | B227: =IF(IFERROR(INDEX(COMPOSIÇÕES_IFMT!$B:$B,MATCH($A226,COMPOSIÇÕES_IFMT!$A:$A,0)),"")<>"",OFFSET(COMPOSIÇÕES_IFMT!$A$1,MATCH($A226,COMPOSIÇÕES_IFMT!$A:$A,0),1),"") -> 2617 | C227: =IFERROR(INDEX(SINAPI!$B:$B,MATCH($B227,SINAPI!$A:$A,0)),"") -> CURVA 90 GRAUS, PARA ELETRODUTO, EM ACO GALVANIZADO ELETROLITICO, DIAMETRO DE 25 MM (1") | D227: =IFERROR(INDEX(SINAPI!$C:$C,MATCH($B227,SINAPI!$A:$A,0)),"") -> UN | E227: =IF(IFERROR(INDEX(COMPOSIÇÕES_IFMT!$B:$B,MATCH($A226,COMPOSIÇÕES_IFMT!$A:$A,0)),"")<>"",OFFSET(COMPOSIÇÕES_IFMT!$A$1,MATCH($A226,COMPOSIÇÕES_IFMT!$A:$A,0),4),"") -> 1 | F227: =IFERROR(INDEX(SINAPI!$D:$D,MATCH($B227,SINAPI!$A:$A,0)),0) -> 5.38 | G227: =IFERROR(F227*E227,0) -> 5.38
A228: =IFERROR(INDEX(SINAPI!$E:$E,MATCH($B228,SINAPI!$A:$A,0)),"") -> COMPOSIÇÃO | B228: =IF(IFERROR(INDEX(COMPOSIÇÕES_IFMT!$B:$B,MATCH($A226,COMPOSIÇÕES_IFMT!$A:$A,0)),"")<>"",OFFSET(COMPOSIÇÕES_IFMT!$A$1,MATCH($A226,COMPOSIÇÕES_IFMT!$A:$A,0)+1,1),"") -> 88247 | C228: =IFERROR(INDEX(SINAPI!$B:$B,MATCH($B228,SINAPI!$A:$A,0)),"") -> AUXILIAR DE ELETRICISTA COM ENCARGOS COMPLEMENTARES | D228: =IFERROR(INDEX(SINAPI!$C:$C,MATCH($B228,SINAPI!$A:$A,0)),"") -> H | E228: =IF(IFERROR(INDEX(COMPOSIÇÕES_IFMT!$B:$B,MATCH($A226,COMPOSIÇÕES_IFMT!$A:$A,0)),"")<>"",OFFSET(COMPOSIÇÕES_IFMT!$A$1,MATCH($A226,COMPOSIÇÕES_IFMT!$A:$A,0)+1,4),"") -> 0.2033 | F228: =IFERROR(INDEX(SINAPI!$D:$D,MATCH($B228,SINAPI!$A:$A,0)),0) -> 15.84 | G228: =IFERROR(F228*E228,0) -> 3.220272
A229: =IFERROR(INDEX(SINAPI!$E:$E,MATCH($B229,SINAPI!$A:$A,0)),"") -> COMPOSIÇÃO | B229: =IF(IFERROR(INDEX(COMPOSIÇÕES_IFMT!$B:$B,MATCH($A226,COMPOSIÇÕES_IFMT!$A:$A,0)),"")<>"",OFFSET(COMPOSIÇÕES_IFMT!$A$1,MATCH($A226,COMPOSIÇÕES_IFMT!$A:$A,0)+2,1),"") -> 88264 | C229: =IFERROR(INDEX(SINAPI!$B:$B,MATCH($B229,SINAPI!$A:$A,0)),"") -> ELETRICISTA COM ENCARGOS COMPLEMENTARES | D229: =IFERROR(INDEX(SINAPI!$C:$C,MATCH($B229,SINAPI!$A:$A,0)),"") -> H | E229: =IF(IFERROR(INDEX(COMPOSIÇÕES_IFMT!$B:$B,MATCH($A226,COMPOSIÇÕES_IFMT!$A:$A,0)),"")<>"",OFFSET(COMPOSIÇÕES_IFMT!$A$1,MATCH($A226,COMPOSIÇÕES_IFMT!$A:$A,0)+2,4),"") -> 0.2033 | F229: =IFERROR(INDEX(SINAPI!$D:$D,MATCH($B229,SINAPI!$A:$A,0)),0) -> 20.52 | G229: 4.171716
F230: TOTAL | G230: =SUM(G227:G229) -> 12.771988
A233: CLASSE/TIPO | B233: CÓDIGOS/ SINAPI | C233: DESCRIÇÃO | D233: UND | E233: COEFICIENTE | F233: PREÇO UNITÁRIO | G233: PREÇO TOTAL
A234: IFMT 126.01.2020 | B234: =IFERROR(INDEX(COMPOSIÇÕES_IFMT!$B:$B,MATCH($A234,COMPOSIÇÕES_IFMT!$A:$A,0)),"") -> .126/E | C234: =IFERROR(INDEX(COMPOSIÇÕES_IFMT!$C:$C,MATCH($A234,COMPOSIÇÕES_IFMT!$A:$A,0)),"") -> CURVA 90 GRAUS PARA ELETRODUTO, AÇO GALVANIZADO, DN 20 MM (3/4''), APARENTE, INSTALADA EM PAREDE - FORNECIMENTO E INSTALAÇÃO. | D234: =IFERROR(INDEX(COMPOSIÇÕES_IFMT!$D:$D,MATCH($A234,COMPOSIÇÕES_IFMT!$A:$A,0)),"") -> UN | G234: =G238 -> 10.602972
A235: =IFERROR(INDEX(SINAPI!$E:$E,MATCH($B235,SINAPI!$A:$A,0)),"") -> INSUMO | B235: =IF(IFERROR(INDEX(COMPOSIÇÕES_IFMT!$B:$B,MATCH($A234,COMPOSIÇÕES_IFMT!$A:$A,0)),"")<>"",OFFSET(COMPOSIÇÕES_IFMT!$A$1,MATCH($A234,COMPOSIÇÕES_IFMT!$A:$A,0),1),"") -> 2633 | C235: =IFERROR(INDEX(SINAPI!$B:$B,MATCH($B235,SINAPI!$A:$A,0)),"") -> CURVA 90 GRAUS, PARA ELETRODUTO, EM ACO GALVANIZADO ELETROLITICO, DIAMETRO DE 20 MM (3/4") | D235: =IFERROR(INDEX(SINAPI!$C:$C,MATCH($B235,SINAPI!$A:$A,0)),"") -> UN | E235: =IF(IFERROR(INDEX(COMPOSIÇÕES_IFMT!$B:$B,MATCH($A234,COMPOSIÇÕES_IFMT!$A:$A,0)),"")<>"",OFFSET(COMPOSIÇÕES_IFMT!$A$1,MATCH($A234,COMPOSIÇÕES_IFMT!$A:$A,0),4),"") -> 1 | F235: =IFERROR(INDEX(SINAPI!$D:$D,MATCH($B235,SINAPI!$A:$A,0)),0) -> 3.96 | G235: =IFERROR(F235*E235,0) -> 3.96
A236: =IFERROR(INDEX(SINAPI!$E:$E,MATCH($B236,SINAPI!$A:$A,0)),"") -> COMPOSIÇÃO | B236: =IF(IFERROR(INDEX(COMPOSIÇÕES_IFMT!$B:$B,MATCH($A234,COMPOSIÇÕES_IFMT!$A:$A,0)),"")<>"",OFFSET(COMPOSIÇÕES_IFMT!$A$1,MATCH($A234,COMPOSIÇÕES_IFMT!$A:$A,0)+1,1),"") -> 88247 | C236: =IFERROR(INDEX(SINAPI!$B:$B,MATCH($B236,SINAPI!$A:$A,0)),"") -> AUXILIAR DE ELETRICISTA COM ENCARGOS COMPLEMENTARES | D236: =IFERROR(INDEX(SINAPI!$C:$C,MATCH($B236,SINAPI!$A:$A,0)),"") -> H | E236: =IF(IFERROR(INDEX(COMPOSIÇÕES_IFMT!$B:$B,MATCH($A234,COMPOSIÇÕES_IFMT!$A:$A,0)),"")<>"",OFFSET(COMPOSIÇÕES_IFMT!$A$1,MATCH($A234,COMPOSIÇÕES_IFMT!$A:$A,0)+1,4),"") -> 0.1827 | F236: =IFERROR(INDEX(SINAPI!$D:$D,MATCH($B236,SINAPI!$A:$A,0)),0) -> 15.84 | G236: =IFERROR(F236*E236,0) -> 2.893968
A237: =IFERROR(INDEX(SINAPI!$E:$E,MATCH($B237,SINAPI!$A:$A,0)),"") -> COMPOSIÇÃO | B237: =IF(IFERROR(INDEX(COMPOSIÇÕES_IFMT!$B:$B,MATCH($A234,COMPOSIÇÕES_IFMT!$A:$A,0)),"")<>"",OFFSET(COMPOSIÇÕES_IFMT!$A$1,MATCH($A234,COMPOSIÇÕES_IFMT!$A:$A,0)+2,1),"") -> 88264 | C237: =IFERROR(INDEX(SINAPI!$B:$B,MATCH($B237,SINAPI!$A:$A,0)),"") -> ELETRICISTA COM ENCARGOS COMPLEMENTARES | D237: =IFERROR(INDEX(SINAPI!$C:$C,MATCH($B237,SINAPI!$A:$A,0)),"") -> H | E237: =IF(IFERROR(INDEX(COMPOSIÇÕES_IFMT!$B:$B,MATCH($A234,COMPOSIÇÕES_IFMT!$A:$A,0)),"")<>"",OFFSET(COMPOSIÇÕES_IFMT!$A$1,MATCH($A234,COMPOSIÇÕES_IFMT!$A:$A,0)+2,4),"") -> 0.1827 | F237: =IFERROR(INDEX(SINAPI!$D:$D,MATCH($B237,SINAPI!$A:$A,0)),0) -> 20.52 | G237: 3.749004
F238: TOTAL | G238: =SUM(G235:G237) -> 10.602972
A241: CLASSE/TIPO | B241: CÓDIGOS/ SINAPI | C241: DESCRIÇÃO | D241: UND | E241: COEFICIENTE | F241: PREÇO UNITÁRIO | G241: PREÇO TOTAL
A242: IFMT 127.01.2020 | B242: =IFERROR(INDEX(COMPOSIÇÕES_IFMT!$B:$B,MATCH($A242,COMPOSIÇÕES_IFMT!$A:$A,0)),"") -> .127/E | C242: =IFERROR(INDEX(COMPOSIÇÕES_IFMT!$C:$C,MATCH($A242,COMPOSIÇÕES_IFMT!$A:$A,0)),"") -> CURVA 90 GRAUS PARA ELETRODUTO, AÇO GALVANIZADO, DN 32 MM (1 1/4''), APARENTE, INSTALADA EM PAREDE - FORNECIMENTO E INSTALAÇÃO. | D242: =IFERROR(INDEX(COMPOSIÇÕES_IFMT!$D:$D,MATCH($A242,COMPOSIÇÕES_IFMT!$A:$A,0)),"") -> UN | G242: =G246 -> 20.682792
A243: =IFERROR(INDEX(SINAPI!$E:$E,MATCH($B243,SINAPI!$A:$A,0)),"") -> INSUMO | B243: =IF(IFERROR(INDEX(COMPOSIÇÕES_IFMT!$B:$B,MATCH($A242,COMPOSIÇÕES_IFMT!$A:$A,0)),"")<>"",OFFSET(COMPOSIÇÕES_IFMT!$A$1,MATCH($A242,COMPOSIÇÕES_IFMT!$A:$A,0),1),"") -> 2618 | C243: =IFERROR(INDEX(SINAPI!$B:$B,MATCH($B243,SINAPI!$A:$A,0)),"") -> CURVA 90 GRAUS, PARA ELETRODUTO, EM ACO GALVANIZADO ELETROLITICO, DIAMETRO DE 32 MM (1 1/4") | D243: =IFERROR(INDEX(SINAPI!$C:$C,MATCH($B243,SINAPI!$A:$A,0)),"") -> UN | E243: =IF(IFERROR(INDEX(COMPOSIÇÕES_IFMT!$B:$B,MATCH($A242,COMPOSIÇÕES_IFMT!$A:$A,0)),"")<>"",OFFSET(COMPOSIÇÕES_IFMT!$A$1,MATCH($A242,COMPOSIÇÕES_IFMT!$A:$A,0),4),"") -> 1 | F243: =IFERROR(INDEX(SINAPI!$D:$D,MATCH($B243,SINAPI!$A:$A,0)),0) -> 12.24 | G243: =IFERROR(F243*E243,0) -> 12.24
A244: =IFERROR(INDEX(SINAPI!$E:$E,MATCH($B244,SINAPI!$A:$A,0)),"") -> COMPOSIÇÃO | B244: =IF(IFERROR(INDEX(COMPOSIÇÕES_IFMT!$B:$B,MATCH($A242,COMPOSIÇÕES_IFMT!$A:$A,0)),"")<>"",OFFSET(COMPOSIÇÕES_IFMT!$A$1,MATCH($A242,COMPOSIÇÕES_IFMT!$A:$A,0)+1,1),"") -> 88247 | C244: =IFERROR(INDEX(SINAPI!$B:$B,MATCH($B244,SINAPI!$A:$A,0)),"") -> AUXILIAR DE ELETRICISTA COM ENCARGOS COMPLEMENTARES | D244: =IFERROR(INDEX(SINAPI!$C:$C,MATCH($B244,SINAPI!$A:$A,0)),"") -> H | E244: =IF(IFERROR(INDEX(COMPOSIÇÕES_IFMT!$B:$B,MATCH($A242,COMPOSIÇÕES_IFMT!$A:$A,0)),"")<>"",OFFSET(COMPOSIÇÕES_IFMT!$A$1,MATCH($A242,COMPOSIÇÕES_IFMT!$A:$A,0)+1,4),"") -> 0.2322 | F244: =IFERROR(INDEX(SINAPI!$D:$D,MATCH($B244,SINAPI!$A:$A,0)),0) -> 15.84 | G244: =IFERROR(F244*E244,0) -> 3.678048
A245: =IFERROR(INDEX(SINAPI!$E:$E,MATCH($B245,SINAPI!$A:$A,0)),"") -> COMPOSIÇÃO | B245: =IF(IFERROR(INDEX(COMPOSIÇÕES_IFMT!$B:$B,MATCH($A242,COMPOSIÇÕES_IFMT!$A:$A,0)),"")<>"",OFFSET(COMPOSIÇÕES_IFMT!$A$1,MATCH($A242,COMPOSIÇÕES_IFMT!$A:$A,0)+2,1),"") -> 88264 | C245: =IFERROR(INDEX(SINAPI!$B:$B,MATCH($B245,SINAPI!$A:$A,0)),"") -> ELETRICISTA COM ENCARGOS COMPLEMENTARES | D245: =IFERROR(INDEX(SINAPI!$C:$C,MATCH($B245,SINAPI!$A:$A,0)),"") -> H | E245: =IF(IFERROR(INDEX(COMPOSIÇÕES_IFMT!$B:$B,MATCH($A242,COMPOSIÇÕES_IFMT!$A:$A,0)),"")<>"",OFFSET(COMPOSIÇÕES_IFMT!$A$1,MATCH($A242,COMPOSIÇÕES_IFMT!$A:$A,0)+2,4),"") -> 0.2322 | F245: =IFERROR(INDEX(SINAPI!$D:$D,MATCH($B245,SINAPI!$A:$A,0)),0) -> 20.52 | G245: 4.764744
F246: TOTAL | G246: =SUM(G243:G245) -> 20.682792
A249: CLASSE/TIPO | B249: CÓDIGOS/ SINAPI | C249: DESCRIÇÃO | D249: UND | E249: COEFICIENTE | F249: PREÇO UNITÁRIO | G249: PREÇO TOTAL
A250: IFMT 128.01.2020 | B250: =IFERROR(INDEX(COMPOSIÇÕES_IFMT!$B:$B,MATCH($A250,COMPOSIÇÕES_IFMT!$A:$A,0)),"") -> .128/E | C250: =IFERROR(INDEX(COMPOSIÇÕES_IFMT!$C:$C,MATCH($A250,COMPOSIÇÕES_IFMT!$A:$A,0)),"") -> QUADRO DE DISTRIBUICAO COM BARRAMENTO TRIFASICO, DE SOBREPOR, EM CHAPA DE ACO GALVANIZADO, PARA 18 DISJUNTORES DIN, 100 A (FORNECIMENTO E INSTALAÇÃO) | D250: =IFERROR(INDEX(COMPOSIÇÕES_IFMT!$D:$D,MATCH($A250,COMPOSIÇÕES_IFMT!$A:$A,0)),"") -> UN | G250: =G255 -> 495.07
A251: =IFERROR(INDEX(SINAPI!$E:$E,MATCH($B251,SINAPI!$A:$A,0)),"") -> COMPOSIÇÃO | B251: =IF(IFERROR(INDEX(COMPOSIÇÕES_IFMT!$B:$B,MATCH($A250,COMPOSIÇÕES_IFMT!$A:$A,0)),"")<>"",OFFSET(COMPOSIÇÕES_IFMT!$A$1,MATCH($A250,COMPOSIÇÕES_IFMT!$A:$A,0),1),"") -> 88264 | C251: =IFERROR(INDEX(SINAPI!$B:$B,MATCH($B251,SINAPI!$A:$A,0)),"") -> ELETRICISTA COM ENCARGOS COMPLEMENTARES | D251: =IFERROR(INDEX(SINAPI!$C:$C,MATCH($B251,SINAPI!$A:$A,0)),"") -> H | E251: =IF(IFERROR(INDEX(COMPOSIÇÕES_IFMT!$B:$B,MATCH($A250,COMPOSIÇÕES_IFMT!$A:$A,0)),"")<>"",OFFSET(COMPOSIÇÕES_IFMT!$A$1,MATCH($A250,COMPOSIÇÕES_IFMT!$A:$A,0),4),"") -> 3 | F251: =IFERROR(INDEX(SINAPI!$D:$D,MATCH($B251,SINAPI!$A:$A,0)),0) -> 20.52 | G251: =IFERROR(F251*E251,0) -> 61.56
A252: =IFERROR(INDEX(SINAPI!$E:$E,MATCH($B252,SINAPI!$A:$A,0)),"") -> COMPOSIÇÃO | B252: =IF(IFERROR(INDEX(COMPOSIÇÕES_IFMT!$B:$B,MATCH($A250,COMPOSIÇÕES_IFMT!$A:$A,0)),"")<>"",OFFSET(COMPOSIÇÕES_IFMT!$A$1,MATCH($A250,COMPOSIÇÕES_IFMT!$A:$A,0)+1,1),"") -> 88247 | C252: =IFERROR(INDEX(SINAPI!$B:$B,MATCH($B252,SINAPI!$A:$A,0)),"") -> AUXILIAR DE ELETRICISTA COM ENCARGOS COMPLEMENTARES | D252: =IFERROR(INDEX(SINAPI!$C:$C,MATCH($B252,SINAPI!$A:$A,0)),"") -> H | E252: =IF(IFERROR(INDEX(COMPOSIÇÕES_IFMT!$B:$B,MATCH($A250,COMPOSIÇÕES_IFMT!$A:$A,0)),"")<>"",OFFSET(COMPOSIÇÕES_IFMT!$A$1,MATCH($A250,COMPOSIÇÕES_IFMT!$A:$A,0)+1,4),"") -> 3 | F252: =IFERROR(INDEX(SINAPI!$D:$D,MATCH($B252,SINAPI!$A:$A,0)),0) -> 15.84 | G252: =IFERROR(F252*E252,0) -> 47.52
A253: =IFERROR(INDEX(SINAPI!$E:$E,MATCH($B253,SINAPI!$A:$A,0)),"") -> INSUMO | B253: =IF(IFERROR(INDEX(COMPOSIÇÕES_IFMT!$B:$B,MATCH($A250,COMPOSIÇÕES_IFMT!$A:$A,0)),"")<>"",OFFSET(COMPOSIÇÕES_IFMT!$A$1,MATCH($A250,COMPOSIÇÕES_IFMT!$A:$A,0)+2,1),"") -> 7583 | C253: =IFERROR(INDEX(SINAPI!$B:$B,MATCH($B253,SINAPI!$A:$A,0)),"") -> BUCHA DE NYLON SEM ABA S8, COM PARAFUSO DE 4,80 X 50 MM EM ACO ZINCADO COM ROSCA SOBERBA, CABECA CHATA E FENDA PHILLIPS | D253: =IFERROR(INDEX(SINAPI!$C:$C,MATCH($B253,SINAPI!$A:$A,0)),"") -> UN | E253: =IF(IFERROR(INDEX(COMPOSIÇÕES_IFMT!$B:$B,MATCH($A250,COMPOSIÇÕES_IFMT!$A:$A,0)),"")<>"",OFFSET(COMPOSIÇÕES_IFMT!$A$1,MATCH($A250,COMPOSIÇÕES_IFMT!$A:$A,0)+2,4),"") -> 4 | F253: =IFERROR(INDEX(SINAPI!$D:$D,MATCH($B253,SINAPI!$A:$A,0)),0) -> 0.41 | G253: 1.64
A254: =IFERROR(INDEX(SINAPI!$E:$E,MATCH($B254,SINAPI!$A:$A,0)),"") -> INSUMO | B254: =IF(IFERROR(INDEX(COMPOSIÇÕES_IFMT!$B:$B,MATCH($A250,COMPOSIÇÕES_IFMT!$A:$A,0)),"")<>"",OFFSET(COMPOSIÇÕES_IFMT!$A$1,MATCH($A250,COMPOSIÇÕES_IFMT!$A:$A,0)+3,1),"") -> 12038 | C254: =IFERROR(INDEX(SINAPI!$B:$B,MATCH($B254,SINAPI!$A:$A,0)),"") -> QUADRO DE DISTRIBUICAO COM BARRAMENTO TRIFASICO, DE SOBREPOR, EM CHAPA DE ACO GALVANIZADO, PARA 18 DISJUNTORES DIN, 100 A | D254: =IFERROR(INDEX(SINAPI!$C:$C,MATCH($B254,SINAPI!$A:$A,0)),"") -> UN | E254: =IF(IFERROR(INDEX(COMPOSIÇÕES_IFMT!$B:$B,MATCH($A250,COMPOSIÇÕES_IFMT!$A:$A,0)),"")<>"",OFFSET(COMPOSIÇÕES_IFMT!$A$1,MATCH($A250,COMPOSIÇÕES_IFMT!$A:$A,0)+3,4),"") -> 1 | F254: =IFERROR(INDEX(SINAPI!$D:$D,MATCH($B254,SINAPI!$A:$A,0)),0) -> 384.35 | G254: 384.35
F255: TOTAL | G255: =SUM(G251:G254) -> 495.07
... 544 more rows

Sheet CRONOGRAMA
A5: INSTITUTO FEDERAL DE EDUCAÇÃO, CIÊNCIA E TECNOLOGIA DE MATO GROSSO
A6: =ORÇAMENTO!A6 -> CAMPUS PRIMAVERA DO LESTE
A9: CRONOGRAMA FÍSICO-FINANCEIRO NÃO DESONERADO
A10: OBRA: | B10: =ORÇAMENTO!B10 -> REFORMA HANGAR
A11: ITEM | B11: DESCRIÇÃO / ETAPA | C11: TOTAL | E11: PERÍODO DE EXECUÇÃO DA OBRA | I11: TOTAL
C12: VALOR (R$) | D12: (%) | E12: mês 01 | F12: mês 02 | G12: mês 03 | H12: mês 04
A13: 1.0 | B13: =IFERROR(INDEX(ORÇAMENTO!$D$1:$D$303,MATCH($A13,ORÇAMENTO!$A$1:$A$303,0)),"") -> ADMINISTRAÇÃO DA OBRA | C13: =IFERROR(INDEX(ORÇAMENTO!$J$1:$J$303,MATCH($A13,ORÇAMENTO!$A$1:$A$303,0)),0) -> 30255.22 | D13: =IFERROR(C13/$C$45,"") -> 0.04523616418 | E13: =IFERROR($C13*E14,"") -> 1058.745952 | F13: 12380.62114 | G13: 10061.63182 | H13: 6754.221086 | I13: =SUM(E13:H13) -> 30255.22
E14: =(E15+E17+E19+E21+E23+E25+E27+E29+E31+E33+E35+E37+E39+E41+E43)/($C$45-$C$13) -> 0.03499382756 | F14: =(F15+F17+F19+F21+F23+F25+F27+F29+F31+F33+F35+F37+F39+F41+F43)/($C$45-$C$13) -> 0.4092061184 | G14: =(G15+G17+G19+G21+G23+G25+G27+G29+G31+G33+G35+G37+G39+G41+G43)/($C$45-$C$13) -> 0.3325585411 | H14: =(H15+H17+H19+H21+H23+H25+H27+H29+H31+H33+H35+H37+H39+H41+H43)/($C$45-$C$13) -> 0.2232415129 | I14: 1
A15: 2.0 | B15: =IFERROR(INDEX(ORÇAMENTO!$D$1:$D$303,MATCH($A15,ORÇAMENTO!$A$1:$A$303,0)),"") -> SERVIÇOS PRELIMINARES | C15: =IFERROR(INDEX(ORÇAMENTO!$J$1:$J$303,MATCH($A15,ORÇAMENTO!$A$1:$A$303,0)),0) -> 4842.65 | D15: =IFERROR(C15/$C$45,"") -> 0.007240499671 | E15: =IFERROR($C15*E16,"") -> 968.53 | F15: =IFERROR($C15*F16,"") -> 968.53 | G15: =IFERROR($C15*G16,"") -> 1452.795 | H15: =IFERROR($C15*H16,"") -> 1452.795 | I15: 4842.65
E16: 0.2 | F16: 0.2 | G16: 0.3 | H16: 0.3 | I16: 1
A17: 3.0 | B17: =IFERROR(INDEX(ORÇAMENTO!$D$1:$D$303,MATCH($A17,ORÇAMENTO!$A$1:$A$303,0)),"") -> FUNDAÇÃO/ESTRUTURA | C17: =IFERROR(INDEX(ORÇAMENTO!$J$1:$J$303,MATCH($A17,ORÇAMENTO!$A$1:$A$303,0)),0) -> 33801.26 | D17: =IFERROR(C17/$C$45,"") -> 0.05053803432 | E17: =IFERROR($C17*E18,"") -> 20280.756 | F17: =IFERROR($C17*F18,"") -> 13520.504 | G17: =IFERROR($C17*G18,"") -> 0 | H17: =IFERROR($C17*H18,"") -> 0 | I17: 33801.26
E18: 0.6 | F18: 0.4 | I18: 1
A19: 4.0 | B19: =IFERROR(INDEX(ORÇAMENTO!$D$1:$D$303,MATCH($A19,ORÇAMENTO!$A$1:$A$303,0)),"") -> ALVENARIA E DIVISÓRIA | C19: =IFERROR(INDEX(ORÇAMENTO!$J$1:$J$303,MATCH($A19,ORÇAMENTO!$A$1:$A$303,0)),0) -> 5104.56 | D19: =IFERROR(C19/$C$45,"") -> 0.007632095031 | E19: =IFERROR($C19*E20,"") -> 1020.912 | F19: =IFERROR($C19*F20,"") -> 4083.648 | G19: =IFERROR($C19*G20,"") -> 0 | H19: =IFERROR($C19*H20,"") -> 0 | I19: 5104.56
E20: 0.2 | F20: 0.8 | I20: 1
A21: 5.0 | B21: =IFERROR(INDEX(ORÇAMENTO!$D$1:$D$303,MATCH($A21,ORÇAMENTO!$A$1:$A$303,0)),"") -> COBERTURA | C21: =IFERROR(INDEX(ORÇAMENTO!$J$1:$J$303,MATCH($A21,ORÇAMENTO!$A$1:$A$303,0)),0) -> 2225.55 | D21: =IFERROR(C21/$C$45,"") -> 0.003327536378 | E21: =IFERROR($C21*E22,"") -> 0 | F21: =IFERROR($C21*F22,"") -> 2225.55 | G21: =IFERROR($C21*G22,"") -> 0 | H21: =IFERROR($C21*H22,"") -> 0 | I21: 2225.55
F22: 1 | I22: 1
A23: 6.0 | B23: =IFERROR(INDEX(ORÇAMENTO!$D$1:$D$303,MATCH($A23,ORÇAMENTO!$A$1:$A$303,0)),"") -> REVESTIMENTO | C23: =IFERROR(INDEX(ORÇAMENTO!$J$1:$J$303,MATCH($A23,ORÇAMENTO!$A$1:$A$303,0)),0) -> 309.13 | D23: =IFERROR(C23/$C$45,"") -> 0.0004621964551 | E23: =IFERROR($C23*E24,"") -> 30.913 | F23: =IFERROR($C23*F24,"") -> 216.391 | G23: =IFERROR($C23*G24,"") -> 61.826 | H23: =IFERROR($C23*H24,"") -> 0 | I23: 309.13
E24: 0.1 | F24: 0.7 | G24: 0.2 | I24: 1
A25: 7.0 | B25: =IFERROR(INDEX(ORÇAMENTO!$D$1:$D$303,MATCH($A25,ORÇAMENTO!$A$1:$A$303,0)),"") -> IMPERMEABILIZAÇÃO | C25: =IFERROR(INDEX(ORÇAMENTO!$J$1:$J$303,MATCH($A25,ORÇAMENTO!$A$1:$A$303,0)),0) -> 45 | D25: =IFERROR(C25/$C$45,"") -> 6.728185708e-05 | E25: =IFERROR($C25*E26,"") -> 45 | F25: =IFERROR($C25*F26,"") -> 0 | G25: =IFERROR($C25*G26,"") -> 0 | H25: =IFERROR($C25*H26,"") -> 0 | I25: 45
E26: 1 | I26: 1
A27: 8.0 | B27: =IFERROR(INDEX(ORÇAMENTO!$D$1:$D$303,MATCH($A27,ORÇAMENTO!$A$1:$A$303,0)),"") -> PISO E RODAPÉ | C27: =IFERROR(INDEX(ORÇAMENTO!$J$1:$J$303,MATCH($A27,ORÇAMENTO!$A$1:$A$303,0)),0) -> 70553.16 | D27: =IFERROR(C27/$C$45,"") -> 0.1054877251 | E27: =IFERROR($C27*E28,"") -> 0 | F27: =IFERROR($C27*F28,"") -> 10582.974 | G27: =IFERROR($C27*G28,"") -> 59970.186 | H27: =IFERROR($C27*H28,"") -> 0 | I27: 70553.16
F28: 0.15 | G28: 0.85 | I28: 1
A29: 9.0 | B29: =IFERROR(INDEX(ORÇAMENTO!$D$1:$D$303,MATCH($A29,ORÇAMENTO!$A$1:$A$303,0)),"") -> ESQUADRIAS | C29: =IFERROR(INDEX(ORÇAMENTO!$J$1:$J$303,MATCH($A29,ORÇAMENTO!$A$1:$A$303,0)),0) -> 185464.25 | D29: =IFERROR(C29/$C$45,"") -> 0.2772973147 | E29: =IFERROR($C29*E30,"") -> 0 | F29: =IFERROR($C29*F30,"") -> 148371.4 | G29: =IFERROR($C29*G30,"") -> 37092.85 | H29: =IFERROR($C29*H30,"") -> 0 | I29: 185464.25
F30: 0.8 | G30: 0.2 | I30: 1
A31: 10.0 | B31: =IFERROR(INDEX(ORÇAMENTO!$D$1:$D$303,MATCH($A31,ORÇAMENTO!$A$1:$A$303,0)),"") -> PINTURA | C31: =IFERROR(INDEX(ORÇAMENTO!$J$1:$J$303,MATCH($A31,ORÇAMENTO!$A$1:$A$303,0)),0) -> 68593.66 | D31: =IFERROR(C31/$C$45,"") -> 0.102557974 | E31: =IFERROR($C31*E32,"") -> 0 | F31: =IFERROR($C31*F32,"") -> 54874.928 | G31: =IFERROR($C31*G32,"") -> 13718.732 | H31: =IFERROR($C31*H32,"") -> 0 | I31: 68593.66
F32: 0.8 | G32: 0.2 | I32: 1
A33: 11.0 | B33: =IFERROR(INDEX(ORÇAMENTO!$D$1:$D$303,MATCH($A33,ORÇAMENTO!$A$1:$A$303,0)),"") -> LOUÇAS E METAIS | C33: =IFERROR(INDEX(ORÇAMENTO!$J$1:$J$303,MATCH($A33,ORÇAMENTO!$A$1:$A$303,0)),0) -> 24997.02 | D33: =IFERROR(C33/$C$45,"") -> 0.03737435394 | E33: =IFERROR($C33*E34,"") -> 0 | F33: =IFERROR($C33*F34,"") -> 7499.106 | G33: =IFERROR($C33*G34,"") -> 13748.361 | H33: =IFERROR($C33*H34,"") -> 3749.553 | I33: 24997.02
F34: 0.3 | G34: 0.55 | H34: 0.15 | I34: 1
A35: 12.0 | B35: =IFERROR(INDEX(ORÇAMENTO!$D$1:$D$303,MATCH($A35,ORÇAMENTO!$A$1:$A$303,0)),"") -> DRENAGEM DO AR CONDICIONADO | C35: =IFERROR(INDEX(ORÇAMENTO!$J$1:$J$303,MATCH($A35,ORÇAMENTO!$A$1:$A$303,0)),0) -> 1390.44 | D35: =IFERROR(C35/$C$45,"") -> 0.002078919675 | E35: =IFERROR($C35*E36,"") -> 0 | F35: =IFERROR($C35*F36,"") -> 347.61 | G35: =IFERROR($C35*G36,"") -> 834.264 | H35: =IFERROR($C35*H36,"") -> 208.566 | I35: 1390.44
F36: 0.25 | G36: 0.6 | H36: 0.15 | I36: 1
A37: 13.0 | B37: =IFERROR(INDEX(ORÇAMENTO!$D$1:$D$303,MATCH($A37,ORÇAMENTO!$A$1:$A$303,0)),"") -> LIMPEZA TERRENO | C37: =IFERROR(INDEX(ORÇAMENTO!$J$1:$J$303,MATCH($A37,ORÇAMENTO!$A$1:$A$303,0)),0) -> 1869.57 | D37: =IFERROR(C37/$C$45,"") -> 0.002795292034 | E37: =IFERROR($C37*E38,"") -> 0 | F37: =IFERROR($C37*F38,"") -> 0 | G37: =IFERROR($C37*G38,"") -> 373.914 | H37: =IFERROR($C37*H38,"") -> 1495.656 | I37: 1869.57
G38: 0.2 | H38: 0.8 | I38: 1
A39: 14.0 | B39: =IFERROR(INDEX(ORÇAMENTO!$D$1:$D$303,MATCH($A39,ORÇAMENTO!$A$1:$A$303,0)),"") -> FECHAMENTO | C39: =IFERROR(INDEX(ORÇAMENTO!$J$1:$J$303,MATCH($A39,ORÇAMENTO!$A$1:$A$303,0)),0) -> 53203.59 | D39: =IFERROR(C39/$C$45,"") -> 0.07954747419 | E39: =IFERROR($C39*E40,"") -> 0 | F39: =IFERROR($C39*F40,"") -> 0 | G39: =IFERROR($C39*G40,"") -> 10640.718 | H39: =IFERROR($C39*H40,"") -> 42562.872 | I39: 53203.59
G40: 0.2 | H40: 0.8 | I40: 1
A41: 15.0 | B41: =IFERROR(INDEX(ORÇAMENTO!$D$1:$D$303,MATCH($A41,ORÇAMENTO!$A$1:$A$303,0)),"") -> INSTALAÇÕES ELÉTRICAS | C41: =IFERROR(INDEX(ORÇAMENTO!$J$1:$J$303,MATCH($A41,ORÇAMENTO!$A$1:$A$303,0)),0) -> 147275.94 | D41: =IFERROR(C41/$C$45,"") -> 0.2201999721 | E41: =IFERROR($C41*E42,"") -> 0 | F41: =IFERROR($C41*F42,"") -> 14727.594 | G41: =IFERROR($C41*G42,"") -> 58910.376 | H41: =IFERROR($C41*H42,"") -> 73637.97 | I41: 147275.94
F42: 0.1 | G42: 0.4 | H42: 0.5 | I42: 1
A43: 16.0 | B43: =IFERROR(INDEX(ORÇAMENTO!$D$1:$D$303,MATCH($A43,ORÇAMENTO!$A$1:$A$303,0)),"") -> EQUIPAMENTOS | C43: =IFERROR(INDEX(ORÇAMENTO!$J$1:$J$303,MATCH($A43,ORÇAMENTO!$A$1:$A$303,0)),0) -> 38897.15 | D43: =IFERROR(C43/$C$45,"") -> 0.05815716638 | E43: =IFERROR($C43*E44,"") -> 0 | F43: 3889.715 | G43: 15558.86 | H43: 19448.575 | I43: =SUM(E43:H43) -> 38897.15
F44: 0.1 | G44: 0.4 | H44: 0.5 | I44: 1
B45: TOTAL | C45: =SUM(C13:C44) -> 668828.15 | D45: =SUM(D13:D44) -> 1 | E45: =E13+E15+E17+E19+E21+E23+E25+E27+E29+E31+E33+E35+E37+E39+E41+E43 -> 23404.85695 | F45: =F13+F15+F17+F19+F21+F23+F25+F27+F29+F31+F33+F35+F37+F39+F41+F43 -> 273688.5711 | G45: 222424.5138 | H45: 149310.2081 | I45: =I13+I15+I17+I19+I21+I23+I25+I27+I29+I31+I33+I35+I37+I39+I41+I43 -> 668828.15
E46: =E45/$C$45 -> 0.03499382756 | F46: =F45/$C$45 -> 0.4092061184 | G46: =G45/$C$45 -> 0.3325585411 | H46: 0.2232415129 | I46: 1
B47: VALOR TOTAL ACUMULADO | E47: =E45 -> 23404.85695 | F47: =F45+E47 -> 297093.4281 | G47: =G45+F47 -> 519517.9419 | H47: 668828.15

Sheet COMPOSIÇÕES_IFMT (hidden)
A3: AUTORES DA COMPOSIÇÕES
A4: AUTOR DERCIDIO = | B4: .00X/D
A5: AUTOR FATIMA = | B5: .00X/F
A6: AUTOR MARIA CLARA = | B6: .00X/M
A7: AUTOR = | B7: .00X/?
A8: AUTOR = | B8: .00X/?
A9: AUTOR = | B9: .00X/?
A10: IFMT/Nº.MES.ANO
A12: REFERENCIA | B12: PINI 09.001.0000
A13: CLASSE/TIPO | B13: CÓDIGOS | C13: DESCRIÇÃO | D13: UNID.
A14: IFMT 001.05.2018 | B14: .001/D | C14: CONDUTOR QUADRADO EM CHAPA DE AÇO GALVANIZADO NÚMERO 24, 50MM, INCLUSO TRANSPORTE VERTICAL, FORNECIMENTO E INSTALAÇÃO | D14: M | E14: COEFICIENTE | F14: PREÇO UNITÁRIO (R$) | G14: PREÇO TOTAL (R$)
A15: INSUMO | B15: 13388 | C15: SOLDA EM BARRA DE ESTANHO-CHUMBO 50/50 | D15: KG | E15: 0.04 | G15: =E15*F15 -> 0
A16: INSUMO | B16: 40870 | C16: CALHA QUADRADA DE CHAPA DE ACO GALVANIZADA NUM 24, CORTE 50 CM (COLETADO CAIXA) | D16: M | E16: 1.03 | G16: =E16*F16 -> 0
A17: COMPOSICAO | B17: 88316 | C17: SERVENTE COM ENCARGOS COMPLEMENTARES | D17: H | E17: 0.8 | G17: =E17*F17 -> 0
A18: COMPOSICAO | B18: 88323 | C18: TELHADISTA COM ENCARGOS COMPLEMENTARES | D18: H | E18: 0.8 | G18: =E18*F18 -> 0
G19: =E19*F19 -> 0
G20: 0
G21: 0
G22: 0
G23: 0
G24: 0
G25: 0
G26: 0
G27: 0
G28: 0
G29: 0
G30: 0
G31: 0
G32: 0
G33: 0
G34: 0
F35: TOTAL
A37: REFERENCIA | B37: DIVERSAS
A38: CLASSE/TIPO | B38: CÓDIGOS | C38: DESCRIÇÃO | D38: UNID.
A39: IFMT 002.05.2018 | B39: .002/D | C39: LIMPEZA E MANUTENÇÃO DE CALHAS COM RETIRADA DA VEDAÇÃO EXISTENTE E APLICAÇÃO DE VEDAÇÃO DE POLIURETANO PU | D39: M | E39: COEFICIENTE | F39: PREÇO UNITÁRIO (R$) | G39: PREÇO TOTAL (R$)
A40: INSUMO | B40: 142 | C40: SELANTE ELASTICO MONOCOMPONENTE A BASE DE POLIURETANO PARA JUNTAS DIVERSAS 310ML | D40: 310ML | E40: 0.081 | G40: =E40*F40 -> 0
A41: COMPOSICAO | B41: 88316 | C41: SERVENTE COM ENCARGOS COMPLEMENTARES | D41: H | E41: 0.371 | G41: =E41*F41 -> 0
A42: COMPOSICAO | B42: 88323 | C42: TELHADISTA COM ENCARGOS COMPLEMENTARES | D42: H | E42: 0.277 | G42: =E42*F42 -> 0
A43: INSUMO | B43: 6 | C43: DETERGENTE AMONIACO (AMONIA DILUIDA) | D43: L | E43: 0.4 | G43: =E43*F43 -> 0
A44: COTAÇÃO | B44: MERCADO LIVRE | C44: LAVA - JATO ÁGUA FRIA PRESSÃO 1700 PSI | D44: LOC/UN | E44: 0.22 | G44: 0
G45: 0
G46: 0
G47: 0
G48: 0
G49: 0
G50: 0
G51: 0
G52: 0
G53: 0
G54: 0
G55: 0
G56: 0
G57: 0
G58: 0
G59: 0
F60: TOTAL | G60: =SUM(G40:G59) -> 0
A62: REFERENCIA | B62: DIVERSAS
A63: CLASSE/TIPO | B63: CÓDIGOS | C63: DESCRIÇÃO | D63: UNID.
A64: IFMT 003.05.2018 | B64: .003/D | C64: SUPORTE PARA FIXAÇÃO DE CALHA METÁLICA EM BARRA CHATA DE FERRO 1 1/2" X 1/2".FORNECIMENTO E INSTALAÇÃO | D64: UN | E64: COEFICIENTE | F64: PREÇO UNITÁRIO (R$) | G64: PREÇO TOTAL (R$)
A65: INSUMO | B65: 557 | C65: BARRA DE FERRO RETANGULAR, BARRA CHATA, 1 1/2" X 1/2" (L X E), 3,79 KG/M | D65: M | E65: 1.05 | G65: =E65*F65 -> 0
A66: COMPOSICAO | B66: 88315 | C66: SERRALHEIRO COM ENCARGOS COMPLEMENTARES | D66: H | E66: 0.35 | G66: =E66*F66 -> 0
A67: COMPOSICAO | B67: 88316 | C67: SERVENTE COM ENCARGOS COMPLEMENTARES | D67: H | E67: 0.25 | G67: =E67*F67 -> 0
A68: INSUMO | B68: 39914 | C68: SOLDA EM VARETA FOSCOPER, D = *2,5* MM X COMPRIMENTO 500MM | D68: KG | E68: 0.11 | G68: =E68*F68 -> 0
G69: 0
G70: 0
G71: 0
G72: 0
G73: 0
G74: 0
G75: 0
G76: 0
G77: 0
G78: 0
G79: 0
G80: 0
G81: 0
G82: 0
G83: 0
G84: 0
F85: TOTAL | G85: =SUM(G65:G84) -> 0
A87: REFERENCIA | B87: DIVERSAS
A88: CLASSE/TIPO | B88: CÓDIGOS | C88: DESCRIÇÃO | D88: UNID.
A89: IFMT 004.05.2018 | B89: .004/D | C89: RETIRADA E RECOLOCAÇÃO DE TELHA METÁLICAS PARA REMOÇÃO DE CALHAS DANIFICADAS | D89: M | E89: COEFICIENTE | F89: PREÇO UNITÁRIO (R$) | G89: PREÇO TOTAL (R$)
A90: COMPOSICAO | B90: 88316 | C90: SERVENTE COM ENCARGOS COMPLEMENTARES | D90: H | E90: 0.3228 | G90: =E90*F90 -> 0
A91: COMPOSICAO | B91: 88323 | C91: TELHADISTA COM ENCARGOS COMPLEMENTARES | D91: H | E91: 0.2724 | G91: =E91*F91 -> 0
G92: =E92*F92 -> 0
G93: =E93*F93 -> 0
G94: 0
G95: 0
G96: 0
G97: 0
G98: 0
G99: 0
G100: 0
G101: 0
G102: 0
G103: 0
G104: 0
G105: 0
G106: 0
G107: 0
G108: 0
G109: 0
F110: TOTAL | G110: =SUM(G90:G109) -> 0
A112: REFERENCIA | B112: PINI 05.008.0001
A113: CLASSE/TIPO | B113: CÓDIGOS | C113: DESCRIÇÃO | D113: UNID.
A114: IFMT 005.05.2018 | B114: .005/D | C114: LIMPEZA DO SUBSTRATO COM APLICAÇÃO DE ÁGUA FRIA COM DETERGENTE | D114: M² | E114: COEFICIENTE | F114: PREÇO UNITÁRIO (R$) | G114: PREÇO TOTAL (R$)
A115: COMPOSICAO | B115: 88316 | C115: SERVENTE COM ENCARGOS COMPLEMENTARES | D115: H | E115: 0.11 | G115: =E115*F115 -> 0
A116: INSUMO | B116: 6 | C116: DETERGENTE AMONIACO (AMONIA DILUIDA) | D116: L | E116: 0.4 | G116: =E116*F116 -> 0
A117: COTAÇÃO | B117: MERCADO LIVRE | C117: LAVA - JATO ÁGUA FRIA PRESSÃO 1700 PSI | D117: LOC/UN | E117: 0.22 | G117: =E117*F117 -> 0
G118: =E118*F118 -> 0
G119: 0
G120: 0
G121: 0
G122: 0
G123: 0
G124: 0
G125: 0
G126: 0
G127: 0
G128: 0
G129: 0
G130: 0
G131: 0
G132: 0
G133: 0
G134: 0
F135: TOTAL | G135: =SUM(G115:G134) -> 0
A137: REFERENCIA | B137: ORSE/ 04865
A138: CLASSE/TIPO | B138: CÓDIGOS | C138: DESCRIÇÃO | D138: UNID.
A139: IFMT 006.05.2018 | B139: .006/D | C139: LIMPEZA DE CALHAS GALVANIZADAS | D139: M | E139: COEFICIENTE | F139: PREÇO UNITÁRIO (R$) | G139: PREÇO TOTAL (R$)
A140: COMPOSICAO | B140: 88316 | C140: SERVENTE COM ENCARGOS COMPLEMENTARES | D140: H | E140: 1 | G140: =E140*F140 -> 0
G141: =E141*F141 -> 0
G142: =E142*F142 -> 0
G143: =E143*F143 -> 0
G144: 0
G145: 0
G146: 0
G147: 0
G148: 0
G149: 0
G150: 0
G151: 0
G152: 0
G153: 0
G154: 0
G155: 0
G156: 0
G157: 0
G158: 0
G159: 0
F160: TOTAL | G160: =SUM(G140:G159) -> 0
A162: REFERENCIA | B162: ORSE/ 04740
A163: CLASSE/TIPO | B163: CÓDIGOS | C163: DESCRIÇÃO | D163: UNID.
A164: IFMT 007.05.2018 | B164: .007/D | C164: ANDAIME METÁLICO FACHADEIRO - LOCAÇÃO MENSAL, MONTAGEM, DESMONTAGEM E TRANSPORTE (TUBULAR TIPO TORRE) | D164: M2/MÊS | E164: COEFICIENTE | F164: PREÇO UNITÁRIO (R$) | G164: PREÇO TOTAL (R$)
A165: COMPOSIÇÃO | B165: 88278 | C165: MONTADOR DE ESTRUTURA METÁLICA COM ENCARGOS COMPLEMENTARES | D165: H | E165: 0.08 | G165: =E165*F165 -> 0
A166: COMPOSIÇÃO | B166: 88316 | C166: SERVENTE COM ENCARGOS COMPLEMENTARES | D166: H | E166: 0.16 | G166: =E166*F166 -> 0
A167: COMPOSIÇÃO | B167: 91120 | C167: TRANSPORTE HORIZONTAL, TUBOS DE AÇO CARBONO LEVE OU MÉDIO, PRETO OU GALVANIZADO, COM DIÂMETRO MAIOR QUE 40 MM E MENOR OU IGUAL A 65 MM, MANUAL, 30M. AF_06/2015 | D167: M | E167: 5.5769 | G167: =E167*F167 -> 0
A168: INSUMO | B168: 10527 | C168: LOCACAO DE ANDAIME METALICO TUBULAR DE ENCAIXE, TIPO DE TORRE, COM LARGURA DE 1 ATE 1,5 M E ALTURA DE *1,00* M | D168: M/MÊS | E168: 1.03 | G168: =E168*F168 -> 0
G169: 0
G170: 0
G171: 0
G172: 0
G173: 0
G174: 0
G175: 0
G176: 0
G177: 0
G178: 0
G179: 0
G180: 0
G181: 0
G182: 0
G183: 0
G184: 0
F185: TOTAL | G185: =SUM(G165:G184) -> 0
A187: REFERENCIA | B187: SINAPI-02.INEL.ELCA.002/02
A188: CLASSE/TIPO | B188: CÓDIGOS | C188: DESCRIÇÃO | D188: UNID.
A189: IFMT 008.05.2018 | B189: .008/D | C189: ELETROCALHA LISA OU PERFURADA EM AÇO GALVANIZADO, LARGURA 100MM E ALTURA 50MM, INCLUSIVE EMENDA E FIXAÇÃO - FORNECIMENTO E INSTALAÇÃO. | D189: M | E189: COEFICIENTE | F189: PREÇO UNITÁRIO (R$) | G189: PREÇO TOTAL (R$)
A190: COMPOSIÇÃO | B190: 88264 | C190: ELETRICISTA COM ENCARGOS COMPLEMENTARES | D190: H | E190: 0.91 | G190: =E190*F190 -> 0
A191: COMPOSIÇÃO | B191: 88247 | C191: AUXILIAR DE ELETRICISTA COM ENCARGOS COMPLEMENTARES | D191: H | E191: 0.91 | G191: =E191*F191 -> 0
A192: INSUMO | C192: ELETROCALHA LISA OU PERFURADA EM CHAPA DE AÇO GALVANIZADO, LARGURA 100 MM E ALTURA 50 MM | D192: UN | E192: 0.982 | G192: =E192*F192 -> 0
A193: COMPOSIÇÃO | C193: EMENDA PARA ELETROCALHA, LISA OU PERFURADA EM AÇO GALVANIZADO, LARGURA 100MM E ALTURA 50MM - FORNECIMENTO E INSTALAÇÃO. | E193: 0.333 | G193: =E193*F193 -> 0
A194: COMPOSIÇÃO | B194: 91170 | C194: FIXAÇÃO DE TUBOS HORIZONTAIS DE PVC, CPVC OU COBRE DIÂMETROS MENORES OU IGUAIS A 40 MM OU ELETROCALHAS ATÉ 150MM DE LARGURA, COM ABRAÇADEIRA METÁLICA RÍGIDA TIPO D 1/2, FIXADA EM PERFILADO EM LAJE. AF_05/2015 | D194: M | E194: 1 | G194: 0
G195: 0
G196: 0
G197: 0
G198: 0
G199: 0
G200: 0
G201: 0
G202: 0
G203: 0
G204: 0
G205: 0
G206: 0
G207: 0
G208: 0
G209: 0
F210: TOTAL | G210: =SUM(G190:G209) -> 0
... 12606 more rows

Sheet Cotação
E2: VALOR | G2: VALOR | I2: VALOR
C3: MATERIAL | D3: UNIDADE | E3: FORNECEDOR | F3: TOTAL | G3: FORNECEDOR | H3: TOTAL | I3: FORNECEDOR | J3: TOTAL | K3: MEDIANA | L3: FORNECEDOR | M3: ENDEREÇO
A4: 2020-09-14 | B4: COT.01 | C4: TOMADA INDUSTRIAL 16A SOBREPOR 3P+T VERMELHA | D4: UN | E4: PIZZATTO MATERIAIS ELÉTRICOS - THOMAS | F4: 26.27 | G4: BRANEL MATERIAIS ELÉTRICOS | H4: 26.67 | I4: https://www.eletrorastro.com.br/ | J4: 56.01 | K4: =MEDIAN(F4,H4,J4) -> 26.67 | L4: IFMT Reitoria: | M4: Av. Sen. Filinto Müller, 953 - Quilombo, Cuiabá - MT, 78043-409
